Workbook

Sheet Front Sheet
C2: Macros for use with PLAN | O2: NOTES
D4: GO TO | H4: PRINT | K4: School Code: | L4: A0547
K6: =IF(L4="","",Summary!H1) -> Queen Mary Avenue Infants & Nursery School
K8: 3 YEAR BUDGET PLAN
K10: =+M17 -> 2025/2026
K15: YEAR | L15: LEAP YR | M15: PERIOD | O15: Period Start | P15: Period End | Q15: Financial Yr
K16: OUTTURN | L16: Y | M16: 2024/2025 | O16: 2024-04-01 | P16: 2025-03-31 | Q16: 2024 | U16: =+M16 -> 2024/2025 | V16: =+Q16 -> 2024
K17: CURRENT | L17: N | M17: 2025/2026 | O17: 2025-04-01 | P17: 2026-03-31 | Q17: 2025 | T17: =+L17 -> N | U17: =+M17 -> 2025/2026 | V17: =+Q17 -> 2025
K18: NEXT YEAR | L18: N | M18: 2026/2027 | O18: 2026-04-01 | P18: 2027-03-31 | Q18: 2026 | T18: =+L18 -> N | U18: =+M18 -> 2026/2027 | V18: =+Q18 -> 2026
K19: YEAR AFTER | L19: Y | M19: 2027/2028 | O19: 2027-04-01 | P19: 2028-03-31 | Q19: 2027 | T19: Y | U19: 2027/2028 | V19: 2027
K20: YEAR AFTER | L20: N | T20: N | U20: 0 | V20: 0
K21: YEAR AFTER | L21: 0 | T21: 0 | U21: 0 | V21: 0
K22: YEAR AFTER | T22: 0 | U22: 0 | V22: 0
K23: YEAR AFTER | T23: 0 | U23: 0 | V23: 0
K24: YEAR AFTER | T24: 0 | U24: 0 | V24: 0
T25: 0 | U25: 0 | V25: 0
O26: 2006 | U26: 0
C27: Enter data in 'blue' coloured cells only | K27: Clear Down Macro

Sheet Funding
A1: PUPIL FORECAST | D1: =NOW() -> 2026-02-03T09:20:42.700 | H1: =+'Front Sheet'!L4 -> A0547
A3: NOTES | D3: =+Summary!H1 -> Queen Mary Avenue Infants & Nursery School
A4: Enter data in 'blue' coloured cells only
E8: Actual | F8: Indicative PLASC | G8: Indicative PLASC
E9: Oct | F9: Oct | G9: Oct
E10: 2024 | F10: 2025 | G10: 2026
A11: PRIMARY
A12: Child Ages | B12: < 5 | E12: 78 | F12: 80 | G12: 65
B13: 5 + | E13: 77 | F13: 65 | G13: 81
B14: 6 + | E14: 71 | F14: 72 | G14: =F13 -> 65
B15: 7 + | E15: 0 | F15: 0 | G15: 0
B16: 8 + | E16: 0 | F16: 0 | G16: 0
B17: 9 + | E17: 0 | F17: 0 | G17: 0
B18: 10 + | E18: 0 | F18: 0 | G18: 0
E19: =SUM(E12:E18) -> 226 | F19: =SUM(F12:F18) -> 217 | G19: =SUM(G12:G18) -> 211
A21: SECONDARY
B22: 11 + | E22: 0 | F22: 0 | G22: 0
B23: 12 + | E23: 0 | F23: =+E22 -> 0 | G23: =+F22 -> 0
B24: 13 + | E24: 0 | F24: =+E23 -> 0 | G24: =+F23 -> 0
B25: 14 + | E25: 0 | F25: 0 | G25: 0
B26: 15 + | E26: 0 | F26: 0 | G26: 0
B27: 16 + | E27: 0 | F27: 0 | G27: 0
B28: 17 + | E28: 0 | F28: 0 | G28: 0
E29: =SUM(E22:E28) -> 0 | F29: =SUM(F22:F28) -> 0 | G29: =SUM(G22:G28) -> 0
A31: TOTAL AWPU Reception to Yr 13 | E31: =SUM(E19+E29) -> 226 | F31: =SUM(F19+F29) -> 217 | G31: =SUM(G19+G29) -> 211 | I31: =SUM(#REF!+I19+I29) ->  | J31: =SUM(#REF!+J19+J29) -> 
A34: FUNDING
A36: A.W.P.U. | E36: =+'Front Sheet'!U17 -> 2025/2026 | F36: =+'Front Sheet'!U18 -> 2026/2027 | G36: =+'Front Sheet'!U19 -> 2027/2028
A39: MAINSTREAM | B39: <5 | E39: =(E12)*VLOOKUP($B39,[1]PAYDATA!$A$109:$D$124,2,FALSE) -> 299442 | F39: =(F12)*VLOOKUP($B39,[1]PAYDATA!$A$109:$D$124,3,FALSE) -> 316333.6 | G39: =(G12)*VLOOKUP($B39,[1]PAYDATA!$A$109:$D$124,4,FALSE) -> 264731.6815
B40: 5 | C40: + | E40: =(E13)*VLOOKUP($B40,[1]PAYDATA!$A$109:$D$124,2,FALSE) -> 295603 | F40: =(F13)*VLOOKUP($B40,[1]PAYDATA!$A$109:$D$124,3,FALSE) -> 257021.05 | G40: =(G13)*VLOOKUP($B40,[1]PAYDATA!$A$109:$D$124,4,FALSE) -> 329896.4031
B41: 6 | C41: + | E41: =(E14)*VLOOKUP($B41,[1]PAYDATA!$A$109:$D$124,2,FALSE) -> 272569 | F41: =(F14)*VLOOKUP($B41,[1]PAYDATA!$A$109:$D$124,3,FALSE) -> 284700.24 | G41: =(G14)*VLOOKUP($B41,[1]PAYDATA!$A$109:$D$124,4,FALSE) -> 264731.6815
B42: 7 | C42: + | E42: =(E15)*VLOOKUP($B42,[1]PAYDATA!$A$109:$D$124,2,FALSE) -> 0 | F42: =(F15)*VLOOKUP($B42,[1]PAYDATA!$A$109:$D$124,3,FALSE) -> 0 | G42: =(G15)*VLOOKUP($B42,[1]PAYDATA!$A$109:$D$124,4,FALSE) -> 0
B43: 8 | C43: + | E43: =(E16)*VLOOKUP($B43,[1]PAYDATA!$A$109:$D$124,2,FALSE) -> 0 | F43: =(F16)*VLOOKUP($B43,[1]PAYDATA!$A$109:$D$124,3,FALSE) -> 0 | G43: =(G16)*VLOOKUP($B43,[1]PAYDATA!$A$109:$D$124,4,FALSE) -> 0
B44: 9 | C44: + | E44: =(E17)*VLOOKUP($B44,[1]PAYDATA!$A$109:$D$124,2,FALSE) -> 0 | F44: =(F17)*VLOOKUP($B44,[1]PAYDATA!$A$109:$D$124,3,FALSE) -> 0 | G44: =(G17)*VLOOKUP($B44,[1]PAYDATA!$A$109:$D$124,4,FALSE) -> 0
B45: 10 | C45: + | E45: =(E18)*VLOOKUP($B45,[1]PAYDATA!$A$109:$D$124,2,FALSE) -> 0 | F45: =(F18)*VLOOKUP($B45,[1]PAYDATA!$A$109:$D$124,3,FALSE) -> 0 | G45: =(G18)*VLOOKUP($B45,[1]PAYDATA!$A$109:$D$124,4,FALSE) -> 0
B46: 11 | C46: + | E46: =(E19)*VLOOKUP($B46,[1]PAYDATA!$A$109:$D$124,2,FALSE) -> 0 | F46: =(F22)*VLOOKUP($B46,[1]PAYDATA!$A$109:$D$124,2,FALSE) -> 0 | G46: =(G22)*VLOOKUP($B46,[1]PAYDATA!$A$109:$D$124,2,FALSE) -> 0 | I46: 0 | J46: 0
B47: 12 | C47: + | E47: =(E20)*VLOOKUP($B47,[1]PAYDATA!$A$109:$D$124,2,FALSE) -> 0 | F47: =(F23)*VLOOKUP($B47,[1]PAYDATA!$A$109:$D$124,2,FALSE) -> 0 | G47: =(G23)*VLOOKUP($B47,[1]PAYDATA!$A$109:$D$124,2,FALSE) -> 0
B48: 13 | C48: + | E48: =(E21)*VLOOKUP($B48,[1]PAYDATA!$A$109:$D$124,2,FALSE) -> 0 | F48: =(F24)*VLOOKUP($B48,[1]PAYDATA!$A$109:$D$124,2,FALSE) -> 0 | G48: =(G24)*VLOOKUP($B48,[1]PAYDATA!$A$109:$D$124,2,FALSE) -> 0
B49: 14 | C49: + | E49: =(E22)*VLOOKUP($B49,[1]PAYDATA!$A$109:$D$124,2,FALSE) -> 0 | F49: =(F25)*VLOOKUP($B49,[1]PAYDATA!$A$109:$D$124,2,FALSE) -> 0 | G49: =(G25)*VLOOKUP($B49,[1]PAYDATA!$A$109:$D$124,2,FALSE) -> 0
B50: 15 | C50: + | E50: =(E23)*VLOOKUP($B50,[1]PAYDATA!$A$109:$D$124,2,FALSE) -> 0 | F50: =(F26)*VLOOKUP($B50,[1]PAYDATA!$A$109:$D$124,2,FALSE) -> 0 | G50: =(G26)*VLOOKUP($B50,[1]PAYDATA!$A$109:$D$124,2,FALSE) -> 0
B51: 16 | C51: + | E51: =(E24)*VLOOKUP($B51,[1]PAYDATA!$A$109:$D$124,2,FALSE) -> 0 | F51: =(F27)*VLOOKUP($B51,[1]PAYDATA!$A$109:$D$124,2,FALSE) -> 0 | G51: =(G27)*VLOOKUP($B51,[1]PAYDATA!$A$109:$D$124,2,FALSE) -> 0
B52: 17 | C52: + | E52: =(E25)*VLOOKUP($B52,[1]PAYDATA!$A$109:$D$124,2,FALSE) -> 0 | F52: =(F28)*VLOOKUP($B52,[1]PAYDATA!$A$109:$D$124,2,FALSE) -> 0 | G52: =(G28)*VLOOKUP($B52,[1]PAYDATA!$A$109:$D$124,2,FALSE) -> 0
E53: =SUM(E39:E52) -> 867614 | F53: =SUM(F39:F52) -> 858054.89 | G53: =SUM(G39:G52) -> 859359.7661
A56: TOP UP PUPILS | E56: =E36 -> 2025/2026 | F56: =F36 -> 2026/2027 | G56: =G36 -> 2027/2028
A57: PUPIL NAME | B57: BAND | D57: Year Group | E57: Number of days
A59: Albie Charlton | B59: 6 | D59: Y-2 | E59: 0 | F59: 365 | G59: 365
A60: Andrew Joshua Johnson-Gittens (18.03.25-31.03.25) | B60: 6 | D60: Y-1 | E60: 14 | F60: 0 | G60: 0
A61: Andrew Joshua Johnson-Gittens | B61: 6 | D61: Y-1 | E61: 365 | F61: 365 | G61: 365
A62: Arabella Lawson | B62: 7 | D62: Y1 | E62: =365-90 -> 275 | F62: 0 | G62: 0
A63: Archie Melia-Lowe (09.01.25-31.03.25) | B63: 6 | D63: Y1 | E63: 82 | F63: 0 | G63: 0
A64: Archie Melia-Lowe (01.04.25-19.05.25) | B64: 6 | D64: Y2 | E64: 49 | F64: 0 | G64: 0
A65: Archie Melia-Lowe (20.05.25-31.08.25) | B65: 7 | D65: Y2 | E65: 104 | F65: 0 | G65: 0
A66: Bow Lee-Hodges (01.04.25-08.09.25) | B66: 7 | D66: Y0 | E66: 161 | F66: 0 | G66: 0
A67: Bow Lee-Hodges | B67: 8 | D67: Y0 | E67: 204 | F67: 365 | G67: 153
A68: Carter Thomas | B68: 6 | D68: Y-1 | E68: 212 | F68: 365 | G68: 365
A69: Charlie Taylor | B69: 5 | D69: Y1 | E69: 224 | F69: 0 | G69: 0
A70: Charlie Taylor | B70: 6 | D70: Y1 | E70: 141 | F70: 153 | G70: 0
A71: Coben Steele | B71: 6 | D71: Y2 | E71: 153 | F71: 0 | G71: 0
A72: Cody Reynolds | B72: 6 | D72: Y2 | E72: 153 | F72: 0 | G72: 0
A73: Connie Leigh-Huddleston | B73: 9 | D73: Y-1 | E73: 118 | F73: 365 | G73: 365
A74: David Obasuyi | B74: 6 | D74: Y-1 | E74: 189 | F74: 365 | G74: 365
A75: Effie Cole | B75: 7 | D75: Y0 | E75: 365 | F75: 365 | G75: 153
A76: Ethan Gardner | B76: 7 | D76: Y0 | E76: 365 | F76: 365 | G76: 153
A77: Ezrah Metheringham | B77: 6 | D77: Y2 | E77: 153 | F77: 0 | G77: 0
A78: Finn Dennis (01.04.25-21.07.25) | B78: 8 | D78: Y-1 | E78: 112 | F78: 0 | G78: 0
A79: Finn Dennis | B79: 9 | D79: Y-1 | E79: 253 | F79: 365 | G79: 365
A80: Freyja Johnson (27.05.25-31.08.25) | B80: 5 | D80: Y2 | E80: 97 | F80: 0 | G80: 0
A81: Harley Woodley (01.04.25-31.08.25) | B81: 7 | D81: Y0 | E81: 153 | F81: 0 | G81: 0
A82: Harley-Jay Lyall (01.04.25-07.07.25) | B82: 7 | D82: Y0 | E82: 98 | F82: 365 | G82: 153
A83: Harley-Jay Lyall | B83: 8 | D83: Y0 | E83: 267 | F83: 0 | G83: 0
A84: Hunter Rodgers | B84: 6 | D84: Y0 | E84: 289 | F84: 365 | G84: 153
A85: Jayden Craciun | B85: 7 | D85: Y2 | E85: 153 | F85: 0 | G85: 0
A86: Jude Crancher | B86: 7 | D86: Y1 | E86: 365 | F86: 153 | G86: 0
A87: Keegan Lee McKean | B87: 7 | D87: Y-1 | E87: 246 | F87: 365 | G87: 365
A88: Lyla Horracks | B88: 6 | D88: Y-1 | E88: 316 | F88: 365 | G88: 365
A89: Maazin Rimsy | B89: 5 | D89: Y-1 | E89: 153 | F89: 0 | G89: 0
A90: Mason Steeden | B90: 7 | D90: Y2 | E90: 153 | F90: 0 | G90: 0
A91: Millie Hess | B91: 7 | D91: Y-1 | E91: 295 | F91: 365 | G91: 365
A92: Ronnie Frankish | B92: 7 | D92: Y1 | E92: =365-90 -> 275 | F92: 0 | G92: 0
A93: Sami Zakri | B93: 7 | D93: Y0 | E93: 146 | F93: 365 | G93: 153
A94: Teddy Fountain-Gray | B94: 6 | D94: Y0 | E94: 365 | F94: 365 | G94: 153
A95: Teddy Lee-Hodges | B95: 8 | D95: Y1 | E95: 365 | F95: 153 | G95: 0
A96: Tommy Betts | B96: 7 | D96: Y2 | E96: 153 | F96: 0 | G96: 0
A97: Tommy Lee Preston | B97: 6 | D97: Y-1 | E97: 154 | F97: 365 | G97: 153
A98: Travis Kerr | B98: 7 | D98: Y2 | E98: 153 | F98: 0 | G98: 0
A99: Winter Russell | B99: 6 | D99: Y0 | E99: 365 | F99: 365 | G99: 153
A100: Zac Dennis | B100: 7 | D100: Y-1 | E100: 365 | F100: 365 | G100: 365
D102: No. OF DAYS REQUIRED | E102: =SUM(E58:E101) -> 8618 | F102: =SUM(F58:F101) -> 7394 | G102: 5027
A104: TOP UP PUPIL FUNDING | B104: 2025/2026 (Split) | E104: =+E56 -> 2025/2026 | F104: =+F56 -> 2026/2027 | G104: =+G56 -> 2027/2028
B105: Apr - Aug | C105: Sep- Mar
A106: =A59 -> Albie Charlton | B106: 0 | E106: 0 | F106: =IF(F59=0,0,VLOOKUP($B59,[1]!SEN_STATEMENTING,4,FALSE)/IF('Front Sheet'!$T$17="Y",365,365)*F59) -> 7247 | G106: =IF(G59=0,0,VLOOKUP($B59,[1]!SEN_STATEMENTING,5,FALSE)/IF('Front Sheet'!$T$17="Y",365,365)*G59) -> 7247
A107: Andrew Joshua Johnson-Gittens (18.03.25-31.03.25) | B107: 0 | C107: 14 | E107: 266 | F107: =IF(F60=0,0,VLOOKUP($B60,[1]!SEN_STATEMENTING,4,FALSE)/IF('Front Sheet'!$T$17="Y",365,365)*F60) -> 0 | G107: =IF(G60=0,0,VLOOKUP($B60,[1]!SEN_STATEMENTING,5,FALSE)/IF('Front Sheet'!$T$17="Y",365,365)*G60) -> 0
A108: Andrew Joshua Johnson-Gittens | B108: 153 | C108: 212 | E108: =IF(A61="",0,(IF(E61=0,0,VLOOKUP($B61,[1]!SEN_STATEMENTING,2,FALSE)/IF('Front Sheet'!$T$17="Y",365,365)*E61)*B108/E61)+(IF(E61=0,0,VLOOKUP($B61,[1]!SEN_STATEMENTING,3,FALSE)/IF('Front Sheet'!$T$17="Y",365,365)*E61)*C108/E61)) -> 7116.216438 | F108: =IF(F61=0,0,VLOOKUP($B61,[1]!SEN_STATEMENTING,4,FALSE)/IF('Front Sheet'!$T$17="Y",365,365)*F61) -> 7247 | G108: =IF(G61=0,0,VLOOKUP($B61,[1]!SEN_STATEMENTING,5,FALSE)/IF('Front Sheet'!$T$17="Y",365,365)*G61) -> 7247
A109: Arabella Lawson | B109: 153 | C109: =212-90 -> 122 | E109: =IF(A62="",0,(IF(E62=0,0,VLOOKUP($B62,[1]!SEN_STATEMENTING,2,FALSE)/IF('Front Sheet'!$T$17="Y",365,365)*E62)*B109/E62)+(IF(E62=0,0,VLOOKUP($B62,[1]!SEN_STATEMENTING,3,FALSE)/IF('Front Sheet'!$T$17="Y",365,365)*E62)*C109/E62)) -> 6697.120548 | F109: =IF(F62=0,0,VLOOKUP($B62,[1]!SEN_STATEMENTING,4,FALSE)/IF('Front Sheet'!$T$17="Y",365,365)*F62) -> 0 | G109: =IF(G62=0,0,VLOOKUP($B62,[1]!SEN_STATEMENTING,5,FALSE)/IF('Front Sheet'!$T$17="Y",365,365)*G62) -> 0
A110: Archie Melia-Lowe (09.01.25-31.03.25) | B110: 0 | C110: 82 | E110: 1558 | F110: =IF(F63=0,0,VLOOKUP($B63,[1]!SEN_STATEMENTING,4,FALSE)/IF('Front Sheet'!$T$17="Y",365,365)*F63) -> 0 | G110: =IF(G63=0,0,VLOOKUP($B63,[1]!SEN_STATEMENTING,5,FALSE)/IF('Front Sheet'!$T$17="Y",365,365)*G63) -> 0
A111: Archie Melia-Lowe (01.04.25-19.05.25) | B111: 49 | C111: 0 | E111: =IF(A64="",0,(IF(E64=0,0,VLOOKUP($B64,[1]!SEN_STATEMENTING,2,FALSE)/IF('Front Sheet'!$T$17="Y",365,365)*E64)*B111/E64)+(IF(E64=0,0,VLOOKUP($B64,[1]!SEN_STATEMENTING,3,FALSE)/IF('Front Sheet'!$T$17="Y",365,365)*E64)*C111/E64)) -> 931 | F111: =IF(F64=0,0,VLOOKUP($B64,[1]!SEN_STATEMENTING,4,FALSE)/IF('Front Sheet'!$T$17="Y",365,365)*F64) -> 0 | G111: =IF(G64=0,0,VLOOKUP($B64,[1]!SEN_STATEMENTING,5,FALSE)/IF('Front Sheet'!$T$17="Y",365,365)*G64) -> 0
A112: Archie Melia-Lowe (20.05.25-31.08.25) | B112: 104 | C112: 0 | E112: =IF(A65="",0,(IF(E65=0,0,VLOOKUP($B65,[1]!SEN_STATEMENTING,2,FALSE)/IF('Front Sheet'!$T$17="Y",365,365)*E65)*B112/E65)+(IF(E65=0,0,VLOOKUP($B65,[1]!SEN_STATEMENTING,3,FALSE)/IF('Front Sheet'!$T$17="Y",365,365)*E65)*C112/E65)) -> 2483.178082 | F112: =IF(F65=0,0,VLOOKUP($B65,[1]!SEN_STATEMENTING,4,FALSE)/IF('Front Sheet'!$T$17="Y",365,365)*F65) -> 0 | G112: =IF(G65=0,0,VLOOKUP($B65,[1]!SEN_STATEMENTING,5,FALSE)/IF('Front Sheet'!$T$17="Y",365,365)*G65) -> 0
A113: Bow Lee-Hodges (01.04.25-08.09.25) | B113: 153 | C113: 8 | E113: =IF(A66="",0,(IF(E66=0,0,VLOOKUP($B66,[1]!SEN_STATEMENTING,2,FALSE)/IF('Front Sheet'!$T$17="Y",365,365)*E66)*B113/E66)+(IF(E66=0,0,VLOOKUP($B66,[1]!SEN_STATEMENTING,3,FALSE)/IF('Front Sheet'!$T$17="Y",365,365)*E66)*C113/E66)) -> 3852.742466 | F113: =IF(F66=0,0,VLOOKUP($B66,[1]!SEN_STATEMENTING,4,FALSE)/IF('Front Sheet'!$T$17="Y",365,365)*F66) -> 0 | G113: =IF(G66=0,0,VLOOKUP($B66,[1]!SEN_STATEMENTING,5,FALSE)/IF('Front Sheet'!$T$17="Y",365,365)*G66) -> 0
A114: Bow Lee-Hodges | B114: 0 | C114: 204 | E114: =IF(A67="",0,(IF(E67=0,0,VLOOKUP($B67,[1]!SEN_STATEMENTING,2,FALSE)/IF('Front Sheet'!$T$17="Y",365,365)*E67)*B114/E67)+(IF(E67=0,0,VLOOKUP($B67,[1]!SEN_STATEMENTING,3,FALSE)/IF('Front Sheet'!$T$17="Y",365,365)*E67)*C114/E67)) -> 7455.780822 | F114: =IF(F67=0,0,VLOOKUP($B67,[1]!SEN_STATEMENTING,4,FALSE)/IF('Front Sheet'!$T$17="Y",365,365)*F67) -> 13340 | G114: =IF(G67=0,0,VLOOKUP($B67,[1]!SEN_STATEMENTING,5,FALSE)/IF('Front Sheet'!$T$17="Y",365,365)*G67) -> 5591.835616
A115: Carter Thomas | B115: 0 | C115: 212 | E115: =IF(A68="",0,(IF(E68=0,0,VLOOKUP($B68,[1]!SEN_STATEMENTING,2,FALSE)/IF('Front Sheet'!$T$17="Y",365,365)*E68)*B115/E68)+(IF(E68=0,0,VLOOKUP($B68,[1]!SEN_STATEMENTING,3,FALSE)/IF('Front Sheet'!$T$17="Y",365,365)*E68)*C115/E68)) -> 4209.216438 | F115: =IF(F68=0,0,VLOOKUP($B68,[1]!SEN_STATEMENTING,4,FALSE)/IF('Front Sheet'!$T$17="Y",365,365)*F68) -> 7247 | G115: =IF(G68=0,0,VLOOKUP($B68,[1]!SEN_STATEMENTING,5,FALSE)/IF('Front Sheet'!$T$17="Y",365,365)*G68) -> 7247
A116: Charlie Taylor | B116: 153 | C116: 71 | E116: =IF(A69="",0,(IF(E69=0,0,VLOOKUP($B69,[1]!SEN_STATEMENTING,2,FALSE)/IF('Front Sheet'!$T$17="Y",365,365)*E69)*B116/E69)+(IF(E69=0,0,VLOOKUP($B69,[1]!SEN_STATEMENTING,3,FALSE)/IF('Front Sheet'!$T$17="Y",365,365)*E69)*C116/E69)) -> 1986.936986 | F116: =IF(F69=0,0,VLOOKUP($B69,[1]!SEN_STATEMENTING,4,FALSE)/IF('Front Sheet'!$T$17="Y",365,365)*F69) -> 0 | G116: =IF(G69=0,0,VLOOKUP($B69,[1]!SEN_STATEMENTING,5,FALSE)/IF('Front Sheet'!$T$17="Y",365,365)*G69) -> 0
A117: Charlie Taylor | B117: 0 | C117: 141 | E117: =IF(A70="",0,(IF(E70=0,0,VLOOKUP($B70,[1]!SEN_STATEMENTING,2,FALSE)/IF('Front Sheet'!$T$17="Y",365,365)*E70)*B117/E70)+(IF(E70=0,0,VLOOKUP($B70,[1]!SEN_STATEMENTING,3,FALSE)/IF('Front Sheet'!$T$17="Y",365,365)*E70)*C117/E70)) -> 2799.526027 | F117: =IF(F70=0,0,VLOOKUP($B70,[1]!SEN_STATEMENTING,4,FALSE)/IF('Front Sheet'!$T$17="Y",365,365)*F70) -> 3037.783562 | G117: =IF(G70=0,0,VLOOKUP($B70,[1]!SEN_STATEMENTING,5,FALSE)/IF('Front Sheet'!$T$17="Y",365,365)*G70) -> 0
A118: Coben Steele | B118: 153 | C118: 0 | E118: =IF(A71="",0,(IF(E71=0,0,VLOOKUP($B71,[1]!SEN_STATEMENTING,2,FALSE)/IF('Front Sheet'!$T$17="Y",365,365)*E71)*B118/E71)+(IF(E71=0,0,VLOOKUP($B71,[1]!SEN_STATEMENTING,3,FALSE)/IF('Front Sheet'!$T$17="Y",365,365)*E71)*C118/E71)) -> 2907 | F118: =IF(F71=0,0,VLOOKUP($B71,[1]!SEN_STATEMENTING,4,FALSE)/IF('Front Sheet'!$T$17="Y",365,365)*F71) -> 0 | G118: =IF(G71=0,0,VLOOKUP($B71,[1]!SEN_STATEMENTING,5,FALSE)/IF('Front Sheet'!$T$17="Y",365,365)*G71) -> 0
A119: Cody Reynolds | B119: 153 | C119: 0 | E119: =IF(A72="",0,(IF(E72=0,0,VLOOKUP($B72,[1]!SEN_STATEMENTING,2,FALSE)/IF('Front Sheet'!$T$17="Y",365,365)*E72)*B119/E72)+(IF(E72=0,0,VLOOKUP($B72,[1]!SEN_STATEMENTING,3,FALSE)/IF('Front Sheet'!$T$17="Y",365,365)*E72)*C119/E72)) -> 2907 | F119: =IF(F72=0,0,VLOOKUP($B72,[1]!SEN_STATEMENTING,4,FALSE)/IF('Front Sheet'!$T$17="Y",365,365)*F72) -> 0 | G119: =IF(G72=0,0,VLOOKUP($B72,[1]!SEN_STATEMENTING,5,FALSE)/IF('Front Sheet'!$T$17="Y",365,365)*G72) -> 0
A120: Connie Leigh-Huddleston | C120: 118 | E120: =IF(A73="",0,(IF(E73=0,0,VLOOKUP($B73,[1]!SEN_STATEMENTING,2,FALSE)/IF('Front Sheet'!$T$17="Y",365,365)*E73)*B120/E73)+(IF(E73=0,0,VLOOKUP($B73,[1]!SEN_STATEMENTING,3,FALSE)/IF('Front Sheet'!$T$17="Y",365,365)*E73)*C120/E73)) -> 5892.564384 | F120: =IF(F73=0,0,VLOOKUP($B73,[1]!SEN_STATEMENTING,4,FALSE)/IF('Front Sheet'!$T$17="Y",365,365)*F73) -> 18227 | G120: =IF(G73=0,0,VLOOKUP($B73,[1]!SEN_STATEMENTING,5,FALSE)/IF('Front Sheet'!$T$17="Y",365,365)*G73) -> 18227
A121: David Obasuyi | B121: 0 | C121: 189 | E121: =IF(A74="",0,(IF(E74=0,0,VLOOKUP($B74,[1]!SEN_STATEMENTING,2,FALSE)/IF('Front Sheet'!$T$17="Y",365,365)*E74)*B121/E74)+(IF(E74=0,0,VLOOKUP($B74,[1]!SEN_STATEMENTING,3,FALSE)/IF('Front Sheet'!$T$17="Y",365,365)*E74)*C121/E74)) -> 3752.556164 | F121: =IF(F74=0,0,VLOOKUP($B74,[1]!SEN_STATEMENTING,4,FALSE)/IF('Front Sheet'!$T$17="Y",365,365)*F74) -> 7247 | G121: =IF(G74=0,0,VLOOKUP($B74,[1]!SEN_STATEMENTING,5,FALSE)/IF('Front Sheet'!$T$17="Y",365,365)*G74) -> 7247
A122: Effie Cole | B122: 153 | C122: 212 | E122: =IF(A75="",0,(IF(E75=0,0,VLOOKUP($B75,[1]!SEN_STATEMENTING,2,FALSE)/IF('Front Sheet'!$T$17="Y",365,365)*E75)*B122/E75)+(IF(E75=0,0,VLOOKUP($B75,[1]!SEN_STATEMENTING,3,FALSE)/IF('Front Sheet'!$T$17="Y",365,365)*E75)*C122/E75)) -> 8942.682192 | F122: =IF(F75=0,0,VLOOKUP($B75,[1]!SEN_STATEMENTING,4,FALSE)/IF('Front Sheet'!$T$17="Y",365,365)*F75) -> 9107 | G122: =IF(G75=0,0,VLOOKUP($B75,[1]!SEN_STATEMENTING,5,FALSE)/IF('Front Sheet'!$T$17="Y",365,365)*G75) -> 3817.454795
A123: Ethan Gardner | B123: 153 | C123: 212 | E123: =IF(A76="",0,(IF(E76=0,0,VLOOKUP($B76,[1]!SEN_STATEMENTING,2,FALSE)/IF('Front Sheet'!$T$17="Y",365,365)*E76)*B123/E76)+(IF(E76=0,0,VLOOKUP($B76,[1]!SEN_STATEMENTING,3,FALSE)/IF('Front Sheet'!$T$17="Y",365,365)*E76)*C123/E76)) -> 8942.682192 | F123: =IF(F76=0,0,VLOOKUP($B76,[1]!SEN_STATEMENTING,4,FALSE)/IF('Front Sheet'!$T$17="Y",365,365)*F76) -> 9107 | G123: =IF(G76=0,0,VLOOKUP($B76,[1]!SEN_STATEMENTING,5,FALSE)/IF('Front Sheet'!$T$17="Y",365,365)*G76) -> 3817.454795
A124: Ezrah Metheringham | B124: 153 | C124: 0 | E124: =IF(A77="",0,(IF(E77=0,0,VLOOKUP($B77,[1]!SEN_STATEMENTING,2,FALSE)/IF('Front Sheet'!$T$17="Y",365,365)*E77)*B124/E77)+(IF(E77=0,0,VLOOKUP($B77,[1]!SEN_STATEMENTING,3,FALSE)/IF('Front Sheet'!$T$17="Y",365,365)*E77)*C124/E77)) -> 2907 | F124: =IF(F77=0,0,VLOOKUP($B77,[1]!SEN_STATEMENTING,4,FALSE)/IF('Front Sheet'!$T$17="Y",365,365)*F77) -> 0 | G124: =IF(G77=0,0,VLOOKUP($B77,[1]!SEN_STATEMENTING,5,FALSE)/IF('Front Sheet'!$T$17="Y",365,365)*G77) -> 0
A125: Finn Dennis (01.04.25-21.07.25) | B125: 112 | C125: 0 | E125: =IF(A78="",0,(IF(E78=0,0,VLOOKUP($B78,[1]!SEN_STATEMENTING,2,FALSE)/IF('Front Sheet'!$T$17="Y",365,365)*E78)*B125/E78)+(IF(E78=0,0,VLOOKUP($B78,[1]!SEN_STATEMENTING,3,FALSE)/IF('Front Sheet'!$T$17="Y",365,365)*E78)*C125/E78)) -> 3917.238356 | F125: =IF(F78=0,0,VLOOKUP($B78,[1]!SEN_STATEMENTING,4,FALSE)/IF('Front Sheet'!$T$17="Y",365,365)*F78) -> 0 | G125: =IF(G78=0,0,VLOOKUP($B78,[1]!SEN_STATEMENTING,5,FALSE)/IF('Front Sheet'!$T$17="Y",365,365)*G78) -> 0
A126: Finn Dennis | B126: 41 | C126: 212 | E126: =IF(A79="",0,(IF(E79=0,0,VLOOKUP($B79,[1]!SEN_STATEMENTING,2,FALSE)/IF('Front Sheet'!$T$17="Y",365,365)*E79)*B126/E79)+(IF(E79=0,0,VLOOKUP($B79,[1]!SEN_STATEMENTING,3,FALSE)/IF('Front Sheet'!$T$17="Y",365,365)*E79)*C126/E79)) -> 12545.87945 | F126: =IF(F79=0,0,VLOOKUP($B79,[1]!SEN_STATEMENTING,4,FALSE)/IF('Front Sheet'!$T$17="Y",365,365)*F79) -> 18227 | G126: =IF(G79=0,0,VLOOKUP($B79,[1]!SEN_STATEMENTING,5,FALSE)/IF('Front Sheet'!$T$17="Y",365,365)*G79) -> 18227
A127: Freyja Johnson (27.05.25-31.08.25) | B127: 97 | C127: 0 | E127: =IF(A80="",0,(IF(E80=0,0,VLOOKUP($B80,[1]!SEN_STATEMENTING,2,FALSE)/IF('Front Sheet'!$T$17="Y",365,365)*E80)*B127/E80)+(IF(E80=0,0,VLOOKUP($B80,[1]!SEN_STATEMENTING,3,FALSE)/IF('Front Sheet'!$T$17="Y",365,365)*E80)*C127/E80)) -> 848.2849315 | F127: =IF(F80=0,0,VLOOKUP($B80,[1]!SEN_STATEMENTING,4,FALSE)/IF('Front Sheet'!$T$17="Y",365,365)*F80) -> 0 | G127: =IF(G80=0,0,VLOOKUP($B80,[1]!SEN_STATEMENTING,5,FALSE)/IF('Front Sheet'!$T$17="Y",365,365)*G80) -> 0
A128: Harley Woodley (01.04.25-31.08.25) | B128: 153 | C128: 0 | E128: =IF(A81="",0,(IF(E81=0,0,VLOOKUP($B81,[1]!SEN_STATEMENTING,2,FALSE)/IF('Front Sheet'!$T$17="Y",365,365)*E81)*B128/E81)+(IF(E81=0,0,VLOOKUP($B81,[1]!SEN_STATEMENTING,3,FALSE)/IF('Front Sheet'!$T$17="Y",365,365)*E81)*C128/E81)) -> 3653.136986 | F128: =IF(F81=0,0,VLOOKUP($B81,[1]!SEN_STATEMENTING,4,FALSE)/IF('Front Sheet'!$T$17="Y",365,365)*F81) -> 0 | G128: =IF(G81=0,0,VLOOKUP($B81,[1]!SEN_STATEMENTING,5,FALSE)/IF('Front Sheet'!$T$17="Y",365,365)*G81) -> 0
A129: Harley-Jay Lyall (01.04.25-07.07.25) | B129: 98 | C129: 0 | E129: =IF(A82="",0,(IF(E82=0,0,VLOOKUP($B82,[1]!SEN_STATEMENTING,2,FALSE)/IF('Front Sheet'!$T$17="Y",365,365)*E82)*B129/E82)+(IF(E82=0,0,VLOOKUP($B82,[1]!SEN_STATEMENTING,3,FALSE)/IF('Front Sheet'!$T$17="Y",365,365)*E82)*C129/E82)) -> 2339.917808 | F129: =IF(F82=0,0,VLOOKUP($B82,[1]!SEN_STATEMENTING,4,FALSE)/IF('Front Sheet'!$T$17="Y",365,365)*F82) -> 9107 | G129: =IF(G82=0,0,VLOOKUP($B82,[1]!SEN_STATEMENTING,5,FALSE)/IF('Front Sheet'!$T$17="Y",365,365)*G82) -> 3817.454795
A130: Harley-Jay Lyall | B130: 55 | C130: 212 | E130: =IF(A83="",0,(IF(E83=0,0,VLOOKUP($B83,[1]!SEN_STATEMENTING,2,FALSE)/IF('Front Sheet'!$T$17="Y",365,365)*E83)*B130/E83)+(IF(E83=0,0,VLOOKUP($B83,[1]!SEN_STATEMENTING,3,FALSE)/IF('Front Sheet'!$T$17="Y",365,365)*E83)*C130/E83)) -> 9671.808219 | F130: =IF(F83=0,0,VLOOKUP($B83,[1]!SEN_STATEMENTING,4,FALSE)/IF('Front Sheet'!$T$17="Y",365,365)*F83) -> 0 | G130: =IF(G83=0,0,VLOOKUP($B83,[1]!SEN_STATEMENTING,5,FALSE)/IF('Front Sheet'!$T$17="Y",365,365)*G83) -> 0
A131: Hunter Rodgers | B131: 77 | C131: 212 | E131: =IF(A84="",0,(IF(E84=0,0,VLOOKUP($B84,[1]!SEN_STATEMENTING,2,FALSE)/IF('Front Sheet'!$T$17="Y",365,365)*E84)*B131/E84)+(IF(E84=0,0,VLOOKUP($B84,[1]!SEN_STATEMENTING,3,FALSE)/IF('Front Sheet'!$T$17="Y",365,365)*E84)*C131/E84)) -> 5672.216438 | F131: =IF(F84=0,0,VLOOKUP($B84,[1]!SEN_STATEMENTING,4,FALSE)/IF('Front Sheet'!$T$17="Y",365,365)*F84) -> 7247 | G131: =IF(G84=0,0,VLOOKUP($B84,[1]!SEN_STATEMENTING,5,FALSE)/IF('Front Sheet'!$T$17="Y",365,365)*G84) -> 3037.783562
A132: Jayden Craciun | B132: 153 | C132: 0 | E132: =IF(A85="",0,(IF(E85=0,0,VLOOKUP($B85,[1]!SEN_STATEMENTING,2,FALSE)/IF('Front Sheet'!$T$17="Y",365,365)*E85)*B132/E85)+(IF(E85=0,0,VLOOKUP($B85,[1]!SEN_STATEMENTING,3,FALSE)/IF('Front Sheet'!$T$17="Y",365,365)*E85)*C132/E85)) -> 3653.136986 | F132: =IF(F85=0,0,VLOOKUP($B85,[1]!SEN_STATEMENTING,4,FALSE)/IF('Front Sheet'!$T$17="Y",365,365)*F85) -> 0 | G132: =IF(G85=0,0,VLOOKUP($B85,[1]!SEN_STATEMENTING,5,FALSE)/IF('Front Sheet'!$T$17="Y",365,365)*G85) -> 0
A133: Jude Crancher | B133: 153 | C133: 212 | E133: =IF(A86="",0,(IF(E86=0,0,VLOOKUP($B86,[1]!SEN_STATEMENTING,2,FALSE)/IF('Front Sheet'!$T$17="Y",365,365)*E86)*B133/E86)+(IF(E86=0,0,VLOOKUP($B86,[1]!SEN_STATEMENTING,3,FALSE)/IF('Front Sheet'!$T$17="Y",365,365)*E86)*C133/E86)) -> 8942.682192 | F133: =IF(F86=0,0,VLOOKUP($B86,[1]!SEN_STATEMENTING,4,FALSE)/IF('Front Sheet'!$T$17="Y",365,365)*F86) -> 3817.454795 | G133: =IF(G86=0,0,VLOOKUP($B86,[1]!SEN_STATEMENTING,5,FALSE)/IF('Front Sheet'!$T$17="Y",365,365)*G86) -> 0
A134: Keegan Lee McKean | B134: 34 | C134: 212 | E134: =IF(A87="",0,(IF(E87=0,0,VLOOKUP($B87,[1]!SEN_STATEMENTING,2,FALSE)/IF('Front Sheet'!$T$17="Y",365,365)*E87)*B134/E87)+(IF(E87=0,0,VLOOKUP($B87,[1]!SEN_STATEMENTING,3,FALSE)/IF('Front Sheet'!$T$17="Y",365,365)*E87)*C134/E87)) -> 6101.353425 | F134: =IF(F87=0,0,VLOOKUP($B87,[1]!SEN_STATEMENTING,4,FALSE)/IF('Front Sheet'!$T$17="Y",365,365)*F87) -> 9107 | G134: =IF(G87=0,0,VLOOKUP($B87,[1]!SEN_STATEMENTING,5,FALSE)/IF('Front Sheet'!$T$17="Y",365,365)*G87) -> 9107
A135: Lyla Horracks | B135: 104 | C135: 212 | E135: =IF(A88="",0,(IF(E88=0,0,VLOOKUP($B88,[1]!SEN_STATEMENTING,2,FALSE)/IF('Front Sheet'!$T$17="Y",365,365)*E88)*B135/E88)+(IF(E88=0,0,VLOOKUP($B88,[1]!SEN_STATEMENTING,3,FALSE)/IF('Front Sheet'!$T$17="Y",365,365)*E88)*C135/E88)) -> 6185.216438 | F135: =IF(F88=0,0,VLOOKUP($B88,[1]!SEN_STATEMENTING,4,FALSE)/IF('Front Sheet'!$T$17="Y",365,365)*F88) -> 7247 | G135: =IF(G88=0,0,VLOOKUP($B88,[1]!SEN_STATEMENTING,5,FALSE)/IF('Front Sheet'!$T$17="Y",365,365)*G88) -> 7247
A136: Maazin Rimsy | B136: 153 | C136: 0 | E136: =IF(A89="",0,(IF(E89=0,0,VLOOKUP($B89,[1]!SEN_STATEMENTING,2,FALSE)/IF('Front Sheet'!$T$17="Y",365,365)*E89)*B136/E89)+(IF(E89=0,0,VLOOKUP($B89,[1]!SEN_STATEMENTING,3,FALSE)/IF('Front Sheet'!$T$17="Y",365,365)*E89)*C136/E89)) -> 1338.016438 | F136: =IF(F89=0,0,VLOOKUP($B89,[1]!SEN_STATEMENTING,4,FALSE)/IF('Front Sheet'!$T$17="Y",365,365)*F89) -> 0 | G136: =IF(G89=0,0,VLOOKUP($B89,[1]!SEN_STATEMENTING,5,FALSE)/IF('Front Sheet'!$T$17="Y",365,365)*G89) -> 0
A137: Mason Steeden | B137: 153 | C137: 0 | E137: =IF(A90="",0,(IF(E90=0,0,VLOOKUP($B90,[1]!SEN_STATEMENTING,2,FALSE)/IF('Front Sheet'!$T$17="Y",365,365)*E90)*B137/E90)+(IF(E90=0,0,VLOOKUP($B90,[1]!SEN_STATEMENTING,3,FALSE)/IF('Front Sheet'!$T$17="Y",365,365)*E90)*C137/E90)) -> 3653.136986 | F137: =IF(F90=0,0,VLOOKUP($B90,[1]!SEN_STATEMENTING,4,FALSE)/IF('Front Sheet'!$T$17="Y",365,365)*F90) -> 0 | G137: =IF(G90=0,0,VLOOKUP($B90,[1]!SEN_STATEMENTING,5,FALSE)/IF('Front Sheet'!$T$17="Y",365,365)*G90) -> 0
A138: Millie Hess | B138: 83 | C138: 212 | E138: =IF(A91="",0,(IF(E91=0,0,VLOOKUP($B91,[1]!SEN_STATEMENTING,2,FALSE)/IF('Front Sheet'!$T$17="Y",365,365)*E91)*B138/E91)+(IF(E91=0,0,VLOOKUP($B91,[1]!SEN_STATEMENTING,3,FALSE)/IF('Front Sheet'!$T$17="Y",365,365)*E91)*C138/E91)) -> 7271.312329 | F138: =IF(F91=0,0,VLOOKUP($B91,[1]!SEN_STATEMENTING,4,FALSE)/IF('Front Sheet'!$T$17="Y",365,365)*F91) -> 9107 | G138: =IF(G91=0,0,VLOOKUP($B91,[1]!SEN_STATEMENTING,5,FALSE)/IF('Front Sheet'!$T$17="Y",365,365)*G91) -> 9107
A139: Ronnie Frankish | B139: 153 | C139: =212-90 -> 122 | E139: =IF(A92="",0,(IF(E92=0,0,VLOOKUP($B92,[1]!SEN_STATEMENTING,2,FALSE)/IF('Front Sheet'!$T$17="Y",365,365)*E92)*B139/E92)+(IF(E92=0,0,VLOOKUP($B92,[1]!SEN_STATEMENTING,3,FALSE)/IF('Front Sheet'!$T$17="Y",365,365)*E92)*C139/E92)) -> 6697.120548 | F139: =IF(F92=0,0,VLOOKUP($B92,[1]!SEN_STATEMENTING,4,FALSE)/IF('Front Sheet'!$T$17="Y",365,365)*F92) -> 0 | G139: =IF(G92=0,0,VLOOKUP($B92,[1]!SEN_STATEMENTING,5,FALSE)/IF('Front Sheet'!$T$17="Y",365,365)*G92) -> 0
A140: Sami Zakri | B140: 153 | C140: 212 | E140: =IF(A93="",0,(IF(E93=0,0,VLOOKUP($B93,[1]!SEN_STATEMENTING,2,FALSE)/IF('Front Sheet'!$T$17="Y",365,365)*E93)*B140/E93)+(IF(E93=0,0,VLOOKUP($B93,[1]!SEN_STATEMENTING,3,FALSE)/IF('Front Sheet'!$T$17="Y",365,365)*E93)*C140/E93)) -> 8942.682192 | F140: =IF(F93=0,0,VLOOKUP($B93,[1]!SEN_STATEMENTING,4,FALSE)/IF('Front Sheet'!$T$17="Y",365,365)*F93) -> 9107 | G140: =IF(G93=0,0,VLOOKUP($B93,[1]!SEN_STATEMENTING,5,FALSE)/IF('Front Sheet'!$T$17="Y",365,365)*G93) -> 3817.454795
A141: Teddy Fountain-Gray | B141: 153 | C141: 212 | E141: =IF(A94="",0,(IF(E94=0,0,VLOOKUP($B94,[1]!SEN_STATEMENTING,2,FALSE)/IF('Front Sheet'!$T$17="Y",365,365)*E94)*B141/E94)+(IF(E94=0,0,VLOOKUP($B94,[1]!SEN_STATEMENTING,3,FALSE)/IF('Front Sheet'!$T$17="Y",365,365)*E94)*C141/E94)) -> 7116.216438 | F141: =IF(F94=0,0,VLOOKUP($B94,[1]!SEN_STATEMENTING,4,FALSE)/IF('Front Sheet'!$T$17="Y",365,365)*F94) -> 7247 | G141: =IF(G94=0,0,VLOOKUP($B94,[1]!SEN_STATEMENTING,5,FALSE)/IF('Front Sheet'!$T$17="Y",365,365)*G94) -> 3037.783562
A142: Teddy Lee-Hodges | B142: 153 | C142: 212 | E142: =IF(A95="",0,(IF(E95=0,0,VLOOKUP($B95,[1]!SEN_STATEMENTING,2,FALSE)/IF('Front Sheet'!$T$17="Y",365,365)*E95)*B142/E95)+(IF(E95=0,0,VLOOKUP($B95,[1]!SEN_STATEMENTING,3,FALSE)/IF('Front Sheet'!$T$17="Y",365,365)*E95)*C142/E95)) -> 13099.39178 | F142: =IF(F95=0,0,VLOOKUP($B95,[1]!SEN_STATEMENTING,4,FALSE)/IF('Front Sheet'!$T$17="Y",365,365)*F95) -> 5591.835616 | G142: =IF(G95=0,0,VLOOKUP($B95,[1]!SEN_STATEMENTING,5,FALSE)/IF('Front Sheet'!$T$17="Y",365,365)*G95) -> 0
A143: Tommy Betts | B143: 153 | C143: 0 | E143: =IF(A96="",0,(IF(E96=0,0,VLOOKUP($B96,[1]!SEN_STATEMENTING,2,FALSE)/IF('Front Sheet'!$T$17="Y",365,365)*E96)*B143/E96)+(IF(E96=0,0,VLOOKUP($B96,[1]!SEN_STATEMENTING,3,FALSE)/IF('Front Sheet'!$T$17="Y",365,365)*E96)*C143/E96)) -> 3653.136986 | F143: =IF(F96=0,0,VLOOKUP($B96,[1]!SEN_STATEMENTING,4,FALSE)/IF('Front Sheet'!$T$17="Y",365,365)*F96) -> 0 | G143: =IF(G96=0,0,VLOOKUP($B96,[1]!SEN_STATEMENTING,5,FALSE)/IF('Front Sheet'!$T$17="Y",365,365)*G96) -> 0
A144: Tommy Lee Preston | B144: 0 | C144: 154 | E144: =IF(A97="",0,(IF(E97=0,0,VLOOKUP($B97,[1]!SEN_STATEMENTING,2,FALSE)/IF('Front Sheet'!$T$17="Y",365,365)*E97)*B144/E97)+(IF(E97=0,0,VLOOKUP($B97,[1]!SEN_STATEMENTING,3,FALSE)/IF('Front Sheet'!$T$17="Y",365,365)*E97)*C144/E97)) -> 3057.638356 | F144: =IF(F97=0,0,VLOOKUP($B97,[1]!SEN_STATEMENTING,4,FALSE)/IF('Front Sheet'!$T$17="Y",365,365)*F97) -> 7247 | G144: =IF(G97=0,0,VLOOKUP($B97,[1]!SEN_STATEMENTING,5,FALSE)/IF('Front Sheet'!$T$17="Y",365,365)*G97) -> 3037.783562
A145: Travis Kerr | B145: 153 | C145: 0 | E145: =IF(A98="",0,(IF(E98=0,0,VLOOKUP($B98,[1]!SEN_STATEMENTING,2,FALSE)/IF('Front Sheet'!$T$17="Y",365,365)*E98)*B145/E98)+(IF(E98=0,0,VLOOKUP($B98,[1]!SEN_STATEMENTING,3,FALSE)/IF('Front Sheet'!$T$17="Y",365,365)*E98)*C145/E98)) -> 3653.136986 | F145: =IF(F98=0,0,VLOOKUP($B98,[1]!SEN_STATEMENTING,4,FALSE)/IF('Front Sheet'!$T$17="Y",365,365)*F98) -> 0 | G145: =IF(G98=0,0,VLOOKUP($B98,[1]!SEN_STATEMENTING,5,FALSE)/IF('Front Sheet'!$T$17="Y",365,365)*G98) -> 0
A146: Winter Russell | B146: 153 | C146: 212 | E146: =IF(A99="",0,(IF(E99=0,0,VLOOKUP($B99,[1]!SEN_STATEMENTING,2,FALSE)/IF('Front Sheet'!$T$17="Y",365,365)*E99)*B146/E99)+(IF(E99=0,0,VLOOKUP($B99,[1]!SEN_STATEMENTING,3,FALSE)/IF('Front Sheet'!$T$17="Y",365,365)*E99)*C146/E99)) -> 7116.216438 | F146: =IF(F99=0,0,VLOOKUP($B99,[1]!SEN_STATEMENTING,4,FALSE)/IF('Front Sheet'!$T$17="Y",365,365)*F99) -> 7247 | G146: =IF(G99=0,0,VLOOKUP($B99,[1]!SEN_STATEMENTING,5,FALSE)/IF('Front Sheet'!$T$17="Y",365,365)*G99) -> 3037.783562
A147: Zac Dennis | B147: 153 | C147: 212 | E147: =IF(A100="",0,(IF(E100=0,0,VLOOKUP($B100,[1]!SEN_STATEMENTING,2,FALSE)/IF('Front Sheet'!$T$17="Y",365,365)*E100)*B147/E100)+(IF(E100=0,0,VLOOKUP($B100,[1]!SEN_STATEMENTING,3,FALSE)/IF('Front Sheet'!$T$17="Y",365,365)*E100)*C147/E100)) -> 8942.682192 | F147: =IF(F100=0,0,VLOOKUP($B100,[1]!SEN_STATEMENTING,4,FALSE)/IF('Front Sheet'!$T$17="Y",365,365)*F100) -> 9107 | G147: =IF(G100=0,0,VLOOKUP($B100,[1]!SEN_STATEMENTING,5,FALSE)/IF('Front Sheet'!$T$17="Y",365,365)*G100) -> 9107
A148: 0 | E148: =IF(A103="",0,(IF(E103=0,0,VLOOKUP($B103,[1]!SEN_STATEMENTING,2,FALSE)/IF('Front Sheet'!$T$17="Y",365,365)*E103)*B148/E103)+(IF(E103=0,0,VLOOKUP($B103,[1]!SEN_STATEMENTING,3,FALSE)/IF('Front Sheet'!$T$17="Y",365,365)*E103)*C148/E103)) -> 0 | F148: =IF(F103=0,0,VLOOKUP($B103,[1]!SEN_STATEMENTING,4,FALSE)/IF('Front Sheet'!$T$17="Y",365,365)*F103) -> 0 | G148: =IF(G103=0,0,VLOOKUP($B103,[1]!SEN_STATEMENTING,5,FALSE)/IF('Front Sheet'!$T$17="Y",365,365)*G103) -> 0
B149: TOP UP FUNDING | E149: =SUM(E105:E148) -> 213678.7616 | F149: =SUM(F105:F148) -> 191213.074 | G149: 133022.789
E151: =+E56 -> 2025/2026 | F151: =+F56 -> 2026/2027 | G151: =+G56 -> 2027/2028
A153: PUPIL FUNDING TOTAL | E153: =SUM(E53+E149) -> 1081292.762 | F153: =SUM(F53+F149) -> 1049267.964 | G153: =SUM(G53+G149) -> 992382.5551
A155: SINGLE FUNDING FORMULA
A156: ORIGINAL FUNDING | E156: 299033 | F156: =E156 -> 299033 | G156: =E156 -> 299033
A158: SUMMER TERM ADJUSTMENT | E158: 23429 | F158: =E158 -> 23429 | G158: =F158 -> 23429
A160: AUTUMN TERM ADJUSTMENT | E160: -107058 | F160: =E160 -> -107058 | G160: =F160 -> -107058
A162: SPRING TERM ADJUSTMENT | E162: 10060 | F162: =E162 -> 10060 | G162: =F162 -> 10060
A164: LUMP SUM | E164: 141473 | F164: =E164*1.03 -> 145717.19 | G164: =F164*1.03 -> 150088.7057
B165: no of pupils | C165: £ per pupil amount
A167: EAL | B167: =E167/C167 -> 18.47966102 | C167: 590 | E167: =VLOOKUP('Front Sheet'!$L$4,[2]Sheet1!$B$1:$S$9,4,0) -> 10903 | F167: =($E167/$E$31*$F$31)*1.03 -> 10782.87403 | G167: =($F167/$F$31*$G$31)*1.03 -> 10799.27195
A169: MOBILITY - PUPILS STARTING SCHOOL OUTSIDE NORMAL ENTRY DATES | B169: 0 | C169: 960 | E169: =VLOOKUP('Front Sheet'!$L$4,[2]Sheet1!$B$1:$S$9,5,0) -> 0 | F169: =($E169/$E$31*$F$31)*1.03 -> 0 | G169: =($F169/$F$31*$G$31)*1.03 -> 0
A171: LOW PRIOR ATTAINMENT | B171: =E171/C171 -> 89.22136752 | C171: 1170 | E171: =VLOOKUP('Front Sheet'!$L$4,[2]Sheet1!$B$1:$S$9,6,0) -> 104389 | F171: =($E171/$E$31*$F$31)*1.03 -> 103238.8734 | G171: =($F171/$F$31*$G$31)*1.03 -> 103395.8726
A173: DEPRIVATION
A174: IDACI BAND F | B174: =E174/C174 -> 13 | C174: 235 | E174: =VLOOKUP('Front Sheet'!$L$4,[2]Sheet1!$B$1:$S$9,7,0) -> 3055 | F174: =($E174/$E$31*$F$31)*1.03 -> 3021.340929 | G174: =($F174/$F$31*$G$31)*1.03 -> 3025.935595
A176: IDACI BAND E | B176: =E176/C176 -> 28 | C176: 285 | E176: =VLOOKUP('Front Sheet'!$L$4,[2]Sheet1!$B$1:$S$9,8,0) -> 7980 | F176: =($E176/$E$31*$F$31)*1.03 -> 7892.078761 | G176: =($F176/$F$31*$G$31)*1.03 -> 7904.08054
A178: IDACI BAND D | B178: =E178/C178 -> 14 | C178: 445 | E178: =VLOOKUP('Front Sheet'!$L$4,[2]Sheet1!$B$1:$S$9,9,0) -> 6230 | F178: =($E178/$E$31*$F$31)*1.03 -> 6161.359735 | G178: =($F178/$F$31*$G$31)*1.03 -> 6170.729544
A180: IDACI BAND C | B180: =E180/C180 -> 0 | C180: 485 | E180: =VLOOKUP('Front Sheet'!$L$4,[2]Sheet1!$B$1:$S$9,10,0) -> 0 | F180: =($E180/$E$31*$F$31)*1.03 -> 0 | G180: =($F180/$F$31*$G$31)*1.03 -> 0
A182: IDACI BAND B | B182: =E182/C182 -> 62.60194175 | C182: 515 | E182: =VLOOKUP('Front Sheet'!$L$4,[2]Sheet1!$B$1:$S$9,11,0) -> 32240 | F182: =($E182/$E$31*$F$31)*1.03 -> 31884.78938 | G182: =($F182/$F$31*$G$31)*1.03 -> 31933.27777
A184: IDACI BAND A | B184: =E184/C184 -> 100.7352941 | C184: 680 | E184: =VLOOKUP('Front Sheet'!$L$4,[2]Sheet1!$B$1:$S$9,12,0) -> 68500 | F184: =($E184/$E$31*$F$31)*1.03 -> 67745.28761 | G184: =($F184/$F$31*$G$31)*1.03 -> 67848.3104
A186: FSM EVER 6 | B186: =E186/C186 -> 163.2414634 | C186: 820 | E186: =VLOOKUP('Front Sheet'!$L$4,[2]Sheet1!$B$1:$S$9,13,0) -> 133858 | F186: =($E186/$E$31*$F$31)*1.03 -> 132383.1928 | G186: =($F186/$F$31*$G$31)*1.03 -> 132584.5129
A188: FSM | B188: =E188/C188 -> 128.2959184 | C188: 490 | E188: =VLOOKUP('Front Sheet'!$L$4,[2]Sheet1!$B$1:$S$9,14,0) -> 62865 | F188: =($E188/$E$31*$F$31)*1.03 -> 62172.37235 | G188: =($F188/$F$31*$G$31)*1.03 -> 62266.92019
A190: Estimated grants now mainstreamed into funding | F190: 40000 | G190: =($F190/$F$31*$G$31)*1.03 -> 40060.82949
A196: TOTAL FUNDING | E196: =SUM(E153:E195) -> 1878249.762 | F196: =SUM(F153:F195) -> 1885731.323 | G196: =SUM(G153:G195) -> 1833925.002 | I196: =SUM(I178:I195) -> 0 | J196: =SUM(J178:J195) -> 0
A199: FOR FINANCE USE:
A200: RECONCILIATION
A201: TOTAL FUNDING | E201: =E196 -> 1878249.762
A202: CARRY FORWARD | E202: =Outturn!E83 -> 142899.34
A203: Less any funding adj not on Unit 4)
A204: UNIT 4 TOTAL | E204: =SUM(E201:E203) -> 2021149.102 | F204: =SUM(F201:F203) -> 0 | G204: =SUM(G201:G203) -> 0
A207: Notional SEN Budget (this is part of your total schools block funding above) | E207: 2025/2026
E208: £
C209: 5% AWPU | E209: =E53*5% -> 43380.7
C210: 50% FSM | E210: =E188*50% -> 31432.5
C211: 50% FSM Ever 6 | E211: =E186*50% -> 66929
C212: 50% IDACI | E212: =(E174+E176+E178+E180+E182+E184)*50% -> 59002.5
C213: 50% EAL | E213: =E167*50% -> 5451.5
C214: 100% ATTAINMENT | E214: =E171 -> 104389
A215: Total Notional SEN Budget | E215: =SUM(E209:E214) -> 310585.2

Sheet Staffing
A1: STAFFING COSTS | D1: NOTES | H1: =NOW() -> 2026-02-03T09:20:42.700 | Z1: hidden | AU1: TOTAL STAFFING COSTS | AV1: =AV61+AV168+AV190+AV211+AV262 -> 1982691.985 | AW1: Based on present September SCALE | AX1: Allowances | AY1: Sept monthly pay | AZ1: Months | BD1: =AF4+1 -> 2026-04-01 | BE1: to | BF1: =BD1+364 -> 2027-03-31 | BG1: Based on last September SCALE | BH1: Allowances | BI1: Sept monthly pay | BJ1: Months | BN1: =BF2+1 -> 2027-04-01 | BO1: to | BP1: =BN1+364 -> 2028-03-30
A2: Enter data in 'blue' coloured cells only | T2: =+#REF! ->  | BD2: =BD1 -> 2026-04-01 | BE2: to | BF2: =BD2+364 -> 2027-03-31 | BN2: =+BN1 -> 2027-04-01 | BO2: to | BP2: =+BP1 -> 2028-03-30
A3: TEACHERS | F3: =+'Front Sheet'!O17 -> 2025-04-01 | G3: to | H3: ='Front Sheet'!P19 -> 2028-03-31 | U3: =F3 -> 2025-04-01 | V3: =U3+U5 -> 2025-05-01 | W3: 2025-06-01 | X3: 2025-07-01 | Y3: 2025-08-01 | Z3: 2025-09-01 | AA3: 2025-10-01 | AB3: 2025-11-01 | AC3: 2025-12-01 | AD3: 2026-01-01 | AE3: 2026-02-01 | AF3: 2026-03-01 | BA3: Pay Rises | BD3: =+BF5 -> 2026/2027 | BK3: Pay Rises | BN3: =+BP5 -> 2027/2028
L4: ALLOWANCE | U4: =U3+U5-1 -> 2025-04-30 | V4: 2025-05-31 | W4: 2025-06-30 | X4: 2025-07-31 | Y4: 2025-08-31 | Z4: 2025-09-30 | AA4: 2025-10-31 | AB4: 2025-11-30 | AC4: 2025-12-31 | AD4: 2026-01-31 | AE4: =AF3-1 -> 2026-02-28 | AF4: =+AF3+AF5 -> 2026-03-31 | BA4: 0 | BD4: April | BK4: 0 | BN4: April
D5: FTE | E5: PAY | H5: APRIL | I5: SEPT | L5: POINTS | S5: DAYS IN YEAR | T5: =SUM(U5:AF5) -> 364 | U5: 30 | V5: 31 | W5: 30 | X5: 31 | Y5: 31 | Z5: 30 | AA5: 31 | AB5: 30 | AC5: 31 | AD5: 31 | AE5: =IF('Front Sheet'!T17="y",29,28) -> 28 | AF5: 30 | AG5: =+'Front Sheet'!U17 -> 2025/2026 | AU5: 0.2868 | AV5: =AG5 -> 2025/2026 | BA5: 0.04 | BD5: Sept | BE5: 0.2868 | BF5: =+'Front Sheet'!U18 -> 2026/2027 | BK5: 0.04 | BN5: Sept | BO5: 0.2868 | BP5: =+'Front Sheet'!U19 -> 2027/2028
A6: SUBJECT | B6: NAME | C6: CODE | E6: TYPE | F6: START | G6: FINISH | H6: SCALE | J6: MAN | K6: a | L6: SEN | M6: b | N6: RR | O6: c | P6: ALLOWANCES | Q6: SUP'N | R6: APRIL | S6: SEPT | T6: months | U6: APRIL | V6: MAY | W6: JUNE | X6: JULY | Y6: AUGUST | Z6: SEPT | AA6: OCT | AB6: NOV | AC6: DEC | AD6: JAN | AE6: FEB | AF6: MAR | AG6: PAY | AH6: 1 | AI6: 2 | AJ6: 3 | AK6: 4 | AL6: 5 | AM6: 6 | AN6: 7 | AO6: 8 | AP6: 9 | AQ6: 10 | AR6: 11 | AS6: 12 | AT6: N.I. | AU6: SUP'N | AV6: TOTAL | BA6: PAY | BD6: N.I. | BE6: SUP'N | BF6: TOTAL | BK6: PAY | BN6: N.I. | BO6: SUP'N | BP6: TOTAL
A7: x
A8: x | B8: Head teacher | C8: A01001 | D8: 0 | E8: LEADER | F8: =$F$3 -> 2025-04-01 | G8: =+$H$3 -> 2028-03-31 | H8: 5 | I8: 5 | Q8: Y | R8: =IF($E8="LEADER",VLOOKUP(H8,[1]PAYDATA!$A$4:$C$54,3),IF($E8="TEACHER",VLOOKUP(H8,[1]PAYDATA!$A$70:$C$80,3),IF($E8="ADVANCED",VLOOKUP(H8,[1]PAYDATA!$A$141:$C$159,3),IF($E8="UNQUAL",VLOOKUP(H8,[1]PAYDATA!$A$57:$C$63,3),0))))*$D8+($K8/T8)+($M8/T8)+($O8/T8)+($P8/T8) -> 0 | S8: =IF($E8="LEADER",VLOOKUP(I8,[1]!LEADERSHIP,5),IF($E8="TEACHER",VLOOKUP(I8,[1]!TEACHER,5),IF($E8="ADVANCED",VLOOKUP(I8,[1]PAYDATA!$A$141:$E$159,5),IF($E8="UNQUAL",VLOOKUP(I8,[1]!UNQUALIFIED_TEACHER,5),0))))*$D8+($K8/T8)+($M8/T8)+($O8/T8)+($P8/T8) -> 0 | T8: =IF(G8-F8>11.99999,12,MONTH(G8)-MONTH(F8)) -> 12 | U8: =NumberOfDaysWorked($F8,$G8,U$3,U$4)*$R8 -> 0 | V8: 0 | W8: 0 | X8: 0 | Y8: 0 | Z8: =NumberOfDaysWorked($F8,$G8,Z$3,Z$4)*$S8 -> 0 | AA8: 0 | AB8: 0 | AC8: 0 | AD8: 0 | AE8: 0 | AF8: 0 | AG8: =SUM(U8:AF8) -> 0 | AH8: =IF($Q8="N",IF(U8>[1]!NIUPPLIMA,((U8-[1]!NIUPPLIMA)*[1]!NIUPPERA)+([1]!NIUPPLIMA-[1]!NILOWLIMA)*[1]!NILOWA,IF(U8>[1]!NILOWLIMA,(U8-[1]!NILOWLIMA)*[1]!NILOWA,0)))+IF($Q8="Y",IF(U8>[1]!NIUPPLIMA,((U8-[1]!NIUPPLIMA)*[1]!NIUPPERA)+(([1]!NIUPPLIMA-[1]!NILOWLIMA)*[1]!NISUPNA),IF(U8>[1]!NILOWLIMA,(U8-[1]!NILOWLIMA)*[1]!NISUPNA,0)))+IF(U8>[1]!NILOWLIMA,-[1]!NICREBATEA,0) -> 0 | AI8: =IF($Q8="N",IF(V8>[1]!NIUPPLIMA,((V8-[1]!NIUPPLIMA)*[1]!NIUPPERA)+([1]!NIUPPLIMA-[1]!NILOWLIMA)*[1]!NILOWA,IF(V8>[1]!NILOWLIMA,(V8-[1]!NILOWLIMA)*[1]!NILOWA,0)))+IF($Q8="Y",IF(V8>[1]!NIUPPLIMA,((V8-[1]!NIUPPLIMA)*[1]!NIUPPERA)+(([1]!NIUPPLIMA-[1]!NILOWLIMA)*[1]!NISUPNA),IF(V8>[1]!NILOWLIMA,(V8-[1]!NILOWLIMA)*[1]!NISUPNA,0)))+IF(V8>[1]!NILOWLIMA,-[1]!NICREBATEA,0) -> 0 | AJ8: =IF($Q8="N",IF(W8>[1]!NIUPPLIMA,((W8-[1]!NIUPPLIMA)*[1]!NIUPPERA)+([1]!NIUPPLIMA-[1]!NILOWLIMA)*[1]!NILOWA,IF(W8>[1]!NILOWLIMA,(W8-[1]!NILOWLIMA)*[1]!NILOWA,0)))+IF($Q8="Y",IF(W8>[1]!NIUPPLIMA,((W8-[1]!NIUPPLIMA)*[1]!NIUPPERA)+(([1]!NIUPPLIMA-[1]!NILOWLIMA)*[1]!NISUPNA),IF(W8>[1]!NILOWLIMA,(W8-[1]!NILOWLIMA)*[1]!NISUPNA,0)))+IF(W8>[1]!NILOWLIMA,-[1]!NICREBATEA,0) -> 0 | AK8: =IF($Q8="N",IF(X8>[1]!NIUPPLIMA,((X8-[1]!NIUPPLIMA)*[1]!NIUPPERA)+([1]!NIUPPLIMA-[1]!NILOWLIMA)*[1]!NILOWA,IF(X8>[1]!NILOWLIMA,(X8-[1]!NILOWLIMA)*[1]!NILOWA,0)))+IF($Q8="Y",IF(X8>[1]!NIUPPLIMA,((X8-[1]!NIUPPLIMA)*[1]!NIUPPERA)+(([1]!NIUPPLIMA-[1]!NILOWLIMA)*[1]!NISUPNA),IF(X8>[1]!NILOWLIMA,(X8-[1]!NILOWLIMA)*[1]!NISUPNA,0)))+IF(X8>[1]!NILOWLIMA,-[1]!NICREBATEA,0) -> 0 | AL8: =IF($Q8="N",IF(Y8>[1]!NIUPPLIMA,((Y8-[1]!NIUPPLIMA)*[1]!NIUPPERA)+([1]!NIUPPLIMA-[1]!NILOWLIMA)*[1]!NILOWA,IF(Y8>[1]!NILOWLIMA,(Y8-[1]!NILOWLIMA)*[1]!NILOWA,0)))+IF($Q8="Y",IF(Y8>[1]!NIUPPLIMA,((Y8-[1]!NIUPPLIMA)*[1]!NIUPPERA)+(([1]!NIUPPLIMA-[1]!NILOWLIMA)*[1]!NISUPNA),IF(Y8>[1]!NILOWLIMA,(Y8-[1]!NILOWLIMA)*[1]!NISUPNA,0)))+IF(Y8>[1]!NILOWLIMA,-[1]!NICREBATEA,0) -> 0 | AM8: =IF($Q8="N",IF(Z8>[1]!NIUPPLIMA,((Z8-[1]!NIUPPLIMA)*[1]!NIUPPERA)+([1]!NIUPPLIMA-[1]!NILOWLIMA)*[1]!NILOWA,IF(Z8>[1]!NILOWLIMA,(Z8-[1]!NILOWLIMA)*[1]!NILOWA,0)))+IF($Q8="Y",IF(Z8>[1]!NIUPPLIMA,((Z8-[1]!NIUPPLIMA)*[1]!NIUPPERA)+(([1]!NIUPPLIMA-[1]!NILOWLIMA)*[1]!NISUPNA),IF(Z8>[1]!NILOWLIMA,(Z8-[1]!NILOWLIMA)*[1]!NISUPNA,0)))+IF(Z8>[1]!NILOWLIMA,-[1]!NICREBATEA,0) -> 0 | AN8: =IF($Q8="N",IF(AA8>[1]!NIUPPLIMA,((AA8-[1]!NIUPPLIMA)*[1]!NIUPPERA)+([1]!NIUPPLIMA-[1]!NILOWLIMA)*[1]!NILOWA,IF(AA8>[1]!NILOWLIMA,(AA8-[1]!NILOWLIMA)*[1]!NILOWA,0)))+IF($Q8="Y",IF(AA8>[1]!NIUPPLIMA,((AA8-[1]!NIUPPLIMA)*[1]!NIUPPERA)+(([1]!NIUPPLIMA-[1]!NILOWLIMA)*[1]!NISUPNA),IF(AA8>[1]!NILOWLIMA,(AA8-[1]!NILOWLIMA)*[1]!NISUPNA,0)))+IF(AA8>[1]!NILOWLIMA,-[1]!NICREBATEA,0) -> 0 | AO8: =IF($Q8="N",IF(AB8>[1]!NIUPPLIMA,((AB8-[1]!NIUPPLIMA)*[1]!NIUPPERA)+([1]!NIUPPLIMA-[1]!NILOWLIMA)*[1]!NILOWA,IF(AB8>[1]!NILOWLIMA,(AB8-[1]!NILOWLIMA)*[1]!NILOWA,0)))+IF($Q8="Y",IF(AB8>[1]!NIUPPLIMA,((AB8-[1]!NIUPPLIMA)*[1]!NIUPPERA)+(([1]!NIUPPLIMA-[1]!NILOWLIMA)*[1]!NISUPNA),IF(AB8>[1]!NILOWLIMA,(AB8-[1]!NILOWLIMA)*[1]!NISUPNA,0)))+IF(AB8>[1]!NILOWLIMA,-[1]!NICREBATEA,0) -> 0 | AP8: =IF($Q8="N",IF(AC8>[1]!NIUPPLIMA,((AC8-[1]!NIUPPLIMA)*[1]!NIUPPERA)+([1]!NIUPPLIMA-[1]!NILOWLIMA)*[1]!NILOWA,IF(AC8>[1]!NILOWLIMA,(AC8-[1]!NILOWLIMA)*[1]!NILOWA,0)))+IF($Q8="Y",IF(AC8>[1]!NIUPPLIMA,((AC8-[1]!NIUPPLIMA)*[1]!NIUPPERA)+(([1]!NIUPPLIMA-[1]!NILOWLIMA)*[1]!NISUPNA),IF(AC8>[1]!NILOWLIMA,(AC8-[1]!NILOWLIMA)*[1]!NISUPNA,0)))+IF(AC8>[1]!NILOWLIMA,-[1]!NICREBATEA,0) -> 0 | AQ8: =IF($Q8="N",IF(AD8>[1]!NIUPPLIMA,((AD8-[1]!NIUPPLIMA)*[1]!NIUPPERA)+([1]!NIUPPLIMA-[1]!NILOWLIMA)*[1]!NILOWA,IF(AD8>[1]!NILOWLIMA,(AD8-[1]!NILOWLIMA)*[1]!NILOWA,0)))+IF($Q8="Y",IF(AD8>[1]!NIUPPLIMA,((AD8-[1]!NIUPPLIMA)*[1]!NIUPPERA)+(([1]!NIUPPLIMA-[1]!NILOWLIMA)*[1]!NISUPNA),IF(AD8>[1]!NILOWLIMA,(AD8-[1]!NILOWLIMA)*[1]!NISUPNA,0)))+IF(AD8>[1]!NILOWLIMA,-[1]!NICREBATEA,0) -> 0 | AR8: =IF($Q8="N",IF(AE8>[1]!NIUPPLIMA,((AE8-[1]!NIUPPLIMA)*[1]!NIUPPERA)+([1]!NIUPPLIMA-[1]!NILOWLIMA)*[1]!NILOWA,IF(AE8>[1]!NILOWLIMA,(AE8-[1]!NILOWLIMA)*[1]!NILOWA,0)))+IF($Q8="Y",IF(AE8>[1]!NIUPPLIMA,((AE8-[1]!NIUPPLIMA)*[1]!NIUPPERA)+(([1]!NIUPPLIMA-[1]!NILOWLIMA)*[1]!NISUPNA),IF(AE8>[1]!NILOWLIMA,(AE8-[1]!NILOWLIMA)*[1]!NISUPNA,0)))+IF(AE8>[1]!NILOWLIMA,-[1]!NICREBATEA,0) -> 0 | AS8: =IF($Q8="N",IF(AF8>[1]!NIUPPLIMA,((AF8-[1]!NIUPPLIMA)*[1]!NIUPPERA)+([1]!NIUPPLIMA-[1]!NILOWLIMA)*[1]!NILOWA,IF(AF8>[1]!NILOWLIMA,(AF8-[1]!NILOWLIMA)*[1]!NILOWA,0)))+IF($Q8="Y",IF(AF8>[1]!NIUPPLIMA,((AF8-[1]!NIUPPLIMA)*[1]!NIUPPERA)+(([1]!NIUPPLIMA-[1]!NILOWLIMA)*[1]!NISUPNA),IF(AF8>[1]!NILOWLIMA,(AF8-[1]!NILOWLIMA)*[1]!NISUPNA,0)))+IF(AF8>[1]!NILOWLIMA,-[1]!NICREBATEA,0) -> 0 | AT8: =SUM(AH8:AS8) -> 0 | AU8: =IF($Q8="N",0,((AG8*$AU$5))) -> 0 | AV8: =AG8+AT8+AU8 -> 0 | AW8: =IF($E8="TEACHER",IF($I8<6,$I8+1,IF(LEFT($I8,1)="U",$I8,6)),IF($E8="LEADER",+I8,IF($E8="UNQUAL",IF($I8<10,$I8+1,10),IF($E8="ADVANCED",IF($I8<27,$I8+1,27))))) -> 5 | AX8: =(K8+M8+O8+P8) -> 0 | AY8: =IF($E8="LEADER",VLOOKUP(AW8,[1]!LEADERSHIP,5),IF($E8="TEACHER",VLOOKUP(AW8,[1]!TEACHER,5),IF($E8="ADVANCED",VLOOKUP($AW8,[1]!ADVANCED_SKILLS_TEACHERS,5),IF($E8="UNQUAL",VLOOKUP($AW8,[1]!UNQUALIFIED_TEACHER,5),0))))*D8*(1+BA$4)*(1+BA$5)+(AX8/AZ8) -> 0 | AZ8: =IF(G8-F8>11.99999,12,MONTH(G8)-MONTH(F8)) -> 12 | BA8: =NumberOfDaysWorked($F8,$G8,BD$1,BF$1)*(($S8*(1+BA$4))*5)+NumberOfDaysWorked($F8,$G8,BD$1,BF$1)*($AY8*7) -> 0 | BD8: =(IF($Q8="N",IF(AY8>[1]!NIUPPLIMB,((AY8-[1]!NIUPPLIMB)*[1]!NIUPPERB)+([1]!NIUPPLIMB-[1]!NILOWLIMB)*[1]!NILOWB,IF(AY8>[1]!NILOWLIMB,(AY8-[1]!NILOWLIMB)*[1]!NILOWB,0)))+IF($Q8="Y",IF(AY8>[1]!NIUPPLIMB,((AY8-[1]!NIUPPLIMB)*[1]!NIUPPERB)+(([1]!NIUPPLIMB-[1]!NILOWLIMB)*[1]!NISUPNB),IF(AY8>[1]!NILOWLIMB,(AY8-[1]!NILOWLIMB)*[1]!NISUPNB,0))))*((NumberOfDaysWorked($F8,$G8,BD$1,BF$1)*5)+(NumberOfDaysWorked($F8,$G8,BD$1,BF$1)*7)) -> 0 | BE8: =IF($Q8="N",0,(BA8*$BE$5)) -> 0 | BF8: =SUM(BA8:BE8) -> 0 | BG8: =IF($E8="TEACHER",IF(AW8<6,AW8+1,IF(LEFT(AW8,1)="U",AW8,6)),IF($E8="LEADER",+I8,IF($E8="UNQUAL",IF(AW8<10,AW8+1,10),IF($E8="ADVANCED",IF(AW8<27,AW8+1,27))))) -> 5 | BH8: =(K8+M8+O8+P8) -> 0 | BI8: =IF($E8="LEADER",VLOOKUP(BG8,[1]!LEADERSHIP,5),IF($E8="TEACHER",VLOOKUP(BG8,[1]!TEACHER,5),IF($E8="ADVANCED",VLOOKUP($AW8,[1]!ADVANCED_SKILLS_TEACHERS,5),IF($E8="UNQUAL",VLOOKUP($AW8,[1]!UNQUALIFIED_TEACHER,5),0))))*D8*(1+BA$4)*(1+BA$5)*(1+BK$4)*(1+BK$5)+(BH8/BJ8) -> 0 | BJ8: =IF(G8-F8>11.99999,12,MONTH(G8)-MONTH(F8)) -> 12 | BK8: =NumberOfDaysWorked($F8,$G8,BN$1,BP$1)*(($AY8*(1+BK$4))*5)+NumberOfDaysWorked($F8,$G8,BN$1,BP$1)*($BI8*7) -> 0 | BN8: =(IF($Q8="N",IF(BI8>[1]!NIUPPLIMC,((BI8-[1]!NIUPPLIMC)*[1]!NIUPPERC)+([1]!NIUPPLIMC-[1]!NILOWLIMC)*[1]!NILOWC,IF(BI8>[1]!NILOWLIMC,(BI8-[1]!NILOWLIMC)*[1]!NILOWC,0)))+IF($Q8="Y",IF(BI8>[1]!NIUPPLIMC,((BI8-[1]!NIUPPLIMC)*[1]!NIUPPERC)+(([1]!NIUPPLIMC-[1]!NILOWLIMC)*[1]!NISUPNC),IF(BI8>[1]!NILOWLIMC,(BI8-[1]!NILOWLIMC)*[1]!NISUPNC,0))))*((NumberOfDaysWorked($F8,$G8,BN$1,BP$1)*5)+(NumberOfDaysWorked($F8,$G8,BN$1,BP$1)*7)) -> 0 | BO8: =IF($Q8="N",0,(BK8*$BO$5)) -> 0 | BP8: =SUM(BK8:BO8) -> 0
A9: x | B9: CASTLE MEL | C9: A01001 | D9: 1 | E9: LEADER | F9: 2025-04-01 | G9: 2025-08-31 | H9: 20 | I9: 20 | Q9: Y | R9: =IF($E9="LEADER",VLOOKUP(H9,[1]PAYDATA!$A$4:$C$54,3),IF($E9="TEACHER",VLOOKUP(H9,[1]PAYDATA!$A$70:$C$80,3),IF($E9="ADVANCED",VLOOKUP(H9,[1]PAYDATA!$A$141:$C$159,3),IF($E9="UNQUAL",VLOOKUP(H9,[1]PAYDATA!$A$57:$C$63,3),0))))*$D9+($K9/T9)+($M9/T9)+($O9/T9)+($P9/T9) -> 6622.916667 | S9: =IF($E9="LEADER",VLOOKUP(I9,[1]!LEADERSHIP,5),IF($E9="TEACHER",VLOOKUP(I9,[1]!TEACHER,5),IF($E9="ADVANCED",VLOOKUP(I9,[1]PAYDATA!$A$141:$E$159,5),IF($E9="UNQUAL",VLOOKUP(I9,[1]!UNQUALIFIED_TEACHER,5),0))))*$D9+($K9/T9)+($M9/T9)+($O9/T9)+($P9/T9) -> 6887.833333 | T9: 12 | U9: 6622.916667 | V9: 6622.916667 | W9: 6622.916667 | X9: 6622.916667 | Y9: 6622.916667 | Z9: 0 | AA9: 0 | AB9: 0 | AC9: 0 | AD9: 0 | AE9: 0 | AF9: 0 | AG9: 33114.58333 | AH9: =IF($Q9="N",IF(U9>[1]!NIUPPLIMA,((U9-[1]!NIUPPLIMA)*[1]!NIUPPERA)+([1]!NIUPPLIMA-[1]!NILOWLIMA)*[1]!NILOWA,IF(U9>[1]!NILOWLIMA,(U9-[1]!NILOWLIMA)*[1]!NILOWA,0)))+IF($Q9="Y",IF(U9>[1]!NIUPPLIMA,((U9-[1]!NIUPPLIMA)*[1]!NIUPPERA)+(([1]!NIUPPLIMA-[1]!NILOWLIMA)*[1]!NISUPNA),IF(U9>[1]!NILOWLIMA,(U9-[1]!NILOWLIMA)*[1]!NISUPNA,0)))+IF(U9>[1]!NILOWLIMA,-[1]!NICREBATEA,0) -> 930.937 | AI9: =IF($Q9="N",IF(V9>[1]!NIUPPLIMA,((V9-[1]!NIUPPLIMA)*[1]!NIUPPERA)+([1]!NIUPPLIMA-[1]!NILOWLIMA)*[1]!NILOWA,IF(V9>[1]!NILOWLIMA,(V9-[1]!NILOWLIMA)*[1]!NILOWA,0)))+IF($Q9="Y",IF(V9>[1]!NIUPPLIMA,((V9-[1]!NIUPPLIMA)*[1]!NIUPPERA)+(([1]!NIUPPLIMA-[1]!NILOWLIMA)*[1]!NISUPNA),IF(V9>[1]!NILOWLIMA,(V9-[1]!NILOWLIMA)*[1]!NISUPNA,0)))+IF(V9>[1]!NILOWLIMA,-[1]!NICREBATEA,0) -> 930.937 | AJ9: =IF($Q9="N",IF(W9>[1]!NIUPPLIMA,((W9-[1]!NIUPPLIMA)*[1]!NIUPPERA)+([1]!NIUPPLIMA-[1]!NILOWLIMA)*[1]!NILOWA,IF(W9>[1]!NILOWLIMA,(W9-[1]!NILOWLIMA)*[1]!NILOWA,0)))+IF($Q9="Y",IF(W9>[1]!NIUPPLIMA,((W9-[1]!NIUPPLIMA)*[1]!NIUPPERA)+(([1]!NIUPPLIMA-[1]!NILOWLIMA)*[1]!NISUPNA),IF(W9>[1]!NILOWLIMA,(W9-[1]!NILOWLIMA)*[1]!NISUPNA,0)))+IF(W9>[1]!NILOWLIMA,-[1]!NICREBATEA,0) -> 930.937 | AK9: =IF($Q9="N",IF(X9>[1]!NIUPPLIMA,((X9-[1]!NIUPPLIMA)*[1]!NIUPPERA)+([1]!NIUPPLIMA-[1]!NILOWLIMA)*[1]!NILOWA,IF(X9>[1]!NILOWLIMA,(X9-[1]!NILOWLIMA)*[1]!NILOWA,0)))+IF($Q9="Y",IF(X9>[1]!NIUPPLIMA,((X9-[1]!NIUPPLIMA)*[1]!NIUPPERA)+(([1]!NIUPPLIMA-[1]!NILOWLIMA)*[1]!NISUPNA),IF(X9>[1]!NILOWLIMA,(X9-[1]!NILOWLIMA)*[1]!NISUPNA,0)))+IF(X9>[1]!NILOWLIMA,-[1]!NICREBATEA,0) -> 930.937 | AL9: =IF($Q9="N",IF(Y9>[1]!NIUPPLIMA,((Y9-[1]!NIUPPLIMA)*[1]!NIUPPERA)+([1]!NIUPPLIMA-[1]!NILOWLIMA)*[1]!NILOWA,IF(Y9>[1]!NILOWLIMA,(Y9-[1]!NILOWLIMA)*[1]!NILOWA,0)))+IF($Q9="Y",IF(Y9>[1]!NIUPPLIMA,((Y9-[1]!NIUPPLIMA)*[1]!NIUPPERA)+(([1]!NIUPPLIMA-[1]!NILOWLIMA)*[1]!NISUPNA),IF(Y9>[1]!NILOWLIMA,(Y9-[1]!NILOWLIMA)*[1]!NISUPNA,0)))+IF(Y9>[1]!NILOWLIMA,-[1]!NICREBATEA,0) -> 930.937 | AM9: =IF($Q9="N",IF(Z9>[1]!NIUPPLIMA,((Z9-[1]!NIUPPLIMA)*[1]!NIUPPERA)+([1]!NIUPPLIMA-[1]!NILOWLIMA)*[1]!NILOWA,IF(Z9>[1]!NILOWLIMA,(Z9-[1]!NILOWLIMA)*[1]!NILOWA,0)))+IF($Q9="Y",IF(Z9>[1]!NIUPPLIMA,((Z9-[1]!NIUPPLIMA)*[1]!NIUPPERA)+(([1]!NIUPPLIMA-[1]!NILOWLIMA)*[1]!NISUPNA),IF(Z9>[1]!NILOWLIMA,(Z9-[1]!NILOWLIMA)*[1]!NISUPNA,0)))+IF(Z9>[1]!NILOWLIMA,-[1]!NICREBATEA,0) -> 0 | AN9: =IF($Q9="N",IF(AA9>[1]!NIUPPLIMA,((AA9-[1]!NIUPPLIMA)*[1]!NIUPPERA)+([1]!NIUPPLIMA-[1]!NILOWLIMA)*[1]!NILOWA,IF(AA9>[1]!NILOWLIMA,(AA9-[1]!NILOWLIMA)*[1]!NILOWA,0)))+IF($Q9="Y",IF(AA9>[1]!NIUPPLIMA,((AA9-[1]!NIUPPLIMA)*[1]!NIUPPERA)+(([1]!NIUPPLIMA-[1]!NILOWLIMA)*[1]!NISUPNA),IF(AA9>[1]!NILOWLIMA,(AA9-[1]!NILOWLIMA)*[1]!NISUPNA,0)))+IF(AA9>[1]!NILOWLIMA,-[1]!NICREBATEA,0) -> 0 | AO9: =IF($Q9="N",IF(AB9>[1]!NIUPPLIMA,((AB9-[1]!NIUPPLIMA)*[1]!NIUPPERA)+([1]!NIUPPLIMA-[1]!NILOWLIMA)*[1]!NILOWA,IF(AB9>[1]!NILOWLIMA,(AB9-[1]!NILOWLIMA)*[1]!NILOWA,0)))+IF($Q9="Y",IF(AB9>[1]!NIUPPLIMA,((AB9-[1]!NIUPPLIMA)*[1]!NIUPPERA)+(([1]!NIUPPLIMA-[1]!NILOWLIMA)*[1]!NISUPNA),IF(AB9>[1]!NILOWLIMA,(AB9-[1]!NILOWLIMA)*[1]!NISUPNA,0)))+IF(AB9>[1]!NILOWLIMA,-[1]!NICREBATEA,0) -> 0 | AP9: =IF($Q9="N",IF(AC9>[1]!NIUPPLIMA,((AC9-[1]!NIUPPLIMA)*[1]!NIUPPERA)+([1]!NIUPPLIMA-[1]!NILOWLIMA)*[1]!NILOWA,IF(AC9>[1]!NILOWLIMA,(AC9-[1]!NILOWLIMA)*[1]!NILOWA,0)))+IF($Q9="Y",IF(AC9>[1]!NIUPPLIMA,((AC9-[1]!NIUPPLIMA)*[1]!NIUPPERA)+(([1]!NIUPPLIMA-[1]!NILOWLIMA)*[1]!NISUPNA),IF(AC9>[1]!NILOWLIMA,(AC9-[1]!NILOWLIMA)*[1]!NISUPNA,0)))+IF(AC9>[1]!NILOWLIMA,-[1]!NICREBATEA,0) -> 0 | AQ9: =IF($Q9="N",IF(AD9>[1]!NIUPPLIMA,((AD9-[1]!NIUPPLIMA)*[1]!NIUPPERA)+([1]!NIUPPLIMA-[1]!NILOWLIMA)*[1]!NILOWA,IF(AD9>[1]!NILOWLIMA,(AD9-[1]!NILOWLIMA)*[1]!NILOWA,0)))+IF($Q9="Y",IF(AD9>[1]!NIUPPLIMA,((AD9-[1]!NIUPPLIMA)*[1]!NIUPPERA)+(([1]!NIUPPLIMA-[1]!NILOWLIMA)*[1]!NISUPNA),IF(AD9>[1]!NILOWLIMA,(AD9-[1]!NILOWLIMA)*[1]!NISUPNA,0)))+IF(AD9>[1]!NILOWLIMA,-[1]!NICREBATEA,0) -> 0 | AR9: =IF($Q9="N",IF(AE9>[1]!NIUPPLIMA,((AE9-[1]!NIUPPLIMA)*[1]!NIUPPERA)+([1]!NIUPPLIMA-[1]!NILOWLIMA)*[1]!NILOWA,IF(AE9>[1]!NILOWLIMA,(AE9-[1]!NILOWLIMA)*[1]!NILOWA,0)))+IF($Q9="Y",IF(AE9>[1]!NIUPPLIMA,((AE9-[1]!NIUPPLIMA)*[1]!NIUPPERA)+(([1]!NIUPPLIMA-[1]!NILOWLIMA)*[1]!NISUPNA),IF(AE9>[1]!NILOWLIMA,(AE9-[1]!NILOWLIMA)*[1]!NISUPNA,0)))+IF(AE9>[1]!NILOWLIMA,-[1]!NICREBATEA,0) -> 0 | AS9: =IF($Q9="N",IF(AF9>[1]!NIUPPLIMA,((AF9-[1]!NIUPPLIMA)*[1]!NIUPPERA)+([1]!NIUPPLIMA-[1]!NILOWLIMA)*[1]!NILOWA,IF(AF9>[1]!NILOWLIMA,(AF9-[1]!NILOWLIMA)*[1]!NILOWA,0)))+IF($Q9="Y",IF(AF9>[1]!NIUPPLIMA,((AF9-[1]!NIUPPLIMA)*[1]!NIUPPERA)+(([1]!NIUPPLIMA-[1]!NILOWLIMA)*[1]!NISUPNA),IF(AF9>[1]!NILOWLIMA,(AF9-[1]!NILOWLIMA)*[1]!NISUPNA,0)))+IF(AF9>[1]!NILOWLIMA,-[1]!NICREBATEA,0) -> 0 | AT9: 4654.685 | AU9: 9497.2625 | AV9: 47266.53083 | AW9: 20 | AX9: 0 | AY9: =IF($E9="LEADER",VLOOKUP(AW9,[1]!LEADERSHIP,5),IF($E9="TEACHER",VLOOKUP(AW9,[1]!TEACHER,5),IF($E9="ADVANCED",VLOOKUP($AW9,[1]!ADVANCED_SKILLS_TEACHERS,5),IF($E9="UNQUAL",VLOOKUP($AW9,[1]!UNQUALIFIED_TEACHER,5),0))))*D9*(1+BA$4)*(1+BA$5)+(AX9/AZ9) -> 7163.346667 | AZ9: 12 | BA9: 0 | BD9: =(IF($Q9="N",IF(AY9>[1]!NIUPPLIMB,((AY9-[1]!NIUPPLIMB)*[1]!NIUPPERB)+([1]!NIUPPLIMB-[1]!NILOWLIMB)*[1]!NILOWB,IF(AY9>[1]!NILOWLIMB,(AY9-[1]!NILOWLIMB)*[1]!NILOWB,0)))+IF($Q9="Y",IF(AY9>[1]!NIUPPLIMB,((AY9-[1]!NIUPPLIMB)*[1]!NIUPPERB)+(([1]!NIUPPLIMB-[1]!NILOWLIMB)*[1]!NISUPNB),IF(AY9>[1]!NILOWLIMB,(AY9-[1]!NILOWLIMB)*[1]!NISUPNB,0))))*((NumberOfDaysWorked($F9,$G9,BD$1,BF$1)*5)+(NumberOfDaysWorked($F9,$G9,BD$1,BF$1)*7)) -> 0 | BE9: 0 | BF9: 0 | BG9: 20 | BH9: 0 | BI9: =IF($E9="LEADER",VLOOKUP(BG9,[1]!LEADERSHIP,5),IF($E9="TEACHER",VLOOKUP(BG9,[1]!TEACHER,5),IF($E9="ADVANCED",VLOOKUP($AW9,[1]!ADVANCED_SKILLS_TEACHERS,5),IF($E9="UNQUAL",VLOOKUP($AW9,[1]!UNQUALIFIED_TEACHER,5),0))))*D9*(1+BA$4)*(1+BA$5)*(1+BK$4)*(1+BK$5)+(BH9/BJ9) -> 7449.880533 | BJ9: 12 | BK9: 0 | BN9: =(IF($Q9="N",IF(BI9>[1]!NIUPPLIMC,((BI9-[1]!NIUPPLIMC)*[1]!NIUPPERC)+([1]!NIUPPLIMC-[1]!NILOWLIMC)*[1]!NILOWC,IF(BI9>[1]!NILOWLIMC,(BI9-[1]!NILOWLIMC)*[1]!NILOWC,0)))+IF($Q9="Y",IF(BI9>[1]!NIUPPLIMC,((BI9-[1]!NIUPPLIMC)*[1]!NIUPPERC)+(([1]!NIUPPLIMC-[1]!NILOWLIMC)*[1]!NISUPNC),IF(BI9>[1]!NILOWLIMC,(BI9-[1]!NILOWLIMC)*[1]!NISUPNC,0))))*((NumberOfDaysWorked($F9,$G9,BN$1,BP$1)*5)+(NumberOfDaysWorked($F9,$G9,BN$1,BP$1)*7)) -> 0 | BO9: 0 | BP9: 0
A10: x | B10: CASTLE MEL | C10: A01001 | D10: 1 | E10: LEADER | F10: 2025-09-01 | G10: 2028-03-31 | H10: 20 | I10: 20 | Q10: Y | R10: =IF($E10="LEADER",VLOOKUP(H10,[1]PAYDATA!$A$4:$C$54,3),IF($E10="TEACHER",VLOOKUP(H10,[1]PAYDATA!$A$70:$C$80,3),IF($E10="ADVANCED",VLOOKUP(H10,[1]PAYDATA!$A$141:$C$159,3),IF($E10="UNQUAL",VLOOKUP(H10,[1]PAYDATA!$A$57:$C$63,3),0))))*$D10+($K10/T10)+($M10/T10)+($O10/T10)+($P10/T10) -> 6622.916667 | S10: =IF($E10="LEADER",VLOOKUP(I10,[1]!LEADERSHIP,5),IF($E10="TEACHER",VLOOKUP(I10,[1]!TEACHER,5),IF($E10="ADVANCED",VLOOKUP(I10,[1]PAYDATA!$A$141:$E$159,5),IF($E10="UNQUAL",VLOOKUP(I10,[1]!UNQUALIFIED_TEACHER,5),0))))*$D10+($K10/T10)+($M10/T10)+($O10/T10)+($P10/T10) -> 6887.833333 | T10: =IF(G10-F10>11.99999,12,MONTH(G10)-MONTH(F10)) -> 12 | U10: 0 | V10: 0 | W10: 0 | X10: 0 | Y10: 0 | Z10: 6887.833333 | AA10: 6887.833333 | AB10: 6887.833333 | AC10: 6887.833333 | AD10: 6887.833333 | AE10: 6887.833333 | AF10: 6887.833333 | AG10: =SUM(U10:AF10) -> 48214.83333 | AH10: =IF($Q10="N",IF(U10>[1]!NIUPPLIMA,((U10-[1]!NIUPPLIMA)*[1]!NIUPPERA)+([1]!NIUPPLIMA-[1]!NILOWLIMA)*[1]!NILOWA,IF(U10>[1]!NILOWLIMA,(U10-[1]!NILOWLIMA)*[1]!NILOWA,0)))+IF($Q10="Y",IF(U10>[1]!NIUPPLIMA,((U10-[1]!NIUPPLIMA)*[1]!NIUPPERA)+(([1]!NIUPPLIMA-[1]!NILOWLIMA)*[1]!NISUPNA),IF(U10>[1]!NILOWLIMA,(U10-[1]!NILOWLIMA)*[1]!NISUPNA,0)))+IF(U10>[1]!NILOWLIMA,-[1]!NICREBATEA,0) -> 0 | AI10: =IF($Q10="N",IF(V10>[1]!NIUPPLIMA,((V10-[1]!NIUPPLIMA)*[1]!NIUPPERA)+([1]!NIUPPLIMA-[1]!NILOWLIMA)*[1]!NILOWA,IF(V10>[1]!NILOWLIMA,(V10-[1]!NILOWLIMA)*[1]!NILOWA,0)))+IF($Q10="Y",IF(V10>[1]!NIUPPLIMA,((V10-[1]!NIUPPLIMA)*[1]!NIUPPERA)+(([1]!NIUPPLIMA-[1]!NILOWLIMA)*[1]!NISUPNA),IF(V10>[1]!NILOWLIMA,(V10-[1]!NILOWLIMA)*[1]!NISUPNA,0)))+IF(V10>[1]!NILOWLIMA,-[1]!NICREBATEA,0) -> 0 | AJ10: =IF($Q10="N",IF(W10>[1]!NIUPPLIMA,((W10-[1]!NIUPPLIMA)*[1]!NIUPPERA)+([1]!NIUPPLIMA-[1]!NILOWLIMA)*[1]!NILOWA,IF(W10>[1]!NILOWLIMA,(W10-[1]!NILOWLIMA)*[1]!NILOWA,0)))+IF($Q10="Y",IF(W10>[1]!NIUPPLIMA,((W10-[1]!NIUPPLIMA)*[1]!NIUPPERA)+(([1]!NIUPPLIMA-[1]!NILOWLIMA)*[1]!NISUPNA),IF(W10>[1]!NILOWLIMA,(W10-[1]!NILOWLIMA)*[1]!NISUPNA,0)))+IF(W10>[1]!NILOWLIMA,-[1]!NICREBATEA,0) -> 0 | AK10: =IF($Q10="N",IF(X10>[1]!NIUPPLIMA,((X10-[1]!NIUPPLIMA)*[1]!NIUPPERA)+([1]!NIUPPLIMA-[1]!NILOWLIMA)*[1]!NILOWA,IF(X10>[1]!NILOWLIMA,(X10-[1]!NILOWLIMA)*[1]!NILOWA,0)))+IF($Q10="Y",IF(X10>[1]!NIUPPLIMA,((X10-[1]!NIUPPLIMA)*[1]!NIUPPERA)+(([1]!NIUPPLIMA-[1]!NILOWLIMA)*[1]!NISUPNA),IF(X10>[1]!NILOWLIMA,(X10-[1]!NILOWLIMA)*[1]!NISUPNA,0)))+IF(X10>[1]!NILOWLIMA,-[1]!NICREBATEA,0) -> 0 | AL10: =IF($Q10="N",IF(Y10>[1]!NIUPPLIMA,((Y10-[1]!NIUPPLIMA)*[1]!NIUPPERA)+([1]!NIUPPLIMA-[1]!NILOWLIMA)*[1]!NILOWA,IF(Y10>[1]!NILOWLIMA,(Y10-[1]!NILOWLIMA)*[1]!NILOWA,0)))+IF($Q10="Y",IF(Y10>[1]!NIUPPLIMA,((Y10-[1]!NIUPPLIMA)*[1]!NIUPPERA)+(([1]!NIUPPLIMA-[1]!NILOWLIMA)*[1]!NISUPNA),IF(Y10>[1]!NILOWLIMA,(Y10-[1]!NILOWLIMA)*[1]!NISUPNA,0)))+IF(Y10>[1]!NILOWLIMA,-[1]!NICREBATEA,0) -> 0 | AM10: =IF($Q10="N",IF(Z10>[1]!NIUPPLIMA,((Z10-[1]!NIUPPLIMA)*[1]!NIUPPERA)+([1]!NIUPPLIMA-[1]!NILOWLIMA)*[1]!NILOWA,IF(Z10>[1]!NILOWLIMA,(Z10-[1]!NILOWLIMA)*[1]!NILOWA,0)))+IF($Q10="Y",IF(Z10>[1]!NIUPPLIMA,((Z10-[1]!NIUPPLIMA)*[1]!NIUPPERA)+(([1]!NIUPPLIMA-[1]!NILOWLIMA)*[1]!NISUPNA),IF(Z10>[1]!NILOWLIMA,(Z10-[1]!NILOWLIMA)*[1]!NISUPNA,0)))+IF(Z10>[1]!NILOWLIMA,-[1]!NICREBATEA,0) -> 970.6745 | AN10: =IF($Q10="N",IF(AA10>[1]!NIUPPLIMA,((AA10-[1]!NIUPPLIMA)*[1]!NIUPPERA)+([1]!NIUPPLIMA-[1]!NILOWLIMA)*[1]!NILOWA,IF(AA10>[1]!NILOWLIMA,(AA10-[1]!NILOWLIMA)*[1]!NILOWA,0)))+IF($Q10="Y",IF(AA10>[1]!NIUPPLIMA,((AA10-[1]!NIUPPLIMA)*[1]!NIUPPERA)+(([1]!NIUPPLIMA-[1]!NILOWLIMA)*[1]!NISUPNA),IF(AA10>[1]!NILOWLIMA,(AA10-[1]!NILOWLIMA)*[1]!NISUPNA,0)))+IF(AA10>[1]!NILOWLIMA,-[1]!NICREBATEA,0) -> 970.6745 | AO10: =IF($Q10="N",IF(AB10>[1]!NIUPPLIMA,((AB10-[1]!NIUPPLIMA)*[1]!NIUPPERA)+([1]!NIUPPLIMA-[1]!NILOWLIMA)*[1]!NILOWA,IF(AB10>[1]!NILOWLIMA,(AB10-[1]!NILOWLIMA)*[1]!NILOWA,0)))+IF($Q10="Y",IF(AB10>[1]!NIUPPLIMA,((AB10-[1]!NIUPPLIMA)*[1]!NIUPPERA)+(([1]!NIUPPLIMA-[1]!NILOWLIMA)*[1]!NISUPNA),IF(AB10>[1]!NILOWLIMA,(AB10-[1]!NILOWLIMA)*[1]!NISUPNA,0)))+IF(AB10>[1]!NILOWLIMA,-[1]!NICREBATEA,0) -> 970.6745 | AP10: =IF($Q10="N",IF(AC10>[1]!NIUPPLIMA,((AC10-[1]!NIUPPLIMA)*[1]!NIUPPERA)+([1]!NIUPPLIMA-[1]!NILOWLIMA)*[1]!NILOWA,IF(AC10>[1]!NILOWLIMA,(AC10-[1]!NILOWLIMA)*[1]!NILOWA,0)))+IF($Q10="Y",IF(AC10>[1]!NIUPPLIMA,((AC10-[1]!NIUPPLIMA)*[1]!NIUPPERA)+(([1]!NIUPPLIMA-[1]!NILOWLIMA)*[1]!NISUPNA),IF(AC10>[1]!NILOWLIMA,(AC10-[1]!NILOWLIMA)*[1]!NISUPNA,0)))+IF(AC10>[1]!NILOWLIMA,-[1]!NICREBATEA,0) -> 970.6745 | AQ10: =IF($Q10="N",IF(AD10>[1]!NIUPPLIMA,((AD10-[1]!NIUPPLIMA)*[1]!NIUPPERA)+([1]!NIUPPLIMA-[1]!NILOWLIMA)*[1]!NILOWA,IF(AD10>[1]!NILOWLIMA,(AD10-[1]!NILOWLIMA)*[1]!NILOWA,0)))+IF($Q10="Y",IF(AD10>[1]!NIUPPLIMA,((AD10-[1]!NIUPPLIMA)*[1]!NIUPPERA)+(([1]!NIUPPLIMA-[1]!NILOWLIMA)*[1]!NISUPNA),IF(AD10>[1]!NILOWLIMA,(AD10-[1]!NILOWLIMA)*[1]!NISUPNA,0)))+IF(AD10>[1]!NILOWLIMA,-[1]!NICREBATEA,0) -> 970.6745 | AR10: =IF($Q10="N",IF(AE10>[1]!NIUPPLIMA,((AE10-[1]!NIUPPLIMA)*[1]!NIUPPERA)+([1]!NIUPPLIMA-[1]!NILOWLIMA)*[1]!NILOWA,IF(AE10>[1]!NILOWLIMA,(AE10-[1]!NILOWLIMA)*[1]!NILOWA,0)))+IF($Q10="Y",IF(AE10>[1]!NIUPPLIMA,((AE10-[1]!NIUPPLIMA)*[1]!NIUPPERA)+(([1]!NIUPPLIMA-[1]!NILOWLIMA)*[1]!NISUPNA),IF(AE10>[1]!NILOWLIMA,(AE10-[1]!NILOWLIMA)*[1]!NISUPNA,0)))+IF(AE10>[1]!NILOWLIMA,-[1]!NICREBATEA,0) -> 970.6745 | AS10: =IF($Q10="N",IF(AF10>[1]!NIUPPLIMA,((AF10-[1]!NIUPPLIMA)*[1]!NIUPPERA)+([1]!NIUPPLIMA-[1]!NILOWLIMA)*[1]!NILOWA,IF(AF10>[1]!NILOWLIMA,(AF10-[1]!NILOWLIMA)*[1]!NILOWA,0)))+IF($Q10="Y",IF(AF10>[1]!NIUPPLIMA,((AF10-[1]!NIUPPLIMA)*[1]!NIUPPERA)+(([1]!NIUPPLIMA-[1]!NILOWLIMA)*[1]!NISUPNA),IF(AF10>[1]!NILOWLIMA,(AF10-[1]!NILOWLIMA)*[1]!NISUPNA,0)))+IF(AF10>[1]!NILOWLIMA,-[1]!NICREBATEA,0) -> 970.6745 | AT10: =SUM(AH10:AS10) -> 6794.7215 | AU10: =IF($Q10="N",0,((AG10*$AU$5))) -> 13828.0142 | AV10: =AG10+AT10+AU10 -> 68837.56903 | AW10: =IF($E10="TEACHER",IF($I10<6,$I10+1,IF(LEFT($I10,1)="U",$I10,6)),IF($E10="LEADER",+I10,IF($E10="UNQUAL",IF($I10<10,$I10+1,10),IF($E10="ADVANCED",IF($I10<27,$I10+1,27))))) -> 20 | AX10: =(K10+M10+O10+P10) -> 0 | AY10: =IF($E10="LEADER",VLOOKUP(AW10,[1]!LEADERSHIP,5),IF($E10="TEACHER",VLOOKUP(AW10,[1]!TEACHER,5),IF($E10="ADVANCED",VLOOKUP($AW10,[1]!ADVANCED_SKILLS_TEACHERS,5),IF($E10="UNQUAL",VLOOKUP($AW10,[1]!UNQUALIFIED_TEACHER,5),0))))*D10*(1+BA$4)*(1+BA$5)+(AX10/AZ10) -> 7163.346667 | AZ10: =IF(G10-F10>11.99999,12,MONTH(G10)-MONTH(F10)) -> 12 | BA10: =NumberOfDaysWorked($F10,$G10,BD$1,BF$1)*(($S10*(1+BA$4))*5)+NumberOfDaysWorked($F10,$G10,BD$1,BF$1)*($AY10*7) -> 84582.59333 | BD10: =(IF($Q10="N",IF(AY10>[1]!NIUPPLIMB,((AY10-[1]!NIUPPLIMB)*[1]!NIUPPERB)+([1]!NIUPPLIMB-[1]!NILOWLIMB)*[1]!NILOWB,IF(AY10>[1]!NILOWLIMB,(AY10-[1]!NILOWLIMB)*[1]!NILOWB,0)))+IF($Q10="Y",IF(AY10>[1]!NIUPPLIMB,((AY10-[1]!NIUPPLIMB)*[1]!NIUPPERB)+(([1]!NIUPPLIMB-[1]!NILOWLIMB)*[1]!NISUPNB),IF(AY10>[1]!NILOWLIMB,(AY10-[1]!NILOWLIMB)*[1]!NISUPNB,0))))*((NumberOfDaysWorked($F10,$G10,BD$1,BF$1)*5)+(NumberOfDaysWorked($F10,$G10,BD$1,BF$1)*7)) -> 12144.024 | BE10: =IF($Q10="N",0,(BA10*$BE$5)) -> 24258.28777 | BF10: =SUM(BA10:BE10) -> 120984.9051 | BG10: =IF($E10="TEACHER",IF(AW10<6,AW10+1,IF(LEFT(AW10,1)="U",AW10,6)),IF($E10="LEADER",+I10,IF($E10="UNQUAL",IF(AW10<10,AW10+1,10),IF($E10="ADVANCED",IF(AW10<27,AW10+1,27))))) -> 20 | BH10: =(K10+M10+O10+P10) -> 0 | BI10: =IF($E10="LEADER",VLOOKUP(BG10,[1]!LEADERSHIP,5),IF($E10="TEACHER",VLOOKUP(BG10,[1]!TEACHER,5),IF($E10="ADVANCED",VLOOKUP($AW10,[1]!ADVANCED_SKILLS_TEACHERS,5),IF($E10="UNQUAL",VLOOKUP($AW10,[1]!UNQUALIFIED_TEACHER,5),0))))*D10*(1+BA$4)*(1+BA$5)*(1+BK$4)*(1+BK$5)+(BH10/BJ10) -> 7449.880533 | BJ10: =IF(G10-F10>11.99999,12,MONTH(G10)-MONTH(F10)) -> 12 | BK10: =NumberOfDaysWorked($F10,$G10,BN$1,BP$1)*(($AY10*(1+BK$4))*5)+NumberOfDaysWorked($F10,$G10,BN$1,BP$1)*($BI10*7) -> 87965.89707 | BN10: =(IF($Q10="N",IF(BI10>[1]!NIUPPLIMC,((BI10-[1]!NIUPPLIMC)*[1]!NIUPPERC)+([1]!NIUPPLIMC-[1]!NILOWLIMC)*[1]!NILOWC,IF(BI10>[1]!NILOWLIMC,(BI10-[1]!NILOWLIMC)*[1]!NILOWC,0)))+IF($Q10="Y",IF(BI10>[1]!NIUPPLIMC,((BI10-[1]!NIUPPLIMC)*[1]!NIUPPERC)+(([1]!NIUPPLIMC-[1]!NILOWLIMC)*[1]!NISUPNC),IF(BI10>[1]!NILOWLIMC,(BI10-[1]!NILOWLIMC)*[1]!NISUPNC,0))))*((NumberOfDaysWorked($F10,$G10,BN$1,BP$1)*5)+(NumberOfDaysWorked($F10,$G10,BN$1,BP$1)*7)) -> 12659.78496 | BO10: =IF($Q10="N",0,(BK10*$BO$5)) -> 25228.61928 | BP10: =SUM(BK10:BO10) -> 125854.3013
A11: x | C11: A01001 | D11: 0 | E11: LEADER | F11: 2025-04-01 | G11: 2028-03-31 | H11: 19 | I11: 19 | Q11: Y | R11: =IF($E11="LEADER",VLOOKUP(H11,[1]PAYDATA!$A$4:$C$54,3),IF($E11="TEACHER",VLOOKUP(H11,[1]PAYDATA!$A$70:$C$80,3),IF($E11="ADVANCED",VLOOKUP(H11,[1]PAYDATA!$A$141:$C$159,3),IF($E11="UNQUAL",VLOOKUP(H11,[1]PAYDATA!$A$57:$C$63,3),0))))*$D11+($K11/T11)+($M11/T11)+($O11/T11)+($P11/T11) -> 0 | S11: =IF($E11="LEADER",VLOOKUP(I11,[1]!LEADERSHIP,5),IF($E11="TEACHER",VLOOKUP(I11,[1]!TEACHER,5),IF($E11="ADVANCED",VLOOKUP(I11,[1]PAYDATA!$A$141:$E$159,5),IF($E11="UNQUAL",VLOOKUP(I11,[1]!UNQUALIFIED_TEACHER,5),0))))*$D11+($K11/T11)+($M11/T11)+($O11/T11)+($P11/T11) -> 0 | T11: =IF(G11-F11>11.99999,12,MONTH(G11)-MONTH(F11)) -> 12 | U11: 0 | V11: 0 | W11: 0 | X11: 0 | Y11: 0 | Z11: 0 | AA11: 0 | AB11: 0 | AC11: 0 | AD11: 0 | AE11: 0 | AF11: 0 | AG11: =SUM(U11:AF11) -> 0 | AH11: =IF($Q11="N",IF(U11>[1]!NIUPPLIMA,((U11-[1]!NIUPPLIMA)*[1]!NIUPPERA)+([1]!NIUPPLIMA-[1]!NILOWLIMA)*[1]!NILOWA,IF(U11>[1]!NILOWLIMA,(U11-[1]!NILOWLIMA)*[1]!NILOWA,0)))+IF($Q11="Y",IF(U11>[1]!NIUPPLIMA,((U11-[1]!NIUPPLIMA)*[1]!NIUPPERA)+(([1]!NIUPPLIMA-[1]!NILOWLIMA)*[1]!NISUPNA),IF(U11>[1]!NILOWLIMA,(U11-[1]!NILOWLIMA)*[1]!NISUPNA,0)))+IF(U11>[1]!NILOWLIMA,-[1]!NICREBATEA,0) -> 0 | AI11: =IF($Q11="N",IF(V11>[1]!NIUPPLIMA,((V11-[1]!NIUPPLIMA)*[1]!NIUPPERA)+([1]!NIUPPLIMA-[1]!NILOWLIMA)*[1]!NILOWA,IF(V11>[1]!NILOWLIMA,(V11-[1]!NILOWLIMA)*[1]!NILOWA,0)))+IF($Q11="Y",IF(V11>[1]!NIUPPLIMA,((V11-[1]!NIUPPLIMA)*[1]!NIUPPERA)+(([1]!NIUPPLIMA-[1]!NILOWLIMA)*[1]!NISUPNA),IF(V11>[1]!NILOWLIMA,(V11-[1]!NILOWLIMA)*[1]!NISUPNA,0)))+IF(V11>[1]!NILOWLIMA,-[1]!NICREBATEA,0) -> 0 | AJ11: =IF($Q11="N",IF(W11>[1]!NIUPPLIMA,((W11-[1]!NIUPPLIMA)*[1]!NIUPPERA)+([1]!NIUPPLIMA-[1]!NILOWLIMA)*[1]!NILOWA,IF(W11>[1]!NILOWLIMA,(W11-[1]!NILOWLIMA)*[1]!NILOWA,0)))+IF($Q11="Y",IF(W11>[1]!NIUPPLIMA,((W11-[1]!NIUPPLIMA)*[1]!NIUPPERA)+(([1]!NIUPPLIMA-[1]!NILOWLIMA)*[1]!NISUPNA),IF(W11>[1]!NILOWLIMA,(W11-[1]!NILOWLIMA)*[1]!NISUPNA,0)))+IF(W11>[1]!NILOWLIMA,-[1]!NICREBATEA,0) -> 0 | AK11: =IF($Q11="N",IF(X11>[1]!NIUPPLIMA,((X11-[1]!NIUPPLIMA)*[1]!NIUPPERA)+([1]!NIUPPLIMA-[1]!NILOWLIMA)*[1]!NILOWA,IF(X11>[1]!NILOWLIMA,(X11-[1]!NILOWLIMA)*[1]!NILOWA,0)))+IF($Q11="Y",IF(X11>[1]!NIUPPLIMA,((X11-[1]!NIUPPLIMA)*[1]!NIUPPERA)+(([1]!NIUPPLIMA-[1]!NILOWLIMA)*[1]!NISUPNA),IF(X11>[1]!NILOWLIMA,(X11-[1]!NILOWLIMA)*[1]!NISUPNA,0)))+IF(X11>[1]!NILOWLIMA,-[1]!NICREBATEA,0) -> 0 | AL11: =IF($Q11="N",IF(Y11>[1]!NIUPPLIMA,((Y11-[1]!NIUPPLIMA)*[1]!NIUPPERA)+([1]!NIUPPLIMA-[1]!NILOWLIMA)*[1]!NILOWA,IF(Y11>[1]!NILOWLIMA,(Y11-[1]!NILOWLIMA)*[1]!NILOWA,0)))+IF($Q11="Y",IF(Y11>[1]!NIUPPLIMA,((Y11-[1]!NIUPPLIMA)*[1]!NIUPPERA)+(([1]!NIUPPLIMA-[1]!NILOWLIMA)*[1]!NISUPNA),IF(Y11>[1]!NILOWLIMA,(Y11-[1]!NILOWLIMA)*[1]!NISUPNA,0)))+IF(Y11>[1]!NILOWLIMA,-[1]!NICREBATEA,0) -> 0 | AM11: =IF($Q11="N",IF(Z11>[1]!NIUPPLIMA,((Z11-[1]!NIUPPLIMA)*[1]!NIUPPERA)+([1]!NIUPPLIMA-[1]!NILOWLIMA)*[1]!NILOWA,IF(Z11>[1]!NILOWLIMA,(Z11-[1]!NILOWLIMA)*[1]!NILOWA,0)))+IF($Q11="Y",IF(Z11>[1]!NIUPPLIMA,((Z11-[1]!NIUPPLIMA)*[1]!NIUPPERA)+(([1]!NIUPPLIMA-[1]!NILOWLIMA)*[1]!NISUPNA),IF(Z11>[1]!NILOWLIMA,(Z11-[1]!NILOWLIMA)*[1]!NISUPNA,0)))+IF(Z11>[1]!NILOWLIMA,-[1]!NICREBATEA,0) -> 0 | AN11: =IF($Q11="N",IF(AA11>[1]!NIUPPLIMA,((AA11-[1]!NIUPPLIMA)*[1]!NIUPPERA)+([1]!NIUPPLIMA-[1]!NILOWLIMA)*[1]!NILOWA,IF(AA11>[1]!NILOWLIMA,(AA11-[1]!NILOWLIMA)*[1]!NILOWA,0)))+IF($Q11="Y",IF(AA11>[1]!NIUPPLIMA,((AA11-[1]!NIUPPLIMA)*[1]!NIUPPERA)+(([1]!NIUPPLIMA-[1]!NILOWLIMA)*[1]!NISUPNA),IF(AA11>[1]!NILOWLIMA,(AA11-[1]!NILOWLIMA)*[1]!NISUPNA,0)))+IF(AA11>[1]!NILOWLIMA,-[1]!NICREBATEA,0) -> 0 | AO11: =IF($Q11="N",IF(AB11>[1]!NIUPPLIMA,((AB11-[1]!NIUPPLIMA)*[1]!NIUPPERA)+([1]!NIUPPLIMA-[1]!NILOWLIMA)*[1]!NILOWA,IF(AB11>[1]!NILOWLIMA,(AB11-[1]!NILOWLIMA)*[1]!NILOWA,0)))+IF($Q11="Y",IF(AB11>[1]!NIUPPLIMA,((AB11-[1]!NIUPPLIMA)*[1]!NIUPPERA)+(([1]!NIUPPLIMA-[1]!NILOWLIMA)*[1]!NISUPNA),IF(AB11>[1]!NILOWLIMA,(AB11-[1]!NILOWLIMA)*[1]!NISUPNA,0)))+IF(AB11>[1]!NILOWLIMA,-[1]!NICREBATEA,0) -> 0 | AP11: =IF($Q11="N",IF(AC11>[1]!NIUPPLIMA,((AC11-[1]!NIUPPLIMA)*[1]!NIUPPERA)+([1]!NIUPPLIMA-[1]!NILOWLIMA)*[1]!NILOWA,IF(AC11>[1]!NILOWLIMA,(AC11-[1]!NILOWLIMA)*[1]!NILOWA,0)))+IF($Q11="Y",IF(AC11>[1]!NIUPPLIMA,((AC11-[1]!NIUPPLIMA)*[1]!NIUPPERA)+(([1]!NIUPPLIMA-[1]!NILOWLIMA)*[1]!NISUPNA),IF(AC11>[1]!NILOWLIMA,(AC11-[1]!NILOWLIMA)*[1]!NISUPNA,0)))+IF(AC11>[1]!NILOWLIMA,-[1]!NICREBATEA,0) -> 0 | AQ11: =IF($Q11="N",IF(AD11>[1]!NIUPPLIMA,((AD11-[1]!NIUPPLIMA)*[1]!NIUPPERA)+([1]!NIUPPLIMA-[1]!NILOWLIMA)*[1]!NILOWA,IF(AD11>[1]!NILOWLIMA,(AD11-[1]!NILOWLIMA)*[1]!NILOWA,0)))+IF($Q11="Y",IF(AD11>[1]!NIUPPLIMA,((AD11-[1]!NIUPPLIMA)*[1]!NIUPPERA)+(([1]!NIUPPLIMA-[1]!NILOWLIMA)*[1]!NISUPNA),IF(AD11>[1]!NILOWLIMA,(AD11-[1]!NILOWLIMA)*[1]!NISUPNA,0)))+IF(AD11>[1]!NILOWLIMA,-[1]!NICREBATEA,0) -> 0 | AR11: =IF($Q11="N",IF(AE11>[1]!NIUPPLIMA,((AE11-[1]!NIUPPLIMA)*[1]!NIUPPERA)+([1]!NIUPPLIMA-[1]!NILOWLIMA)*[1]!NILOWA,IF(AE11>[1]!NILOWLIMA,(AE11-[1]!NILOWLIMA)*[1]!NILOWA,0)))+IF($Q11="Y",IF(AE11>[1]!NIUPPLIMA,((AE11-[1]!NIUPPLIMA)*[1]!NIUPPERA)+(([1]!NIUPPLIMA-[1]!NILOWLIMA)*[1]!NISUPNA),IF(AE11>[1]!NILOWLIMA,(AE11-[1]!NILOWLIMA)*[1]!NISUPNA,0)))+IF(AE11>[1]!NILOWLIMA,-[1]!NICREBATEA,0) -> 0 | AS11: =IF($Q11="N",IF(AF11>[1]!NIUPPLIMA,((AF11-[1]!NIUPPLIMA)*[1]!NIUPPERA)+([1]!NIUPPLIMA-[1]!NILOWLIMA)*[1]!NILOWA,IF(AF11>[1]!NILOWLIMA,(AF11-[1]!NILOWLIMA)*[1]!NILOWA,0)))+IF($Q11="Y",IF(AF11>[1]!NIUPPLIMA,((AF11-[1]!NIUPPLIMA)*[1]!NIUPPERA)+(([1]!NIUPPLIMA-[1]!NILOWLIMA)*[1]!NISUPNA),IF(AF11>[1]!NILOWLIMA,(AF11-[1]!NILOWLIMA)*[1]!NISUPNA,0)))+IF(AF11>[1]!NILOWLIMA,-[1]!NICREBATEA,0) -> 0 | AT11: =SUM(AH11:AS11) -> 0 | AU11: =IF($Q11="N",0,((AG11*$AU$5))) -> 0 | AV11: =AG11+AT11+AU11 -> 0 | AW11: =IF($E11="TEACHER",IF($I11<6,$I11+1,IF(LEFT($I11,1)="U",$I11,6)),IF($E11="LEADER",+I11,IF($E11="UNQUAL",IF($I11<10,$I11+1,10),IF($E11="ADVANCED",IF($I11<27,$I11+1,27))))) -> 19 | AX11: =(K11+M11+O11+P11) -> 0 | AY11: =IF($E11="LEADER",VLOOKUP(AW11,[1]!LEADERSHIP,5),IF($E11="TEACHER",VLOOKUP(AW11,[1]!TEACHER,5),IF($E11="ADVANCED",VLOOKUP($AW11,[1]!ADVANCED_SKILLS_TEACHERS,5),IF($E11="UNQUAL",VLOOKUP($AW11,[1]!UNQUALIFIED_TEACHER,5),0))))*D11*(1+BA$4)*(1+BA$5)+(AX11/AZ11) -> 0 | AZ11: =IF(G11-F11>11.99999,12,MONTH(G11)-MONTH(F11)) -> 12 | BA11: =NumberOfDaysWorked($F11,$G11,BD$1,BF$1)*(($S11*(1+BA$4))*5)+NumberOfDaysWorked($F11,$G11,BD$1,BF$1)*($AY11*7) -> 0 | BD11: =(IF($Q11="N",IF(AY11>[1]!NIUPPLIMB,((AY11-[1]!NIUPPLIMB)*[1]!NIUPPERB)+([1]!NIUPPLIMB-[1]!NILOWLIMB)*[1]!NILOWB,IF(AY11>[1]!NILOWLIMB,(AY11-[1]!NILOWLIMB)*[1]!NILOWB,0)))+IF($Q11="Y",IF(AY11>[1]!NIUPPLIMB,((AY11-[1]!NIUPPLIMB)*[1]!NIUPPERB)+(([1]!NIUPPLIMB-[1]!NILOWLIMB)*[1]!NISUPNB),IF(AY11>[1]!NILOWLIMB,(AY11-[1]!NILOWLIMB)*[1]!NISUPNB,0))))*((NumberOfDaysWorked($F11,$G11,BD$1,BF$1)*5)+(NumberOfDaysWorked($F11,$G11,BD$1,BF$1)*7)) -> 0 | BE11: =IF($Q11="N",0,(BA11*$BE$5)) -> 0 | BF11: =SUM(BA11:BE11) -> 0 | BG11: =IF($E11="TEACHER",IF(AW11<6,AW11+1,IF(LEFT(AW11,1)="U",AW11,6)),IF($E11="LEADER",+I11,IF($E11="UNQUAL",IF(AW11<10,AW11+1,10),IF($E11="ADVANCED",IF(AW11<27,AW11+1,27))))) -> 19 | BH11: =(K11+M11+O11+P11) -> 0 | BI11: =IF($E11="LEADER",VLOOKUP(BG11,[1]!LEADERSHIP,5),IF($E11="TEACHER",VLOOKUP(BG11,[1]!TEACHER,5),IF($E11="ADVANCED",VLOOKUP($AW11,[1]!ADVANCED_SKILLS_TEACHERS,5),IF($E11="UNQUAL",VLOOKUP($AW11,[1]!UNQUALIFIED_TEACHER,5),0))))*D11*(1+BA$4)*(1+BA$5)*(1+BK$4)*(1+BK$5)+(BH11/BJ11) -> 0 | BJ11: =IF(G11-F11>11.99999,12,MONTH(G11)-MONTH(F11)) -> 12 | BK11: =NumberOfDaysWorked($F11,$G11,BN$1,BP$1)*(($AY11*(1+BK$4))*5)+NumberOfDaysWorked($F11,$G11,BN$1,BP$1)*($BI11*7) -> 0 | BN11: =(IF($Q11="N",IF(BI11>[1]!NIUPPLIMC,((BI11-[1]!NIUPPLIMC)*[1]!NIUPPERC)+([1]!NIUPPLIMC-[1]!NILOWLIMC)*[1]!NILOWC,IF(BI11>[1]!NILOWLIMC,(BI11-[1]!NILOWLIMC)*[1]!NILOWC,0)))+IF($Q11="Y",IF(BI11>[1]!NIUPPLIMC,((BI11-[1]!NIUPPLIMC)*[1]!NIUPPERC)+(([1]!NIUPPLIMC-[1]!NILOWLIMC)*[1]!NISUPNC),IF(BI11>[1]!NILOWLIMC,(BI11-[1]!NILOWLIMC)*[1]!NISUPNC,0))))*((NumberOfDaysWorked($F11,$G11,BN$1,BP$1)*5)+(NumberOfDaysWorked($F11,$G11,BN$1,BP$1)*7)) -> 0 | BO11: =IF($Q11="N",0,(BK11*$BO$5)) -> 0 | BP11: =SUM(BK11:BO11) -> 0
A12: x | C12: A01001 | D12: 0 | E12: LEADER | F12: 2025-04-01 | G12: 2028-03-31 | H12: 5 | I12: 5 | Q12: Y | R12: =IF($E12="LEADER",VLOOKUP(H12,[1]PAYDATA!$A$4:$C$54,3),IF($E12="TEACHER",VLOOKUP(H12,[1]PAYDATA!$A$70:$C$80,3),IF($E12="ADVANCED",VLOOKUP(H12,[1]PAYDATA!$A$141:$C$159,3),IF($E12="UNQUAL",VLOOKUP(H12,[1]PAYDATA!$A$57:$C$63,3),0))))*$D12+($K12/T12)+($M12/T12)+($O12/T12)+($P12/T12) -> 0 | S12: =IF($E12="LEADER",VLOOKUP(I12,[1]!LEADERSHIP,5),IF($E12="TEACHER",VLOOKUP(I12,[1]!TEACHER,5),IF($E12="ADVANCED",VLOOKUP(I12,[1]PAYDATA!$A$141:$E$159,5),IF($E12="UNQUAL",VLOOKUP(I12,[1]!UNQUALIFIED_TEACHER,5),0))))*$D12+($K12/T12)+($M12/T12)+($O12/T12)+($P12/T12) -> 0 | T12: 12 | U12: 0 | V12: 0 | W12: 0 | X12: 0 | Y12: 0 | Z12: 0 | AA12: 0 | AB12: 0 | AC12: 0 | AD12: 0 | AE12: 0 | AF12: 0 | AG12: =SUM(U12:AF12) -> 0 | AH12: =IF($Q12="N",IF(U12>[1]!NIUPPLIMA,((U12-[1]!NIUPPLIMA)*[1]!NIUPPERA)+([1]!NIUPPLIMA-[1]!NILOWLIMA)*[1]!NILOWA,IF(U12>[1]!NILOWLIMA,(U12-[1]!NILOWLIMA)*[1]!NILOWA,0)))+IF($Q12="Y",IF(U12>[1]!NIUPPLIMA,((U12-[1]!NIUPPLIMA)*[1]!NIUPPERA)+(([1]!NIUPPLIMA-[1]!NILOWLIMA)*[1]!NISUPNA),IF(U12>[1]!NILOWLIMA,(U12-[1]!NILOWLIMA)*[1]!NISUPNA,0)))+IF(U12>[1]!NILOWLIMA,-[1]!NICREBATEA,0) -> 0 | AI12: =IF($Q12="N",IF(V12>[1]!NIUPPLIMA,((V12-[1]!NIUPPLIMA)*[1]!NIUPPERA)+([1]!NIUPPLIMA-[1]!NILOWLIMA)*[1]!NILOWA,IF(V12>[1]!NILOWLIMA,(V12-[1]!NILOWLIMA)*[1]!NILOWA,0)))+IF($Q12="Y",IF(V12>[1]!NIUPPLIMA,((V12-[1]!NIUPPLIMA)*[1]!NIUPPERA)+(([1]!NIUPPLIMA-[1]!NILOWLIMA)*[1]!NISUPNA),IF(V12>[1]!NILOWLIMA,(V12-[1]!NILOWLIMA)*[1]!NISUPNA,0)))+IF(V12>[1]!NILOWLIMA,-[1]!NICREBATEA,0) -> 0 | AJ12: =IF($Q12="N",IF(W12>[1]!NIUPPLIMA,((W12-[1]!NIUPPLIMA)*[1]!NIUPPERA)+([1]!NIUPPLIMA-[1]!NILOWLIMA)*[1]!NILOWA,IF(W12>[1]!NILOWLIMA,(W12-[1]!NILOWLIMA)*[1]!NILOWA,0)))+IF($Q12="Y",IF(W12>[1]!NIUPPLIMA,((W12-[1]!NIUPPLIMA)*[1]!NIUPPERA)+(([1]!NIUPPLIMA-[1]!NILOWLIMA)*[1]!NISUPNA),IF(W12>[1]!NILOWLIMA,(W12-[1]!NILOWLIMA)*[1]!NISUPNA,0)))+IF(W12>[1]!NILOWLIMA,-[1]!NICREBATEA,0) -> 0 | AK12: =IF($Q12="N",IF(X12>[1]!NIUPPLIMA,((X12-[1]!NIUPPLIMA)*[1]!NIUPPERA)+([1]!NIUPPLIMA-[1]!NILOWLIMA)*[1]!NILOWA,IF(X12>[1]!NILOWLIMA,(X12-[1]!NILOWLIMA)*[1]!NILOWA,0)))+IF($Q12="Y",IF(X12>[1]!NIUPPLIMA,((X12-[1]!NIUPPLIMA)*[1]!NIUPPERA)+(([1]!NIUPPLIMA-[1]!NILOWLIMA)*[1]!NISUPNA),IF(X12>[1]!NILOWLIMA,(X12-[1]!NILOWLIMA)*[1]!NISUPNA,0)))+IF(X12>[1]!NILOWLIMA,-[1]!NICREBATEA,0) -> 0 | AL12: =IF($Q12="N",IF(Y12>[1]!NIUPPLIMA,((Y12-[1]!NIUPPLIMA)*[1]!NIUPPERA)+([1]!NIUPPLIMA-[1]!NILOWLIMA)*[1]!NILOWA,IF(Y12>[1]!NILOWLIMA,(Y12-[1]!NILOWLIMA)*[1]!NILOWA,0)))+IF($Q12="Y",IF(Y12>[1]!NIUPPLIMA,((Y12-[1]!NIUPPLIMA)*[1]!NIUPPERA)+(([1]!NIUPPLIMA-[1]!NILOWLIMA)*[1]!NISUPNA),IF(Y12>[1]!NILOWLIMA,(Y12-[1]!NILOWLIMA)*[1]!NISUPNA,0)))+IF(Y12>[1]!NILOWLIMA,-[1]!NICREBATEA,0) -> 0 | AM12: =IF($Q12="N",IF(Z12>[1]!NIUPPLIMA,((Z12-[1]!NIUPPLIMA)*[1]!NIUPPERA)+([1]!NIUPPLIMA-[1]!NILOWLIMA)*[1]!NILOWA,IF(Z12>[1]!NILOWLIMA,(Z12-[1]!NILOWLIMA)*[1]!NILOWA,0)))+IF($Q12="Y",IF(Z12>[1]!NIUPPLIMA,((Z12-[1]!NIUPPLIMA)*[1]!NIUPPERA)+(([1]!NIUPPLIMA-[1]!NILOWLIMA)*[1]!NISUPNA),IF(Z12>[1]!NILOWLIMA,(Z12-[1]!NILOWLIMA)*[1]!NISUPNA,0)))+IF(Z12>[1]!NILOWLIMA,-[1]!NICREBATEA,0) -> 0 | AN12: =IF($Q12="N",IF(AA12>[1]!NIUPPLIMA,((AA12-[1]!NIUPPLIMA)*[1]!NIUPPERA)+([1]!NIUPPLIMA-[1]!NILOWLIMA)*[1]!NILOWA,IF(AA12>[1]!NILOWLIMA,(AA12-[1]!NILOWLIMA)*[1]!NILOWA,0)))+IF($Q12="Y",IF(AA12>[1]!NIUPPLIMA,((AA12-[1]!NIUPPLIMA)*[1]!NIUPPERA)+(([1]!NIUPPLIMA-[1]!NILOWLIMA)*[1]!NISUPNA),IF(AA12>[1]!NILOWLIMA,(AA12-[1]!NILOWLIMA)*[1]!NISUPNA,0)))+IF(AA12>[1]!NILOWLIMA,-[1]!NICREBATEA,0) -> 0 | AO12: =IF($Q12="N",IF(AB12>[1]!NIUPPLIMA,((AB12-[1]!NIUPPLIMA)*[1]!NIUPPERA)+([1]!NIUPPLIMA-[1]!NILOWLIMA)*[1]!NILOWA,IF(AB12>[1]!NILOWLIMA,(AB12-[1]!NILOWLIMA)*[1]!NILOWA,0)))+IF($Q12="Y",IF(AB12>[1]!NIUPPLIMA,((AB12-[1]!NIUPPLIMA)*[1]!NIUPPERA)+(([1]!NIUPPLIMA-[1]!NILOWLIMA)*[1]!NISUPNA),IF(AB12>[1]!NILOWLIMA,(AB12-[1]!NILOWLIMA)*[1]!NISUPNA,0)))+IF(AB12>[1]!NILOWLIMA,-[1]!NICREBATEA,0) -> 0 | AP12: =IF($Q12="N",IF(AC12>[1]!NIUPPLIMA,((AC12-[1]!NIUPPLIMA)*[1]!NIUPPERA)+([1]!NIUPPLIMA-[1]!NILOWLIMA)*[1]!NILOWA,IF(AC12>[1]!NILOWLIMA,(AC12-[1]!NILOWLIMA)*[1]!NILOWA,0)))+IF($Q12="Y",IF(AC12>[1]!NIUPPLIMA,((AC12-[1]!NIUPPLIMA)*[1]!NIUPPERA)+(([1]!NIUPPLIMA-[1]!NILOWLIMA)*[1]!NISUPNA),IF(AC12>[1]!NILOWLIMA,(AC12-[1]!NILOWLIMA)*[1]!NISUPNA,0)))+IF(AC12>[1]!NILOWLIMA,-[1]!NICREBATEA,0) -> 0 | AQ12: =IF($Q12="N",IF(AD12>[1]!NIUPPLIMA,((AD12-[1]!NIUPPLIMA)*[1]!NIUPPERA)+([1]!NIUPPLIMA-[1]!NILOWLIMA)*[1]!NILOWA,IF(AD12>[1]!NILOWLIMA,(AD12-[1]!NILOWLIMA)*[1]!NILOWA,0)))+IF($Q12="Y",IF(AD12>[1]!NIUPPLIMA,((AD12-[1]!NIUPPLIMA)*[1]!NIUPPERA)+(([1]!NIUPPLIMA-[1]!NILOWLIMA)*[1]!NISUPNA),IF(AD12>[1]!NILOWLIMA,(AD12-[1]!NILOWLIMA)*[1]!NISUPNA,0)))+IF(AD12>[1]!NILOWLIMA,-[1]!NICREBATEA,0) -> 0 | AR12: =IF($Q12="N",IF(AE12>[1]!NIUPPLIMA,((AE12-[1]!NIUPPLIMA)*[1]!NIUPPERA)+([1]!NIUPPLIMA-[1]!NILOWLIMA)*[1]!NILOWA,IF(AE12>[1]!NILOWLIMA,(AE12-[1]!NILOWLIMA)*[1]!NILOWA,0)))+IF($Q12="Y",IF(AE12>[1]!NIUPPLIMA,((AE12-[1]!NIUPPLIMA)*[1]!NIUPPERA)+(([1]!NIUPPLIMA-[1]!NILOWLIMA)*[1]!NISUPNA),IF(AE12>[1]!NILOWLIMA,(AE12-[1]!NILOWLIMA)*[1]!NISUPNA,0)))+IF(AE12>[1]!NILOWLIMA,-[1]!NICREBATEA,0) -> 0 | AS12: =IF($Q12="N",IF(AF12>[1]!NIUPPLIMA,((AF12-[1]!NIUPPLIMA)*[1]!NIUPPERA)+([1]!NIUPPLIMA-[1]!NILOWLIMA)*[1]!NILOWA,IF(AF12>[1]!NILOWLIMA,(AF12-[1]!NILOWLIMA)*[1]!NILOWA,0)))+IF($Q12="Y",IF(AF12>[1]!NIUPPLIMA,((AF12-[1]!NIUPPLIMA)*[1]!NIUPPERA)+(([1]!NIUPPLIMA-[1]!NILOWLIMA)*[1]!NISUPNA),IF(AF12>[1]!NILOWLIMA,(AF12-[1]!NILOWLIMA)*[1]!NISUPNA,0)))+IF(AF12>[1]!NILOWLIMA,-[1]!NICREBATEA,0) -> 0 | AT12: =SUM(AH12:AS12) -> 0 | AU12: =IF($Q12="N",0,((AG12*$AU$5))) -> 0 | AV12: =AG12+AT12+AU12 -> 0 | AW12: =IF($E12="TEACHER",IF($I12<6,$I12+1,IF(LEFT($I12,1)="U",$I12,6)),IF($E12="LEADER",+I12,IF($E12="UNQUAL",IF($I12<10,$I12+1,10),IF($E12="ADVANCED",IF($I12<27,$I12+1,27))))) -> 5 | AX12: =(K12+M12+O12+P12) -> 0 | AY12: =IF($E12="LEADER",VLOOKUP(AW12,[1]!LEADERSHIP,5),IF($E12="TEACHER",VLOOKUP(AW12,[1]!TEACHER,5),IF($E12="ADVANCED",VLOOKUP($AW12,[1]!ADVANCED_SKILLS_TEACHERS,5),IF($E12="UNQUAL",VLOOKUP($AW12,[1]!UNQUALIFIED_TEACHER,5),0))))*D12*(1+BA$4)*(1+BA$5)+(AX12/AZ12) -> 0 | AZ12: =IF(G12-F12>11.99999,12,MONTH(G12)-MONTH(F12)) -> 12 | BA12: =NumberOfDaysWorked($F12,$G12,BD$1,BF$1)*(($S12*(1+BA$4))*5)+NumberOfDaysWorked($F12,$G12,BD$1,BF$1)*($AY12*7) -> 0 | BD12: =(IF($Q12="N",IF(AY12>[1]!NIUPPLIMB,((AY12-[1]!NIUPPLIMB)*[1]!NIUPPERB)+([1]!NIUPPLIMB-[1]!NILOWLIMB)*[1]!NILOWB,IF(AY12>[1]!NILOWLIMB,(AY12-[1]!NILOWLIMB)*[1]!NILOWB,0)))+IF($Q12="Y",IF(AY12>[1]!NIUPPLIMB,((AY12-[1]!NIUPPLIMB)*[1]!NIUPPERB)+(([1]!NIUPPLIMB-[1]!NILOWLIMB)*[1]!NISUPNB),IF(AY12>[1]!NILOWLIMB,(AY12-[1]!NILOWLIMB)*[1]!NISUPNB,0))))*((NumberOfDaysWorked($F12,$G12,BD$1,BF$1)*5)+(NumberOfDaysWorked($F12,$G12,BD$1,BF$1)*7)) -> 0 | BE12: =IF($Q12="N",0,(BA12*$BE$5)) -> 0 | BF12: =SUM(BA12:BE12) -> 0 | BG12: =IF($E12="TEACHER",IF(AW12<6,AW12+1,IF(LEFT(AW12,1)="U",AW12,6)),IF($E12="LEADER",+I12,IF($E12="UNQUAL",IF(AW12<10,AW12+1,10),IF($E12="ADVANCED",IF(AW12<27,AW12+1,27))))) -> 5 | BH12: =(K12+M12+O12+P12) -> 0 | BI12: =IF($E12="LEADER",VLOOKUP(BG12,[1]!LEADERSHIP,5),IF($E12="TEACHER",VLOOKUP(BG12,[1]!TEACHER,5),IF($E12="ADVANCED",VLOOKUP($AW12,[1]!ADVANCED_SKILLS_TEACHERS,5),IF($E12="UNQUAL",VLOOKUP($AW12,[1]!UNQUALIFIED_TEACHER,5),0))))*D12*(1+BA$4)*(1+BA$5)*(1+BK$4)*(1+BK$5)+(BH12/BJ12) -> 0 | BJ12: =IF(G12-F12>11.99999,12,MONTH(G12)-MONTH(F12)) -> 12 | BK12: =NumberOfDaysWorked($F12,$G12,BN$1,BP$1)*(($AY12*(1+BK$4))*5)+NumberOfDaysWorked($F12,$G12,BN$1,BP$1)*($BI12*7) -> 0 | BN12: =(IF($Q12="N",IF(BI12>[1]!NIUPPLIMC,((BI12-[1]!NIUPPLIMC)*[1]!NIUPPERC)+([1]!NIUPPLIMC-[1]!NILOWLIMC)*[1]!NILOWC,IF(BI12>[1]!NILOWLIMC,(BI12-[1]!NILOWLIMC)*[1]!NILOWC,0)))+IF($Q12="Y",IF(BI12>[1]!NIUPPLIMC,((BI12-[1]!NIUPPLIMC)*[1]!NIUPPERC)+(([1]!NIUPPLIMC-[1]!NILOWLIMC)*[1]!NISUPNC),IF(BI12>[1]!NILOWLIMC,(BI12-[1]!NILOWLIMC)*[1]!NISUPNC,0))))*((NumberOfDaysWorked($F12,$G12,BN$1,BP$1)*5)+(NumberOfDaysWorked($F12,$G12,BN$1,BP$1)*7)) -> 0 | BO12: =IF($Q12="N",0,(BK12*$BO$5)) -> 0 | BP12: =SUM(BK12:BO12) -> 0
A13: x | B13: Deputy Head | C13: A01001 | D13: 0 | E13: LEADER | F13: 2025-04-01 | G13: 2028-03-31 | H13: 5 | I13: 5 | Q13: Y | R13: =IF($E13="LEADER",VLOOKUP(H13,[1]PAYDATA!$A$4:$C$54,3),IF($E13="TEACHER",VLOOKUP(H13,[1]PAYDATA!$A$70:$C$80,3),IF($E13="ADVANCED",VLOOKUP(H13,[1]PAYDATA!$A$141:$C$159,3),IF($E13="UNQUAL",VLOOKUP(H13,[1]PAYDATA!$A$57:$C$63,3),0))))*$D13+($K13/T13)+($M13/T13)+($O13/T13)+($P13/T13) -> 0 | S13: =IF($E13="LEADER",VLOOKUP(I13,[1]!LEADERSHIP,5),IF($E13="TEACHER",VLOOKUP(I13,[1]!TEACHER,5),IF($E13="ADVANCED",VLOOKUP(I13,[1]PAYDATA!$A$141:$E$159,5),IF($E13="UNQUAL",VLOOKUP(I13,[1]!UNQUALIFIED_TEACHER,5),0))))*$D13+($K13/T13)+($M13/T13)+($O13/T13)+($P13/T13) -> 0 | T13: 12 | U13: 0 | V13: 0 | W13: 0 | X13: 0 | Y13: 0 | Z13: 0 | AA13: 0 | AB13: 0 | AC13: 0 | AD13: 0 | AE13: 0 | AF13: 0 | AG13: 0 | AH13: =IF($Q13="N",IF(U13>[1]!NIUPPLIMA,((U13-[1]!NIUPPLIMA)*[1]!NIUPPERA)+([1]!NIUPPLIMA-[1]!NILOWLIMA)*[1]!NILOWA,IF(U13>[1]!NILOWLIMA,(U13-[1]!NILOWLIMA)*[1]!NILOWA,0)))+IF($Q13="Y",IF(U13>[1]!NIUPPLIMA,((U13-[1]!NIUPPLIMA)*[1]!NIUPPERA)+(([1]!NIUPPLIMA-[1]!NILOWLIMA)*[1]!NISUPNA),IF(U13>[1]!NILOWLIMA,(U13-[1]!NILOWLIMA)*[1]!NISUPNA,0)))+IF(U13>[1]!NILOWLIMA,-[1]!NICREBATEA,0) -> 0 | AI13: =IF($Q13="N",IF(V13>[1]!NIUPPLIMA,((V13-[1]!NIUPPLIMA)*[1]!NIUPPERA)+([1]!NIUPPLIMA-[1]!NILOWLIMA)*[1]!NILOWA,IF(V13>[1]!NILOWLIMA,(V13-[1]!NILOWLIMA)*[1]!NILOWA,0)))+IF($Q13="Y",IF(V13>[1]!NIUPPLIMA,((V13-[1]!NIUPPLIMA)*[1]!NIUPPERA)+(([1]!NIUPPLIMA-[1]!NILOWLIMA)*[1]!NISUPNA),IF(V13>[1]!NILOWLIMA,(V13-[1]!NILOWLIMA)*[1]!NISUPNA,0)))+IF(V13>[1]!NILOWLIMA,-[1]!NICREBATEA,0) -> 0 | AJ13: =IF($Q13="N",IF(W13>[1]!NIUPPLIMA,((W13-[1]!NIUPPLIMA)*[1]!NIUPPERA)+([1]!NIUPPLIMA-[1]!NILOWLIMA)*[1]!NILOWA,IF(W13>[1]!NILOWLIMA,(W13-[1]!NILOWLIMA)*[1]!NILOWA,0)))+IF($Q13="Y",IF(W13>[1]!NIUPPLIMA,((W13-[1]!NIUPPLIMA)*[1]!NIUPPERA)+(([1]!NIUPPLIMA-[1]!NILOWLIMA)*[1]!NISUPNA),IF(W13>[1]!NILOWLIMA,(W13-[1]!NILOWLIMA)*[1]!NISUPNA,0)))+IF(W13>[1]!NILOWLIMA,-[1]!NICREBATEA,0) -> 0 | AK13: =IF($Q13="N",IF(X13>[1]!NIUPPLIMA,((X13-[1]!NIUPPLIMA)*[1]!NIUPPERA)+([1]!NIUPPLIMA-[1]!NILOWLIMA)*[1]!NILOWA,IF(X13>[1]!NILOWLIMA,(X13-[1]!NILOWLIMA)*[1]!NILOWA,0)))+IF($Q13="Y",IF(X13>[1]!NIUPPLIMA,((X13-[1]!NIUPPLIMA)*[1]!NIUPPERA)+(([1]!NIUPPLIMA-[1]!NILOWLIMA)*[1]!NISUPNA),IF(X13>[1]!NILOWLIMA,(X13-[1]!NILOWLIMA)*[1]!NISUPNA,0)))+IF(X13>[1]!NILOWLIMA,-[1]!NICREBATEA,0) -> 0 | AL13: =IF($Q13="N",IF(Y13>[1]!NIUPPLIMA,((Y13-[1]!NIUPPLIMA)*[1]!NIUPPERA)+([1]!NIUPPLIMA-[1]!NILOWLIMA)*[1]!NILOWA,IF(Y13>[1]!NILOWLIMA,(Y13-[1]!NILOWLIMA)*[1]!NILOWA,0)))+IF($Q13="Y",IF(Y13>[1]!NIUPPLIMA,((Y13-[1]!NIUPPLIMA)*[1]!NIUPPERA)+(([1]!NIUPPLIMA-[1]!NILOWLIMA)*[1]!NISUPNA),IF(Y13>[1]!NILOWLIMA,(Y13-[1]!NILOWLIMA)*[1]!NISUPNA,0)))+IF(Y13>[1]!NILOWLIMA,-[1]!NICREBATEA,0) -> 0 | AM13: =IF($Q13="N",IF(Z13>[1]!NIUPPLIMA,((Z13-[1]!NIUPPLIMA)*[1]!NIUPPERA)+([1]!NIUPPLIMA-[1]!NILOWLIMA)*[1]!NILOWA,IF(Z13>[1]!NILOWLIMA,(Z13-[1]!NILOWLIMA)*[1]!NILOWA,0)))+IF($Q13="Y",IF(Z13>[1]!NIUPPLIMA,((Z13-[1]!NIUPPLIMA)*[1]!NIUPPERA)+(([1]!NIUPPLIMA-[1]!NILOWLIMA)*[1]!NISUPNA),IF(Z13>[1]!NILOWLIMA,(Z13-[1]!NILOWLIMA)*[1]!NISUPNA,0)))+IF(Z13>[1]!NILOWLIMA,-[1]!NICREBATEA,0) -> 0 | AN13: =IF($Q13="N",IF(AA13>[1]!NIUPPLIMA,((AA13-[1]!NIUPPLIMA)*[1]!NIUPPERA)+([1]!NIUPPLIMA-[1]!NILOWLIMA)*[1]!NILOWA,IF(AA13>[1]!NILOWLIMA,(AA13-[1]!NILOWLIMA)*[1]!NILOWA,0)))+IF($Q13="Y",IF(AA13>[1]!NIUPPLIMA,((AA13-[1]!NIUPPLIMA)*[1]!NIUPPERA)+(([1]!NIUPPLIMA-[1]!NILOWLIMA)*[1]!NISUPNA),IF(AA13>[1]!NILOWLIMA,(AA13-[1]!NILOWLIMA)*[1]!NISUPNA,0)))+IF(AA13>[1]!NILOWLIMA,-[1]!NICREBATEA,0) -> 0 | AO13: =IF($Q13="N",IF(AB13>[1]!NIUPPLIMA,((AB13-[1]!NIUPPLIMA)*[1]!NIUPPERA)+([1]!NIUPPLIMA-[1]!NILOWLIMA)*[1]!NILOWA,IF(AB13>[1]!NILOWLIMA,(AB13-[1]!NILOWLIMA)*[1]!NILOWA,0)))+IF($Q13="Y",IF(AB13>[1]!NIUPPLIMA,((AB13-[1]!NIUPPLIMA)*[1]!NIUPPERA)+(([1]!NIUPPLIMA-[1]!NILOWLIMA)*[1]!NISUPNA),IF(AB13>[1]!NILOWLIMA,(AB13-[1]!NILOWLIMA)*[1]!NISUPNA,0)))+IF(AB13>[1]!NILOWLIMA,-[1]!NICREBATEA,0) -> 0 | AP13: =IF($Q13="N",IF(AC13>[1]!NIUPPLIMA,((AC13-[1]!NIUPPLIMA)*[1]!NIUPPERA)+([1]!NIUPPLIMA-[1]!NILOWLIMA)*[1]!NILOWA,IF(AC13>[1]!NILOWLIMA,(AC13-[1]!NILOWLIMA)*[1]!NILOWA,0)))+IF($Q13="Y",IF(AC13>[1]!NIUPPLIMA,((AC13-[1]!NIUPPLIMA)*[1]!NIUPPERA)+(([1]!NIUPPLIMA-[1]!NILOWLIMA)*[1]!NISUPNA),IF(AC13>[1]!NILOWLIMA,(AC13-[1]!NILOWLIMA)*[1]!NISUPNA,0)))+IF(AC13>[1]!NILOWLIMA,-[1]!NICREBATEA,0) -> 0 | AQ13: =IF($Q13="N",IF(AD13>[1]!NIUPPLIMA,((AD13-[1]!NIUPPLIMA)*[1]!NIUPPERA)+([1]!NIUPPLIMA-[1]!NILOWLIMA)*[1]!NILOWA,IF(AD13>[1]!NILOWLIMA,(AD13-[1]!NILOWLIMA)*[1]!NILOWA,0)))+IF($Q13="Y",IF(AD13>[1]!NIUPPLIMA,((AD13-[1]!NIUPPLIMA)*[1]!NIUPPERA)+(([1]!NIUPPLIMA-[1]!NILOWLIMA)*[1]!NISUPNA),IF(AD13>[1]!NILOWLIMA,(AD13-[1]!NILOWLIMA)*[1]!NISUPNA,0)))+IF(AD13>[1]!NILOWLIMA,-[1]!NICREBATEA,0) -> 0 | AR13: =IF($Q13="N",IF(AE13>[1]!NIUPPLIMA,((AE13-[1]!NIUPPLIMA)*[1]!NIUPPERA)+([1]!NIUPPLIMA-[1]!NILOWLIMA)*[1]!NILOWA,IF(AE13>[1]!NILOWLIMA,(AE13-[1]!NILOWLIMA)*[1]!NILOWA,0)))+IF($Q13="Y",IF(AE13>[1]!NIUPPLIMA,((AE13-[1]!NIUPPLIMA)*[1]!NIUPPERA)+(([1]!NIUPPLIMA-[1]!NILOWLIMA)*[1]!NISUPNA),IF(AE13>[1]!NILOWLIMA,(AE13-[1]!NILOWLIMA)*[1]!NISUPNA,0)))+IF(AE13>[1]!NILOWLIMA,-[1]!NICREBATEA,0) -> 0 | AS13: =IF($Q13="N",IF(AF13>[1]!NIUPPLIMA,((AF13-[1]!NIUPPLIMA)*[1]!NIUPPERA)+([1]!NIUPPLIMA-[1]!NILOWLIMA)*[1]!NILOWA,IF(AF13>[1]!NILOWLIMA,(AF13-[1]!NILOWLIMA)*[1]!NILOWA,0)))+IF($Q13="Y",IF(AF13>[1]!NIUPPLIMA,((AF13-[1]!NIUPPLIMA)*[1]!NIUPPERA)+(([1]!NIUPPLIMA-[1]!NILOWLIMA)*[1]!NISUPNA),IF(AF13>[1]!NILOWLIMA,(AF13-[1]!NILOWLIMA)*[1]!NISUPNA,0)))+IF(AF13>[1]!NILOWLIMA,-[1]!NICREBATEA,0) -> 0 | AT13: 0 | AU13: 0 | AV13: 0 | AW13: 5 | AX13: 0 | AY13: =IF($E13="LEADER",VLOOKUP(AW13,[1]!LEADERSHIP,5),IF($E13="TEACHER",VLOOKUP(AW13,[1]!TEACHER,5),IF($E13="ADVANCED",VLOOKUP($AW13,[1]!ADVANCED_SKILLS_TEACHERS,5),IF($E13="UNQUAL",VLOOKUP($AW13,[1]!UNQUALIFIED_TEACHER,5),0))))*D13*(1+BA$4)*(1+BA$5)+(AX13/AZ13) -> 0 | AZ13: 12 | BA13: 0 | BD13: =(IF($Q13="N",IF(AY13>[1]!NIUPPLIMB,((AY13-[1]!NIUPPLIMB)*[1]!NIUPPERB)+([1]!NIUPPLIMB-[1]!NILOWLIMB)*[1]!NILOWB,IF(AY13>[1]!NILOWLIMB,(AY13-[1]!NILOWLIMB)*[1]!NILOWB,0)))+IF($Q13="Y",IF(AY13>[1]!NIUPPLIMB,((AY13-[1]!NIUPPLIMB)*[1]!NIUPPERB)+(([1]!NIUPPLIMB-[1]!NILOWLIMB)*[1]!NISUPNB),IF(AY13>[1]!NILOWLIMB,(AY13-[1]!NILOWLIMB)*[1]!NISUPNB,0))))*((NumberOfDaysWorked($F13,$G13,BD$1,BF$1)*5)+(NumberOfDaysWorked($F13,$G13,BD$1,BF$1)*7)) -> 0 | BE13: 0 | BF13: 0 | BG13: 5 | BH13: 0 | BI13: =IF($E13="LEADER",VLOOKUP(BG13,[1]!LEADERSHIP,5),IF($E13="TEACHER",VLOOKUP(BG13,[1]!TEACHER,5),IF($E13="ADVANCED",VLOOKUP($AW13,[1]!ADVANCED_SKILLS_TEACHERS,5),IF($E13="UNQUAL",VLOOKUP($AW13,[1]!UNQUALIFIED_TEACHER,5),0))))*D13*(1+BA$4)*(1+BA$5)*(1+BK$4)*(1+BK$5)+(BH13/BJ13) -> 0 | BJ13: 12 | BK13: 0 | BN13: =(IF($Q13="N",IF(BI13>[1]!NIUPPLIMC,((BI13-[1]!NIUPPLIMC)*[1]!NIUPPERC)+([1]!NIUPPLIMC-[1]!NILOWLIMC)*[1]!NILOWC,IF(BI13>[1]!NILOWLIMC,(BI13-[1]!NILOWLIMC)*[1]!NILOWC,0)))+IF($Q13="Y",IF(BI13>[1]!NIUPPLIMC,((BI13-[1]!NIUPPLIMC)*[1]!NIUPPERC)+(([1]!NIUPPLIMC-[1]!NILOWLIMC)*[1]!NISUPNC),IF(BI13>[1]!NILOWLIMC,(BI13-[1]!NILOWLIMC)*[1]!NISUPNC,0))))*((NumberOfDaysWorked($F13,$G13,BN$1,BP$1)*5)+(NumberOfDaysWorked($F13,$G13,BN$1,BP$1)*7)) -> 0 | BO13: 0 | BP13: 0
A14: x | B14: TODD SOPHIE | C14: A01001 | D14: =1012/1265 -> 0.8 | E14: LEADER | F14: 2025-04-01 | G14: 2025-08-31 | H14: 6 | I14: 6 | Q14: Y | R14: =IF($E14="LEADER",VLOOKUP(H14,[1]PAYDATA!$A$4:$C$54,3),IF($E14="TEACHER",VLOOKUP(H14,[1]PAYDATA!$A$70:$C$80,3),IF($E14="ADVANCED",VLOOKUP(H14,[1]PAYDATA!$A$141:$C$159,3),IF($E14="UNQUAL",VLOOKUP(H14,[1]PAYDATA!$A$57:$C$63,3),0))))*$D14+($K14/T14)+($M14/T14)+($O14/T14)+($P14/T14) -> 3754.4 | S14: =IF($E14="LEADER",VLOOKUP(I14,[1]!LEADERSHIP,5),IF($E14="TEACHER",VLOOKUP(I14,[1]!TEACHER,5),IF($E14="ADVANCED",VLOOKUP(I14,[1]PAYDATA!$A$141:$E$159,5),IF($E14="UNQUAL",VLOOKUP(I14,[1]!UNQUALIFIED_TEACHER,5),0))))*$D14+($K14/T14)+($M14/T14)+($O14/T14)+($P14/T14) -> 3904.576 | T14: =IF(G14-F14>11.99999,12,MONTH(G14)-MONTH(F14)) -> 12 | U14: 3754.4 | V14: 3754.4 | W14: 3754.4 | X14: 3754.4 | Y14: 3754.4 | Z14: 0 | AA14: 0 | AB14: 0 | AC14: 0 | AD14: 0 | AE14: 0 | AF14: 0 | AG14: 18772 | AH14: =IF($Q14="N",IF(U14>[1]!NIUPPLIMA,((U14-[1]!NIUPPLIMA)*[1]!NIUPPERA)+([1]!NIUPPLIMA-[1]!NILOWLIMA)*[1]!NILOWA,IF(U14>[1]!NILOWLIMA,(U14-[1]!NILOWLIMA)*[1]!NILOWA,0)))+IF($Q14="Y",IF(U14>[1]!NIUPPLIMA,((U14-[1]!NIUPPLIMA)*[1]!NIUPPERA)+(([1]!NIUPPLIMA-[1]!NILOWLIMA)*[1]!NISUPNA),IF(U14>[1]!NILOWLIMA,(U14-[1]!NILOWLIMA)*[1]!NISUPNA,0)))+IF(U14>[1]!NILOWLIMA,-[1]!NICREBATEA,0) -> 500.6595 | AI14: =IF($Q14="N",IF(V14>[1]!NIUPPLIMA,((V14-[1]!NIUPPLIMA)*[1]!NIUPPERA)+([1]!NIUPPLIMA-[1]!NILOWLIMA)*[1]!NILOWA,IF(V14>[1]!NILOWLIMA,(V14-[1]!NILOWLIMA)*[1]!NILOWA,0)))+IF($Q14="Y",IF(V14>[1]!NIUPPLIMA,((V14-[1]!NIUPPLIMA)*[1]!NIUPPERA)+(([1]!NIUPPLIMA-[1]!NILOWLIMA)*[1]!NISUPNA),IF(V14>[1]!NILOWLIMA,(V14-[1]!NILOWLIMA)*[1]!NISUPNA,0)))+IF(V14>[1]!NILOWLIMA,-[1]!NICREBATEA,0) -> 500.6595 | AJ14: =IF($Q14="N",IF(W14>[1]!NIUPPLIMA,((W14-[1]!NIUPPLIMA)*[1]!NIUPPERA)+([1]!NIUPPLIMA-[1]!NILOWLIMA)*[1]!NILOWA,IF(W14>[1]!NILOWLIMA,(W14-[1]!NILOWLIMA)*[1]!NILOWA,0)))+IF($Q14="Y",IF(W14>[1]!NIUPPLIMA,((W14-[1]!NIUPPLIMA)*[1]!NIUPPERA)+(([1]!NIUPPLIMA-[1]!NILOWLIMA)*[1]!NISUPNA),IF(W14>[1]!NILOWLIMA,(W14-[1]!NILOWLIMA)*[1]!NISUPNA,0)))+IF(W14>[1]!NILOWLIMA,-[1]!NICREBATEA,0) -> 500.6595 | AK14: =IF($Q14="N",IF(X14>[1]!NIUPPLIMA,((X14-[1]!NIUPPLIMA)*[1]!NIUPPERA)+([1]!NIUPPLIMA-[1]!NILOWLIMA)*[1]!NILOWA,IF(X14>[1]!NILOWLIMA,(X14-[1]!NILOWLIMA)*[1]!NILOWA,0)))+IF($Q14="Y",IF(X14>[1]!NIUPPLIMA,((X14-[1]!NIUPPLIMA)*[1]!NIUPPERA)+(([1]!NIUPPLIMA-[1]!NILOWLIMA)*[1]!NISUPNA),IF(X14>[1]!NILOWLIMA,(X14-[1]!NILOWLIMA)*[1]!NISUPNA,0)))+IF(X14>[1]!NILOWLIMA,-[1]!NICREBATEA,0) -> 500.6595 | AL14: =IF($Q14="N",IF(Y14>[1]!NIUPPLIMA,((Y14-[1]!NIUPPLIMA)*[1]!NIUPPERA)+([1]!NIUPPLIMA-[1]!NILOWLIMA)*[1]!NILOWA,IF(Y14>[1]!NILOWLIMA,(Y14-[1]!NILOWLIMA)*[1]!NILOWA,0)))+IF($Q14="Y",IF(Y14>[1]!NIUPPLIMA,((Y14-[1]!NIUPPLIMA)*[1]!NIUPPERA)+(([1]!NIUPPLIMA-[1]!NILOWLIMA)*[1]!NISUPNA),IF(Y14>[1]!NILOWLIMA,(Y14-[1]!NILOWLIMA)*[1]!NISUPNA,0)))+IF(Y14>[1]!NILOWLIMA,-[1]!NICREBATEA,0) -> 500.6595 | AM14: =IF($Q14="N",IF(Z14>[1]!NIUPPLIMA,((Z14-[1]!NIUPPLIMA)*[1]!NIUPPERA)+([1]!NIUPPLIMA-[1]!NILOWLIMA)*[1]!NILOWA,IF(Z14>[1]!NILOWLIMA,(Z14-[1]!NILOWLIMA)*[1]!NILOWA,0)))+IF($Q14="Y",IF(Z14>[1]!NIUPPLIMA,((Z14-[1]!NIUPPLIMA)*[1]!NIUPPERA)+(([1]!NIUPPLIMA-[1]!NILOWLIMA)*[1]!NISUPNA),IF(Z14>[1]!NILOWLIMA,(Z14-[1]!NILOWLIMA)*[1]!NISUPNA,0)))+IF(Z14>[1]!NILOWLIMA,-[1]!NICREBATEA,0) -> 0 | AN14: =IF($Q14="N",IF(AA14>[1]!NIUPPLIMA,((AA14-[1]!NIUPPLIMA)*[1]!NIUPPERA)+([1]!NIUPPLIMA-[1]!NILOWLIMA)*[1]!NILOWA,IF(AA14>[1]!NILOWLIMA,(AA14-[1]!NILOWLIMA)*[1]!NILOWA,0)))+IF($Q14="Y",IF(AA14>[1]!NIUPPLIMA,((AA14-[1]!NIUPPLIMA)*[1]!NIUPPERA)+(([1]!NIUPPLIMA-[1]!NILOWLIMA)*[1]!NISUPNA),IF(AA14>[1]!NILOWLIMA,(AA14-[1]!NILOWLIMA)*[1]!NISUPNA,0)))+IF(AA14>[1]!NILOWLIMA,-[1]!NICREBATEA,0) -> 0 | AO14: =IF($Q14="N",IF(AB14>[1]!NIUPPLIMA,((AB14-[1]!NIUPPLIMA)*[1]!NIUPPERA)+([1]!NIUPPLIMA-[1]!NILOWLIMA)*[1]!NILOWA,IF(AB14>[1]!NILOWLIMA,(AB14-[1]!NILOWLIMA)*[1]!NILOWA,0)))+IF($Q14="Y",IF(AB14>[1]!NIUPPLIMA,((AB14-[1]!NIUPPLIMA)*[1]!NIUPPERA)+(([1]!NIUPPLIMA-[1]!NILOWLIMA)*[1]!NISUPNA),IF(AB14>[1]!NILOWLIMA,(AB14-[1]!NILOWLIMA)*[1]!NISUPNA,0)))+IF(AB14>[1]!NILOWLIMA,-[1]!NICREBATEA,0) -> 0 | AP14: =IF($Q14="N",IF(AC14>[1]!NIUPPLIMA,((AC14-[1]!NIUPPLIMA)*[1]!NIUPPERA)+([1]!NIUPPLIMA-[1]!NILOWLIMA)*[1]!NILOWA,IF(AC14>[1]!NILOWLIMA,(AC14-[1]!NILOWLIMA)*[1]!NILOWA,0)))+IF($Q14="Y",IF(AC14>[1]!NIUPPLIMA,((AC14-[1]!NIUPPLIMA)*[1]!NIUPPERA)+(([1]!NIUPPLIMA-[1]!NILOWLIMA)*[1]!NISUPNA),IF(AC14>[1]!NILOWLIMA,(AC14-[1]!NILOWLIMA)*[1]!NISUPNA,0)))+IF(AC14>[1]!NILOWLIMA,-[1]!NICREBATEA,0) -> 0 | AQ14: =IF($Q14="N",IF(AD14>[1]!NIUPPLIMA,((AD14-[1]!NIUPPLIMA)*[1]!NIUPPERA)+([1]!NIUPPLIMA-[1]!NILOWLIMA)*[1]!NILOWA,IF(AD14>[1]!NILOWLIMA,(AD14-[1]!NILOWLIMA)*[1]!NILOWA,0)))+IF($Q14="Y",IF(AD14>[1]!NIUPPLIMA,((AD14-[1]!NIUPPLIMA)*[1]!NIUPPERA)+(([1]!NIUPPLIMA-[1]!NILOWLIMA)*[1]!NISUPNA),IF(AD14>[1]!NILOWLIMA,(AD14-[1]!NILOWLIMA)*[1]!NISUPNA,0)))+IF(AD14>[1]!NILOWLIMA,-[1]!NICREBATEA,0) -> 0 | AR14: =IF($Q14="N",IF(AE14>[1]!NIUPPLIMA,((AE14-[1]!NIUPPLIMA)*[1]!NIUPPERA)+([1]!NIUPPLIMA-[1]!NILOWLIMA)*[1]!NILOWA,IF(AE14>[1]!NILOWLIMA,(AE14-[1]!NILOWLIMA)*[1]!NILOWA,0)))+IF($Q14="Y",IF(AE14>[1]!NIUPPLIMA,((AE14-[1]!NIUPPLIMA)*[1]!NIUPPERA)+(([1]!NIUPPLIMA-[1]!NILOWLIMA)*[1]!NISUPNA),IF(AE14>[1]!NILOWLIMA,(AE14-[1]!NILOWLIMA)*[1]!NISUPNA,0)))+IF(AE14>[1]!NILOWLIMA,-[1]!NICREBATEA,0) -> 0 | AS14: =IF($Q14="N",IF(AF14>[1]!NIUPPLIMA,((AF14-[1]!NIUPPLIMA)*[1]!NIUPPERA)+([1]!NIUPPLIMA-[1]!NILOWLIMA)*[1]!NILOWA,IF(AF14>[1]!NILOWLIMA,(AF14-[1]!NILOWLIMA)*[1]!NILOWA,0)))+IF($Q14="Y",IF(AF14>[1]!NIUPPLIMA,((AF14-[1]!NIUPPLIMA)*[1]!NIUPPERA)+(([1]!NIUPPLIMA-[1]!NILOWLIMA)*[1]!NISUPNA),IF(AF14>[1]!NILOWLIMA,(AF14-[1]!NILOWLIMA)*[1]!NISUPNA,0)))+IF(AF14>[1]!NILOWLIMA,-[1]!NICREBATEA,0) -> 0 | AT14: 2503.2975 | AU14: 5383.8096 | AV14: 26659.1071 | AW14: 6 | AX14: 0 | AY14: =IF($E14="LEADER",VLOOKUP(AW14,[1]!LEADERSHIP,5),IF($E14="TEACHER",VLOOKUP(AW14,[1]!TEACHER,5),IF($E14="ADVANCED",VLOOKUP($AW14,[1]!ADVANCED_SKILLS_TEACHERS,5),IF($E14="UNQUAL",VLOOKUP($AW14,[1]!UNQUALIFIED_TEACHER,5),0))))*D14*(1+BA$4)*(1+BA$5)+(AX14/AZ14) -> 4060.75904 | AZ14: 12 | BA14: 0 | BD14: =(IF($Q14="N",IF(AY14>[1]!NIUPPLIMB,((AY14-[1]!NIUPPLIMB)*[1]!NIUPPERB)+([1]!NIUPPLIMB-[1]!NILOWLIMB)*[1]!NILOWB,IF(AY14>[1]!NILOWLIMB,(AY14-[1]!NILOWLIMB)*[1]!NILOWB,0)))+IF($Q14="Y",IF(AY14>[1]!NIUPPLIMB,((AY14-[1]!NIUPPLIMB)*[1]!NIUPPERB)+(([1]!NIUPPLIMB-[1]!NILOWLIMB)*[1]!NISUPNB),IF(AY14>[1]!NILOWLIMB,(AY14-[1]!NILOWLIMB)*[1]!NISUPNB,0))))*((NumberOfDaysWorked($F14,$G14,BD$1,BF$1)*5)+(NumberOfDaysWorked($F14,$G14,BD$1,BF$1)*7)) -> 0 | BE14: 0 | BF14: 0 | BG14: 6 | BH14: 0 | BI14: =IF($E14="LEADER",VLOOKUP(BG14,[1]!LEADERSHIP,5),IF($E14="TEACHER",VLOOKUP(BG14,[1]!TEACHER,5),IF($E14="ADVANCED",VLOOKUP($AW14,[1]!ADVANCED_SKILLS_TEACHERS,5),IF($E14="UNQUAL",VLOOKUP($AW14,[1]!UNQUALIFIED_TEACHER,5),0))))*D14*(1+BA$4)*(1+BA$5)*(1+BK$4)*(1+BK$5)+(BH14/BJ14) -> 4223.189402 | BJ14: 12 | BK14: 0 | BN14: =(IF($Q14="N",IF(BI14>[1]!NIUPPLIMC,((BI14-[1]!NIUPPLIMC)*[1]!NIUPPERC)+([1]!NIUPPLIMC-[1]!NILOWLIMC)*[1]!NILOWC,IF(BI14>[1]!NILOWLIMC,(BI14-[1]!NILOWLIMC)*[1]!NILOWC,0)))+IF($Q14="Y",IF(BI14>[1]!NIUPPLIMC,((BI14-[1]!NIUPPLIMC)*[1]!NIUPPERC)+(([1]!NIUPPLIMC-[1]!NILOWLIMC)*[1]!NISUPNC),IF(BI14>[1]!NILOWLIMC,(BI14-[1]!NILOWLIMC)*[1]!NISUPNC,0))))*((NumberOfDaysWorked($F14,$G14,BN$1,BP$1)*5)+(NumberOfDaysWorked($F14,$G14,BN$1,BP$1)*7)) -> 0 | BO14: 0 | BP14: 0
A15: x | B15: TODD SOPHIE | C15: A01001 | D15: 0.8 | E15: LEADER | F15: 2025-09-01 | G15: 2028-03-31 | H15: 7 | I15: 7 | Q15: Y | R15: =IF($E15="LEADER",VLOOKUP(H15,[1]PAYDATA!$A$4:$C$54,3),IF($E15="TEACHER",VLOOKUP(H15,[1]PAYDATA!$A$70:$C$80,3),IF($E15="ADVANCED",VLOOKUP(H15,[1]PAYDATA!$A$141:$C$159,3),IF($E15="UNQUAL",VLOOKUP(H15,[1]PAYDATA!$A$57:$C$63,3),0))))*$D15+($K15/T15)+($M15/T15)+($O15/T15)+($P15/T15) -> 3855.4 | S15: =IF($E15="LEADER",VLOOKUP(I15,[1]!LEADERSHIP,5),IF($E15="TEACHER",VLOOKUP(I15,[1]!TEACHER,5),IF($E15="ADVANCED",VLOOKUP(I15,[1]PAYDATA!$A$141:$E$159,5),IF($E15="UNQUAL",VLOOKUP(I15,[1]!UNQUALIFIED_TEACHER,5),0))))*$D15+($K15/T15)+($M15/T15)+($O15/T15)+($P15/T15) -> 4009.616 | T15: =IF(G15-F15>11.99999,12,MONTH(G15)-MONTH(F15)) -> 12 | U15: 0 | V15: 0 | W15: 0 | X15: 0 | Y15: 0 | Z15: 4009.616 | AA15: 4009.616 | AB15: 4009.616 | AC15: 4009.616 | AD15: 4009.616 | AE15: 4009.616 | AF15: 4009.616 | AG15: =SUM(U15:AF15) -> 28067.312 | AH15: =IF($Q15="N",IF(U15>[1]!NIUPPLIMA,((U15-[1]!NIUPPLIMA)*[1]!NIUPPERA)+([1]!NIUPPLIMA-[1]!NILOWLIMA)*[1]!NILOWA,IF(U15>[1]!NILOWLIMA,(U15-[1]!NILOWLIMA)*[1]!NILOWA,0)))+IF($Q15="Y",IF(U15>[1]!NIUPPLIMA,((U15-[1]!NIUPPLIMA)*[1]!NIUPPERA)+(([1]!NIUPPLIMA-[1]!NILOWLIMA)*[1]!NISUPNA),IF(U15>[1]!NILOWLIMA,(U15-[1]!NILOWLIMA)*[1]!NISUPNA,0)))+IF(U15>[1]!NILOWLIMA,-[1]!NICREBATEA,0) -> 0 | AI15: =IF($Q15="N",IF(V15>[1]!NIUPPLIMA,((V15-[1]!NIUPPLIMA)*[1]!NIUPPERA)+([1]!NIUPPLIMA-[1]!NILOWLIMA)*[1]!NILOWA,IF(V15>[1]!NILOWLIMA,(V15-[1]!NILOWLIMA)*[1]!NILOWA,0)))+IF($Q15="Y",IF(V15>[1]!NIUPPLIMA,((V15-[1]!NIUPPLIMA)*[1]!NIUPPERA)+(([1]!NIUPPLIMA-[1]!NILOWLIMA)*[1]!NISUPNA),IF(V15>[1]!NILOWLIMA,(V15-[1]!NILOWLIMA)*[1]!NISUPNA,0)))+IF(V15>[1]!NILOWLIMA,-[1]!NICREBATEA,0) -> 0 | AJ15: =IF($Q15="N",IF(W15>[1]!NIUPPLIMA,((W15-[1]!NIUPPLIMA)*[1]!NIUPPERA)+([1]!NIUPPLIMA-[1]!NILOWLIMA)*[1]!NILOWA,IF(W15>[1]!NILOWLIMA,(W15-[1]!NILOWLIMA)*[1]!NILOWA,0)))+IF($Q15="Y",IF(W15>[1]!NIUPPLIMA,((W15-[1]!NIUPPLIMA)*[1]!NIUPPERA)+(([1]!NIUPPLIMA-[1]!NILOWLIMA)*[1]!NISUPNA),IF(W15>[1]!NILOWLIMA,(W15-[1]!NILOWLIMA)*[1]!NISUPNA,0)))+IF(W15>[1]!NILOWLIMA,-[1]!NICREBATEA,0) -> 0 | AK15: =IF($Q15="N",IF(X15>[1]!NIUPPLIMA,((X15-[1]!NIUPPLIMA)*[1]!NIUPPERA)+([1]!NIUPPLIMA-[1]!NILOWLIMA)*[1]!NILOWA,IF(X15>[1]!NILOWLIMA,(X15-[1]!NILOWLIMA)*[1]!NILOWA,0)))+IF($Q15="Y",IF(X15>[1]!NIUPPLIMA,((X15-[1]!NIUPPLIMA)*[1]!NIUPPERA)+(([1]!NIUPPLIMA-[1]!NILOWLIMA)*[1]!NISUPNA),IF(X15>[1]!NILOWLIMA,(X15-[1]!NILOWLIMA)*[1]!NISUPNA,0)))+IF(X15>[1]!NILOWLIMA,-[1]!NICREBATEA,0) -> 0 | AL15: =IF($Q15="N",IF(Y15>[1]!NIUPPLIMA,((Y15-[1]!NIUPPLIMA)*[1]!NIUPPERA)+([1]!NIUPPLIMA-[1]!NILOWLIMA)*[1]!NILOWA,IF(Y15>[1]!NILOWLIMA,(Y15-[1]!NILOWLIMA)*[1]!NILOWA,0)))+IF($Q15="Y",IF(Y15>[1]!NIUPPLIMA,((Y15-[1]!NIUPPLIMA)*[1]!NIUPPERA)+(([1]!NIUPPLIMA-[1]!NILOWLIMA)*[1]!NISUPNA),IF(Y15>[1]!NILOWLIMA,(Y15-[1]!NILOWLIMA)*[1]!NISUPNA,0)))+IF(Y15>[1]!NILOWLIMA,-[1]!NICREBATEA,0) -> 0 | AM15: =IF($Q15="N",IF(Z15>[1]!NIUPPLIMA,((Z15-[1]!NIUPPLIMA)*[1]!NIUPPERA)+([1]!NIUPPLIMA-[1]!NILOWLIMA)*[1]!NILOWA,IF(Z15>[1]!NILOWLIMA,(Z15-[1]!NILOWLIMA)*[1]!NILOWA,0)))+IF($Q15="Y",IF(Z15>[1]!NIUPPLIMA,((Z15-[1]!NIUPPLIMA)*[1]!NIUPPERA)+(([1]!NIUPPLIMA-[1]!NILOWLIMA)*[1]!NISUPNA),IF(Z15>[1]!NILOWLIMA,(Z15-[1]!NILOWLIMA)*[1]!NISUPNA,0)))+IF(Z15>[1]!NILOWLIMA,-[1]!NICREBATEA,0) -> 538.9419 | AN15: =IF($Q15="N",IF(AA15>[1]!NIUPPLIMA,((AA15-[1]!NIUPPLIMA)*[1]!NIUPPERA)+([1]!NIUPPLIMA-[1]!NILOWLIMA)*[1]!NILOWA,IF(AA15>[1]!NILOWLIMA,(AA15-[1]!NILOWLIMA)*[1]!NILOWA,0)))+IF($Q15="Y",IF(AA15>[1]!NIUPPLIMA,((AA15-[1]!NIUPPLIMA)*[1]!NIUPPERA)+(([1]!NIUPPLIMA-[1]!NILOWLIMA)*[1]!NISUPNA),IF(AA15>[1]!NILOWLIMA,(AA15-[1]!NILOWLIMA)*[1]!NISUPNA,0)))+IF(AA15>[1]!NILOWLIMA,-[1]!NICREBATEA,0) -> 538.9419 | AO15: =IF($Q15="N",IF(AB15>[1]!NIUPPLIMA,((AB15-[1]!NIUPPLIMA)*[1]!NIUPPERA)+([1]!NIUPPLIMA-[1]!NILOWLIMA)*[1]!NILOWA,IF(AB15>[1]!NILOWLIMA,(AB15-[1]!NILOWLIMA)*[1]!NILOWA,0)))+IF($Q15="Y",IF(AB15>[1]!NIUPPLIMA,((AB15-[1]!NIUPPLIMA)*[1]!NIUPPERA)+(([1]!NIUPPLIMA-[1]!NILOWLIMA)*[1]!NISUPNA),IF(AB15>[1]!NILOWLIMA,(AB15-[1]!NILOWLIMA)*[1]!NISUPNA,0)))+IF(AB15>[1]!NILOWLIMA,-[1]!NICREBATEA,0) -> 538.9419 | AP15: =IF($Q15="N",IF(AC15>[1]!NIUPPLIMA,((AC15-[1]!NIUPPLIMA)*[1]!NIUPPERA)+([1]!NIUPPLIMA-[1]!NILOWLIMA)*[1]!NILOWA,IF(AC15>[1]!NILOWLIMA,(AC15-[1]!NILOWLIMA)*[1]!NILOWA,0)))+IF($Q15="Y",IF(AC15>[1]!NIUPPLIMA,((AC15-[1]!NIUPPLIMA)*[1]!NIUPPERA)+(([1]!NIUPPLIMA-[1]!NILOWLIMA)*[1]!NISUPNA),IF(AC15>[1]!NILOWLIMA,(AC15-[1]!NILOWLIMA)*[1]!NISUPNA,0)))+IF(AC15>[1]!NILOWLIMA,-[1]!NICREBATEA,0) -> 538.9419 | AQ15: =IF($Q15="N",IF(AD15>[1]!NIUPPLIMA,((AD15-[1]!NIUPPLIMA)*[1]!NIUPPERA)+([1]!NIUPPLIMA-[1]!NILOWLIMA)*[1]!NILOWA,IF(AD15>[1]!NILOWLIMA,(AD15-[1]!NILOWLIMA)*[1]!NILOWA,0)))+IF($Q15="Y",IF(AD15>[1]!NIUPPLIMA,((AD15-[1]!NIUPPLIMA)*[1]!NIUPPERA)+(([1]!NIUPPLIMA-[1]!NILOWLIMA)*[1]!NISUPNA),IF(AD15>[1]!NILOWLIMA,(AD15-[1]!NILOWLIMA)*[1]!NISUPNA,0)))+IF(AD15>[1]!NILOWLIMA,-[1]!NICREBATEA,0) -> 538.9419 | AR15: =IF($Q15="N",IF(AE15>[1]!NIUPPLIMA,((AE15-[1]!NIUPPLIMA)*[1]!NIUPPERA)+([1]!NIUPPLIMA-[1]!NILOWLIMA)*[1]!NILOWA,IF(AE15>[1]!NILOWLIMA,(AE15-[1]!NILOWLIMA)*[1]!NILOWA,0)))+IF($Q15="Y",IF(AE15>[1]!NIUPPLIMA,((AE15-[1]!NIUPPLIMA)*[1]!NIUPPERA)+(([1]!NIUPPLIMA-[1]!NILOWLIMA)*[1]!NISUPNA),IF(AE15>[1]!NILOWLIMA,(AE15-[1]!NILOWLIMA)*[1]!NISUPNA,0)))+IF(AE15>[1]!NILOWLIMA,-[1]!NICREBATEA,0) -> 538.9419 | AS15: =IF($Q15="N",IF(AF15>[1]!NIUPPLIMA,((AF15-[1]!NIUPPLIMA)*[1]!NIUPPERA)+([1]!NIUPPLIMA-[1]!NILOWLIMA)*[1]!NILOWA,IF(AF15>[1]!NILOWLIMA,(AF15-[1]!NILOWLIMA)*[1]!NILOWA,0)))+IF($Q15="Y",IF(AF15>[1]!NIUPPLIMA,((AF15-[1]!NIUPPLIMA)*[1]!NIUPPERA)+(([1]!NIUPPLIMA-[1]!NILOWLIMA)*[1]!NISUPNA),IF(AF15>[1]!NILOWLIMA,(AF15-[1]!NILOWLIMA)*[1]!NISUPNA,0)))+IF(AF15>[1]!NILOWLIMA,-[1]!NICREBATEA,0) -> 538.9419 | AT15: =SUM(AH15:AS15) -> 3772.5933 | AU15: =IF($Q15="N",0,((AG15*$AU$5))) -> 8049.705082 | AV15: =AG15+AT15+AU15 -> 39889.61038 | AW15: =IF($E15="TEACHER",IF($I15<6,$I15+1,IF(LEFT($I15,1)="U",$I15,6)),IF($E15="LEADER",+I15,IF($E15="UNQUAL",IF($I15<10,$I15+1,10),IF($E15="ADVANCED",IF($I15<27,$I15+1,27))))) -> 7 | AX15: =(K15+M15+O15+P15) -> 0 | AY15: =IF($E15="LEADER",VLOOKUP(AW15,[1]!LEADERSHIP,5),IF($E15="TEACHER",VLOOKUP(AW15,[1]!TEACHER,5),IF($E15="ADVANCED",VLOOKUP($AW15,[1]!ADVANCED_SKILLS_TEACHERS,5),IF($E15="UNQUAL",VLOOKUP($AW15,[1]!UNQUALIFIED_TEACHER,5),0))))*D15*(1+BA$4)*(1+BA$5)+(AX15/AZ15) -> 4170.00064 | AZ15: =IF(G15-F15>11.99999,12,MONTH(G15)-MONTH(F15)) -> 12 | BA15: =NumberOfDaysWorked($F15,$G15,BD$1,BF$1)*(($S15*(1+BA$4))*5)+NumberOfDaysWorked($F15,$G15,BD$1,BF$1)*($AY15*7) -> 49238.08448 | BD15: =(IF($Q15="N",IF(AY15>[1]!NIUPPLIMB,((AY15-[1]!NIUPPLIMB)*[1]!NIUPPERB)+([1]!NIUPPLIMB-[1]!NILOWLIMB)*[1]!NILOWB,IF(AY15>[1]!NILOWLIMB,(AY15-[1]!NILOWLIMB)*[1]!NILOWB,0)))+IF($Q15="Y",IF(AY15>[1]!NIUPPLIMB,((AY15-[1]!NIUPPLIMB)*[1]!NIUPPERB)+(([1]!NIUPPLIMB-[1]!NILOWLIMB)*[1]!NISUPNB),IF(AY15>[1]!NILOWLIMB,(AY15-[1]!NILOWLIMB)*[1]!NISUPNB,0))))*((NumberOfDaysWorked($F15,$G15,BD$1,BF$1)*5)+(NumberOfDaysWorked($F15,$G15,BD$1,BF$1)*7)) -> 6756.001152 | BE15: =IF($Q15="N",0,(BA15*$BE$5)) -> 14121.48263 | BF15: =SUM(BA15:BE15) -> 70115.56826 | BG15: =IF($E15="TEACHER",IF(AW15<6,AW15+1,IF(LEFT(AW15,1)="U",AW15,6)),IF($E15="LEADER",+I15,IF($E15="UNQUAL",IF(AW15<10,AW15+1,10),IF($E15="ADVANCED",IF(AW15<27,AW15+1,27))))) -> 7 | BH15: =(K15+M15+O15+P15) -> 0 | BI15: =IF($E15="LEADER",VLOOKUP(BG15,[1]!LEADERSHIP,5),IF($E15="TEACHER",VLOOKUP(BG15,[1]!TEACHER,5),IF($E15="ADVANCED",VLOOKUP($AW15,[1]!ADVANCED_SKILLS_TEACHERS,5),IF($E15="UNQUAL",VLOOKUP($AW15,[1]!UNQUALIFIED_TEACHER,5),0))))*D15*(1+BA$4)*(1+BA$5)*(1+BK$4)*(1+BK$5)+(BH15/BJ15) -> 4336.800666 | BJ15: =IF(G15-F15>11.99999,12,MONTH(G15)-MONTH(F15)) -> 12 | BK15: =NumberOfDaysWorked($F15,$G15,BN$1,BP$1)*(($AY15*(1+BK$4))*5)+NumberOfDaysWorked($F15,$G15,BN$1,BP$1)*($BI15*7) -> 51207.60786 | BN15: =(IF($Q15="N",IF(BI15>[1]!NIUPPLIMC,((BI15-[1]!NIUPPLIMC)*[1]!NIUPPERC)+([1]!NIUPPLIMC-[1]!NILOWLIMC)*[1]!NILOWC,IF(BI15>[1]!NILOWLIMC,(BI15-[1]!NILOWLIMC)*[1]!NILOWC,0)))+IF($Q15="Y",IF(BI15>[1]!NIUPPLIMC,((BI15-[1]!NIUPPLIMC)*[1]!NIUPPERC)+(([1]!NIUPPLIMC-[1]!NILOWLIMC)*[1]!NISUPNC),IF(BI15>[1]!NILOWLIMC,(BI15-[1]!NILOWLIMC)*[1]!NISUPNC,0))))*((NumberOfDaysWorked($F15,$G15,BN$1,BP$1)*5)+(NumberOfDaysWorked($F15,$G15,BN$1,BP$1)*7)) -> 7056.241198 | BO15: =IF($Q15="N",0,(BK15*$BO$5)) -> 14686.34193 | BP15: =SUM(BK15:BO15) -> 72950.19099
A16: x | B16: TODD SOPHIE (SUPPLY HRS) | C16: A01001 | D16: 0 | E16: LEADER | F16: 2025-09-01 | G16: 2028-03-31 | H16: 7 | I16: 7 | Q16: Y | R16: =IF($E16="LEADER",VLOOKUP(H16,[1]PAYDATA!$A$4:$C$54,3),IF($E16="TEACHER",VLOOKUP(H16,[1]PAYDATA!$A$70:$C$80,3),IF($E16="ADVANCED",VLOOKUP(H16,[1]PAYDATA!$A$141:$C$159,3),IF($E16="UNQUAL",VLOOKUP(H16,[1]PAYDATA!$A$57:$C$63,3),0))))*$D16+($K16/T16)+($M16/T16)+($O16/T16)+($P16/T16) -> 0 | S16: =IF($E16="LEADER",VLOOKUP(I16,[1]!LEADERSHIP,5),IF($E16="TEACHER",VLOOKUP(I16,[1]!TEACHER,5),IF($E16="ADVANCED",VLOOKUP(I16,[1]PAYDATA!$A$141:$E$159,5),IF($E16="UNQUAL",VLOOKUP(I16,[1]!UNQUALIFIED_TEACHER,5),0))))*$D16+($K16/T16)+($M16/T16)+($O16/T16)+($P16/T16) -> 0 | T16: =IF(G16-F16>11.99999,12,MONTH(G16)-MONTH(F16)) -> 12 | U16: 0 | V16: 0 | W16: 0 | X16: 0 | Y16: 0 | Z16: 0 | AA16: 0 | AB16: 0 | AC16: 0 | AD16: 0 | AE16: 0 | AF16: 865 | AG16: 865 | AH16: =IF($Q16="N",IF(U16>[1]!NIUPPLIMA,((U16-[1]!NIUPPLIMA)*[1]!NIUPPERA)+([1]!NIUPPLIMA-[1]!NILOWLIMA)*[1]!NILOWA,IF(U16>[1]!NILOWLIMA,(U16-[1]!NILOWLIMA)*[1]!NILOWA,0)))+IF($Q16="Y",IF(U16>[1]!NIUPPLIMA,((U16-[1]!NIUPPLIMA)*[1]!NIUPPERA)+(([1]!NIUPPLIMA-[1]!NILOWLIMA)*[1]!NISUPNA),IF(U16>[1]!NILOWLIMA,(U16-[1]!NILOWLIMA)*[1]!NISUPNA,0)))+IF(U16>[1]!NILOWLIMA,-[1]!NICREBATEA,0) -> 0 | AI16: =IF($Q16="N",IF(V16>[1]!NIUPPLIMA,((V16-[1]!NIUPPLIMA)*[1]!NIUPPERA)+([1]!NIUPPLIMA-[1]!NILOWLIMA)*[1]!NILOWA,IF(V16>[1]!NILOWLIMA,(V16-[1]!NILOWLIMA)*[1]!NILOWA,0)))+IF($Q16="Y",IF(V16>[1]!NIUPPLIMA,((V16-[1]!NIUPPLIMA)*[1]!NIUPPERA)+(([1]!NIUPPLIMA-[1]!NILOWLIMA)*[1]!NISUPNA),IF(V16>[1]!NILOWLIMA,(V16-[1]!NILOWLIMA)*[1]!NISUPNA,0)))+IF(V16>[1]!NILOWLIMA,-[1]!NICREBATEA,0) -> 0 | AJ16: =IF($Q16="N",IF(W16>[1]!NIUPPLIMA,((W16-[1]!NIUPPLIMA)*[1]!NIUPPERA)+([1]!NIUPPLIMA-[1]!NILOWLIMA)*[1]!NILOWA,IF(W16>[1]!NILOWLIMA,(W16-[1]!NILOWLIMA)*[1]!NILOWA,0)))+IF($Q16="Y",IF(W16>[1]!NIUPPLIMA,((W16-[1]!NIUPPLIMA)*[1]!NIUPPERA)+(([1]!NIUPPLIMA-[1]!NILOWLIMA)*[1]!NISUPNA),IF(W16>[1]!NILOWLIMA,(W16-[1]!NILOWLIMA)*[1]!NISUPNA,0)))+IF(W16>[1]!NILOWLIMA,-[1]!NICREBATEA,0) -> 0 | AK16: =IF($Q16="N",IF(X16>[1]!NIUPPLIMA,((X16-[1]!NIUPPLIMA)*[1]!NIUPPERA)+([1]!NIUPPLIMA-[1]!NILOWLIMA)*[1]!NILOWA,IF(X16>[1]!NILOWLIMA,(X16-[1]!NILOWLIMA)*[1]!NILOWA,0)))+IF($Q16="Y",IF(X16>[1]!NIUPPLIMA,((X16-[1]!NIUPPLIMA)*[1]!NIUPPERA)+(([1]!NIUPPLIMA-[1]!NILOWLIMA)*[1]!NISUPNA),IF(X16>[1]!NILOWLIMA,(X16-[1]!NILOWLIMA)*[1]!NISUPNA,0)))+IF(X16>[1]!NILOWLIMA,-[1]!NICREBATEA,0) -> 0 | AL16: =IF($Q16="N",IF(Y16>[1]!NIUPPLIMA,((Y16-[1]!NIUPPLIMA)*[1]!NIUPPERA)+([1]!NIUPPLIMA-[1]!NILOWLIMA)*[1]!NILOWA,IF(Y16>[1]!NILOWLIMA,(Y16-[1]!NILOWLIMA)*[1]!NILOWA,0)))+IF($Q16="Y",IF(Y16>[1]!NIUPPLIMA,((Y16-[1]!NIUPPLIMA)*[1]!NIUPPERA)+(([1]!NIUPPLIMA-[1]!NILOWLIMA)*[1]!NISUPNA),IF(Y16>[1]!NILOWLIMA,(Y16-[1]!NILOWLIMA)*[1]!NISUPNA,0)))+IF(Y16>[1]!NILOWLIMA,-[1]!NICREBATEA,0) -> 0 | AM16: =IF($Q16="N",IF(Z16>[1]!NIUPPLIMA,((Z16-[1]!NIUPPLIMA)*[1]!NIUPPERA)+([1]!NIUPPLIMA-[1]!NILOWLIMA)*[1]!NILOWA,IF(Z16>[1]!NILOWLIMA,(Z16-[1]!NILOWLIMA)*[1]!NILOWA,0)))+IF($Q16="Y",IF(Z16>[1]!NIUPPLIMA,((Z16-[1]!NIUPPLIMA)*[1]!NIUPPERA)+(([1]!NIUPPLIMA-[1]!NILOWLIMA)*[1]!NISUPNA),IF(Z16>[1]!NILOWLIMA,(Z16-[1]!NILOWLIMA)*[1]!NISUPNA,0)))+IF(Z16>[1]!NILOWLIMA,-[1]!NICREBATEA,0) -> 0 | AN16: =IF($Q16="N",IF(AA16>[1]!NIUPPLIMA,((AA16-[1]!NIUPPLIMA)*[1]!NIUPPERA)+([1]!NIUPPLIMA-[1]!NILOWLIMA)*[1]!NILOWA,IF(AA16>[1]!NILOWLIMA,(AA16-[1]!NILOWLIMA)*[1]!NILOWA,0)))+IF($Q16="Y",IF(AA16>[1]!NIUPPLIMA,((AA16-[1]!NIUPPLIMA)*[1]!NIUPPERA)+(([1]!NIUPPLIMA-[1]!NILOWLIMA)*[1]!NISUPNA),IF(AA16>[1]!NILOWLIMA,(AA16-[1]!NILOWLIMA)*[1]!NISUPNA,0)))+IF(AA16>[1]!NILOWLIMA,-[1]!NICREBATEA,0) -> 0 | AO16: =IF($Q16="N",IF(AB16>[1]!NIUPPLIMA,((AB16-[1]!NIUPPLIMA)*[1]!NIUPPERA)+([1]!NIUPPLIMA-[1]!NILOWLIMA)*[1]!NILOWA,IF(AB16>[1]!NILOWLIMA,(AB16-[1]!NILOWLIMA)*[1]!NILOWA,0)))+IF($Q16="Y",IF(AB16>[1]!NIUPPLIMA,((AB16-[1]!NIUPPLIMA)*[1]!NIUPPERA)+(([1]!NIUPPLIMA-[1]!NILOWLIMA)*[1]!NISUPNA),IF(AB16>[1]!NILOWLIMA,(AB16-[1]!NILOWLIMA)*[1]!NISUPNA,0)))+IF(AB16>[1]!NILOWLIMA,-[1]!NICREBATEA,0) -> 0 | AP16: =IF($Q16="N",IF(AC16>[1]!NIUPPLIMA,((AC16-[1]!NIUPPLIMA)*[1]!NIUPPERA)+([1]!NIUPPLIMA-[1]!NILOWLIMA)*[1]!NILOWA,IF(AC16>[1]!NILOWLIMA,(AC16-[1]!NILOWLIMA)*[1]!NILOWA,0)))+IF($Q16="Y",IF(AC16>[1]!NIUPPLIMA,((AC16-[1]!NIUPPLIMA)*[1]!NIUPPERA)+(([1]!NIUPPLIMA-[1]!NILOWLIMA)*[1]!NISUPNA),IF(AC16>[1]!NILOWLIMA,(AC16-[1]!NILOWLIMA)*[1]!NISUPNA,0)))+IF(AC16>[1]!NILOWLIMA,-[1]!NICREBATEA,0) -> 0 | AQ16: =IF($Q16="N",IF(AD16>[1]!NIUPPLIMA,((AD16-[1]!NIUPPLIMA)*[1]!NIUPPERA)+([1]!NIUPPLIMA-[1]!NILOWLIMA)*[1]!NILOWA,IF(AD16>[1]!NILOWLIMA,(AD16-[1]!NILOWLIMA)*[1]!NILOWA,0)))+IF($Q16="Y",IF(AD16>[1]!NIUPPLIMA,((AD16-[1]!NIUPPLIMA)*[1]!NIUPPERA)+(([1]!NIUPPLIMA-[1]!NILOWLIMA)*[1]!NISUPNA),IF(AD16>[1]!NILOWLIMA,(AD16-[1]!NILOWLIMA)*[1]!NISUPNA,0)))+IF(AD16>[1]!NILOWLIMA,-[1]!NICREBATEA,0) -> 0 | AR16: =IF($Q16="N",IF(AE16>[1]!NIUPPLIMA,((AE16-[1]!NIUPPLIMA)*[1]!NIUPPERA)+([1]!NIUPPLIMA-[1]!NILOWLIMA)*[1]!NILOWA,IF(AE16>[1]!NILOWLIMA,(AE16-[1]!NILOWLIMA)*[1]!NILOWA,0)))+IF($Q16="Y",IF(AE16>[1]!NIUPPLIMA,((AE16-[1]!NIUPPLIMA)*[1]!NIUPPERA)+(([1]!NIUPPLIMA-[1]!NILOWLIMA)*[1]!NISUPNA),IF(AE16>[1]!NILOWLIMA,(AE16-[1]!NILOWLIMA)*[1]!NISUPNA,0)))+IF(AE16>[1]!NILOWLIMA,-[1]!NICREBATEA,0) -> 0 | AS16: =IF($Q16="N",IF(AF16>[1]!NIUPPLIMA,((AF16-[1]!NIUPPLIMA)*[1]!NIUPPERA)+([1]!NIUPPLIMA-[1]!NILOWLIMA)*[1]!NILOWA,IF(AF16>[1]!NILOWLIMA,(AF16-[1]!NILOWLIMA)*[1]!NILOWA,0)))+IF($Q16="Y",IF(AF16>[1]!NIUPPLIMA,((AF16-[1]!NIUPPLIMA)*[1]!NIUPPERA)+(([1]!NIUPPLIMA-[1]!NILOWLIMA)*[1]!NISUPNA),IF(AF16>[1]!NILOWLIMA,(AF16-[1]!NILOWLIMA)*[1]!NISUPNA,0)))+IF(AF16>[1]!NILOWLIMA,-[1]!NICREBATEA,0) -> 67.2495 | AT16: 0 | AU16: 248.082 | AV16: 1113.082 | AW16: 7 | AX16: 0 | AY16: =IF($E16="LEADER",VLOOKUP(AW16,[1]!LEADERSHIP,5),IF($E16="TEACHER",VLOOKUP(AW16,[1]!TEACHER,5),IF($E16="ADVANCED",VLOOKUP($AW16,[1]!ADVANCED_SKILLS_TEACHERS,5),IF($E16="UNQUAL",VLOOKUP($AW16,[1]!UNQUALIFIED_TEACHER,5),0))))*D16*(1+BA$4)*(1+BA$5)+(AX16/AZ16) -> 0 | AZ16: 12 | BA16: 0 | BD16: =(IF($Q16="N",IF(AY16>[1]!NIUPPLIMB,((AY16-[1]!NIUPPLIMB)*[1]!NIUPPERB)+([1]!NIUPPLIMB-[1]!NILOWLIMB)*[1]!NILOWB,IF(AY16>[1]!NILOWLIMB,(AY16-[1]!NILOWLIMB)*[1]!NILOWB,0)))+IF($Q16="Y",IF(AY16>[1]!NIUPPLIMB,((AY16-[1]!NIUPPLIMB)*[1]!NIUPPERB)+(([1]!NIUPPLIMB-[1]!NILOWLIMB)*[1]!NISUPNB),IF(AY16>[1]!NILOWLIMB,(AY16-[1]!NILOWLIMB)*[1]!NISUPNB,0))))*((NumberOfDaysWorked($F16,$G16,BD$1,BF$1)*5)+(NumberOfDaysWorked($F16,$G16,BD$1,BF$1)*7)) -> 0 | BE16: 0 | BF16: 0 | BG16: 7 | BH16: 0 | BI16: =IF($E16="LEADER",VLOOKUP(BG16,[1]!LEADERSHIP,5),IF($E16="TEACHER",VLOOKUP(BG16,[1]!TEACHER,5),IF($E16="ADVANCED",VLOOKUP($AW16,[1]!ADVANCED_SKILLS_TEACHERS,5),IF($E16="UNQUAL",VLOOKUP($AW16,[1]!UNQUALIFIED_TEACHER,5),0))))*D16*(1+BA$4)*(1+BA$5)*(1+BK$4)*(1+BK$5)+(BH16/BJ16) -> 0 | BJ16: 12 | BK16: 0 | BN16: =(IF($Q16="N",IF(BI16>[1]!NIUPPLIMC,((BI16-[1]!NIUPPLIMC)*[1]!NIUPPERC)+([1]!NIUPPLIMC-[1]!NILOWLIMC)*[1]!NILOWC,IF(BI16>[1]!NILOWLIMC,(BI16-[1]!NILOWLIMC)*[1]!NILOWC,0)))+IF($Q16="Y",IF(BI16>[1]!NIUPPLIMC,((BI16-[1]!NIUPPLIMC)*[1]!NIUPPERC)+(([1]!NIUPPLIMC-[1]!NILOWLIMC)*[1]!NISUPNC),IF(BI16>[1]!NILOWLIMC,(BI16-[1]!NILOWLIMC)*[1]!NISUPNC,0))))*((NumberOfDaysWorked($F16,$G16,BN$1,BP$1)*5)+(NumberOfDaysWorked($F16,$G16,BN$1,BP$1)*7)) -> 0 | BO16: 0 | BP16: 0
A17: x | B17: Assistant Head | C17: A01001 | D17: 0 | E17: LEADER | F17: 2025-04-01 | G17: 2028-03-31 | H17: 5 | I17: 5 | Q17: Y | R17: =IF($E17="LEADER",VLOOKUP(H17,[1]PAYDATA!$A$4:$C$54,3),IF($E17="TEACHER",VLOOKUP(H17,[1]PAYDATA!$A$70:$C$80,3),IF($E17="ADVANCED",VLOOKUP(H17,[1]PAYDATA!$A$141:$C$159,3),IF($E17="UNQUAL",VLOOKUP(H17,[1]PAYDATA!$A$57:$C$63,3),0))))*$D17+($K17/T17)+($M17/T17)+($O17/T17)+($P17/T17) -> 0 | S17: =IF($E17="LEADER",VLOOKUP(I17,[1]!LEADERSHIP,5),IF($E17="TEACHER",VLOOKUP(I17,[1]!TEACHER,5),IF($E17="ADVANCED",VLOOKUP(I17,[1]PAYDATA!$A$141:$E$159,5),IF($E17="UNQUAL",VLOOKUP(I17,[1]!UNQUALIFIED_TEACHER,5),0))))*$D17+($K17/T17)+($M17/T17)+($O17/T17)+($P17/T17) -> 0 | T17: 12 | U17: 0 | V17: 0 | W17: 0 | X17: 0 | Y17: 0 | Z17: 0 | AA17: 0 | AB17: 0 | AC17: 0 | AD17: 0 | AE17: 0 | AF17: 0 | AG17: 0 | AH17: =IF($Q17="N",IF(U17>[1]!NIUPPLIMA,((U17-[1]!NIUPPLIMA)*[1]!NIUPPERA)+([1]!NIUPPLIMA-[1]!NILOWLIMA)*[1]!NILOWA,IF(U17>[1]!NILOWLIMA,(U17-[1]!NILOWLIMA)*[1]!NILOWA,0)))+IF($Q17="Y",IF(U17>[1]!NIUPPLIMA,((U17-[1]!NIUPPLIMA)*[1]!NIUPPERA)+(([1]!NIUPPLIMA-[1]!NILOWLIMA)*[1]!NISUPNA),IF(U17>[1]!NILOWLIMA,(U17-[1]!NILOWLIMA)*[1]!NISUPNA,0)))+IF(U17>[1]!NILOWLIMA,-[1]!NICREBATEA,0) -> 0 | AI17: =IF($Q17="N",IF(V17>[1]!NIUPPLIMA,((V17-[1]!NIUPPLIMA)*[1]!NIUPPERA)+([1]!NIUPPLIMA-[1]!NILOWLIMA)*[1]!NILOWA,IF(V17>[1]!NILOWLIMA,(V17-[1]!NILOWLIMA)*[1]!NILOWA,0)))+IF($Q17="Y",IF(V17>[1]!NIUPPLIMA,((V17-[1]!NIUPPLIMA)*[1]!NIUPPERA)+(([1]!NIUPPLIMA-[1]!NILOWLIMA)*[1]!NISUPNA),IF(V17>[1]!NILOWLIMA,(V17-[1]!NILOWLIMA)*[1]!NISUPNA,0)))+IF(V17>[1]!NILOWLIMA,-[1]!NICREBATEA,0) -> 0 | AJ17: =IF($Q17="N",IF(W17>[1]!NIUPPLIMA,((W17-[1]!NIUPPLIMA)*[1]!NIUPPERA)+([1]!NIUPPLIMA-[1]!NILOWLIMA)*[1]!NILOWA,IF(W17>[1]!NILOWLIMA,(W17-[1]!NILOWLIMA)*[1]!NILOWA,0)))+IF($Q17="Y",IF(W17>[1]!NIUPPLIMA,((W17-[1]!NIUPPLIMA)*[1]!NIUPPERA)+(([1]!NIUPPLIMA-[1]!NILOWLIMA)*[1]!NISUPNA),IF(W17>[1]!NILOWLIMA,(W17-[1]!NILOWLIMA)*[1]!NISUPNA,0)))+IF(W17>[1]!NILOWLIMA,-[1]!NICREBATEA,0) -> 0 | AK17: =IF($Q17="N",IF(X17>[1]!NIUPPLIMA,((X17-[1]!NIUPPLIMA)*[1]!NIUPPERA)+([1]!NIUPPLIMA-[1]!NILOWLIMA)*[1]!NILOWA,IF(X17>[1]!NILOWLIMA,(X17-[1]!NILOWLIMA)*[1]!NILOWA,0)))+IF($Q17="Y",IF(X17>[1]!NIUPPLIMA,((X17-[1]!NIUPPLIMA)*[1]!NIUPPERA)+(([1]!NIUPPLIMA-[1]!NILOWLIMA)*[1]!NISUPNA),IF(X17>[1]!NILOWLIMA,(X17-[1]!NILOWLIMA)*[1]!NISUPNA,0)))+IF(X17>[1]!NILOWLIMA,-[1]!NICREBATEA,0) -> 0 | AL17: =IF($Q17="N",IF(Y17>[1]!NIUPPLIMA,((Y17-[1]!NIUPPLIMA)*[1]!NIUPPERA)+([1]!NIUPPLIMA-[1]!NILOWLIMA)*[1]!NILOWA,IF(Y17>[1]!NILOWLIMA,(Y17-[1]!NILOWLIMA)*[1]!NILOWA,0)))+IF($Q17="Y",IF(Y17>[1]!NIUPPLIMA,((Y17-[1]!NIUPPLIMA)*[1]!NIUPPERA)+(([1]!NIUPPLIMA-[1]!NILOWLIMA)*[1]!NISUPNA),IF(Y17>[1]!NILOWLIMA,(Y17-[1]!NILOWLIMA)*[1]!NISUPNA,0)))+IF(Y17>[1]!NILOWLIMA,-[1]!NICREBATEA,0) -> 0 | AM17: =IF($Q17="N",IF(Z17>[1]!NIUPPLIMA,((Z17-[1]!NIUPPLIMA)*[1]!NIUPPERA)+([1]!NIUPPLIMA-[1]!NILOWLIMA)*[1]!NILOWA,IF(Z17>[1]!NILOWLIMA,(Z17-[1]!NILOWLIMA)*[1]!NILOWA,0)))+IF($Q17="Y",IF(Z17>[1]!NIUPPLIMA,((Z17-[1]!NIUPPLIMA)*[1]!NIUPPERA)+(([1]!NIUPPLIMA-[1]!NILOWLIMA)*[1]!NISUPNA),IF(Z17>[1]!NILOWLIMA,(Z17-[1]!NILOWLIMA)*[1]!NISUPNA,0)))+IF(Z17>[1]!NILOWLIMA,-[1]!NICREBATEA,0) -> 0 | AN17: =IF($Q17="N",IF(AA17>[1]!NIUPPLIMA,((AA17-[1]!NIUPPLIMA)*[1]!NIUPPERA)+([1]!NIUPPLIMA-[1]!NILOWLIMA)*[1]!NILOWA,IF(AA17>[1]!NILOWLIMA,(AA17-[1]!NILOWLIMA)*[1]!NILOWA,0)))+IF($Q17="Y",IF(AA17>[1]!NIUPPLIMA,((AA17-[1]!NIUPPLIMA)*[1]!NIUPPERA)+(([1]!NIUPPLIMA-[1]!NILOWLIMA)*[1]!NISUPNA),IF(AA17>[1]!NILOWLIMA,(AA17-[1]!NILOWLIMA)*[1]!NISUPNA,0)))+IF(AA17>[1]!NILOWLIMA,-[1]!NICREBATEA,0) -> 0 | AO17: =IF($Q17="N",IF(AB17>[1]!NIUPPLIMA,((AB17-[1]!NIUPPLIMA)*[1]!NIUPPERA)+([1]!NIUPPLIMA-[1]!NILOWLIMA)*[1]!NILOWA,IF(AB17>[1]!NILOWLIMA,(AB17-[1]!NILOWLIMA)*[1]!NILOWA,0)))+IF($Q17="Y",IF(AB17>[1]!NIUPPLIMA,((AB17-[1]!NIUPPLIMA)*[1]!NIUPPERA)+(([1]!NIUPPLIMA-[1]!NILOWLIMA)*[1]!NISUPNA),IF(AB17>[1]!NILOWLIMA,(AB17-[1]!NILOWLIMA)*[1]!NISUPNA,0)))+IF(AB17>[1]!NILOWLIMA,-[1]!NICREBATEA,0) -> 0 | AP17: =IF($Q17="N",IF(AC17>[1]!NIUPPLIMA,((AC17-[1]!NIUPPLIMA)*[1]!NIUPPERA)+([1]!NIUPPLIMA-[1]!NILOWLIMA)*[1]!NILOWA,IF(AC17>[1]!NILOWLIMA,(AC17-[1]!NILOWLIMA)*[1]!NILOWA,0)))+IF($Q17="Y",IF(AC17>[1]!NIUPPLIMA,((AC17-[1]!NIUPPLIMA)*[1]!NIUPPERA)+(([1]!NIUPPLIMA-[1]!NILOWLIMA)*[1]!NISUPNA),IF(AC17>[1]!NILOWLIMA,(AC17-[1]!NILOWLIMA)*[1]!NISUPNA,0)))+IF(AC17>[1]!NILOWLIMA,-[1]!NICREBATEA,0) -> 0 | AQ17: =IF($Q17="N",IF(AD17>[1]!NIUPPLIMA,((AD17-[1]!NIUPPLIMA)*[1]!NIUPPERA)+([1]!NIUPPLIMA-[1]!NILOWLIMA)*[1]!NILOWA,IF(AD17>[1]!NILOWLIMA,(AD17-[1]!NILOWLIMA)*[1]!NILOWA,0)))+IF($Q17="Y",IF(AD17>[1]!NIUPPLIMA,((AD17-[1]!NIUPPLIMA)*[1]!NIUPPERA)+(([1]!NIUPPLIMA-[1]!NILOWLIMA)*[1]!NISUPNA),IF(AD17>[1]!NILOWLIMA,(AD17-[1]!NILOWLIMA)*[1]!NISUPNA,0)))+IF(AD17>[1]!NILOWLIMA,-[1]!NICREBATEA,0) -> 0 | AR17: =IF($Q17="N",IF(AE17>[1]!NIUPPLIMA,((AE17-[1]!NIUPPLIMA)*[1]!NIUPPERA)+([1]!NIUPPLIMA-[1]!NILOWLIMA)*[1]!NILOWA,IF(AE17>[1]!NILOWLIMA,(AE17-[1]!NILOWLIMA)*[1]!NILOWA,0)))+IF($Q17="Y",IF(AE17>[1]!NIUPPLIMA,((AE17-[1]!NIUPPLIMA)*[1]!NIUPPERA)+(([1]!NIUPPLIMA-[1]!NILOWLIMA)*[1]!NISUPNA),IF(AE17>[1]!NILOWLIMA,(AE17-[1]!NILOWLIMA)*[1]!NISUPNA,0)))+IF(AE17>[1]!NILOWLIMA,-[1]!NICREBATEA,0) -> 0 | AS17: =IF($Q17="N",IF(AF17>[1]!NIUPPLIMA,((AF17-[1]!NIUPPLIMA)*[1]!NIUPPERA)+([1]!NIUPPLIMA-[1]!NILOWLIMA)*[1]!NILOWA,IF(AF17>[1]!NILOWLIMA,(AF17-[1]!NILOWLIMA)*[1]!NILOWA,0)))+IF($Q17="Y",IF(AF17>[1]!NIUPPLIMA,((AF17-[1]!NIUPPLIMA)*[1]!NIUPPERA)+(([1]!NIUPPLIMA-[1]!NILOWLIMA)*[1]!NISUPNA),IF(AF17>[1]!NILOWLIMA,(AF17-[1]!NILOWLIMA)*[1]!NISUPNA,0)))+IF(AF17>[1]!NILOWLIMA,-[1]!NICREBATEA,0) -> 0 | AT17: 0 | AU17: 0 | AV17: 0 | AW17: 5 | AX17: 0 | AY17: =IF($E17="LEADER",VLOOKUP(AW17,[1]!LEADERSHIP,5),IF($E17="TEACHER",VLOOKUP(AW17,[1]!TEACHER,5),IF($E17="ADVANCED",VLOOKUP($AW17,[1]!ADVANCED_SKILLS_TEACHERS,5),IF($E17="UNQUAL",VLOOKUP($AW17,[1]!UNQUALIFIED_TEACHER,5),0))))*D17*(1+BA$4)*(1+BA$5)+(AX17/AZ17) -> 0 | AZ17: 12 | BA17: 0 | BD17: =(IF($Q17="N",IF(AY17>[1]!NIUPPLIMB,((AY17-[1]!NIUPPLIMB)*[1]!NIUPPERB)+([1]!NIUPPLIMB-[1]!NILOWLIMB)*[1]!NILOWB,IF(AY17>[1]!NILOWLIMB,(AY17-[1]!NILOWLIMB)*[1]!NILOWB,0)))+IF($Q17="Y",IF(AY17>[1]!NIUPPLIMB,((AY17-[1]!NIUPPLIMB)*[1]!NIUPPERB)+(([1]!NIUPPLIMB-[1]!NILOWLIMB)*[1]!NISUPNB),IF(AY17>[1]!NILOWLIMB,(AY17-[1]!NILOWLIMB)*[1]!NISUPNB,0))))*((NumberOfDaysWorked($F17,$G17,BD$1,BF$1)*5)+(NumberOfDaysWorked($F17,$G17,BD$1,BF$1)*7)) -> 0 | BE17: 0 | BF17: 0 | BG17: 5 | BH17: 0 | BI17: =IF($E17="LEADER",VLOOKUP(BG17,[1]!LEADERSHIP,5),IF($E17="TEACHER",VLOOKUP(BG17,[1]!TEACHER,5),IF($E17="ADVANCED",VLOOKUP($AW17,[1]!ADVANCED_SKILLS_TEACHERS,5),IF($E17="UNQUAL",VLOOKUP($AW17,[1]!UNQUALIFIED_TEACHER,5),0))))*D17*(1+BA$4)*(1+BA$5)*(1+BK$4)*(1+BK$5)+(BH17/BJ17) -> 0 | BJ17: 12 | BK17: 0 | BN17: =(IF($Q17="N",IF(BI17>[1]!NIUPPLIMC,((BI17-[1]!NIUPPLIMC)*[1]!NIUPPERC)+([1]!NIUPPLIMC-[1]!NILOWLIMC)*[1]!NILOWC,IF(BI17>[1]!NILOWLIMC,(BI17-[1]!NILOWLIMC)*[1]!NILOWC,0)))+IF($Q17="Y",IF(BI17>[1]!NIUPPLIMC,((BI17-[1]!NIUPPLIMC)*[1]!NIUPPERC)+(([1]!NIUPPLIMC-[1]!NILOWLIMC)*[1]!NISUPNC),IF(BI17>[1]!NILOWLIMC,(BI17-[1]!NILOWLIMC)*[1]!NISUPNC,0))))*((NumberOfDaysWorked($F17,$G17,BN$1,BP$1)*5)+(NumberOfDaysWorked($F17,$G17,BN$1,BP$1)*7)) -> 0 | BO17: 0 | BP17: 0
A18: x | C18: A01001 | D18: 0 | E18: LEADER | F18: 2025-04-01 | G18: 2028-03-31 | H18: 4 | I18: 4 | Q18: Y | R18: =IF($E18="LEADER",VLOOKUP(H18,[1]PAYDATA!$A$4:$C$54,3),IF($E18="TEACHER",VLOOKUP(H18,[1]PAYDATA!$A$70:$C$80,3),IF($E18="ADVANCED",VLOOKUP(H18,[1]PAYDATA!$A$141:$C$159,3),IF($E18="UNQUAL",VLOOKUP(H18,[1]PAYDATA!$A$57:$C$63,3),0))))*$D18+($K18/T18)+($M18/T18)+($O18/T18)+($P18/T18) -> 0 | S18: =IF($E18="LEADER",VLOOKUP(I18,[1]!LEADERSHIP,5),IF($E18="TEACHER",VLOOKUP(I18,[1]!TEACHER,5),IF($E18="ADVANCED",VLOOKUP(I18,[1]PAYDATA!$A$141:$E$159,5),IF($E18="UNQUAL",VLOOKUP(I18,[1]!UNQUALIFIED_TEACHER,5),0))))*$D18+($K18/T18)+($M18/T18)+($O18/T18)+($P18/T18) -> 0 | T18: 12 | U18: 0 | V18: 0 | W18: 0 | X18: 0 | Y18: 0 | Z18: 0 | AA18: 0 | AB18: 0 | AC18: 0 | AD18: 0 | AE18: 0 | AF18: 0 | AG18: 0 | AH18: =IF($Q18="N",IF(U18>[1]!NIUPPLIMA,((U18-[1]!NIUPPLIMA)*[1]!NIUPPERA)+([1]!NIUPPLIMA-[1]!NILOWLIMA)*[1]!NILOWA,IF(U18>[1]!NILOWLIMA,(U18-[1]!NILOWLIMA)*[1]!NILOWA,0)))+IF($Q18="Y",IF(U18>[1]!NIUPPLIMA,((U18-[1]!NIUPPLIMA)*[1]!NIUPPERA)+(([1]!NIUPPLIMA-[1]!NILOWLIMA)*[1]!NISUPNA),IF(U18>[1]!NILOWLIMA,(U18-[1]!NILOWLIMA)*[1]!NISUPNA,0)))+IF(U18>[1]!NILOWLIMA,-[1]!NICREBATEA,0) -> 0 | AI18: =IF($Q18="N",IF(V18>[1]!NIUPPLIMA,((V18-[1]!NIUPPLIMA)*[1]!NIUPPERA)+([1]!NIUPPLIMA-[1]!NILOWLIMA)*[1]!NILOWA,IF(V18>[1]!NILOWLIMA,(V18-[1]!NILOWLIMA)*[1]!NILOWA,0)))+IF($Q18="Y",IF(V18>[1]!NIUPPLIMA,((V18-[1]!NIUPPLIMA)*[1]!NIUPPERA)+(([1]!NIUPPLIMA-[1]!NILOWLIMA)*[1]!NISUPNA),IF(V18>[1]!NILOWLIMA,(V18-[1]!NILOWLIMA)*[1]!NISUPNA,0)))+IF(V18>[1]!NILOWLIMA,-[1]!NICREBATEA,0) -> 0 | AJ18: =IF($Q18="N",IF(W18>[1]!NIUPPLIMA,((W18-[1]!NIUPPLIMA)*[1]!NIUPPERA)+([1]!NIUPPLIMA-[1]!NILOWLIMA)*[1]!NILOWA,IF(W18>[1]!NILOWLIMA,(W18-[1]!NILOWLIMA)*[1]!NILOWA,0)))+IF($Q18="Y",IF(W18>[1]!NIUPPLIMA,((W18-[1]!NIUPPLIMA)*[1]!NIUPPERA)+(([1]!NIUPPLIMA-[1]!NILOWLIMA)*[1]!NISUPNA),IF(W18>[1]!NILOWLIMA,(W18-[1]!NILOWLIMA)*[1]!NISUPNA,0)))+IF(W18>[1]!NILOWLIMA,-[1]!NICREBATEA,0) -> 0 | AK18: =IF($Q18="N",IF(X18>[1]!NIUPPLIMA,((X18-[1]!NIUPPLIMA)*[1]!NIUPPERA)+([1]!NIUPPLIMA-[1]!NILOWLIMA)*[1]!NILOWA,IF(X18>[1]!NILOWLIMA,(X18-[1]!NILOWLIMA)*[1]!NILOWA,0)))+IF($Q18="Y",IF(X18>[1]!NIUPPLIMA,((X18-[1]!NIUPPLIMA)*[1]!NIUPPERA)+(([1]!NIUPPLIMA-[1]!NILOWLIMA)*[1]!NISUPNA),IF(X18>[1]!NILOWLIMA,(X18-[1]!NILOWLIMA)*[1]!NISUPNA,0)))+IF(X18>[1]!NILOWLIMA,-[1]!NICREBATEA,0) -> 0 | AL18: =IF($Q18="N",IF(Y18>[1]!NIUPPLIMA,((Y18-[1]!NIUPPLIMA)*[1]!NIUPPERA)+([1]!NIUPPLIMA-[1]!NILOWLIMA)*[1]!NILOWA,IF(Y18>[1]!NILOWLIMA,(Y18-[1]!NILOWLIMA)*[1]!NILOWA,0)))+IF($Q18="Y",IF(Y18>[1]!NIUPPLIMA,((Y18-[1]!NIUPPLIMA)*[1]!NIUPPERA)+(([1]!NIUPPLIMA-[1]!NILOWLIMA)*[1]!NISUPNA),IF(Y18>[1]!NILOWLIMA,(Y18-[1]!NILOWLIMA)*[1]!NISUPNA,0)))+IF(Y18>[1]!NILOWLIMA,-[1]!NICREBATEA,0) -> 0 | AM18: =IF($Q18="N",IF(Z18>[1]!NIUPPLIMA,((Z18-[1]!NIUPPLIMA)*[1]!NIUPPERA)+([1]!NIUPPLIMA-[1]!NILOWLIMA)*[1]!NILOWA,IF(Z18>[1]!NILOWLIMA,(Z18-[1]!NILOWLIMA)*[1]!NILOWA,0)))+IF($Q18="Y",IF(Z18>[1]!NIUPPLIMA,((Z18-[1]!NIUPPLIMA)*[1]!NIUPPERA)+(([1]!NIUPPLIMA-[1]!NILOWLIMA)*[1]!NISUPNA),IF(Z18>[1]!NILOWLIMA,(Z18-[1]!NILOWLIMA)*[1]!NISUPNA,0)))+IF(Z18>[1]!NILOWLIMA,-[1]!NICREBATEA,0) -> 0 | AN18: =IF($Q18="N",IF(AA18>[1]!NIUPPLIMA,((AA18-[1]!NIUPPLIMA)*[1]!NIUPPERA)+([1]!NIUPPLIMA-[1]!NILOWLIMA)*[1]!NILOWA,IF(AA18>[1]!NILOWLIMA,(AA18-[1]!NILOWLIMA)*[1]!NILOWA,0)))+IF($Q18="Y",IF(AA18>[1]!NIUPPLIMA,((AA18-[1]!NIUPPLIMA)*[1]!NIUPPERA)+(([1]!NIUPPLIMA-[1]!NILOWLIMA)*[1]!NISUPNA),IF(AA18>[1]!NILOWLIMA,(AA18-[1]!NILOWLIMA)*[1]!NISUPNA,0)))+IF(AA18>[1]!NILOWLIMA,-[1]!NICREBATEA,0) -> 0 | AO18: =IF($Q18="N",IF(AB18>[1]!NIUPPLIMA,((AB18-[1]!NIUPPLIMA)*[1]!NIUPPERA)+([1]!NIUPPLIMA-[1]!NILOWLIMA)*[1]!NILOWA,IF(AB18>[1]!NILOWLIMA,(AB18-[1]!NILOWLIMA)*[1]!NILOWA,0)))+IF($Q18="Y",IF(AB18>[1]!NIUPPLIMA,((AB18-[1]!NIUPPLIMA)*[1]!NIUPPERA)+(([1]!NIUPPLIMA-[1]!NILOWLIMA)*[1]!NISUPNA),IF(AB18>[1]!NILOWLIMA,(AB18-[1]!NILOWLIMA)*[1]!NISUPNA,0)))+IF(AB18>[1]!NILOWLIMA,-[1]!NICREBATEA,0) -> 0 | AP18: =IF($Q18="N",IF(AC18>[1]!NIUPPLIMA,((AC18-[1]!NIUPPLIMA)*[1]!NIUPPERA)+([1]!NIUPPLIMA-[1]!NILOWLIMA)*[1]!NILOWA,IF(AC18>[1]!NILOWLIMA,(AC18-[1]!NILOWLIMA)*[1]!NILOWA,0)))+IF($Q18="Y",IF(AC18>[1]!NIUPPLIMA,((AC18-[1]!NIUPPLIMA)*[1]!NIUPPERA)+(([1]!NIUPPLIMA-[1]!NILOWLIMA)*[1]!NISUPNA),IF(AC18>[1]!NILOWLIMA,(AC18-[1]!NILOWLIMA)*[1]!NISUPNA,0)))+IF(AC18>[1]!NILOWLIMA,-[1]!NICREBATEA,0) -> 0 | AQ18: =IF($Q18="N",IF(AD18>[1]!NIUPPLIMA,((AD18-[1]!NIUPPLIMA)*[1]!NIUPPERA)+([1]!NIUPPLIMA-[1]!NILOWLIMA)*[1]!NILOWA,IF(AD18>[1]!NILOWLIMA,(AD18-[1]!NILOWLIMA)*[1]!NILOWA,0)))+IF($Q18="Y",IF(AD18>[1]!NIUPPLIMA,((AD18-[1]!NIUPPLIMA)*[1]!NIUPPERA)+(([1]!NIUPPLIMA-[1]!NILOWLIMA)*[1]!NISUPNA),IF(AD18>[1]!NILOWLIMA,(AD18-[1]!NILOWLIMA)*[1]!NISUPNA,0)))+IF(AD18>[1]!NILOWLIMA,-[1]!NICREBATEA,0) -> 0 | AR18: =IF($Q18="N",IF(AE18>[1]!NIUPPLIMA,((AE18-[1]!NIUPPLIMA)*[1]!NIUPPERA)+([1]!NIUPPLIMA-[1]!NILOWLIMA)*[1]!NILOWA,IF(AE18>[1]!NILOWLIMA,(AE18-[1]!NILOWLIMA)*[1]!NILOWA,0)))+IF($Q18="Y",IF(AE18>[1]!NIUPPLIMA,((AE18-[1]!NIUPPLIMA)*[1]!NIUPPERA)+(([1]!NIUPPLIMA-[1]!NILOWLIMA)*[1]!NISUPNA),IF(AE18>[1]!NILOWLIMA,(AE18-[1]!NILOWLIMA)*[1]!NISUPNA,0)))+IF(AE18>[1]!NILOWLIMA,-[1]!NICREBATEA,0) -> 0 | AS18: =IF($Q18="N",IF(AF18>[1]!NIUPPLIMA,((AF18-[1]!NIUPPLIMA)*[1]!NIUPPERA)+([1]!NIUPPLIMA-[1]!NILOWLIMA)*[1]!NILOWA,IF(AF18>[1]!NILOWLIMA,(AF18-[1]!NILOWLIMA)*[1]!NILOWA,0)))+IF($Q18="Y",IF(AF18>[1]!NIUPPLIMA,((AF18-[1]!NIUPPLIMA)*[1]!NIUPPERA)+(([1]!NIUPPLIMA-[1]!NILOWLIMA)*[1]!NISUPNA),IF(AF18>[1]!NILOWLIMA,(AF18-[1]!NILOWLIMA)*[1]!NISUPNA,0)))+IF(AF18>[1]!NILOWLIMA,-[1]!NICREBATEA,0) -> 0 | AT18: 0 | AU18: 0 | AV18: 0 | AW18: 4 | AX18: 0 | AY18: =IF($E18="LEADER",VLOOKUP(AW18,[1]!LEADERSHIP,5),IF($E18="TEACHER",VLOOKUP(AW18,[1]!TEACHER,5),IF($E18="ADVANCED",VLOOKUP($AW18,[1]!ADVANCED_SKILLS_TEACHERS,5),IF($E18="UNQUAL",VLOOKUP($AW18,[1]!UNQUALIFIED_TEACHER,5),0))))*D18*(1+BA$4)*(1+BA$5)+(AX18/AZ18) -> 0 | AZ18: 12 | BA18: 0 | BD18: =(IF($Q18="N",IF(AY18>[1]!NIUPPLIMB,((AY18-[1]!NIUPPLIMB)*[1]!NIUPPERB)+([1]!NIUPPLIMB-[1]!NILOWLIMB)*[1]!NILOWB,IF(AY18>[1]!NILOWLIMB,(AY18-[1]!NILOWLIMB)*[1]!NILOWB,0)))+IF($Q18="Y",IF(AY18>[1]!NIUPPLIMB,((AY18-[1]!NIUPPLIMB)*[1]!NIUPPERB)+(([1]!NIUPPLIMB-[1]!NILOWLIMB)*[1]!NISUPNB),IF(AY18>[1]!NILOWLIMB,(AY18-[1]!NILOWLIMB)*[1]!NISUPNB,0))))*((NumberOfDaysWorked($F18,$G18,BD$1,BF$1)*5)+(NumberOfDaysWorked($F18,$G18,BD$1,BF$1)*7)) -> 0 | BE18: 0 | BF18: 0 | BG18: 4 | BH18: 0 | BI18: =IF($E18="LEADER",VLOOKUP(BG18,[1]!LEADERSHIP,5),IF($E18="TEACHER",VLOOKUP(BG18,[1]!TEACHER,5),IF($E18="ADVANCED",VLOOKUP($AW18,[1]!ADVANCED_SKILLS_TEACHERS,5),IF($E18="UNQUAL",VLOOKUP($AW18,[1]!UNQUALIFIED_TEACHER,5),0))))*D18*(1+BA$4)*(1+BA$5)*(1+BK$4)*(1+BK$5)+(BH18/BJ18) -> 0 | BJ18: 12 | BK18: 0 | BN18: =(IF($Q18="N",IF(BI18>[1]!NIUPPLIMC,((BI18-[1]!NIUPPLIMC)*[1]!NIUPPERC)+([1]!NIUPPLIMC-[1]!NILOWLIMC)*[1]!NILOWC,IF(BI18>[1]!NILOWLIMC,(BI18-[1]!NILOWLIMC)*[1]!NILOWC,0)))+IF($Q18="Y",IF(BI18>[1]!NIUPPLIMC,((BI18-[1]!NIUPPLIMC)*[1]!NIUPPERC)+(([1]!NIUPPLIMC-[1]!NILOWLIMC)*[1]!NISUPNC),IF(BI18>[1]!NILOWLIMC,(BI18-[1]!NILOWLIMC)*[1]!NISUPNC,0))))*((NumberOfDaysWorked($F18,$G18,BN$1,BP$1)*5)+(NumberOfDaysWorked($F18,$G18,BN$1,BP$1)*7)) -> 0 | BO18: 0 | BP18: 0
A19: x | C19: A01001 | D19: 0 | E19: LEADER | F19: 2025-04-01 | G19: =+$H$3 -> 2028-03-31 | H19: 5 | I19: 5 | Q19: Y | R19: =IF($E19="LEADER",VLOOKUP(H19,[1]PAYDATA!$A$4:$C$54,3),IF($E19="TEACHER",VLOOKUP(H19,[1]PAYDATA!$A$70:$C$80,3),IF($E19="ADVANCED",VLOOKUP(H19,[1]PAYDATA!$A$141:$C$159,3),IF($E19="UNQUAL",VLOOKUP(H19,[1]PAYDATA!$A$57:$C$63,3),0))))*$D19+($K19/T19)+($M19/T19)+($O19/T19)+($P19/T19) -> 0 | S19: =IF($E19="LEADER",VLOOKUP(I19,[1]!LEADERSHIP,5),IF($E19="TEACHER",VLOOKUP(I19,[1]!TEACHER,5),IF($E19="ADVANCED",VLOOKUP(I19,[1]PAYDATA!$A$141:$E$159,5),IF($E19="UNQUAL",VLOOKUP(I19,[1]!UNQUALIFIED_TEACHER,5),0))))*$D19+($K19/T19)+($M19/T19)+($O19/T19)+($P19/T19) -> 0 | T19: =IF(G19-F19>11.99999,12,MONTH(G19)-MONTH(F19)) -> 12 | U19: 0 | V19: 0 | W19: 0 | X19: 0 | Y19: 0 | Z19: 0 | AA19: 0 | AB19: 0 | AC19: 0 | AD19: 0 | AE19: 0 | AF19: 0 | AG19: =SUM(U19:AF19) -> 0 | AH19: =IF($Q19="N",IF(U19>[1]!NIUPPLIMA,((U19-[1]!NIUPPLIMA)*[1]!NIUPPERA)+([1]!NIUPPLIMA-[1]!NILOWLIMA)*[1]!NILOWA,IF(U19>[1]!NILOWLIMA,(U19-[1]!NILOWLIMA)*[1]!NILOWA,0)))+IF($Q19="Y",IF(U19>[1]!NIUPPLIMA,((U19-[1]!NIUPPLIMA)*[1]!NIUPPERA)+(([1]!NIUPPLIMA-[1]!NILOWLIMA)*[1]!NISUPNA),IF(U19>[1]!NILOWLIMA,(U19-[1]!NILOWLIMA)*[1]!NISUPNA,0)))+IF(U19>[1]!NILOWLIMA,-[1]!NICREBATEA,0) -> 0 | AI19: =IF($Q19="N",IF(V19>[1]!NIUPPLIMA,((V19-[1]!NIUPPLIMA)*[1]!NIUPPERA)+([1]!NIUPPLIMA-[1]!NILOWLIMA)*[1]!NILOWA,IF(V19>[1]!NILOWLIMA,(V19-[1]!NILOWLIMA)*[1]!NILOWA,0)))+IF($Q19="Y",IF(V19>[1]!NIUPPLIMA,((V19-[1]!NIUPPLIMA)*[1]!NIUPPERA)+(([1]!NIUPPLIMA-[1]!NILOWLIMA)*[1]!NISUPNA),IF(V19>[1]!NILOWLIMA,(V19-[1]!NILOWLIMA)*[1]!NISUPNA,0)))+IF(V19>[1]!NILOWLIMA,-[1]!NICREBATEA,0) -> 0 | AJ19: =IF($Q19="N",IF(W19>[1]!NIUPPLIMA,((W19-[1]!NIUPPLIMA)*[1]!NIUPPERA)+([1]!NIUPPLIMA-[1]!NILOWLIMA)*[1]!NILOWA,IF(W19>[1]!NILOWLIMA,(W19-[1]!NILOWLIMA)*[1]!NILOWA,0)))+IF($Q19="Y",IF(W19>[1]!NIUPPLIMA,((W19-[1]!NIUPPLIMA)*[1]!NIUPPERA)+(([1]!NIUPPLIMA-[1]!NILOWLIMA)*[1]!NISUPNA),IF(W19>[1]!NILOWLIMA,(W19-[1]!NILOWLIMA)*[1]!NISUPNA,0)))+IF(W19>[1]!NILOWLIMA,-[1]!NICREBATEA,0) -> 0 | AK19: =IF($Q19="N",IF(X19>[1]!NIUPPLIMA,((X19-[1]!NIUPPLIMA)*[1]!NIUPPERA)+([1]!NIUPPLIMA-[1]!NILOWLIMA)*[1]!NILOWA,IF(X19>[1]!NILOWLIMA,(X19-[1]!NILOWLIMA)*[1]!NILOWA,0)))+IF($Q19="Y",IF(X19>[1]!NIUPPLIMA,((X19-[1]!NIUPPLIMA)*[1]!NIUPPERA)+(([1]!NIUPPLIMA-[1]!NILOWLIMA)*[1]!NISUPNA),IF(X19>[1]!NILOWLIMA,(X19-[1]!NILOWLIMA)*[1]!NISUPNA,0)))+IF(X19>[1]!NILOWLIMA,-[1]!NICREBATEA,0) -> 0 | AL19: =IF($Q19="N",IF(Y19>[1]!NIUPPLIMA,((Y19-[1]!NIUPPLIMA)*[1]!NIUPPERA)+([1]!NIUPPLIMA-[1]!NILOWLIMA)*[1]!NILOWA,IF(Y19>[1]!NILOWLIMA,(Y19-[1]!NILOWLIMA)*[1]!NILOWA,0)))+IF($Q19="Y",IF(Y19>[1]!NIUPPLIMA,((Y19-[1]!NIUPPLIMA)*[1]!NIUPPERA)+(([1]!NIUPPLIMA-[1]!NILOWLIMA)*[1]!NISUPNA),IF(Y19>[1]!NILOWLIMA,(Y19-[1]!NILOWLIMA)*[1]!NISUPNA,0)))+IF(Y19>[1]!NILOWLIMA,-[1]!NICREBATEA,0) -> 0 | AM19: =IF($Q19="N",IF(Z19>[1]!NIUPPLIMA,((Z19-[1]!NIUPPLIMA)*[1]!NIUPPERA)+([1]!NIUPPLIMA-[1]!NILOWLIMA)*[1]!NILOWA,IF(Z19>[1]!NILOWLIMA,(Z19-[1]!NILOWLIMA)*[1]!NILOWA,0)))+IF($Q19="Y",IF(Z19>[1]!NIUPPLIMA,((Z19-[1]!NIUPPLIMA)*[1]!NIUPPERA)+(([1]!NIUPPLIMA-[1]!NILOWLIMA)*[1]!NISUPNA),IF(Z19>[1]!NILOWLIMA,(Z19-[1]!NILOWLIMA)*[1]!NISUPNA,0)))+IF(Z19>[1]!NILOWLIMA,-[1]!NICREBATEA,0) -> 0 | AN19: =IF($Q19="N",IF(AA19>[1]!NIUPPLIMA,((AA19-[1]!NIUPPLIMA)*[1]!NIUPPERA)+([1]!NIUPPLIMA-[1]!NILOWLIMA)*[1]!NILOWA,IF(AA19>[1]!NILOWLIMA,(AA19-[1]!NILOWLIMA)*[1]!NILOWA,0)))+IF($Q19="Y",IF(AA19>[1]!NIUPPLIMA,((AA19-[1]!NIUPPLIMA)*[1]!NIUPPERA)+(([1]!NIUPPLIMA-[1]!NILOWLIMA)*[1]!NISUPNA),IF(AA19>[1]!NILOWLIMA,(AA19-[1]!NILOWLIMA)*[1]!NISUPNA,0)))+IF(AA19>[1]!NILOWLIMA,-[1]!NICREBATEA,0) -> 0 | AO19: =IF($Q19="N",IF(AB19>[1]!NIUPPLIMA,((AB19-[1]!NIUPPLIMA)*[1]!NIUPPERA)+([1]!NIUPPLIMA-[1]!NILOWLIMA)*[1]!NILOWA,IF(AB19>[1]!NILOWLIMA,(AB19-[1]!NILOWLIMA)*[1]!NILOWA,0)))+IF($Q19="Y",IF(AB19>[1]!NIUPPLIMA,((AB19-[1]!NIUPPLIMA)*[1]!NIUPPERA)+(([1]!NIUPPLIMA-[1]!NILOWLIMA)*[1]!NISUPNA),IF(AB19>[1]!NILOWLIMA,(AB19-[1]!NILOWLIMA)*[1]!NISUPNA,0)))+IF(AB19>[1]!NILOWLIMA,-[1]!NICREBATEA,0) -> 0 | AP19: =IF($Q19="N",IF(AC19>[1]!NIUPPLIMA,((AC19-[1]!NIUPPLIMA)*[1]!NIUPPERA)+([1]!NIUPPLIMA-[1]!NILOWLIMA)*[1]!NILOWA,IF(AC19>[1]!NILOWLIMA,(AC19-[1]!NILOWLIMA)*[1]!NILOWA,0)))+IF($Q19="Y",IF(AC19>[1]!NIUPPLIMA,((AC19-[1]!NIUPPLIMA)*[1]!NIUPPERA)+(([1]!NIUPPLIMA-[1]!NILOWLIMA)*[1]!NISUPNA),IF(AC19>[1]!NILOWLIMA,(AC19-[1]!NILOWLIMA)*[1]!NISUPNA,0)))+IF(AC19>[1]!NILOWLIMA,-[1]!NICREBATEA,0) -> 0 | AQ19: =IF($Q19="N",IF(AD19>[1]!NIUPPLIMA,((AD19-[1]!NIUPPLIMA)*[1]!NIUPPERA)+([1]!NIUPPLIMA-[1]!NILOWLIMA)*[1]!NILOWA,IF(AD19>[1]!NILOWLIMA,(AD19-[1]!NILOWLIMA)*[1]!NILOWA,0)))+IF($Q19="Y",IF(AD19>[1]!NIUPPLIMA,((AD19-[1]!NIUPPLIMA)*[1]!NIUPPERA)+(([1]!NIUPPLIMA-[1]!NILOWLIMA)*[1]!NISUPNA),IF(AD19>[1]!NILOWLIMA,(AD19-[1]!NILOWLIMA)*[1]!NISUPNA,0)))+IF(AD19>[1]!NILOWLIMA,-[1]!NICREBATEA,0) -> 0 | AR19: =IF($Q19="N",IF(AE19>[1]!NIUPPLIMA,((AE19-[1]!NIUPPLIMA)*[1]!NIUPPERA)+([1]!NIUPPLIMA-[1]!NILOWLIMA)*[1]!NILOWA,IF(AE19>[1]!NILOWLIMA,(AE19-[1]!NILOWLIMA)*[1]!NILOWA,0)))+IF($Q19="Y",IF(AE19>[1]!NIUPPLIMA,((AE19-[1]!NIUPPLIMA)*[1]!NIUPPERA)+(([1]!NIUPPLIMA-[1]!NILOWLIMA)*[1]!NISUPNA),IF(AE19>[1]!NILOWLIMA,(AE19-[1]!NILOWLIMA)*[1]!NISUPNA,0)))+IF(AE19>[1]!NILOWLIMA,-[1]!NICREBATEA,0) -> 0 | AS19: =IF($Q19="N",IF(AF19>[1]!NIUPPLIMA,((AF19-[1]!NIUPPLIMA)*[1]!NIUPPERA)+([1]!NIUPPLIMA-[1]!NILOWLIMA)*[1]!NILOWA,IF(AF19>[1]!NILOWLIMA,(AF19-[1]!NILOWLIMA)*[1]!NILOWA,0)))+IF($Q19="Y",IF(AF19>[1]!NIUPPLIMA,((AF19-[1]!NIUPPLIMA)*[1]!NIUPPERA)+(([1]!NIUPPLIMA-[1]!NILOWLIMA)*[1]!NISUPNA),IF(AF19>[1]!NILOWLIMA,(AF19-[1]!NILOWLIMA)*[1]!NISUPNA,0)))+IF(AF19>[1]!NILOWLIMA,-[1]!NICREBATEA,0) -> 0 | AT19: =SUM(AH19:AS19) -> 0 | AU19: =IF($Q19="N",0,((AG19*$AU$5))) -> 0 | AV19: =AG19+AT19+AU19 -> 0 | AW19: =IF($E19="TEACHER",IF($I19<6,$I19+1,IF(LEFT($I19,1)="U",$I19,6)),IF($E19="LEADER",+I19,IF($E19="UNQUAL",IF($I19<10,$I19+1,10),IF($E19="ADVANCED",IF($I19<27,$I19+1,27))))) -> 5 | AX19: =(K19+M19+O19+P19) -> 0 | AY19: =IF($E19="LEADER",VLOOKUP(AW19,[1]!LEADERSHIP,5),IF($E19="TEACHER",VLOOKUP(AW19,[1]!TEACHER,5),IF($E19="ADVANCED",VLOOKUP($AW19,[1]!ADVANCED_SKILLS_TEACHERS,5),IF($E19="UNQUAL",VLOOKUP($AW19,[1]!UNQUALIFIED_TEACHER,5),0))))*D19*(1+BA$4)*(1+BA$5)+(AX19/AZ19) -> 0 | AZ19: =IF(G19-F19>11.99999,12,MONTH(G19)-MONTH(F19)) -> 12 | BA19: =NumberOfDaysWorked($F19,$G19,BD$1,BF$1)*(($S19*(1+BA$4))*5)+NumberOfDaysWorked($F19,$G19,BD$1,BF$1)*($AY19*7) -> 0 | BD19: =(IF($Q19="N",IF(AY19>[1]!NIUPPLIMB,((AY19-[1]!NIUPPLIMB)*[1]!NIUPPERB)+([1]!NIUPPLIMB-[1]!NILOWLIMB)*[1]!NILOWB,IF(AY19>[1]!NILOWLIMB,(AY19-[1]!NILOWLIMB)*[1]!NILOWB,0)))+IF($Q19="Y",IF(AY19>[1]!NIUPPLIMB,((AY19-[1]!NIUPPLIMB)*[1]!NIUPPERB)+(([1]!NIUPPLIMB-[1]!NILOWLIMB)*[1]!NISUPNB),IF(AY19>[1]!NILOWLIMB,(AY19-[1]!NILOWLIMB)*[1]!NISUPNB,0))))*((NumberOfDaysWorked($F19,$G19,BD$1,BF$1)*5)+(NumberOfDaysWorked($F19,$G19,BD$1,BF$1)*7)) -> 0 | BE19: =IF($Q19="N",0,(BA19*$BE$5)) -> 0 | BF19: =SUM(BA19:BE19) -> 0 | BG19: =IF($E19="TEACHER",IF(AW19<6,AW19+1,IF(LEFT(AW19,1)="U",AW19,6)),IF($E19="LEADER",+I19,IF($E19="UNQUAL",IF(AW19<10,AW19+1,10),IF($E19="ADVANCED",IF(AW19<27,AW19+1,27))))) -> 5 | BH19: =(K19+M19+O19+P19) -> 0 | BI19: =IF($E19="LEADER",VLOOKUP(BG19,[1]!LEADERSHIP,5),IF($E19="TEACHER",VLOOKUP(BG19,[1]!TEACHER,5),IF($E19="ADVANCED",VLOOKUP($AW19,[1]!ADVANCED_SKILLS_TEACHERS,5),IF($E19="UNQUAL",VLOOKUP($AW19,[1]!UNQUALIFIED_TEACHER,5),0))))*D19*(1+BA$4)*(1+BA$5)*(1+BK$4)*(1+BK$5)+(BH19/BJ19) -> 0 | BJ19: =IF(G19-F19>11.99999,12,MONTH(G19)-MONTH(F19)) -> 12 | BK19: =NumberOfDaysWorked($F19,$G19,BN$1,BP$1)*(($AY19*(1+BK$4))*5)+NumberOfDaysWorked($F19,$G19,BN$1,BP$1)*($BI19*7) -> 0 | BN19: =(IF($Q19="N",IF(BI19>[1]!NIUPPLIMC,((BI19-[1]!NIUPPLIMC)*[1]!NIUPPERC)+([1]!NIUPPLIMC-[1]!NILOWLIMC)*[1]!NILOWC,IF(BI19>[1]!NILOWLIMC,(BI19-[1]!NILOWLIMC)*[1]!NILOWC,0)))+IF($Q19="Y",IF(BI19>[1]!NIUPPLIMC,((BI19-[1]!NIUPPLIMC)*[1]!NIUPPERC)+(([1]!NIUPPLIMC-[1]!NILOWLIMC)*[1]!NISUPNC),IF(BI19>[1]!NILOWLIMC,(BI19-[1]!NILOWLIMC)*[1]!NISUPNC,0))))*((NumberOfDaysWorked($F19,$G19,BN$1,BP$1)*5)+(NumberOfDaysWorked($F19,$G19,BN$1,BP$1)*7)) -> 0 | BO19: =IF($Q19="N",0,(BK19*$BO$5)) -> 0 | BP19: =SUM(BK19:BO19) -> 0
A20: x | B20: Teacher | C20: A01001 | D20: 0 | E20: TEACHER | F20: =$F$3 -> 2025-04-01 | G20: 2028-03-31 | H20: 6 | I20: 6 | J20: 0 | K20: =VLOOKUP(J20,[1]!MANAGEMENT,2)*D20 -> 0 | L20: 0 | M20: =VLOOKUP(L20,[1]!SEN_ALLOWANCES,2)*D20 -> 0 | N20: 0 | O20: =N20 -> 0 | P20: 0 | Q20: Y | R20: =IF($E20="LEADER",VLOOKUP(H20,[1]PAYDATA!$A$4:$C$54,3),IF($E20="TEACHER",VLOOKUP(H20,[1]PAYDATA!$A$70:$C$80,3),IF($E20="ADVANCED",VLOOKUP(H20,[1]PAYDATA!$A$141:$C$159,3),IF($E20="UNQUAL",VLOOKUP(H20,[1]PAYDATA!$A$57:$C$63,3),0))))*$D20+($K20/T20)+($M20/T20)+($O20/T20)+($P20/T20) -> 0 | S20: =IF($E20="LEADER",VLOOKUP(I20,[1]!LEADERSHIP,5),IF($E20="TEACHER",VLOOKUP(I20,[1]!TEACHER,5),IF($E20="ADVANCED",VLOOKUP(I20,[1]PAYDATA!$A$141:$E$159,5),IF($E20="UNQUAL",VLOOKUP(I20,[1]!UNQUALIFIED_TEACHER,5),0))))*$D20+($K20/T20)+($M20/T20)+($O20/T20)+($P20/T20) -> 0 | T20: 12 | U20: 0 | V20: 0 | W20: 0 | X20: 0 | Y20: 0 | Z20: 0 | AA20: 0 | AB20: 0 | AC20: 0 | AD20: 0 | AE20: 0 | AF20: 0 | AG20: 0 | AH20: =IF($Q20="N",IF(U20>[1]!NIUPPLIMA,((U20-[1]!NIUPPLIMA)*[1]!NIUPPERA)+([1]!NIUPPLIMA-[1]!NILOWLIMA)*[1]!NILOWA,IF(U20>[1]!NILOWLIMA,(U20-[1]!NILOWLIMA)*[1]!NILOWA,0)))+IF($Q20="Y",IF(U20>[1]!NIUPPLIMA,((U20-[1]!NIUPPLIMA)*[1]!NIUPPERA)+(([1]!NIUPPLIMA-[1]!NILOWLIMA)*[1]!NISUPNA),IF(U20>[1]!NILOWLIMA,(U20-[1]!NILOWLIMA)*[1]!NISUPNA,0)))+IF(U20>[1]!NILOWLIMA,-[1]!NICREBATEA,0) -> 0 | AI20: =IF($Q20="N",IF(V20>[1]!NIUPPLIMA,((V20-[1]!NIUPPLIMA)*[1]!NIUPPERA)+([1]!NIUPPLIMA-[1]!NILOWLIMA)*[1]!NILOWA,IF(V20>[1]!NILOWLIMA,(V20-[1]!NILOWLIMA)*[1]!NILOWA,0)))+IF($Q20="Y",IF(V20>[1]!NIUPPLIMA,((V20-[1]!NIUPPLIMA)*[1]!NIUPPERA)+(([1]!NIUPPLIMA-[1]!NILOWLIMA)*[1]!NISUPNA),IF(V20>[1]!NILOWLIMA,(V20-[1]!NILOWLIMA)*[1]!NISUPNA,0)))+IF(V20>[1]!NILOWLIMA,-[1]!NICREBATEA,0) -> 0 | AJ20: =IF($Q20="N",IF(W20>[1]!NIUPPLIMA,((W20-[1]!NIUPPLIMA)*[1]!NIUPPERA)+([1]!NIUPPLIMA-[1]!NILOWLIMA)*[1]!NILOWA,IF(W20>[1]!NILOWLIMA,(W20-[1]!NILOWLIMA)*[1]!NILOWA,0)))+IF($Q20="Y",IF(W20>[1]!NIUPPLIMA,((W20-[1]!NIUPPLIMA)*[1]!NIUPPERA)+(([1]!NIUPPLIMA-[1]!NILOWLIMA)*[1]!NISUPNA),IF(W20>[1]!NILOWLIMA,(W20-[1]!NILOWLIMA)*[1]!NISUPNA,0)))+IF(W20>[1]!NILOWLIMA,-[1]!NICREBATEA,0) -> 0 | AK20: =IF($Q20="N",IF(X20>[1]!NIUPPLIMA,((X20-[1]!NIUPPLIMA)*[1]!NIUPPERA)+([1]!NIUPPLIMA-[1]!NILOWLIMA)*[1]!NILOWA,IF(X20>[1]!NILOWLIMA,(X20-[1]!NILOWLIMA)*[1]!NILOWA,0)))+IF($Q20="Y",IF(X20>[1]!NIUPPLIMA,((X20-[1]!NIUPPLIMA)*[1]!NIUPPERA)+(([1]!NIUPPLIMA-[1]!NILOWLIMA)*[1]!NISUPNA),IF(X20>[1]!NILOWLIMA,(X20-[1]!NILOWLIMA)*[1]!NISUPNA,0)))+IF(X20>[1]!NILOWLIMA,-[1]!NICREBATEA,0) -> 0 | AL20: =IF($Q20="N",IF(Y20>[1]!NIUPPLIMA,((Y20-[1]!NIUPPLIMA)*[1]!NIUPPERA)+([1]!NIUPPLIMA-[1]!NILOWLIMA)*[1]!NILOWA,IF(Y20>[1]!NILOWLIMA,(Y20-[1]!NILOWLIMA)*[1]!NILOWA,0)))+IF($Q20="Y",IF(Y20>[1]!NIUPPLIMA,((Y20-[1]!NIUPPLIMA)*[1]!NIUPPERA)+(([1]!NIUPPLIMA-[1]!NILOWLIMA)*[1]!NISUPNA),IF(Y20>[1]!NILOWLIMA,(Y20-[1]!NILOWLIMA)*[1]!NISUPNA,0)))+IF(Y20>[1]!NILOWLIMA,-[1]!NICREBATEA,0) -> 0 | AM20: =IF($Q20="N",IF(Z20>[1]!NIUPPLIMA,((Z20-[1]!NIUPPLIMA)*[1]!NIUPPERA)+([1]!NIUPPLIMA-[1]!NILOWLIMA)*[1]!NILOWA,IF(Z20>[1]!NILOWLIMA,(Z20-[1]!NILOWLIMA)*[1]!NILOWA,0)))+IF($Q20="Y",IF(Z20>[1]!NIUPPLIMA,((Z20-[1]!NIUPPLIMA)*[1]!NIUPPERA)+(([1]!NIUPPLIMA-[1]!NILOWLIMA)*[1]!NISUPNA),IF(Z20>[1]!NILOWLIMA,(Z20-[1]!NILOWLIMA)*[1]!NISUPNA,0)))+IF(Z20>[1]!NILOWLIMA,-[1]!NICREBATEA,0) -> 0 | AN20: =IF($Q20="N",IF(AA20>[1]!NIUPPLIMA,((AA20-[1]!NIUPPLIMA)*[1]!NIUPPERA)+([1]!NIUPPLIMA-[1]!NILOWLIMA)*[1]!NILOWA,IF(AA20>[1]!NILOWLIMA,(AA20-[1]!NILOWLIMA)*[1]!NILOWA,0)))+IF($Q20="Y",IF(AA20>[1]!NIUPPLIMA,((AA20-[1]!NIUPPLIMA)*[1]!NIUPPERA)+(([1]!NIUPPLIMA-[1]!NILOWLIMA)*[1]!NISUPNA),IF(AA20>[1]!NILOWLIMA,(AA20-[1]!NILOWLIMA)*[1]!NISUPNA,0)))+IF(AA20>[1]!NILOWLIMA,-[1]!NICREBATEA,0) -> 0 | AO20: =IF($Q20="N",IF(AB20>[1]!NIUPPLIMA,((AB20-[1]!NIUPPLIMA)*[1]!NIUPPERA)+([1]!NIUPPLIMA-[1]!NILOWLIMA)*[1]!NILOWA,IF(AB20>[1]!NILOWLIMA,(AB20-[1]!NILOWLIMA)*[1]!NILOWA,0)))+IF($Q20="Y",IF(AB20>[1]!NIUPPLIMA,((AB20-[1]!NIUPPLIMA)*[1]!NIUPPERA)+(([1]!NIUPPLIMA-[1]!NILOWLIMA)*[1]!NISUPNA),IF(AB20>[1]!NILOWLIMA,(AB20-[1]!NILOWLIMA)*[1]!NISUPNA,0)))+IF(AB20>[1]!NILOWLIMA,-[1]!NICREBATEA,0) -> 0 | AP20: =IF($Q20="N",IF(AC20>[1]!NIUPPLIMA,((AC20-[1]!NIUPPLIMA)*[1]!NIUPPERA)+([1]!NIUPPLIMA-[1]!NILOWLIMA)*[1]!NILOWA,IF(AC20>[1]!NILOWLIMA,(AC20-[1]!NILOWLIMA)*[1]!NILOWA,0)))+IF($Q20="Y",IF(AC20>[1]!NIUPPLIMA,((AC20-[1]!NIUPPLIMA)*[1]!NIUPPERA)+(([1]!NIUPPLIMA-[1]!NILOWLIMA)*[1]!NISUPNA),IF(AC20>[1]!NILOWLIMA,(AC20-[1]!NILOWLIMA)*[1]!NISUPNA,0)))+IF(AC20>[1]!NILOWLIMA,-[1]!NICREBATEA,0) -> 0 | AQ20: =IF($Q20="N",IF(AD20>[1]!NIUPPLIMA,((AD20-[1]!NIUPPLIMA)*[1]!NIUPPERA)+([1]!NIUPPLIMA-[1]!NILOWLIMA)*[1]!NILOWA,IF(AD20>[1]!NILOWLIMA,(AD20-[1]!NILOWLIMA)*[1]!NILOWA,0)))+IF($Q20="Y",IF(AD20>[1]!NIUPPLIMA,((AD20-[1]!NIUPPLIMA)*[1]!NIUPPERA)+(([1]!NIUPPLIMA-[1]!NILOWLIMA)*[1]!NISUPNA),IF(AD20>[1]!NILOWLIMA,(AD20-[1]!NILOWLIMA)*[1]!NISUPNA,0)))+IF(AD20>[1]!NILOWLIMA,-[1]!NICREBATEA,0) -> 0 | AR20: =IF($Q20="N",IF(AE20>[1]!NIUPPLIMA,((AE20-[1]!NIUPPLIMA)*[1]!NIUPPERA)+([1]!NIUPPLIMA-[1]!NILOWLIMA)*[1]!NILOWA,IF(AE20>[1]!NILOWLIMA,(AE20-[1]!NILOWLIMA)*[1]!NILOWA,0)))+IF($Q20="Y",IF(AE20>[1]!NIUPPLIMA,((AE20-[1]!NIUPPLIMA)*[1]!NIUPPERA)+(([1]!NIUPPLIMA-[1]!NILOWLIMA)*[1]!NISUPNA),IF(AE20>[1]!NILOWLIMA,(AE20-[1]!NILOWLIMA)*[1]!NISUPNA,0)))+IF(AE20>[1]!NILOWLIMA,-[1]!NICREBATEA,0) -> 0 | AS20: =IF($Q20="N",IF(AF20>[1]!NIUPPLIMA,((AF20-[1]!NIUPPLIMA)*[1]!NIUPPERA)+([1]!NIUPPLIMA-[1]!NILOWLIMA)*[1]!NILOWA,IF(AF20>[1]!NILOWLIMA,(AF20-[1]!NILOWLIMA)*[1]!NILOWA,0)))+IF($Q20="Y",IF(AF20>[1]!NIUPPLIMA,((AF20-[1]!NIUPPLIMA)*[1]!NIUPPERA)+(([1]!NIUPPLIMA-[1]!NILOWLIMA)*[1]!NISUPNA),IF(AF20>[1]!NILOWLIMA,(AF20-[1]!NILOWLIMA)*[1]!NISUPNA,0)))+IF(AF20>[1]!NILOWLIMA,-[1]!NICREBATEA,0) -> 0 | AT20: 0 | AU20: 0 | AV20: 0 | AW20: 6 | AX20: 0 | AY20: =IF($E20="LEADER",VLOOKUP(AW20,[1]!LEADERSHIP,5),IF($E20="TEACHER",VLOOKUP(AW20,[1]!TEACHER,5),IF($E20="ADVANCED",VLOOKUP($AW20,[1]!ADVANCED_SKILLS_TEACHERS,5),IF($E20="UNQUAL",VLOOKUP($AW20,[1]!UNQUALIFIED_TEACHER,5),0))))*D20*(1+BA$4)*(1+BA$5)+(AX20/AZ20) -> 0 | AZ20: 12 | BA20: 0 | BD20: =(IF($Q20="N",IF(AY20>[1]!NIUPPLIMB,((AY20-[1]!NIUPPLIMB)*[1]!NIUPPERB)+([1]!NIUPPLIMB-[1]!NILOWLIMB)*[1]!NILOWB,IF(AY20>[1]!NILOWLIMB,(AY20-[1]!NILOWLIMB)*[1]!NILOWB,0)))+IF($Q20="Y",IF(AY20>[1]!NIUPPLIMB,((AY20-[1]!NIUPPLIMB)*[1]!NIUPPERB)+(([1]!NIUPPLIMB-[1]!NILOWLIMB)*[1]!NISUPNB),IF(AY20>[1]!NILOWLIMB,(AY20-[1]!NILOWLIMB)*[1]!NISUPNB,0))))*((NumberOfDaysWorked($F20,$G20,BD$1,BF$1)*5)+(NumberOfDaysWorked($F20,$G20,BD$1,BF$1)*7)) -> 0 | BE20: 0 | BF20: 0 | BG20: 6 | BH20: 0 | BI20: =IF($E20="LEADER",VLOOKUP(BG20,[1]!LEADERSHIP,5),IF($E20="TEACHER",VLOOKUP(BG20,[1]!TEACHER,5),IF($E20="ADVANCED",VLOOKUP($AW20,[1]!ADVANCED_SKILLS_TEACHERS,5),IF($E20="UNQUAL",VLOOKUP($AW20,[1]!UNQUALIFIED_TEACHER,5),0))))*D20*(1+BA$4)*(1+BA$5)*(1+BK$4)*(1+BK$5)+(BH20/BJ20) -> 0 | BJ20: 12 | BK20: 0 | BN20: =(IF($Q20="N",IF(BI20>[1]!NIUPPLIMC,((BI20-[1]!NIUPPLIMC)*[1]!NIUPPERC)+([1]!NIUPPLIMC-[1]!NILOWLIMC)*[1]!NILOWC,IF(BI20>[1]!NILOWLIMC,(BI20-[1]!NILOWLIMC)*[1]!NILOWC,0)))+IF($Q20="Y",IF(BI20>[1]!NIUPPLIMC,((BI20-[1]!NIUPPLIMC)*[1]!NIUPPERC)+(([1]!NIUPPLIMC-[1]!NILOWLIMC)*[1]!NISUPNC),IF(BI20>[1]!NILOWLIMC,(BI20-[1]!NILOWLIMC)*[1]!NISUPNC,0))))*((NumberOfDaysWorked($F20,$G20,BN$1,BP$1)*5)+(NumberOfDaysWorked($F20,$G20,BN$1,BP$1)*7)) -> 0 | BO20: 0 | BP20: 0
A21: x | B21: BLAIR JENNY | C21: A01001 | D21: =759/1265 -> 0.6 | E21: TEACHER | F21: 2025-04-01 | G21: 2025-08-31 | H21: 6 | I21: 6 | J21: 0 | K21: =VLOOKUP(J21,[1]!MANAGEMENT,2)*D21 -> 0 | L21: 0 | M21: =VLOOKUP(L21,[1]!SEN_ALLOWANCES,2)*D21 -> 0 | N21: 0 | O21: =N21 -> 0 | P21: 0 | Q21: Y | R21: =IF($E21="LEADER",VLOOKUP(H21,[1]PAYDATA!$A$4:$C$54,3),IF($E21="TEACHER",VLOOKUP(H21,[1]PAYDATA!$A$70:$C$80,3),IF($E21="ADVANCED",VLOOKUP(H21,[1]PAYDATA!$A$141:$C$159,3),IF($E21="UNQUAL",VLOOKUP(H21,[1]PAYDATA!$A$57:$C$63,3),0))))*$D21+($K21/T21)+($M21/T21)+($O21/T21)+($P21/T21) -> 2180.35 | S21: =IF($E21="LEADER",VLOOKUP(I21,[1]!LEADERSHIP,5),IF($E21="TEACHER",VLOOKUP(I21,[1]!TEACHER,5),IF($E21="ADVANCED",VLOOKUP(I21,[1]PAYDATA!$A$141:$E$159,5),IF($E21="UNQUAL",VLOOKUP(I21,[1]!UNQUALIFIED_TEACHER,5),0))))*$D21+($K21/T21)+($M21/T21)+($O21/T21)+($P21/T21) -> 2267.564 | T21: =IF(G21-F21>11.99999,12,MONTH(G21)-MONTH(F21)) -> 12 | U21: =NumberOfDaysWorked($F21,$G21,U$3,U$4)*$R21 -> 2180.35 | V21: 2180.35 | W21: 2180.35 | X21: 2180.35 | Y21: 2180.35 | Z21: =NumberOfDaysWorked($F21,$G21,Z$3,Z$4)*$S21 -> 0 | AA21: 0 | AB21: 0 | AC21: 0 | AD21: 0 | AE21: 0 | AF21: 0 | AG21: =SUM(U21:AF21) -> 10901.75 | AH21: =IF($Q21="N",IF(U21>[1]!NIUPPLIMA,((U21-[1]!NIUPPLIMA)*[1]!NIUPPERA)+([1]!NIUPPLIMA-[1]!NILOWLIMA)*[1]!NILOWA,IF(U21>[1]!NILOWLIMA,(U21-[1]!NILOWLIMA)*[1]!NILOWA,0)))+IF($Q21="Y",IF(U21>[1]!NIUPPLIMA,((U21-[1]!NIUPPLIMA)*[1]!NIUPPERA)+(([1]!NIUPPLIMA-[1]!NILOWLIMA)*[1]!NISUPNA),IF(U21>[1]!NILOWLIMA,(U21-[1]!NILOWLIMA)*[1]!NISUPNA,0)))+IF(U21>[1]!NILOWLIMA,-[1]!NICREBATEA,0) -> 264.552 | AI21: =IF($Q21="N",IF(V21>[1]!NIUPPLIMA,((V21-[1]!NIUPPLIMA)*[1]!NIUPPERA)+([1]!NIUPPLIMA-[1]!NILOWLIMA)*[1]!NILOWA,IF(V21>[1]!NILOWLIMA,(V21-[1]!NILOWLIMA)*[1]!NILOWA,0)))+IF($Q21="Y",IF(V21>[1]!NIUPPLIMA,((V21-[1]!NIUPPLIMA)*[1]!NIUPPERA)+(([1]!NIUPPLIMA-[1]!NILOWLIMA)*[1]!NISUPNA),IF(V21>[1]!NILOWLIMA,(V21-[1]!NILOWLIMA)*[1]!NISUPNA,0)))+IF(V21>[1]!NILOWLIMA,-[1]!NICREBATEA,0) -> 264.552 | AJ21: =IF($Q21="N",IF(W21>[1]!NIUPPLIMA,((W21-[1]!NIUPPLIMA)*[1]!NIUPPERA)+([1]!NIUPPLIMA-[1]!NILOWLIMA)*[1]!NILOWA,IF(W21>[1]!NILOWLIMA,(W21-[1]!NILOWLIMA)*[1]!NILOWA,0)))+IF($Q21="Y",IF(W21>[1]!NIUPPLIMA,((W21-[1]!NIUPPLIMA)*[1]!NIUPPERA)+(([1]!NIUPPLIMA-[1]!NILOWLIMA)*[1]!NISUPNA),IF(W21>[1]!NILOWLIMA,(W21-[1]!NILOWLIMA)*[1]!NISUPNA,0)))+IF(W21>[1]!NILOWLIMA,-[1]!NICREBATEA,0) -> 264.552 | AK21: =IF($Q21="N",IF(X21>[1]!NIUPPLIMA,((X21-[1]!NIUPPLIMA)*[1]!NIUPPERA)+([1]!NIUPPLIMA-[1]!NILOWLIMA)*[1]!NILOWA,IF(X21>[1]!NILOWLIMA,(X21-[1]!NILOWLIMA)*[1]!NILOWA,0)))+IF($Q21="Y",IF(X21>[1]!NIUPPLIMA,((X21-[1]!NIUPPLIMA)*[1]!NIUPPERA)+(([1]!NIUPPLIMA-[1]!NILOWLIMA)*[1]!NISUPNA),IF(X21>[1]!NILOWLIMA,(X21-[1]!NILOWLIMA)*[1]!NISUPNA,0)))+IF(X21>[1]!NILOWLIMA,-[1]!NICREBATEA,0) -> 264.552 | AL21: =IF($Q21="N",IF(Y21>[1]!NIUPPLIMA,((Y21-[1]!NIUPPLIMA)*[1]!NIUPPERA)+([1]!NIUPPLIMA-[1]!NILOWLIMA)*[1]!NILOWA,IF(Y21>[1]!NILOWLIMA,(Y21-[1]!NILOWLIMA)*[1]!NILOWA,0)))+IF($Q21="Y",IF(Y21>[1]!NIUPPLIMA,((Y21-[1]!NIUPPLIMA)*[1]!NIUPPERA)+(([1]!NIUPPLIMA-[1]!NILOWLIMA)*[1]!NISUPNA),IF(Y21>[1]!NILOWLIMA,(Y21-[1]!NILOWLIMA)*[1]!NISUPNA,0)))+IF(Y21>[1]!NILOWLIMA,-[1]!NICREBATEA,0) -> 264.552 | AM21: =IF($Q21="N",IF(Z21>[1]!NIUPPLIMA,((Z21-[1]!NIUPPLIMA)*[1]!NIUPPERA)+([1]!NIUPPLIMA-[1]!NILOWLIMA)*[1]!NILOWA,IF(Z21>[1]!NILOWLIMA,(Z21-[1]!NILOWLIMA)*[1]!NILOWA,0)))+IF($Q21="Y",IF(Z21>[1]!NIUPPLIMA,((Z21-[1]!NIUPPLIMA)*[1]!NIUPPERA)+(([1]!NIUPPLIMA-[1]!NILOWLIMA)*[1]!NISUPNA),IF(Z21>[1]!NILOWLIMA,(Z21-[1]!NILOWLIMA)*[1]!NISUPNA,0)))+IF(Z21>[1]!NILOWLIMA,-[1]!NICREBATEA,0) -> 0 | AN21: =IF($Q21="N",IF(AA21>[1]!NIUPPLIMA,((AA21-[1]!NIUPPLIMA)*[1]!NIUPPERA)+([1]!NIUPPLIMA-[1]!NILOWLIMA)*[1]!NILOWA,IF(AA21>[1]!NILOWLIMA,(AA21-[1]!NILOWLIMA)*[1]!NILOWA,0)))+IF($Q21="Y",IF(AA21>[1]!NIUPPLIMA,((AA21-[1]!NIUPPLIMA)*[1]!NIUPPERA)+(([1]!NIUPPLIMA-[1]!NILOWLIMA)*[1]!NISUPNA),IF(AA21>[1]!NILOWLIMA,(AA21-[1]!NILOWLIMA)*[1]!NISUPNA,0)))+IF(AA21>[1]!NILOWLIMA,-[1]!NICREBATEA,0) -> 0 | AO21: =IF($Q21="N",IF(AB21>[1]!NIUPPLIMA,((AB21-[1]!NIUPPLIMA)*[1]!NIUPPERA)+([1]!NIUPPLIMA-[1]!NILOWLIMA)*[1]!NILOWA,IF(AB21>[1]!NILOWLIMA,(AB21-[1]!NILOWLIMA)*[1]!NILOWA,0)))+IF($Q21="Y",IF(AB21>[1]!NIUPPLIMA,((AB21-[1]!NIUPPLIMA)*[1]!NIUPPERA)+(([1]!NIUPPLIMA-[1]!NILOWLIMA)*[1]!NISUPNA),IF(AB21>[1]!NILOWLIMA,(AB21-[1]!NILOWLIMA)*[1]!NISUPNA,0)))+IF(AB21>[1]!NILOWLIMA,-[1]!NICREBATEA,0) -> 0 | AP21: =IF($Q21="N",IF(AC21>[1]!NIUPPLIMA,((AC21-[1]!NIUPPLIMA)*[1]!NIUPPERA)+([1]!NIUPPLIMA-[1]!NILOWLIMA)*[1]!NILOWA,IF(AC21>[1]!NILOWLIMA,(AC21-[1]!NILOWLIMA)*[1]!NILOWA,0)))+IF($Q21="Y",IF(AC21>[1]!NIUPPLIMA,((AC21-[1]!NIUPPLIMA)*[1]!NIUPPERA)+(([1]!NIUPPLIMA-[1]!NILOWLIMA)*[1]!NISUPNA),IF(AC21>[1]!NILOWLIMA,(AC21-[1]!NILOWLIMA)*[1]!NISUPNA,0)))+IF(AC21>[1]!NILOWLIMA,-[1]!NICREBATEA,0) -> 0 | AQ21: =IF($Q21="N",IF(AD21>[1]!NIUPPLIMA,((AD21-[1]!NIUPPLIMA)*[1]!NIUPPERA)+([1]!NIUPPLIMA-[1]!NILOWLIMA)*[1]!NILOWA,IF(AD21>[1]!NILOWLIMA,(AD21-[1]!NILOWLIMA)*[1]!NILOWA,0)))+IF($Q21="Y",IF(AD21>[1]!NIUPPLIMA,((AD21-[1]!NIUPPLIMA)*[1]!NIUPPERA)+(([1]!NIUPPLIMA-[1]!NILOWLIMA)*[1]!NISUPNA),IF(AD21>[1]!NILOWLIMA,(AD21-[1]!NILOWLIMA)*[1]!NISUPNA,0)))+IF(AD21>[1]!NILOWLIMA,-[1]!NICREBATEA,0) -> 0 | AR21: =IF($Q21="N",IF(AE21>[1]!NIUPPLIMA,((AE21-[1]!NIUPPLIMA)*[1]!NIUPPERA)+([1]!NIUPPLIMA-[1]!NILOWLIMA)*[1]!NILOWA,IF(AE21>[1]!NILOWLIMA,(AE21-[1]!NILOWLIMA)*[1]!NILOWA,0)))+IF($Q21="Y",IF(AE21>[1]!NIUPPLIMA,((AE21-[1]!NIUPPLIMA)*[1]!NIUPPERA)+(([1]!NIUPPLIMA-[1]!NILOWLIMA)*[1]!NISUPNA),IF(AE21>[1]!NILOWLIMA,(AE21-[1]!NILOWLIMA)*[1]!NISUPNA,0)))+IF(AE21>[1]!NILOWLIMA,-[1]!NICREBATEA,0) -> 0 | AS21: =IF($Q21="N",IF(AF21>[1]!NIUPPLIMA,((AF21-[1]!NIUPPLIMA)*[1]!NIUPPERA)+([1]!NIUPPLIMA-[1]!NILOWLIMA)*[1]!NILOWA,IF(AF21>[1]!NILOWLIMA,(AF21-[1]!NILOWLIMA)*[1]!NILOWA,0)))+IF($Q21="Y",IF(AF21>[1]!NIUPPLIMA,((AF21-[1]!NIUPPLIMA)*[1]!NIUPPERA)+(([1]!NIUPPLIMA-[1]!NILOWLIMA)*[1]!NISUPNA),IF(AF21>[1]!NILOWLIMA,(AF21-[1]!NILOWLIMA)*[1]!NISUPNA,0)))+IF(AF21>[1]!NILOWLIMA,-[1]!NICREBATEA,0) -> 0 | AT21: =SUM(AH21:AS21) -> 1322.76 | AU21: =IF($Q21="N",0,((AG21*$AU$5))) -> 3126.6219 | AV21: =AG21+AT21+AU21 -> 15351.1319 | AW21: =IF($E21="TEACHER",IF($I21<6,$I21+1,IF(LEFT($I21,1)="U",$I21,6)),IF($E21="LEADER",+I21,IF($E21="UNQUAL",IF($I21<10,$I21+1,10),IF($E21="ADVANCED",IF($I21<27,$I21+1,27))))) -> 6 | AX21: =(K21+M21+O21+P21) -> 0 | AY21: =IF($E21="LEADER",VLOOKUP(AW21,[1]!LEADERSHIP,5),IF($E21="TEACHER",VLOOKUP(AW21,[1]!TEACHER,5),IF($E21="ADVANCED",VLOOKUP($AW21,[1]!ADVANCED_SKILLS_TEACHERS,5),IF($E21="UNQUAL",VLOOKUP($AW21,[1]!UNQUALIFIED_TEACHER,5),0))))*D21*(1+BA$4)*(1+BA$5)+(AX21/AZ21) -> 2358.26656 | AZ21: =IF(G21-F21>11.99999,12,MONTH(G21)-MONTH(F21)) -> 12 | BA21: =NumberOfDaysWorked($F21,$G21,BD$1,BF$1)*(($S21*(1+BA$4))*5)+NumberOfDaysWorked($F21,$G21,BD$1,BF$1)*($AY21*7) -> 0 | BD21: =(IF($Q21="N",IF(AY21>[1]!NIUPPLIMB,((AY21-[1]!NIUPPLIMB)*[1]!NIUPPERB)+([1]!NIUPPLIMB-[1]!NILOWLIMB)*[1]!NILOWB,IF(AY21>[1]!NILOWLIMB,(AY21-[1]!NILOWLIMB)*[1]!NILOWB,0)))+IF($Q21="Y",IF(AY21>[1]!NIUPPLIMB,((AY21-[1]!NIUPPLIMB)*[1]!NIUPPERB)+(([1]!NIUPPLIMB-[1]!NILOWLIMB)*[1]!NISUPNB),IF(AY21>[1]!NILOWLIMB,(AY21-[1]!NILOWLIMB)*[1]!NISUPNB,0))))*((NumberOfDaysWorked($F21,$G21,BD$1,BF$1)*5)+(NumberOfDaysWorked($F21,$G21,BD$1,BF$1)*7)) -> 0 | BE21: =IF($Q21="N",0,(BA21*$BE$5)) -> 0 | BF21: =SUM(BA21:BE21) -> 0 | BG21: =IF($E21="TEACHER",IF(AW21<6,AW21+1,IF(LEFT(AW21,1)="U",AW21,6)),IF($E21="LEADER",+I21,IF($E21="UNQUAL",IF(AW21<10,AW21+1,10),IF($E21="ADVANCED",IF(AW21<27,AW21+1,27))))) -> 6 | BH21: =(K21+M21+O21+P21) -> 0 | BI21: =IF($E21="LEADER",VLOOKUP(BG21,[1]!LEADERSHIP,5),IF($E21="TEACHER",VLOOKUP(BG21,[1]!TEACHER,5),IF($E21="ADVANCED",VLOOKUP($AW21,[1]!ADVANCED_SKILLS_TEACHERS,5),IF($E21="UNQUAL",VLOOKUP($AW21,[1]!UNQUALIFIED_TEACHER,5),0))))*D21*(1+BA$4)*(1+BA$5)*(1+BK$4)*(1+BK$5)+(BH21/BJ21) -> 2452.597222 | BJ21: =IF(G21-F21>11.99999,12,MONTH(G21)-MONTH(F21)) -> 12 | BK21: =NumberOfDaysWorked($F21,$G21,BN$1,BP$1)*(($AY21*(1+BK$4))*5)+NumberOfDaysWorked($F21,$G21,BN$1,BP$1)*($BI21*7) -> 0 | BN21: =(IF($Q21="N",IF(BI21>[1]!NIUPPLIMC,((BI21-[1]!NIUPPLIMC)*[1]!NIUPPERC)+([1]!NIUPPLIMC-[1]!NILOWLIMC)*[1]!NILOWC,IF(BI21>[1]!NILOWLIMC,(BI21-[1]!NILOWLIMC)*[1]!NILOWC,0)))+IF($Q21="Y",IF(BI21>[1]!NIUPPLIMC,((BI21-[1]!NIUPPLIMC)*[1]!NIUPPERC)+(([1]!NIUPPLIMC-[1]!NILOWLIMC)*[1]!NISUPNC),IF(BI21>[1]!NILOWLIMC,(BI21-[1]!NILOWLIMC)*[1]!NISUPNC,0))))*((NumberOfDaysWorked($F21,$G21,BN$1,BP$1)*5)+(NumberOfDaysWorked($F21,$G21,BN$1,BP$1)*7)) -> 0 | BO21: =IF($Q21="N",0,(BK21*$BO$5)) -> 0 | BP21: =SUM(BK21:BO21) -> 0
A22: x | B22: BLAIR JENNY | C22: A01001 | D22: =1012/1265 -> 0.8 | E22: TEACHER | F22: 2025-11-03 | G22: 2026-08-31 | H22: 6 | I22: 6 | J22: 0 | K22: =VLOOKUP(J22,[1]!MANAGEMENT,2)*D22 -> 0 | L22: 0 | M22: =VLOOKUP(L22,[1]!SEN_ALLOWANCES,2)*D22 -> 0 | N22: 0 | O22: =N22 -> 0 | P22: 0 | Q22: Y | R22: =IF($E22="LEADER",VLOOKUP(H22,[1]PAYDATA!$A$4:$C$54,3),IF($E22="TEACHER",VLOOKUP(H22,[1]PAYDATA!$A$70:$C$80,3),IF($E22="ADVANCED",VLOOKUP(H22,[1]PAYDATA!$A$141:$C$159,3),IF($E22="UNQUAL",VLOOKUP(H22,[1]PAYDATA!$A$57:$C$63,3),0))))*$D22+($K22/T22)+($M22/T22)+($O22/T22)+($P22/T22) -> 2907.133333 | S22: =IF($E22="LEADER",VLOOKUP(I22,[1]!LEADERSHIP,5),IF($E22="TEACHER",VLOOKUP(I22,[1]!TEACHER,5),IF($E22="ADVANCED",VLOOKUP(I22,[1]PAYDATA!$A$141:$E$159,5),IF($E22="UNQUAL",VLOOKUP(I22,[1]!UNQUALIFIED_TEACHER,5),0))))*$D22+($K22/T22)+($M22/T22)+($O22/T22)+($P22/T22) -> 3023.418667 | T22: =IF(G22-F22>11.99999,12,MONTH(G22)-MONTH(F22)) -> 12 | U22: =NumberOfDaysWorked($F22,$G22,U$3,U$4)*$R22 -> 0 | V22: =NumberOfDaysWorked($F22,$G22,V$3,V$4)*$R22 -> 0 | W22: =NumberOfDaysWorked($F22,$G22,W$3,W$4)*$R22 -> 0 | X22: =NumberOfDaysWorked($F22,$G22,X$3,X$4)*$R22 -> 0 | Y22: =NumberOfDaysWorked($F22,$G22,Y$3,Y$4)*$R22 -> 0 | Z22: =NumberOfDaysWorked($F22,$G22,Z$3,Z$4)*$S22 -> 0 | AA22: 0 | AB22: 2821.857422 | AC22: 3023.418667 | AD22: 3023.418667 | AE22: 3023.418667 | AF22: 3023.418667 | AG22: =SUM(U22:AF22) -> 14915.53209 | AH22: =IF($Q22="N",IF(U22>[1]!NIUPPLIMA,((U22-[1]!NIUPPLIMA)*[1]!NIUPPERA)+([1]!NIUPPLIMA-[1]!NILOWLIMA)*[1]!NILOWA,IF(U22>[1]!NILOWLIMA,(U22-[1]!NILOWLIMA)*[1]!NILOWA,0)))+IF($Q22="Y",IF(U22>[1]!NIUPPLIMA,((U22-[1]!NIUPPLIMA)*[1]!NIUPPERA)+(([1]!NIUPPLIMA-[1]!NILOWLIMA)*[1]!NISUPNA),IF(U22>[1]!NILOWLIMA,(U22-[1]!NILOWLIMA)*[1]!NISUPNA,0)))+IF(U22>[1]!NILOWLIMA,-[1]!NICREBATEA,0) -> 0 | AI22: =IF($Q22="N",IF(V22>[1]!NIUPPLIMA,((V22-[1]!NIUPPLIMA)*[1]!NIUPPERA)+([1]!NIUPPLIMA-[1]!NILOWLIMA)*[1]!NILOWA,IF(V22>[1]!NILOWLIMA,(V22-[1]!NILOWLIMA)*[1]!NILOWA,0)))+IF($Q22="Y",IF(V22>[1]!NIUPPLIMA,((V22-[1]!NIUPPLIMA)*[1]!NIUPPERA)+(([1]!NIUPPLIMA-[1]!NILOWLIMA)*[1]!NISUPNA),IF(V22>[1]!NILOWLIMA,(V22-[1]!NILOWLIMA)*[1]!NISUPNA,0)))+IF(V22>[1]!NILOWLIMA,-[1]!NICREBATEA,0) -> 0 | AJ22: =IF($Q22="N",IF(W22>[1]!NIUPPLIMA,((W22-[1]!NIUPPLIMA)*[1]!NIUPPERA)+([1]!NIUPPLIMA-[1]!NILOWLIMA)*[1]!NILOWA,IF(W22>[1]!NILOWLIMA,(W22-[1]!NILOWLIMA)*[1]!NILOWA,0)))+IF($Q22="Y",IF(W22>[1]!NIUPPLIMA,((W22-[1]!NIUPPLIMA)*[1]!NIUPPERA)+(([1]!NIUPPLIMA-[1]!NILOWLIMA)*[1]!NISUPNA),IF(W22>[1]!NILOWLIMA,(W22-[1]!NILOWLIMA)*[1]!NISUPNA,0)))+IF(W22>[1]!NILOWLIMA,-[1]!NICREBATEA,0) -> 0 | AK22: =IF($Q22="N",IF(X22>[1]!NIUPPLIMA,((X22-[1]!NIUPPLIMA)*[1]!NIUPPERA)+([1]!NIUPPLIMA-[1]!NILOWLIMA)*[1]!NILOWA,IF(X22>[1]!NILOWLIMA,(X22-[1]!NILOWLIMA)*[1]!NILOWA,0)))+IF($Q22="Y",IF(X22>[1]!NIUPPLIMA,((X22-[1]!NIUPPLIMA)*[1]!NIUPPERA)+(([1]!NIUPPLIMA-[1]!NILOWLIMA)*[1]!NISUPNA),IF(X22>[1]!NILOWLIMA,(X22-[1]!NILOWLIMA)*[1]!NISUPNA,0)))+IF(X22>[1]!NILOWLIMA,-[1]!NICREBATEA,0) -> 0 | AL22: =IF($Q22="N",IF(Y22>[1]!NIUPPLIMA,((Y22-[1]!NIUPPLIMA)*[1]!NIUPPERA)+([1]!NIUPPLIMA-[1]!NILOWLIMA)*[1]!NILOWA,IF(Y22>[1]!NILOWLIMA,(Y22-[1]!NILOWLIMA)*[1]!NILOWA,0)))+IF($Q22="Y",IF(Y22>[1]!NIUPPLIMA,((Y22-[1]!NIUPPLIMA)*[1]!NIUPPERA)+(([1]!NIUPPLIMA-[1]!NILOWLIMA)*[1]!NISUPNA),IF(Y22>[1]!NILOWLIMA,(Y22-[1]!NILOWLIMA)*[1]!NISUPNA,0)))+IF(Y22>[1]!NILOWLIMA,-[1]!NICREBATEA,0) -> 0 | AM22: =IF($Q22="N",IF(Z22>[1]!NIUPPLIMA,((Z22-[1]!NIUPPLIMA)*[1]!NIUPPERA)+([1]!NIUPPLIMA-[1]!NILOWLIMA)*[1]!NILOWA,IF(Z22>[1]!NILOWLIMA,(Z22-[1]!NILOWLIMA)*[1]!NILOWA,0)))+IF($Q22="Y",IF(Z22>[1]!NIUPPLIMA,((Z22-[1]!NIUPPLIMA)*[1]!NIUPPERA)+(([1]!NIUPPLIMA-[1]!NILOWLIMA)*[1]!NISUPNA),IF(Z22>[1]!NILOWLIMA,(Z22-[1]!NILOWLIMA)*[1]!NISUPNA,0)))+IF(Z22>[1]!NILOWLIMA,-[1]!NICREBATEA,0) -> 0 | AN22: =IF($Q22="N",IF(AA22>[1]!NIUPPLIMA,((AA22-[1]!NIUPPLIMA)*[1]!NIUPPERA)+([1]!NIUPPLIMA-[1]!NILOWLIMA)*[1]!NILOWA,IF(AA22>[1]!NILOWLIMA,(AA22-[1]!NILOWLIMA)*[1]!NILOWA,0)))+IF($Q22="Y",IF(AA22>[1]!NIUPPLIMA,((AA22-[1]!NIUPPLIMA)*[1]!NIUPPERA)+(([1]!NIUPPLIMA-[1]!NILOWLIMA)*[1]!NISUPNA),IF(AA22>[1]!NILOWLIMA,(AA22-[1]!NILOWLIMA)*[1]!NISUPNA,0)))+IF(AA22>[1]!NILOWLIMA,-[1]!NICREBATEA,0) -> 0 | AO22: =IF($Q22="N",IF(AB22>[1]!NIUPPLIMA,((AB22-[1]!NIUPPLIMA)*[1]!NIUPPERA)+([1]!NIUPPLIMA-[1]!NILOWLIMA)*[1]!NILOWA,IF(AB22>[1]!NILOWLIMA,(AB22-[1]!NILOWLIMA)*[1]!NILOWA,0)))+IF($Q22="Y",IF(AB22>[1]!NIUPPLIMA,((AB22-[1]!NIUPPLIMA)*[1]!NIUPPERA)+(([1]!NIUPPLIMA-[1]!NILOWLIMA)*[1]!NISUPNA),IF(AB22>[1]!NILOWLIMA,(AB22-[1]!NILOWLIMA)*[1]!NISUPNA,0)))+IF(AB22>[1]!NILOWLIMA,-[1]!NICREBATEA,0) -> 360.7781133 | AP22: =IF($Q22="N",IF(AC22>[1]!NIUPPLIMA,((AC22-[1]!NIUPPLIMA)*[1]!NIUPPERA)+([1]!NIUPPLIMA-[1]!NILOWLIMA)*[1]!NILOWA,IF(AC22>[1]!NILOWLIMA,(AC22-[1]!NILOWLIMA)*[1]!NILOWA,0)))+IF($Q22="Y",IF(AC22>[1]!NIUPPLIMA,((AC22-[1]!NIUPPLIMA)*[1]!NIUPPERA)+(([1]!NIUPPLIMA-[1]!NILOWLIMA)*[1]!NISUPNA),IF(AC22>[1]!NILOWLIMA,(AC22-[1]!NILOWLIMA)*[1]!NISUPNA,0)))+IF(AC22>[1]!NILOWLIMA,-[1]!NICREBATEA,0) -> 391.0123 | AQ22: =IF($Q22="N",IF(AD22>[1]!NIUPPLIMA,((AD22-[1]!NIUPPLIMA)*[1]!NIUPPERA)+([1]!NIUPPLIMA-[1]!NILOWLIMA)*[1]!NILOWA,IF(AD22>[1]!NILOWLIMA,(AD22-[1]!NILOWLIMA)*[1]!NILOWA,0)))+IF($Q22="Y",IF(AD22>[1]!NIUPPLIMA,((AD22-[1]!NIUPPLIMA)*[1]!NIUPPERA)+(([1]!NIUPPLIMA-[1]!NILOWLIMA)*[1]!NISUPNA),IF(AD22>[1]!NILOWLIMA,(AD22-[1]!NILOWLIMA)*[1]!NISUPNA,0)))+IF(AD22>[1]!NILOWLIMA,-[1]!NICREBATEA,0) -> 391.0123 | AR22: =IF($Q22="N",IF(AE22>[1]!NIUPPLIMA,((AE22-[1]!NIUPPLIMA)*[1]!NIUPPERA)+([1]!NIUPPLIMA-[1]!NILOWLIMA)*[1]!NILOWA,IF(AE22>[1]!NILOWLIMA,(AE22-[1]!NILOWLIMA)*[1]!NILOWA,0)))+IF($Q22="Y",IF(AE22>[1]!NIUPPLIMA,((AE22-[1]!NIUPPLIMA)*[1]!NIUPPERA)+(([1]!NIUPPLIMA-[1]!NILOWLIMA)*[1]!NISUPNA),IF(AE22>[1]!NILOWLIMA,(AE22-[1]!NILOWLIMA)*[1]!NISUPNA,0)))+IF(AE22>[1]!NILOWLIMA,-[1]!NICREBATEA,0) -> 391.0123 | AS22: =IF($Q22="N",IF(AF22>[1]!NIUPPLIMA,((AF22-[1]!NIUPPLIMA)*[1]!NIUPPERA)+([1]!NIUPPLIMA-[1]!NILOWLIMA)*[1]!NILOWA,IF(AF22>[1]!NILOWLIMA,(AF22-[1]!NILOWLIMA)*[1]!NILOWA,0)))+IF($Q22="Y",IF(AF22>[1]!NIUPPLIMA,((AF22-[1]!NIUPPLIMA)*[1]!NIUPPERA)+(([1]!NIUPPLIMA-[1]!NILOWLIMA)*[1]!NISUPNA),IF(AF22>[1]!NILOWLIMA,(AF22-[1]!NILOWLIMA)*[1]!NISUPNA,0)))+IF(AF22>[1]!NILOWLIMA,-[1]!NICREBATEA,0) -> 391.0123 | AT22: =SUM(AH22:AS22) -> 1924.827313 | AU22: =IF($Q22="N",0,((AG22*$AU$5))) -> 4277.774603 | AV22: =AG22+AT22+AU22 -> 21118.13401 | AW22: =IF($E22="TEACHER",IF($I22<6,$I22+1,IF(LEFT($I22,1)="U",$I22,6)),IF($E22="LEADER",+I22,IF($E22="UNQUAL",IF($I22<10,$I22+1,10),IF($E22="ADVANCED",IF($I22<27,$I22+1,27))))) -> 6 | AX22: =(K22+M22+O22+P22) -> 0 | AY22: =IF($E22="LEADER",VLOOKUP(AW22,[1]!LEADERSHIP,5),IF($E22="TEACHER",VLOOKUP(AW22,[1]!TEACHER,5),IF($E22="ADVANCED",VLOOKUP($AW22,[1]!ADVANCED_SKILLS_TEACHERS,5),IF($E22="UNQUAL",VLOOKUP($AW22,[1]!UNQUALIFIED_TEACHER,5),0))))*D22*(1+BA$4)*(1+BA$5)+(AX22/AZ22) -> 3144.355413 | AZ22: =IF(G22-F22>11.99999,12,MONTH(G22)-MONTH(F22)) -> 12 | BA22: =NumberOfDaysWorked($F22,$G22,BD$1,BF$1)*(($S22*(1+BA$4))*5)+NumberOfDaysWorked($F22,$G22,BD$1,BF$1)*($AY22*7) -> 15563.0683 | BD22: =(IF($Q22="N",IF(AY22>[1]!NIUPPLIMB,((AY22-[1]!NIUPPLIMB)*[1]!NIUPPERB)+([1]!NIUPPLIMB-[1]!NILOWLIMB)*[1]!NILOWB,IF(AY22>[1]!NILOWLIMB,(AY22-[1]!NILOWLIMB)*[1]!NILOWB,0)))+IF($Q22="Y",IF(AY22>[1]!NIUPPLIMB,((AY22-[1]!NIUPPLIMB)*[1]!NIUPPERB)+(([1]!NIUPPLIMB-[1]!NILOWLIMB)*[1]!NISUPNB),IF(AY22>[1]!NILOWLIMB,(AY22-[1]!NILOWLIMB)*[1]!NISUPNB,0))))*((NumberOfDaysWorked($F22,$G22,BD$1,BF$1)*5)+(NumberOfDaysWorked($F22,$G22,BD$1,BF$1)*7)) -> 2058.097208 | BE22: =IF($Q22="N",0,(BA22*$BE$5)) -> 4463.487987 | BF22: =SUM(BA22:BE22) -> 22084.65349 | BG22: =IF($E22="TEACHER",IF(AW22<6,AW22+1,IF(LEFT(AW22,1)="U",AW22,6)),IF($E22="LEADER",+I22,IF($E22="UNQUAL",IF(AW22<10,AW22+1,10),IF($E22="ADVANCED",IF(AW22<27,AW22+1,27))))) -> 6 | BH22: =(K22+M22+O22+P22) -> 0 | BI22: =IF($E22="LEADER",VLOOKUP(BG22,[1]!LEADERSHIP,5),IF($E22="TEACHER",VLOOKUP(BG22,[1]!TEACHER,5),IF($E22="ADVANCED",VLOOKUP($AW22,[1]!ADVANCED_SKILLS_TEACHERS,5),IF($E22="UNQUAL",VLOOKUP($AW22,[1]!UNQUALIFIED_TEACHER,5),0))))*D22*(1+BA$4)*(1+BA$5)*(1+BK$4)*(1+BK$5)+(BH22/BJ22) -> 3270.12963 | BJ22: =IF(G22-F22>11.99999,12,MONTH(G22)-MONTH(F22)) -> 12 | BK22: =NumberOfDaysWorked($F22,$G22,BN$1,BP$1)*(($AY22*(1+BK$4))*5)+NumberOfDaysWorked($F22,$G22,BN$1,BP$1)*($BI22*7) -> 0 | BN22: =(IF($Q22="N",IF(BI22>[1]!NIUPPLIMC,((BI22-[1]!NIUPPLIMC)*[1]!NIUPPERC)+([1]!NIUPPLIMC-[1]!NILOWLIMC)*[1]!NILOWC,IF(BI22>[1]!NILOWLIMC,(BI22-[1]!NILOWLIMC)*[1]!NILOWC,0)))+IF($Q22="Y",IF(BI22>[1]!NIUPPLIMC,((BI22-[1]!NIUPPLIMC)*[1]!NIUPPERC)+(([1]!NIUPPLIMC-[1]!NILOWLIMC)*[1]!NISUPNC),IF(BI22>[1]!NILOWLIMC,(BI22-[1]!NILOWLIMC)*[1]!NISUPNC,0))))*((NumberOfDaysWorked($F22,$G22,BN$1,BP$1)*5)+(NumberOfDaysWorked($F22,$G22,BN$1,BP$1)*7)) -> 0 | BO22: =IF($Q22="N",0,(BK22*$BO$5)) -> 0 | BP22: =SUM(BK22:BO22) -> 0
A23: x | B23: BOYLAN-THOMSON AMY | C23: A01001 | D23: 1 | E23: TEACHER | F23: 2025-04-01 | G23: 2025-08-31 | H23: 2 | I23: 2 | J23: 0 | K23: =VLOOKUP(J23,[1]!MANAGEMENT,2)*D23 -> 0 | L23: 0 | M23: =VLOOKUP(L23,[1]!SEN_ALLOWANCES,2)*D23 -> 0 | N23: 0 | O23: 0 | P23: 0 | Q23: Y | R23: =IF($E23="LEADER",VLOOKUP(H23,[1]PAYDATA!$A$4:$C$54,3),IF($E23="TEACHER",VLOOKUP(H23,[1]PAYDATA!$A$70:$C$80,3),IF($E23="ADVANCED",VLOOKUP(H23,[1]PAYDATA!$A$141:$C$159,3),IF($E23="UNQUAL",VLOOKUP(H23,[1]PAYDATA!$A$57:$C$63,3),0))))*$D23+($K23/T23)+($M23/T23)+($O23/T23)+($P23/T23) -> 2790.25 | S23: =IF($E23="LEADER",VLOOKUP(I23,[1]!LEADERSHIP,5),IF($E23="TEACHER",VLOOKUP(I23,[1]!TEACHER,5),IF($E23="ADVANCED",VLOOKUP(I23,[1]PAYDATA!$A$141:$E$159,5),IF($E23="UNQUAL",VLOOKUP(I23,[1]!UNQUALIFIED_TEACHER,5),0))))*$D23+($K23/T23)+($M23/T23)+($O23/T23)+($P23/T23) -> 2901.86 | T23: 12 | U23: 2790.25 | V23: 2790.25 | W23: 2790.25 | X23: 2790.25 | Y23: 2790.25 | Z23: 0 | AA23: 0 | AB23: 0 | AC23: 0 | AD23: 0 | AE23: 0 | AF23: 0 | AG23: 13951.25 | AH23: =IF($Q23="N",IF(U23>[1]!NIUPPLIMA,((U23-[1]!NIUPPLIMA)*[1]!NIUPPERA)+([1]!NIUPPLIMA-[1]!NILOWLIMA)*[1]!NILOWA,IF(U23>[1]!NILOWLIMA,(U23-[1]!NILOWLIMA)*[1]!NILOWA,0)))+IF($Q23="Y",IF(U23>[1]!NIUPPLIMA,((U23-[1]!NIUPPLIMA)*[1]!NIUPPERA)+(([1]!NIUPPLIMA-[1]!NILOWLIMA)*[1]!NISUPNA),IF(U23>[1]!NILOWLIMA,(U23-[1]!NILOWLIMA)*[1]!NISUPNA,0)))+IF(U23>[1]!NILOWLIMA,-[1]!NICREBATEA,0) -> 356.037 | AI23: =IF($Q23="N",IF(V23>[1]!NIUPPLIMA,((V23-[1]!NIUPPLIMA)*[1]!NIUPPERA)+([1]!NIUPPLIMA-[1]!NILOWLIMA)*[1]!NILOWA,IF(V23>[1]!NILOWLIMA,(V23-[1]!NILOWLIMA)*[1]!NILOWA,0)))+IF($Q23="Y",IF(V23>[1]!NIUPPLIMA,((V23-[1]!NIUPPLIMA)*[1]!NIUPPERA)+(([1]!NIUPPLIMA-[1]!NILOWLIMA)*[1]!NISUPNA),IF(V23>[1]!NILOWLIMA,(V23-[1]!NILOWLIMA)*[1]!NISUPNA,0)))+IF(V23>[1]!NILOWLIMA,-[1]!NICREBATEA,0) -> 356.037 | AJ23: =IF($Q23="N",IF(W23>[1]!NIUPPLIMA,((W23-[1]!NIUPPLIMA)*[1]!NIUPPERA)+([1]!NIUPPLIMA-[1]!NILOWLIMA)*[1]!NILOWA,IF(W23>[1]!NILOWLIMA,(W23-[1]!NILOWLIMA)*[1]!NILOWA,0)))+IF($Q23="Y",IF(W23>[1]!NIUPPLIMA,((W23-[1]!NIUPPLIMA)*[1]!NIUPPERA)+(([1]!NIUPPLIMA-[1]!NILOWLIMA)*[1]!NISUPNA),IF(W23>[1]!NILOWLIMA,(W23-[1]!NILOWLIMA)*[1]!NISUPNA,0)))+IF(W23>[1]!NILOWLIMA,-[1]!NICREBATEA,0) -> 356.037 | AK23: =IF($Q23="N",IF(X23>[1]!NIUPPLIMA,((X23-[1]!NIUPPLIMA)*[1]!NIUPPERA)+([1]!NIUPPLIMA-[1]!NILOWLIMA)*[1]!NILOWA,IF(X23>[1]!NILOWLIMA,(X23-[1]!NILOWLIMA)*[1]!NILOWA,0)))+IF($Q23="Y",IF(X23>[1]!NIUPPLIMA,((X23-[1]!NIUPPLIMA)*[1]!NIUPPERA)+(([1]!NIUPPLIMA-[1]!NILOWLIMA)*[1]!NISUPNA),IF(X23>[1]!NILOWLIMA,(X23-[1]!NILOWLIMA)*[1]!NISUPNA,0)))+IF(X23>[1]!NILOWLIMA,-[1]!NICREBATEA,0) -> 356.037 | AL23: =IF($Q23="N",IF(Y23>[1]!NIUPPLIMA,((Y23-[1]!NIUPPLIMA)*[1]!NIUPPERA)+([1]!NIUPPLIMA-[1]!NILOWLIMA)*[1]!NILOWA,IF(Y23>[1]!NILOWLIMA,(Y23-[1]!NILOWLIMA)*[1]!NILOWA,0)))+IF($Q23="Y",IF(Y23>[1]!NIUPPLIMA,((Y23-[1]!NIUPPLIMA)*[1]!NIUPPERA)+(([1]!NIUPPLIMA-[1]!NILOWLIMA)*[1]!NISUPNA),IF(Y23>[1]!NILOWLIMA,(Y23-[1]!NILOWLIMA)*[1]!NISUPNA,0)))+IF(Y23>[1]!NILOWLIMA,-[1]!NICREBATEA,0) -> 356.037 | AM23: =IF($Q23="N",IF(Z23>[1]!NIUPPLIMA,((Z23-[1]!NIUPPLIMA)*[1]!NIUPPERA)+([1]!NIUPPLIMA-[1]!NILOWLIMA)*[1]!NILOWA,IF(Z23>[1]!NILOWLIMA,(Z23-[1]!NILOWLIMA)*[1]!NILOWA,0)))+IF($Q23="Y",IF(Z23>[1]!NIUPPLIMA,((Z23-[1]!NIUPPLIMA)*[1]!NIUPPERA)+(([1]!NIUPPLIMA-[1]!NILOWLIMA)*[1]!NISUPNA),IF(Z23>[1]!NILOWLIMA,(Z23-[1]!NILOWLIMA)*[1]!NISUPNA,0)))+IF(Z23>[1]!NILOWLIMA,-[1]!NICREBATEA,0) -> 0 | AN23: =IF($Q23="N",IF(AA23>[1]!NIUPPLIMA,((AA23-[1]!NIUPPLIMA)*[1]!NIUPPERA)+([1]!NIUPPLIMA-[1]!NILOWLIMA)*[1]!NILOWA,IF(AA23>[1]!NILOWLIMA,(AA23-[1]!NILOWLIMA)*[1]!NILOWA,0)))+IF($Q23="Y",IF(AA23>[1]!NIUPPLIMA,((AA23-[1]!NIUPPLIMA)*[1]!NIUPPERA)+(([1]!NIUPPLIMA-[1]!NILOWLIMA)*[1]!NISUPNA),IF(AA23>[1]!NILOWLIMA,(AA23-[1]!NILOWLIMA)*[1]!NISUPNA,0)))+IF(AA23>[1]!NILOWLIMA,-[1]!NICREBATEA,0) -> 0 | AO23: =IF($Q23="N",IF(AB23>[1]!NIUPPLIMA,((AB23-[1]!NIUPPLIMA)*[1]!NIUPPERA)+([1]!NIUPPLIMA-[1]!NILOWLIMA)*[1]!NILOWA,IF(AB23>[1]!NILOWLIMA,(AB23-[1]!NILOWLIMA)*[1]!NILOWA,0)))+IF($Q23="Y",IF(AB23>[1]!NIUPPLIMA,((AB23-[1]!NIUPPLIMA)*[1]!NIUPPERA)+(([1]!NIUPPLIMA-[1]!NILOWLIMA)*[1]!NISUPNA),IF(AB23>[1]!NILOWLIMA,(AB23-[1]!NILOWLIMA)*[1]!NISUPNA,0)))+IF(AB23>[1]!NILOWLIMA,-[1]!NICREBATEA,0) -> 0 | AP23: =IF($Q23="N",IF(AC23>[1]!NIUPPLIMA,((AC23-[1]!NIUPPLIMA)*[1]!NIUPPERA)+([1]!NIUPPLIMA-[1]!NILOWLIMA)*[1]!NILOWA,IF(AC23>[1]!NILOWLIMA,(AC23-[1]!NILOWLIMA)*[1]!NILOWA,0)))+IF($Q23="Y",IF(AC23>[1]!NIUPPLIMA,((AC23-[1]!NIUPPLIMA)*[1]!NIUPPERA)+(([1]!NIUPPLIMA-[1]!NILOWLIMA)*[1]!NISUPNA),IF(AC23>[1]!NILOWLIMA,(AC23-[1]!NILOWLIMA)*[1]!NISUPNA,0)))+IF(AC23>[1]!NILOWLIMA,-[1]!NICREBATEA,0) -> 0 | AQ23: =IF($Q23="N",IF(AD23>[1]!NIUPPLIMA,((AD23-[1]!NIUPPLIMA)*[1]!NIUPPERA)+([1]!NIUPPLIMA-[1]!NILOWLIMA)*[1]!NILOWA,IF(AD23>[1]!NILOWLIMA,(AD23-[1]!NILOWLIMA)*[1]!NILOWA,0)))+IF($Q23="Y",IF(AD23>[1]!NIUPPLIMA,((AD23-[1]!NIUPPLIMA)*[1]!NIUPPERA)+(([1]!NIUPPLIMA-[1]!NILOWLIMA)*[1]!NISUPNA),IF(AD23>[1]!NILOWLIMA,(AD23-[1]!NILOWLIMA)*[1]!NISUPNA,0)))+IF(AD23>[1]!NILOWLIMA,-[1]!NICREBATEA,0) -> 0 | AR23: =IF($Q23="N",IF(AE23>[1]!NIUPPLIMA,((AE23-[1]!NIUPPLIMA)*[1]!NIUPPERA)+([1]!NIUPPLIMA-[1]!NILOWLIMA)*[1]!NILOWA,IF(AE23>[1]!NILOWLIMA,(AE23-[1]!NILOWLIMA)*[1]!NILOWA,0)))+IF($Q23="Y",IF(AE23>[1]!NIUPPLIMA,((AE23-[1]!NIUPPLIMA)*[1]!NIUPPERA)+(([1]!NIUPPLIMA-[1]!NILOWLIMA)*[1]!NISUPNA),IF(AE23>[1]!NILOWLIMA,(AE23-[1]!NILOWLIMA)*[1]!NISUPNA,0)))+IF(AE23>[1]!NILOWLIMA,-[1]!NICREBATEA,0) -> 0 | AS23: =IF($Q23="N",IF(AF23>[1]!NIUPPLIMA,((AF23-[1]!NIUPPLIMA)*[1]!NIUPPERA)+([1]!NIUPPLIMA-[1]!NILOWLIMA)*[1]!NILOWA,IF(AF23>[1]!NILOWLIMA,(AF23-[1]!NILOWLIMA)*[1]!NILOWA,0)))+IF($Q23="Y",IF(AF23>[1]!NIUPPLIMA,((AF23-[1]!NIUPPLIMA)*[1]!NIUPPERA)+(([1]!NIUPPLIMA-[1]!NILOWLIMA)*[1]!NISUPNA),IF(AF23>[1]!NILOWLIMA,(AF23-[1]!NILOWLIMA)*[1]!NISUPNA,0)))+IF(AF23>[1]!NILOWLIMA,-[1]!NICREBATEA,0) -> 0 | AT23: 1780.185 | AU23: 4001.2185 | AV23: 19732.6535 | AW23: 3 | AX23: 0 | AY23: =IF($E23="LEADER",VLOOKUP(AW23,[1]!LEADERSHIP,5),IF($E23="TEACHER",VLOOKUP(AW23,[1]!TEACHER,5),IF($E23="ADVANCED",VLOOKUP($AW23,[1]!ADVANCED_SKILLS_TEACHERS,5),IF($E23="UNQUAL",VLOOKUP($AW23,[1]!UNQUALIFIED_TEACHER,5),0))))*D23*(1+BA$4)*(1+BA$5)+(AX23/AZ23) -> 3215.416533 | AZ23: 12 | BA23: 0 | BD23: =(IF($Q23="N",IF(AY23>[1]!NIUPPLIMB,((AY23-[1]!NIUPPLIMB)*[1]!NIUPPERB)+([1]!NIUPPLIMB-[1]!NILOWLIMB)*[1]!NILOWB,IF(AY23>[1]!NILOWLIMB,(AY23-[1]!NILOWLIMB)*[1]!NILOWB,0)))+IF($Q23="Y",IF(AY23>[1]!NIUPPLIMB,((AY23-[1]!NIUPPLIMB)*[1]!NIUPPERB)+(([1]!NIUPPLIMB-[1]!NILOWLIMB)*[1]!NISUPNB),IF(AY23>[1]!NILOWLIMB,(AY23-[1]!NILOWLIMB)*[1]!NISUPNB,0))))*((NumberOfDaysWorked($F23,$G23,BD$1,BF$1)*5)+(NumberOfDaysWorked($F23,$G23,BD$1,BF$1)*7)) -> 0 | BE23: 0 | BF23: 0 | BG23: 4 | BH23: 0 | BI23: =IF($E23="LEADER",VLOOKUP(BG23,[1]!LEADERSHIP,5),IF($E23="TEACHER",VLOOKUP(BG23,[1]!TEACHER,5),IF($E23="ADVANCED",VLOOKUP($AW23,[1]!ADVANCED_SKILLS_TEACHERS,5),IF($E23="UNQUAL",VLOOKUP($AW23,[1]!UNQUALIFIED_TEACHER,5),0))))*D23*(1+BA$4)*(1+BA$5)*(1+BK$4)*(1+BK$5)+(BH23/BJ23) -> 3565.256448 | BJ23: 12 | BK23: 0 | BN23: =(IF($Q23="N",IF(BI23>[1]!NIUPPLIMC,((BI23-[1]!NIUPPLIMC)*[1]!NIUPPERC)+([1]!NIUPPLIMC-[1]!NILOWLIMC)*[1]!NILOWC,IF(BI23>[1]!NILOWLIMC,(BI23-[1]!NILOWLIMC)*[1]!NILOWC,0)))+IF($Q23="Y",IF(BI23>[1]!NIUPPLIMC,((BI23-[1]!NIUPPLIMC)*[1]!NIUPPERC)+(([1]!NIUPPLIMC-[1]!NILOWLIMC)*[1]!NISUPNC),IF(BI23>[1]!NILOWLIMC,(BI23-[1]!NILOWLIMC)*[1]!NISUPNC,0))))*((NumberOfDaysWorked($F23,$G23,BN$1,BP$1)*5)+(NumberOfDaysWorked($F23,$G23,BN$1,BP$1)*7)) -> 0 | BO23: 0 | BP23: 0
A24: x | B24: BOYLAN-THOMSON AMY | C24: A01001 | D24: 1 | E24: TEACHER | F24: 2025-09-01 | G24: 2028-03-31 | H24: 3 | I24: 3 | J24: 0 | K24: =VLOOKUP(J24,[1]!MANAGEMENT,2)*D24 -> 0 | L24: 0 | M24: =VLOOKUP(L24,[1]!SEN_ALLOWANCES,2)*D24 -> 0 | N24: 0 | O24: 0 | P24: 0 | Q24: Y | R24: =IF($E24="LEADER",VLOOKUP(H24,[1]PAYDATA!$A$4:$C$54,3),IF($E24="TEACHER",VLOOKUP(H24,[1]PAYDATA!$A$70:$C$80,3),IF($E24="ADVANCED",VLOOKUP(H24,[1]PAYDATA!$A$141:$C$159,3),IF($E24="UNQUAL",VLOOKUP(H24,[1]PAYDATA!$A$57:$C$63,3),0))))*$D24+($K24/T24)+($M24/T24)+($O24/T24)+($P24/T24) -> 2972.833333 | S24: =IF($E24="LEADER",VLOOKUP(I24,[1]!LEADERSHIP,5),IF($E24="TEACHER",VLOOKUP(I24,[1]!TEACHER,5),IF($E24="ADVANCED",VLOOKUP(I24,[1]PAYDATA!$A$141:$E$159,5),IF($E24="UNQUAL",VLOOKUP(I24,[1]!UNQUALIFIED_TEACHER,5),0))))*$D24+($K24/T24)+($M24/T24)+($O24/T24)+($P24/T24) -> 3091.746667 | T24: 12 | U24: =NumberOfDaysWorked($F24,$G24,U$3,U$4)*$R24 -> 0 | V24: =NumberOfDaysWorked($F24,$G24,V$3,V$4)*$R24 -> 0 | W24: =NumberOfDaysWorked($F24,$G24,W$3,W$4)*$R24 -> 0 | X24: =NumberOfDaysWorked($F24,$G24,X$3,X$4)*$R24 -> 0 | Y24: =NumberOfDaysWorked($F24,$G24,Y$3,Y$4)*$R24 -> 0 | Z24: =NumberOfDaysWorked($F24,$G24,Z$3,Z$4)*$S24 -> 3091.746667 | AA24: 3091.746667 | AB24: 3091.746667 | AC24: 3091.746667 | AD24: 3091.746667 | AE24: 3091.746667 | AF24: 3091.746667 | AG24: 21642.22667 | AH24: =IF($Q24="N",IF(U24>[1]!NIUPPLIMA,((U24-[1]!NIUPPLIMA)*[1]!NIUPPERA)+([1]!NIUPPLIMA-[1]!NILOWLIMA)*[1]!NILOWA,IF(U24>[1]!NILOWLIMA,(U24-[1]!NILOWLIMA)*[1]!NILOWA,0)))+IF($Q24="Y",IF(U24>[1]!NIUPPLIMA,((U24-[1]!NIUPPLIMA)*[1]!NIUPPERA)+(([1]!NIUPPLIMA-[1]!NILOWLIMA)*[1]!NISUPNA),IF(U24>[1]!NILOWLIMA,(U24-[1]!NILOWLIMA)*[1]!NISUPNA,0)))+IF(U24>[1]!NILOWLIMA,-[1]!NICREBATEA,0) -> 0 | AI24: =IF($Q24="N",IF(V24>[1]!NIUPPLIMA,((V24-[1]!NIUPPLIMA)*[1]!NIUPPERA)+([1]!NIUPPLIMA-[1]!NILOWLIMA)*[1]!NILOWA,IF(V24>[1]!NILOWLIMA,(V24-[1]!NILOWLIMA)*[1]!NILOWA,0)))+IF($Q24="Y",IF(V24>[1]!NIUPPLIMA,((V24-[1]!NIUPPLIMA)*[1]!NIUPPERA)+(([1]!NIUPPLIMA-[1]!NILOWLIMA)*[1]!NISUPNA),IF(V24>[1]!NILOWLIMA,(V24-[1]!NILOWLIMA)*[1]!NISUPNA,0)))+IF(V24>[1]!NILOWLIMA,-[1]!NICREBATEA,0) -> 0 | AJ24: =IF($Q24="N",IF(W24>[1]!NIUPPLIMA,((W24-[1]!NIUPPLIMA)*[1]!NIUPPERA)+([1]!NIUPPLIMA-[1]!NILOWLIMA)*[1]!NILOWA,IF(W24>[1]!NILOWLIMA,(W24-[1]!NILOWLIMA)*[1]!NILOWA,0)))+IF($Q24="Y",IF(W24>[1]!NIUPPLIMA,((W24-[1]!NIUPPLIMA)*[1]!NIUPPERA)+(([1]!NIUPPLIMA-[1]!NILOWLIMA)*[1]!NISUPNA),IF(W24>[1]!NILOWLIMA,(W24-[1]!NILOWLIMA)*[1]!NISUPNA,0)))+IF(W24>[1]!NILOWLIMA,-[1]!NICREBATEA,0) -> 0 | AK24: =IF($Q24="N",IF(X24>[1]!NIUPPLIMA,((X24-[1]!NIUPPLIMA)*[1]!NIUPPERA)+([1]!NIUPPLIMA-[1]!NILOWLIMA)*[1]!NILOWA,IF(X24>[1]!NILOWLIMA,(X24-[1]!NILOWLIMA)*[1]!NILOWA,0)))+IF($Q24="Y",IF(X24>[1]!NIUPPLIMA,((X24-[1]!NIUPPLIMA)*[1]!NIUPPERA)+(([1]!NIUPPLIMA-[1]!NILOWLIMA)*[1]!NISUPNA),IF(X24>[1]!NILOWLIMA,(X24-[1]!NILOWLIMA)*[1]!NISUPNA,0)))+IF(X24>[1]!NILOWLIMA,-[1]!NICREBATEA,0) -> 0 | AL24: =IF($Q24="N",IF(Y24>[1]!NIUPPLIMA,((Y24-[1]!NIUPPLIMA)*[1]!NIUPPERA)+([1]!NIUPPLIMA-[1]!NILOWLIMA)*[1]!NILOWA,IF(Y24>[1]!NILOWLIMA,(Y24-[1]!NILOWLIMA)*[1]!NILOWA,0)))+IF($Q24="Y",IF(Y24>[1]!NIUPPLIMA,((Y24-[1]!NIUPPLIMA)*[1]!NIUPPERA)+(([1]!NIUPPLIMA-[1]!NILOWLIMA)*[1]!NISUPNA),IF(Y24>[1]!NILOWLIMA,(Y24-[1]!NILOWLIMA)*[1]!NISUPNA,0)))+IF(Y24>[1]!NILOWLIMA,-[1]!NICREBATEA,0) -> 0 | AM24: =IF($Q24="N",IF(Z24>[1]!NIUPPLIMA,((Z24-[1]!NIUPPLIMA)*[1]!NIUPPERA)+([1]!NIUPPLIMA-[1]!NILOWLIMA)*[1]!NILOWA,IF(Z24>[1]!NILOWLIMA,(Z24-[1]!NILOWLIMA)*[1]!NILOWA,0)))+IF($Q24="Y",IF(Z24>[1]!NIUPPLIMA,((Z24-[1]!NIUPPLIMA)*[1]!NIUPPERA)+(([1]!NIUPPLIMA-[1]!NILOWLIMA)*[1]!NISUPNA),IF(Z24>[1]!NILOWLIMA,(Z24-[1]!NILOWLIMA)*[1]!NISUPNA,0)))+IF(Z24>[1]!NILOWLIMA,-[1]!NICREBATEA,0) -> 401.2615 | AN24: =IF($Q24="N",IF(AA24>[1]!NIUPPLIMA,((AA24-[1]!NIUPPLIMA)*[1]!NIUPPERA)+([1]!NIUPPLIMA-[1]!NILOWLIMA)*[1]!NILOWA,IF(AA24>[1]!NILOWLIMA,(AA24-[1]!NILOWLIMA)*[1]!NILOWA,0)))+IF($Q24="Y",IF(AA24>[1]!NIUPPLIMA,((AA24-[1]!NIUPPLIMA)*[1]!NIUPPERA)+(([1]!NIUPPLIMA-[1]!NILOWLIMA)*[1]!NISUPNA),IF(AA24>[1]!NILOWLIMA,(AA24-[1]!NILOWLIMA)*[1]!NISUPNA,0)))+IF(AA24>[1]!NILOWLIMA,-[1]!NICREBATEA,0) -> 401.2615 | AO24: =IF($Q24="N",IF(AB24>[1]!NIUPPLIMA,((AB24-[1]!NIUPPLIMA)*[1]!NIUPPERA)+([1]!NIUPPLIMA-[1]!NILOWLIMA)*[1]!NILOWA,IF(AB24>[1]!NILOWLIMA,(AB24-[1]!NILOWLIMA)*[1]!NILOWA,0)))+IF($Q24="Y",IF(AB24>[1]!NIUPPLIMA,((AB24-[1]!NIUPPLIMA)*[1]!NIUPPERA)+(([1]!NIUPPLIMA-[1]!NILOWLIMA)*[1]!NISUPNA),IF(AB24>[1]!NILOWLIMA,(AB24-[1]!NILOWLIMA)*[1]!NISUPNA,0)))+IF(AB24>[1]!NILOWLIMA,-[1]!NICREBATEA,0) -> 401.2615 | AP24: =IF($Q24="N",IF(AC24>[1]!NIUPPLIMA,((AC24-[1]!NIUPPLIMA)*[1]!NIUPPERA)+([1]!NIUPPLIMA-[1]!NILOWLIMA)*[1]!NILOWA,IF(AC24>[1]!NILOWLIMA,(AC24-[1]!NILOWLIMA)*[1]!NILOWA,0)))+IF($Q24="Y",IF(AC24>[1]!NIUPPLIMA,((AC24-[1]!NIUPPLIMA)*[1]!NIUPPERA)+(([1]!NIUPPLIMA-[1]!NILOWLIMA)*[1]!NISUPNA),IF(AC24>[1]!NILOWLIMA,(AC24-[1]!NILOWLIMA)*[1]!NISUPNA,0)))+IF(AC24>[1]!NILOWLIMA,-[1]!NICREBATEA,0) -> 401.2615 | AQ24: =IF($Q24="N",IF(AD24>[1]!NIUPPLIMA,((AD24-[1]!NIUPPLIMA)*[1]!NIUPPERA)+([1]!NIUPPLIMA-[1]!NILOWLIMA)*[1]!NILOWA,IF(AD24>[1]!NILOWLIMA,(AD24-[1]!NILOWLIMA)*[1]!NILOWA,0)))+IF($Q24="Y",IF(AD24>[1]!NIUPPLIMA,((AD24-[1]!NIUPPLIMA)*[1]!NIUPPERA)+(([1]!NIUPPLIMA-[1]!NILOWLIMA)*[1]!NISUPNA),IF(AD24>[1]!NILOWLIMA,(AD24-[1]!NILOWLIMA)*[1]!NISUPNA,0)))+IF(AD24>[1]!NILOWLIMA,-[1]!NICREBATEA,0) -> 401.2615 | AR24: =IF($Q24="N",IF(AE24>[1]!NIUPPLIMA,((AE24-[1]!NIUPPLIMA)*[1]!NIUPPERA)+([1]!NIUPPLIMA-[1]!NILOWLIMA)*[1]!NILOWA,IF(AE24>[1]!NILOWLIMA,(AE24-[1]!NILOWLIMA)*[1]!NILOWA,0)))+IF($Q24="Y",IF(AE24>[1]!NIUPPLIMA,((AE24-[1]!NIUPPLIMA)*[1]!NIUPPERA)+(([1]!NIUPPLIMA-[1]!NILOWLIMA)*[1]!NISUPNA),IF(AE24>[1]!NILOWLIMA,(AE24-[1]!NILOWLIMA)*[1]!NISUPNA,0)))+IF(AE24>[1]!NILOWLIMA,-[1]!NICREBATEA,0) -> 401.2615 | AS24: =IF($Q24="N",IF(AF24>[1]!NIUPPLIMA,((AF24-[1]!NIUPPLIMA)*[1]!NIUPPERA)+([1]!NIUPPLIMA-[1]!NILOWLIMA)*[1]!NILOWA,IF(AF24>[1]!NILOWLIMA,(AF24-[1]!NILOWLIMA)*[1]!NILOWA,0)))+IF($Q24="Y",IF(AF24>[1]!NIUPPLIMA,((AF24-[1]!NIUPPLIMA)*[1]!NIUPPERA)+(([1]!NIUPPLIMA-[1]!NILOWLIMA)*[1]!NISUPNA),IF(AF24>[1]!NILOWLIMA,(AF24-[1]!NILOWLIMA)*[1]!NISUPNA,0)))+IF(AF24>[1]!NILOWLIMA,-[1]!NICREBATEA,0) -> 401.2615 | AT24: 2808.8305 | AU24: 6206.990608 | AV24: 30658.04777 | AW24: 4 | AX24: 0 | AY24: =IF($E24="LEADER",VLOOKUP(AW24,[1]!LEADERSHIP,5),IF($E24="TEACHER",VLOOKUP(AW24,[1]!TEACHER,5),IF($E24="ADVANCED",VLOOKUP($AW24,[1]!ADVANCED_SKILLS_TEACHERS,5),IF($E24="UNQUAL",VLOOKUP($AW24,[1]!UNQUALIFIED_TEACHER,5),0))))*D24*(1+BA$4)*(1+BA$5)+(AX24/AZ24) -> 3428.1312 | AZ24: 12 | BA24: 39455.65173 | BD24: =(IF($Q24="N",IF(AY24>[1]!NIUPPLIMB,((AY24-[1]!NIUPPLIMB)*[1]!NIUPPERB)+([1]!NIUPPLIMB-[1]!NILOWLIMB)*[1]!NILOWB,IF(AY24>[1]!NILOWLIMB,(AY24-[1]!NILOWLIMB)*[1]!NILOWB,0)))+IF($Q24="Y",IF(AY24>[1]!NIUPPLIMB,((AY24-[1]!NIUPPLIMB)*[1]!NIUPPERB)+(([1]!NIUPPLIMB-[1]!NILOWLIMB)*[1]!NISUPNB),IF(AY24>[1]!NILOWLIMB,(AY24-[1]!NILOWLIMB)*[1]!NISUPNB,0))))*((NumberOfDaysWorked($F24,$G24,BD$1,BF$1)*5)+(NumberOfDaysWorked($F24,$G24,BD$1,BF$1)*7)) -> 5420.63616 | BE24: 11315.88092 | BF24: 56192.16881 | BG24: 5 | BH24: 0 | BI24: =IF($E24="LEADER",VLOOKUP(BG24,[1]!LEADERSHIP,5),IF($E24="TEACHER",VLOOKUP(BG24,[1]!TEACHER,5),IF($E24="ADVANCED",VLOOKUP($AW24,[1]!ADVANCED_SKILLS_TEACHERS,5),IF($E24="UNQUAL",VLOOKUP($AW24,[1]!UNQUALIFIED_TEACHER,5),0))))*D24*(1+BA$4)*(1+BA$5)*(1+BK$4)*(1+BK$5)+(BH24/BJ24) -> 3790.697941 | BJ24: 12 | BK24: 43675.54159 | BN24: =(IF($Q24="N",IF(BI24>[1]!NIUPPLIMC,((BI24-[1]!NIUPPLIMC)*[1]!NIUPPERC)+([1]!NIUPPLIMC-[1]!NILOWLIMC)*[1]!NILOWC,IF(BI24>[1]!NILOWLIMC,(BI24-[1]!NILOWLIMC)*[1]!NILOWC,0)))+IF($Q24="Y",IF(BI24>[1]!NIUPPLIMC,((BI24-[1]!NIUPPLIMC)*[1]!NIUPPERC)+(([1]!NIUPPLIMC-[1]!NILOWLIMC)*[1]!NISUPNC),IF(BI24>[1]!NILOWLIMC,(BI24-[1]!NILOWLIMC)*[1]!NISUPNC,0))))*((NumberOfDaysWorked($F24,$G24,BN$1,BP$1)*5)+(NumberOfDaysWorked($F24,$G24,BN$1,BP$1)*7)) -> 6073.256294 | BO24: 12526.14533 | BP24: 62274.94321
A25: x | B25: CRAIG AMY | C25: A01001 | D25: 1 | E25: TEACHER | F25: 2025-04-01 | G25: 2025-08-31 | H25: U3 | I25: U3 | J25: 0 | K25: =VLOOKUP(J25,[1]!MANAGEMENT,2)*D25 -> 0 | L25: 0 | M25: =VLOOKUP(L25,[1]!SEN_ALLOWANCES,2)*D25 -> 0 | N25: 0 | O25: 0 | P25: 3391 | Q25: Y | R25: =IF($E25="LEADER",VLOOKUP(H25,[1]PAYDATA!$A$4:$C$54,3),IF($E25="TEACHER",VLOOKUP(H25,[1]PAYDATA!$A$70:$C$80,3),IF($E25="ADVANCED",VLOOKUP(H25,[1]PAYDATA!$A$141:$C$159,3),IF($E25="UNQUAL",VLOOKUP(H25,[1]PAYDATA!$A$57:$C$63,3),0))))*$D25+($K25/T25)+($M25/T25)+($O25/T25)+($P25/T25) -> 4372.916667 | S25: =IF($E25="LEADER",VLOOKUP(I25,[1]!LEADERSHIP,5),IF($E25="TEACHER",VLOOKUP(I25,[1]!TEACHER,5),IF($E25="ADVANCED",VLOOKUP(I25,[1]PAYDATA!$A$141:$E$159,5),IF($E25="UNQUAL",VLOOKUP(I25,[1]!UNQUALIFIED_TEACHER,5),0))))*$D25+($K25/T25)+($M25/T25)+($O25/T25)+($P25/T25) -> 4536.53 | T25: 12 | U25: 4372.916667 | V25: 4372.916667 | W25: 4372.916667 | X25: 4372.916667 | Y25: 4372.916667 | Z25: 0 | AA25: 0 | AB25: 0 | AC25: 0 | AD25: 0 | AE25: 0 | AF25: 0 | AG25: =SUM(U25:AF25) -> 21864.58333 | AH25: =IF($Q25="N",IF(U25>[1]!NIUPPLIMA,((U25-[1]!NIUPPLIMA)*[1]!NIUPPERA)+([1]!NIUPPLIMA-[1]!NILOWLIMA)*[1]!NILOWA,IF(U25>[1]!NILOWLIMA,(U25-[1]!NILOWLIMA)*[1]!NILOWA,0)))+IF($Q25="Y",IF(U25>[1]!NIUPPLIMA,((U25-[1]!NIUPPLIMA)*[1]!NIUPPERA)+(([1]!NIUPPLIMA-[1]!NILOWLIMA)*[1]!NISUPNA),IF(U25>[1]!NILOWLIMA,(U25-[1]!NILOWLIMA)*[1]!NISUPNA,0)))+IF(U25>[1]!NILOWLIMA,-[1]!NICREBATEA,0) -> 593.437 | AI25: =IF($Q25="N",IF(V25>[1]!NIUPPLIMA,((V25-[1]!NIUPPLIMA)*[1]!NIUPPERA)+([1]!NIUPPLIMA-[1]!NILOWLIMA)*[1]!NILOWA,IF(V25>[1]!NILOWLIMA,(V25-[1]!NILOWLIMA)*[1]!NILOWA,0)))+IF($Q25="Y",IF(V25>[1]!NIUPPLIMA,((V25-[1]!NIUPPLIMA)*[1]!NIUPPERA)+(([1]!NIUPPLIMA-[1]!NILOWLIMA)*[1]!NISUPNA),IF(V25>[1]!NILOWLIMA,(V25-[1]!NILOWLIMA)*[1]!NISUPNA,0)))+IF(V25>[1]!NILOWLIMA,-[1]!NICREBATEA,0) -> 593.437 | AJ25: =IF($Q25="N",IF(W25>[1]!NIUPPLIMA,((W25-[1]!NIUPPLIMA)*[1]!NIUPPERA)+([1]!NIUPPLIMA-[1]!NILOWLIMA)*[1]!NILOWA,IF(W25>[1]!NILOWLIMA,(W25-[1]!NILOWLIMA)*[1]!NILOWA,0)))+IF($Q25="Y",IF(W25>[1]!NIUPPLIMA,((W25-[1]!NIUPPLIMA)*[1]!NIUPPERA)+(([1]!NIUPPLIMA-[1]!NILOWLIMA)*[1]!NISUPNA),IF(W25>[1]!NILOWLIMA,(W25-[1]!NILOWLIMA)*[1]!NISUPNA,0)))+IF(W25>[1]!NILOWLIMA,-[1]!NICREBATEA,0) -> 593.437 | AK25: =IF($Q25="N",IF(X25>[1]!NIUPPLIMA,((X25-[1]!NIUPPLIMA)*[1]!NIUPPERA)+([1]!NIUPPLIMA-[1]!NILOWLIMA)*[1]!NILOWA,IF(X25>[1]!NILOWLIMA,(X25-[1]!NILOWLIMA)*[1]!NILOWA,0)))+IF($Q25="Y",IF(X25>[1]!NIUPPLIMA,((X25-[1]!NIUPPLIMA)*[1]!NIUPPERA)+(([1]!NIUPPLIMA-[1]!NILOWLIMA)*[1]!NISUPNA),IF(X25>[1]!NILOWLIMA,(X25-[1]!NILOWLIMA)*[1]!NISUPNA,0)))+IF(X25>[1]!NILOWLIMA,-[1]!NICREBATEA,0) -> 593.437 | AL25: =IF($Q25="N",IF(Y25>[1]!NIUPPLIMA,((Y25-[1]!NIUPPLIMA)*[1]!NIUPPERA)+([1]!NIUPPLIMA-[1]!NILOWLIMA)*[1]!NILOWA,IF(Y25>[1]!NILOWLIMA,(Y25-[1]!NILOWLIMA)*[1]!NILOWA,0)))+IF($Q25="Y",IF(Y25>[1]!NIUPPLIMA,((Y25-[1]!NIUPPLIMA)*[1]!NIUPPERA)+(([1]!NIUPPLIMA-[1]!NILOWLIMA)*[1]!NISUPNA),IF(Y25>[1]!NILOWLIMA,(Y25-[1]!NILOWLIMA)*[1]!NISUPNA,0)))+IF(Y25>[1]!NILOWLIMA,-[1]!NICREBATEA,0) -> 593.437 | AM25: =IF($Q25="N",IF(Z25>[1]!NIUPPLIMA,((Z25-[1]!NIUPPLIMA)*[1]!NIUPPERA)+([1]!NIUPPLIMA-[1]!NILOWLIMA)*[1]!NILOWA,IF(Z25>[1]!NILOWLIMA,(Z25-[1]!NILOWLIMA)*[1]!NILOWA,0)))+IF($Q25="Y",IF(Z25>[1]!NIUPPLIMA,((Z25-[1]!NIUPPLIMA)*[1]!NIUPPERA)+(([1]!NIUPPLIMA-[1]!NILOWLIMA)*[1]!NISUPNA),IF(Z25>[1]!NILOWLIMA,(Z25-[1]!NILOWLIMA)*[1]!NISUPNA,0)))+IF(Z25>[1]!NILOWLIMA,-[1]!NICREBATEA,0) -> 0 | AN25: =IF($Q25="N",IF(AA25>[1]!NIUPPLIMA,((AA25-[1]!NIUPPLIMA)*[1]!NIUPPERA)+([1]!NIUPPLIMA-[1]!NILOWLIMA)*[1]!NILOWA,IF(AA25>[1]!NILOWLIMA,(AA25-[1]!NILOWLIMA)*[1]!NILOWA,0)))+IF($Q25="Y",IF(AA25>[1]!NIUPPLIMA,((AA25-[1]!NIUPPLIMA)*[1]!NIUPPERA)+(([1]!NIUPPLIMA-[1]!NILOWLIMA)*[1]!NISUPNA),IF(AA25>[1]!NILOWLIMA,(AA25-[1]!NILOWLIMA)*[1]!NISUPNA,0)))+IF(AA25>[1]!NILOWLIMA,-[1]!NICREBATEA,0) -> 0 | AO25: =IF($Q25="N",IF(AB25>[1]!NIUPPLIMA,((AB25-[1]!NIUPPLIMA)*[1]!NIUPPERA)+([1]!NIUPPLIMA-[1]!NILOWLIMA)*[1]!NILOWA,IF(AB25>[1]!NILOWLIMA,(AB25-[1]!NILOWLIMA)*[1]!NILOWA,0)))+IF($Q25="Y",IF(AB25>[1]!NIUPPLIMA,((AB25-[1]!NIUPPLIMA)*[1]!NIUPPERA)+(([1]!NIUPPLIMA-[1]!NILOWLIMA)*[1]!NISUPNA),IF(AB25>[1]!NILOWLIMA,(AB25-[1]!NILOWLIMA)*[1]!NISUPNA,0)))+IF(AB25>[1]!NILOWLIMA,-[1]!NICREBATEA,0) -> 0 | AP25: =IF($Q25="N",IF(AC25>[1]!NIUPPLIMA,((AC25-[1]!NIUPPLIMA)*[1]!NIUPPERA)+([1]!NIUPPLIMA-[1]!NILOWLIMA)*[1]!NILOWA,IF(AC25>[1]!NILOWLIMA,(AC25-[1]!NILOWLIMA)*[1]!NILOWA,0)))+IF($Q25="Y",IF(AC25>[1]!NIUPPLIMA,((AC25-[1]!NIUPPLIMA)*[1]!NIUPPERA)+(([1]!NIUPPLIMA-[1]!NILOWLIMA)*[1]!NISUPNA),IF(AC25>[1]!NILOWLIMA,(AC25-[1]!NILOWLIMA)*[1]!NISUPNA,0)))+IF(AC25>[1]!NILOWLIMA,-[1]!NICREBATEA,0) -> 0 | AQ25: =IF($Q25="N",IF(AD25>[1]!NIUPPLIMA,((AD25-[1]!NIUPPLIMA)*[1]!NIUPPERA)+([1]!NIUPPLIMA-[1]!NILOWLIMA)*[1]!NILOWA,IF(AD25>[1]!NILOWLIMA,(AD25-[1]!NILOWLIMA)*[1]!NILOWA,0)))+IF($Q25="Y",IF(AD25>[1]!NIUPPLIMA,((AD25-[1]!NIUPPLIMA)*[1]!NIUPPERA)+(([1]!NIUPPLIMA-[1]!NILOWLIMA)*[1]!NISUPNA),IF(AD25>[1]!NILOWLIMA,(AD25-[1]!NILOWLIMA)*[1]!NISUPNA,0)))+IF(AD25>[1]!NILOWLIMA,-[1]!NICREBATEA,0) -> 0 | AR25: =IF($Q25="N",IF(AE25>[1]!NIUPPLIMA,((AE25-[1]!NIUPPLIMA)*[1]!NIUPPERA)+([1]!NIUPPLIMA-[1]!NILOWLIMA)*[1]!NILOWA,IF(AE25>[1]!NILOWLIMA,(AE25-[1]!NILOWLIMA)*[1]!NILOWA,0)))+IF($Q25="Y",IF(AE25>[1]!NIUPPLIMA,((AE25-[1]!NIUPPLIMA)*[1]!NIUPPERA)+(([1]!NIUPPLIMA-[1]!NILOWLIMA)*[1]!NISUPNA),IF(AE25>[1]!NILOWLIMA,(AE25-[1]!NILOWLIMA)*[1]!NISUPNA,0)))+IF(AE25>[1]!NILOWLIMA,-[1]!NICREBATEA,0) -> 0 | AS25: =IF($Q25="N",IF(AF25>[1]!NIUPPLIMA,((AF25-[1]!NIUPPLIMA)*[1]!NIUPPERA)+([1]!NIUPPLIMA-[1]!NILOWLIMA)*[1]!NILOWA,IF(AF25>[1]!NILOWLIMA,(AF25-[1]!NILOWLIMA)*[1]!NILOWA,0)))+IF($Q25="Y",IF(AF25>[1]!NIUPPLIMA,((AF25-[1]!NIUPPLIMA)*[1]!NIUPPERA)+(([1]!NIUPPLIMA-[1]!NILOWLIMA)*[1]!NISUPNA),IF(AF25>[1]!NILOWLIMA,(AF25-[1]!NILOWLIMA)*[1]!NISUPNA,0)))+IF(AF25>[1]!NILOWLIMA,-[1]!NICREBATEA,0) -> 0 | AT25: =SUM(AH25:AS25) -> 2967.185 | AU25: 6270.7625 | AV25: 31102.53083 | AW25: U3 | AX25: 3391 | AY25: =IF($E25="LEADER",VLOOKUP(AW25,[1]!LEADERSHIP,5),IF($E25="TEACHER",VLOOKUP(AW25,[1]!TEACHER,5),IF($E25="ADVANCED",VLOOKUP($AW25,[1]!ADVANCED_SKILLS_TEACHERS,5),IF($E25="UNQUAL",VLOOKUP($AW25,[1]!UNQUALIFIED_TEACHER,5),0))))*D25*(1+BA$4)*(1+BA$5)+(AX25/AZ25) -> 4706.687867 | AZ25: 12 | BA25: 0 | BD25: =(IF($Q25="N",IF(AY25>[1]!NIUPPLIMB,((AY25-[1]!NIUPPLIMB)*[1]!NIUPPERB)+([1]!NIUPPLIMB-[1]!NILOWLIMB)*[1]!NILOWB,IF(AY25>[1]!NILOWLIMB,(AY25-[1]!NILOWLIMB)*[1]!NILOWB,0)))+IF($Q25="Y",IF(AY25>[1]!NIUPPLIMB,((AY25-[1]!NIUPPLIMB)*[1]!NIUPPERB)+(([1]!NIUPPLIMB-[1]!NILOWLIMB)*[1]!NISUPNB),IF(AY25>[1]!NILOWLIMB,(AY25-[1]!NILOWLIMB)*[1]!NISUPNB,0))))*((NumberOfDaysWorked($F25,$G25,BD$1,BF$1)*5)+(NumberOfDaysWorked($F25,$G25,BD$1,BF$1)*7)) -> 0 | BE25: 0 | BF25: 0 | BG25: U3 | BH25: 3391 | BI25: =IF($E25="LEADER",VLOOKUP(BG25,[1]!LEADERSHIP,5),IF($E25="TEACHER",VLOOKUP(BG25,[1]!TEACHER,5),IF($E25="ADVANCED",VLOOKUP($AW25,[1]!ADVANCED_SKILLS_TEACHERS,5),IF($E25="UNQUAL",VLOOKUP($AW25,[1]!UNQUALIFIED_TEACHER,5),0))))*D25*(1+BA$4)*(1+BA$5)*(1+BK$4)*(1+BK$5)+(BH25/BJ25) -> 4883.652048 | BJ25: 12 | BK25: 0 | BN25: =(IF($Q25="N",IF(BI25>[1]!NIUPPLIMC,((BI25-[1]!NIUPPLIMC)*[1]!NIUPPERC)+([1]!NIUPPLIMC-[1]!NILOWLIMC)*[1]!NILOWC,IF(BI25>[1]!NILOWLIMC,(BI25-[1]!NILOWLIMC)*[1]!NILOWC,0)))+IF($Q25="Y",IF(BI25>[1]!NIUPPLIMC,((BI25-[1]!NIUPPLIMC)*[1]!NIUPPERC)+(([1]!NIUPPLIMC-[1]!NILOWLIMC)*[1]!NISUPNC),IF(BI25>[1]!NILOWLIMC,(BI25-[1]!NILOWLIMC)*[1]!NISUPNC,0))))*((NumberOfDaysWorked($F25,$G25,BN$1,BP$1)*5)+(NumberOfDaysWorked($F25,$G25,BN$1,BP$1)*7)) -> 0 | BO25: 0 | BP25: 0
A26: x | B26: CRAIG AMY | C26: A01001 | D26: 1 | E26: TEACHER | F26: 2025-09-01 | G26: 2028-03-31 | H26: U3 | I26: U3 | J26: 0 | K26: =VLOOKUP(J26,[1]!MANAGEMENT,2)*D26 -> 0 | L26: 0 | M26: =VLOOKUP(L26,[1]!SEN_ALLOWANCES,2)*D26 -> 0 | N26: 0 | O26: 0 | P26: 3527 | Q26: Y | R26: =IF($E26="LEADER",VLOOKUP(H26,[1]PAYDATA!$A$4:$C$54,3),IF($E26="TEACHER",VLOOKUP(H26,[1]PAYDATA!$A$70:$C$80,3),IF($E26="ADVANCED",VLOOKUP(H26,[1]PAYDATA!$A$141:$C$159,3),IF($E26="UNQUAL",VLOOKUP(H26,[1]PAYDATA!$A$57:$C$63,3),0))))*$D26+($K26/T26)+($M26/T26)+($O26/T26)+($P26/T26) -> 4384.25 | S26: =IF($E26="LEADER",VLOOKUP(I26,[1]!LEADERSHIP,5),IF($E26="TEACHER",VLOOKUP(I26,[1]!TEACHER,5),IF($E26="ADVANCED",VLOOKUP(I26,[1]PAYDATA!$A$141:$E$159,5),IF($E26="UNQUAL",VLOOKUP(I26,[1]!UNQUALIFIED_TEACHER,5),0))))*$D26+($K26/T26)+($M26/T26)+($O26/T26)+($P26/T26) -> 4547.863333 | T26: =IF(G26-F26>11.99999,12,MONTH(G26)-MONTH(F26)) -> 12 | U26: =NumberOfDaysWorked($F26,$G26,U$3,U$4)*$R26 -> 0 | V26: =NumberOfDaysWorked($F26,$G26,V$3,V$4)*$R26 -> 0 | W26: =NumberOfDaysWorked($F26,$G26,W$3,W$4)*$R26 -> 0 | X26: =NumberOfDaysWorked($F26,$G26,X$3,X$4)*$R26 -> 0 | Y26: =NumberOfDaysWorked($F26,$G26,Y$3,Y$4)*$R26 -> 0 | Z26: =NumberOfDaysWorked($F26,$G26,Z$3,Z$4)*$S26 -> 4547.863333 | AA26: 4547.863333 | AB26: 4547.863333 | AC26: 4547.863333 | AD26: 4547.863333 | AE26: 4547.863333 | AF26: 4547.863333 | AG26: 31835.04333 | AH26: =IF($Q26="N",IF(U26>[1]!NIUPPLIMA,((U26-[1]!NIUPPLIMA)*[1]!NIUPPERA)+([1]!NIUPPLIMA-[1]!NILOWLIMA)*[1]!NILOWA,IF(U26>[1]!NILOWLIMA,(U26-[1]!NILOWLIMA)*[1]!NILOWA,0)))+IF($Q26="Y",IF(U26>[1]!NIUPPLIMA,((U26-[1]!NIUPPLIMA)*[1]!NIUPPERA)+(([1]!NIUPPLIMA-[1]!NILOWLIMA)*[1]!NISUPNA),IF(U26>[1]!NILOWLIMA,(U26-[1]!NILOWLIMA)*[1]!NISUPNA,0)))+IF(U26>[1]!NILOWLIMA,-[1]!NICREBATEA,0) -> 0 | AI26: =IF($Q26="N",IF(V26>[1]!NIUPPLIMA,((V26-[1]!NIUPPLIMA)*[1]!NIUPPERA)+([1]!NIUPPLIMA-[1]!NILOWLIMA)*[1]!NILOWA,IF(V26>[1]!NILOWLIMA,(V26-[1]!NILOWLIMA)*[1]!NILOWA,0)))+IF($Q26="Y",IF(V26>[1]!NIUPPLIMA,((V26-[1]!NIUPPLIMA)*[1]!NIUPPERA)+(([1]!NIUPPLIMA-[1]!NILOWLIMA)*[1]!NISUPNA),IF(V26>[1]!NILOWLIMA,(V26-[1]!NILOWLIMA)*[1]!NISUPNA,0)))+IF(V26>[1]!NILOWLIMA,-[1]!NICREBATEA,0) -> 0 | AJ26: =IF($Q26="N",IF(W26>[1]!NIUPPLIMA,((W26-[1]!NIUPPLIMA)*[1]!NIUPPERA)+([1]!NIUPPLIMA-[1]!NILOWLIMA)*[1]!NILOWA,IF(W26>[1]!NILOWLIMA,(W26-[1]!NILOWLIMA)*[1]!NILOWA,0)))+IF($Q26="Y",IF(W26>[1]!NIUPPLIMA,((W26-[1]!NIUPPLIMA)*[1]!NIUPPERA)+(([1]!NIUPPLIMA-[1]!NILOWLIMA)*[1]!NISUPNA),IF(W26>[1]!NILOWLIMA,(W26-[1]!NILOWLIMA)*[1]!NISUPNA,0)))+IF(W26>[1]!NILOWLIMA,-[1]!NICREBATEA,0) -> 0 | AK26: =IF($Q26="N",IF(X26>[1]!NIUPPLIMA,((X26-[1]!NIUPPLIMA)*[1]!NIUPPERA)+([1]!NIUPPLIMA-[1]!NILOWLIMA)*[1]!NILOWA,IF(X26>[1]!NILOWLIMA,(X26-[1]!NILOWLIMA)*[1]!NILOWA,0)))+IF($Q26="Y",IF(X26>[1]!NIUPPLIMA,((X26-[1]!NIUPPLIMA)*[1]!NIUPPERA)+(([1]!NIUPPLIMA-[1]!NILOWLIMA)*[1]!NISUPNA),IF(X26>[1]!NILOWLIMA,(X26-[1]!NILOWLIMA)*[1]!NISUPNA,0)))+IF(X26>[1]!NILOWLIMA,-[1]!NICREBATEA,0) -> 0 | AL26: =IF($Q26="N",IF(Y26>[1]!NIUPPLIMA,((Y26-[1]!NIUPPLIMA)*[1]!NIUPPERA)+([1]!NIUPPLIMA-[1]!NILOWLIMA)*[1]!NILOWA,IF(Y26>[1]!NILOWLIMA,(Y26-[1]!NILOWLIMA)*[1]!NILOWA,0)))+IF($Q26="Y",IF(Y26>[1]!NIUPPLIMA,((Y26-[1]!NIUPPLIMA)*[1]!NIUPPERA)+(([1]!NIUPPLIMA-[1]!NILOWLIMA)*[1]!NISUPNA),IF(Y26>[1]!NILOWLIMA,(Y26-[1]!NILOWLIMA)*[1]!NISUPNA,0)))+IF(Y26>[1]!NILOWLIMA,-[1]!NICREBATEA,0) -> 0 | AM26: =IF($Q26="N",IF(Z26>[1]!NIUPPLIMA,((Z26-[1]!NIUPPLIMA)*[1]!NIUPPERA)+([1]!NIUPPLIMA-[1]!NILOWLIMA)*[1]!NILOWA,IF(Z26>[1]!NILOWLIMA,(Z26-[1]!NILOWLIMA)*[1]!NILOWA,0)))+IF($Q26="Y",IF(Z26>[1]!NIUPPLIMA,((Z26-[1]!NIUPPLIMA)*[1]!NIUPPERA)+(([1]!NIUPPLIMA-[1]!NILOWLIMA)*[1]!NISUPNA),IF(Z26>[1]!NILOWLIMA,(Z26-[1]!NILOWLIMA)*[1]!NISUPNA,0)))+IF(Z26>[1]!NILOWLIMA,-[1]!NICREBATEA,0) -> 619.679 | AN26: =IF($Q26="N",IF(AA26>[1]!NIUPPLIMA,((AA26-[1]!NIUPPLIMA)*[1]!NIUPPERA)+([1]!NIUPPLIMA-[1]!NILOWLIMA)*[1]!NILOWA,IF(AA26>[1]!NILOWLIMA,(AA26-[1]!NILOWLIMA)*[1]!NILOWA,0)))+IF($Q26="Y",IF(AA26>[1]!NIUPPLIMA,((AA26-[1]!NIUPPLIMA)*[1]!NIUPPERA)+(([1]!NIUPPLIMA-[1]!NILOWLIMA)*[1]!NISUPNA),IF(AA26>[1]!NILOWLIMA,(AA26-[1]!NILOWLIMA)*[1]!NISUPNA,0)))+IF(AA26>[1]!NILOWLIMA,-[1]!NICREBATEA,0) -> 619.679 | AO26: =IF($Q26="N",IF(AB26>[1]!NIUPPLIMA,((AB26-[1]!NIUPPLIMA)*[1]!NIUPPERA)+([1]!NIUPPLIMA-[1]!NILOWLIMA)*[1]!NILOWA,IF(AB26>[1]!NILOWLIMA,(AB26-[1]!NILOWLIMA)*[1]!NILOWA,0)))+IF($Q26="Y",IF(AB26>[1]!NIUPPLIMA,((AB26-[1]!NIUPPLIMA)*[1]!NIUPPERA)+(([1]!NIUPPLIMA-[1]!NILOWLIMA)*[1]!NISUPNA),IF(AB26>[1]!NILOWLIMA,(AB26-[1]!NILOWLIMA)*[1]!NISUPNA,0)))+IF(AB26>[1]!NILOWLIMA,-[1]!NICREBATEA,0) -> 619.679 | AP26: =IF($Q26="N",IF(AC26>[1]!NIUPPLIMA,((AC26-[1]!NIUPPLIMA)*[1]!NIUPPERA)+([1]!NIUPPLIMA-[1]!NILOWLIMA)*[1]!NILOWA,IF(AC26>[1]!NILOWLIMA,(AC26-[1]!NILOWLIMA)*[1]!NILOWA,0)))+IF($Q26="Y",IF(AC26>[1]!NIUPPLIMA,((AC26-[1]!NIUPPLIMA)*[1]!NIUPPERA)+(([1]!NIUPPLIMA-[1]!NILOWLIMA)*[1]!NISUPNA),IF(AC26>[1]!NILOWLIMA,(AC26-[1]!NILOWLIMA)*[1]!NISUPNA,0)))+IF(AC26>[1]!NILOWLIMA,-[1]!NICREBATEA,0) -> 619.679 | AQ26: =IF($Q26="N",IF(AD26>[1]!NIUPPLIMA,((AD26-[1]!NIUPPLIMA)*[1]!NIUPPERA)+([1]!NIUPPLIMA-[1]!NILOWLIMA)*[1]!NILOWA,IF(AD26>[1]!NILOWLIMA,(AD26-[1]!NILOWLIMA)*[1]!NILOWA,0)))+IF($Q26="Y",IF(AD26>[1]!NIUPPLIMA,((AD26-[1]!NIUPPLIMA)*[1]!NIUPPERA)+(([1]!NIUPPLIMA-[1]!NILOWLIMA)*[1]!NISUPNA),IF(AD26>[1]!NILOWLIMA,(AD26-[1]!NILOWLIMA)*[1]!NISUPNA,0)))+IF(AD26>[1]!NILOWLIMA,-[1]!NICREBATEA,0) -> 619.679 | AR26: =IF($Q26="N",IF(AE26>[1]!NIUPPLIMA,((AE26-[1]!NIUPPLIMA)*[1]!NIUPPERA)+([1]!NIUPPLIMA-[1]!NILOWLIMA)*[1]!NILOWA,IF(AE26>[1]!NILOWLIMA,(AE26-[1]!NILOWLIMA)*[1]!NILOWA,0)))+IF($Q26="Y",IF(AE26>[1]!NIUPPLIMA,((AE26-[1]!NIUPPLIMA)*[1]!NIUPPERA)+(([1]!NIUPPLIMA-[1]!NILOWLIMA)*[1]!NISUPNA),IF(AE26>[1]!NILOWLIMA,(AE26-[1]!NILOWLIMA)*[1]!NISUPNA,0)))+IF(AE26>[1]!NILOWLIMA,-[1]!NICREBATEA,0) -> 619.679 | AS26: =IF($Q26="N",IF(AF26>[1]!NIUPPLIMA,((AF26-[1]!NIUPPLIMA)*[1]!NIUPPERA)+([1]!NIUPPLIMA-[1]!NILOWLIMA)*[1]!NILOWA,IF(AF26>[1]!NILOWLIMA,(AF26-[1]!NILOWLIMA)*[1]!NILOWA,0)))+IF($Q26="Y",IF(AF26>[1]!NIUPPLIMA,((AF26-[1]!NIUPPLIMA)*[1]!NIUPPERA)+(([1]!NIUPPLIMA-[1]!NILOWLIMA)*[1]!NISUPNA),IF(AF26>[1]!NILOWLIMA,(AF26-[1]!NILOWLIMA)*[1]!NISUPNA,0)))+IF(AF26>[1]!NILOWLIMA,-[1]!NICREBATEA,0) -> 619.679 | AT26: 4337.753 | AU26: 9130.290428 | AV26: 45303.08676 | AW26: U3 | AX26: 3527 | AY26: =IF($E26="LEADER",VLOOKUP(AW26,[1]!LEADERSHIP,5),IF($E26="TEACHER",VLOOKUP(AW26,[1]!TEACHER,5),IF($E26="ADVANCED",VLOOKUP($AW26,[1]!ADVANCED_SKILLS_TEACHERS,5),IF($E26="UNQUAL",VLOOKUP($AW26,[1]!UNQUALIFIED_TEACHER,5),0))))*D26*(1+BA$4)*(1+BA$5)+(AX26/AZ26) -> 4718.0212 | AZ26: 12 | BA26: 55765.46507 | BD26: =(IF($Q26="N",IF(AY26>[1]!NIUPPLIMB,((AY26-[1]!NIUPPLIMB)*[1]!NIUPPERB)+([1]!NIUPPLIMB-[1]!NILOWLIMB)*[1]!NILOWB,IF(AY26>[1]!NILOWLIMB,(AY26-[1]!NILOWLIMB)*[1]!NILOWB,0)))+IF($Q26="Y",IF(AY26>[1]!NIUPPLIMB,((AY26-[1]!NIUPPLIMB)*[1]!NIUPPERB)+(([1]!NIUPPLIMB-[1]!NILOWLIMB)*[1]!NISUPNB),IF(AY26>[1]!NILOWLIMB,(AY26-[1]!NILOWLIMB)*[1]!NISUPNB,0))))*((NumberOfDaysWorked($F26,$G26,BD$1,BF$1)*5)+(NumberOfDaysWorked($F26,$G26,BD$1,BF$1)*7)) -> 7742.43816 | BE26: 15993.53538 | BF26: 79501.43861 | BG26: U3 | BH26: 3527 | BI26: =IF($E26="LEADER",VLOOKUP(BG26,[1]!LEADERSHIP,5),IF($E26="TEACHER",VLOOKUP(BG26,[1]!TEACHER,5),IF($E26="ADVANCED",VLOOKUP($AW26,[1]!ADVANCED_SKILLS_TEACHERS,5),IF($E26="UNQUAL",VLOOKUP($AW26,[1]!UNQUALIFIED_TEACHER,5),0))))*D26*(1+BA$4)*(1+BA$5)*(1+BK$4)*(1+BK$5)+(BH26/BJ26) -> 4894.985381 | BJ26: 12 | BK26: 57855.00367 | BN26: =(IF($Q26="N",IF(BI26>[1]!NIUPPLIMC,((BI26-[1]!NIUPPLIMC)*[1]!NIUPPERC)+([1]!NIUPPLIMC-[1]!NILOWLIMC)*[1]!NILOWC,IF(BI26>[1]!NILOWLIMC,(BI26-[1]!NILOWLIMC)*[1]!NILOWC,0)))+IF($Q26="Y",IF(BI26>[1]!NIUPPLIMC,((BI26-[1]!NIUPPLIMC)*[1]!NIUPPERC)+(([1]!NIUPPLIMC-[1]!NILOWLIMC)*[1]!NISUPNC),IF(BI26>[1]!NILOWLIMC,(BI26-[1]!NILOWLIMC)*[1]!NISUPNC,0))))*((NumberOfDaysWorked($F26,$G26,BN$1,BP$1)*5)+(NumberOfDaysWorked($F26,$G26,BN$1,BP$1)*7)) -> 8060.973686 | BO26: 16592.81505 | BP26: 82508.79241
A27: x | B27: JULIER ESTA | C27: A01001 | D27: 1 | E27: TEACHER | F27: 2025-04-01 | G27: 2025-08-31 | H27: U2 | I27: U2 | J27: 0 | K27: =VLOOKUP(J27,[1]!MANAGEMENT,2)*D27 -> 0 | L27: 0 | M27: =VLOOKUP(L27,[1]!SEN_ALLOWANCES,2)*D27 -> 0 | N27: 0 | O27: 0 | P27: 0 | Q27: Y | R27: =IF($E27="LEADER",VLOOKUP(H27,[1]PAYDATA!$A$4:$C$54,3),IF($E27="TEACHER",VLOOKUP(H27,[1]PAYDATA!$A$70:$C$80,3),IF($E27="ADVANCED",VLOOKUP(H27,[1]PAYDATA!$A$141:$C$159,3),IF($E27="UNQUAL",VLOOKUP(H27,[1]PAYDATA!$A$57:$C$63,3),0))))*$D27+($K27/T27)+($M27/T27)+($O27/T27)+($P27/T27) -> 3944.833333 | S27: =IF($E27="LEADER",VLOOKUP(I27,[1]!LEADERSHIP,5),IF($E27="TEACHER",VLOOKUP(I27,[1]!TEACHER,5),IF($E27="ADVANCED",VLOOKUP(I27,[1]PAYDATA!$A$141:$E$159,5),IF($E27="UNQUAL",VLOOKUP(I27,[1]!UNQUALIFIED_TEACHER,5),0))))*$D27+($K27/T27)+($M27/T27)+($O27/T27)+($P27/T27) -> 4102.626667 | T27: 12 | U27: =NumberOfDaysWorked($F27,$G27,U$3,U$4)*$R27 -> 3944.833333 | V27: 3944.833333 | W27: 3944.833333 | X27: 3944.833333 | Y27: 3944.833333 | Z27: =NumberOfDaysWorked($F27,$G27,Z$3,Z$4)*$S27 -> 0 | AA27: 0 | AB27: 0 | AC27: 0 | AD27: 0 | AE27: 0 | AF27: 0 | AG27: 19724.16667 | AH27: =IF($Q27="N",IF(U27>[1]!NIUPPLIMA,((U27-[1]!NIUPPLIMA)*[1]!NIUPPERA)+([1]!NIUPPLIMA-[1]!NILOWLIMA)*[1]!NILOWA,IF(U27>[1]!NILOWLIMA,(U27-[1]!NILOWLIMA)*[1]!NILOWA,0)))+IF($Q27="Y",IF(U27>[1]!NIUPPLIMA,((U27-[1]!NIUPPLIMA)*[1]!NIUPPERA)+(([1]!NIUPPLIMA-[1]!NILOWLIMA)*[1]!NISUPNA),IF(U27>[1]!NILOWLIMA,(U27-[1]!NILOWLIMA)*[1]!NISUPNA,0)))+IF(U27>[1]!NILOWLIMA,-[1]!NICREBATEA,0) -> 529.2245 | AI27: =IF($Q27="N",IF(V27>[1]!NIUPPLIMA,((V27-[1]!NIUPPLIMA)*[1]!NIUPPERA)+([1]!NIUPPLIMA-[1]!NILOWLIMA)*[1]!NILOWA,IF(V27>[1]!NILOWLIMA,(V27-[1]!NILOWLIMA)*[1]!NILOWA,0)))+IF($Q27="Y",IF(V27>[1]!NIUPPLIMA,((V27-[1]!NIUPPLIMA)*[1]!NIUPPERA)+(([1]!NIUPPLIMA-[1]!NILOWLIMA)*[1]!NISUPNA),IF(V27>[1]!NILOWLIMA,(V27-[1]!NILOWLIMA)*[1]!NISUPNA,0)))+IF(V27>[1]!NILOWLIMA,-[1]!NICREBATEA,0) -> 529.2245 | AJ27: =IF($Q27="N",IF(W27>[1]!NIUPPLIMA,((W27-[1]!NIUPPLIMA)*[1]!NIUPPERA)+([1]!NIUPPLIMA-[1]!NILOWLIMA)*[1]!NILOWA,IF(W27>[1]!NILOWLIMA,(W27-[1]!NILOWLIMA)*[1]!NILOWA,0)))+IF($Q27="Y",IF(W27>[1]!NIUPPLIMA,((W27-[1]!NIUPPLIMA)*[1]!NIUPPERA)+(([1]!NIUPPLIMA-[1]!NILOWLIMA)*[1]!NISUPNA),IF(W27>[1]!NILOWLIMA,(W27-[1]!NILOWLIMA)*[1]!NISUPNA,0)))+IF(W27>[1]!NILOWLIMA,-[1]!NICREBATEA,0) -> 529.2245 | AK27: =IF($Q27="N",IF(X27>[1]!NIUPPLIMA,((X27-[1]!NIUPPLIMA)*[1]!NIUPPERA)+([1]!NIUPPLIMA-[1]!NILOWLIMA)*[1]!NILOWA,IF(X27>[1]!NILOWLIMA,(X27-[1]!NILOWLIMA)*[1]!NILOWA,0)))+IF($Q27="Y",IF(X27>[1]!NIUPPLIMA,((X27-[1]!NIUPPLIMA)*[1]!NIUPPERA)+(([1]!NIUPPLIMA-[1]!NILOWLIMA)*[1]!NISUPNA),IF(X27>[1]!NILOWLIMA,(X27-[1]!NILOWLIMA)*[1]!NISUPNA,0)))+IF(X27>[1]!NILOWLIMA,-[1]!NICREBATEA,0) -> 529.2245 | AL27: =IF($Q27="N",IF(Y27>[1]!NIUPPLIMA,((Y27-[1]!NIUPPLIMA)*[1]!NIUPPERA)+([1]!NIUPPLIMA-[1]!NILOWLIMA)*[1]!NILOWA,IF(Y27>[1]!NILOWLIMA,(Y27-[1]!NILOWLIMA)*[1]!NILOWA,0)))+IF($Q27="Y",IF(Y27>[1]!NIUPPLIMA,((Y27-[1]!NIUPPLIMA)*[1]!NIUPPERA)+(([1]!NIUPPLIMA-[1]!NILOWLIMA)*[1]!NISUPNA),IF(Y27>[1]!NILOWLIMA,(Y27-[1]!NILOWLIMA)*[1]!NISUPNA,0)))+IF(Y27>[1]!NILOWLIMA,-[1]!NICREBATEA,0) -> 529.2245 | AM27: =IF($Q27="N",IF(Z27>[1]!NIUPPLIMA,((Z27-[1]!NIUPPLIMA)*[1]!NIUPPERA)+([1]!NIUPPLIMA-[1]!NILOWLIMA)*[1]!NILOWA,IF(Z27>[1]!NILOWLIMA,(Z27-[1]!NILOWLIMA)*[1]!NILOWA,0)))+IF($Q27="Y",IF(Z27>[1]!NIUPPLIMA,((Z27-[1]!NIUPPLIMA)*[1]!NIUPPERA)+(([1]!NIUPPLIMA-[1]!NILOWLIMA)*[1]!NISUPNA),IF(Z27>[1]!NILOWLIMA,(Z27-[1]!NILOWLIMA)*[1]!NISUPNA,0)))+IF(Z27>[1]!NILOWLIMA,-[1]!NICREBATEA,0) -> 0 | AN27: =IF($Q27="N",IF(AA27>[1]!NIUPPLIMA,((AA27-[1]!NIUPPLIMA)*[1]!NIUPPERA)+([1]!NIUPPLIMA-[1]!NILOWLIMA)*[1]!NILOWA,IF(AA27>[1]!NILOWLIMA,(AA27-[1]!NILOWLIMA)*[1]!NILOWA,0)))+IF($Q27="Y",IF(AA27>[1]!NIUPPLIMA,((AA27-[1]!NIUPPLIMA)*[1]!NIUPPERA)+(([1]!NIUPPLIMA-[1]!NILOWLIMA)*[1]!NISUPNA),IF(AA27>[1]!NILOWLIMA,(AA27-[1]!NILOWLIMA)*[1]!NISUPNA,0)))+IF(AA27>[1]!NILOWLIMA,-[1]!NICREBATEA,0) -> 0 | AO27: =IF($Q27="N",IF(AB27>[1]!NIUPPLIMA,((AB27-[1]!NIUPPLIMA)*[1]!NIUPPERA)+([1]!NIUPPLIMA-[1]!NILOWLIMA)*[1]!NILOWA,IF(AB27>[1]!NILOWLIMA,(AB27-[1]!NILOWLIMA)*[1]!NILOWA,0)))+IF($Q27="Y",IF(AB27>[1]!NIUPPLIMA,((AB27-[1]!NIUPPLIMA)*[1]!NIUPPERA)+(([1]!NIUPPLIMA-[1]!NILOWLIMA)*[1]!NISUPNA),IF(AB27>[1]!NILOWLIMA,(AB27-[1]!NILOWLIMA)*[1]!NISUPNA,0)))+IF(AB27>[1]!NILOWLIMA,-[1]!NICREBATEA,0) -> 0 | AP27: =IF($Q27="N",IF(AC27>[1]!NIUPPLIMA,((AC27-[1]!NIUPPLIMA)*[1]!NIUPPERA)+([1]!NIUPPLIMA-[1]!NILOWLIMA)*[1]!NILOWA,IF(AC27>[1]!NILOWLIMA,(AC27-[1]!NILOWLIMA)*[1]!NILOWA,0)))+IF($Q27="Y",IF(AC27>[1]!NIUPPLIMA,((AC27-[1]!NIUPPLIMA)*[1]!NIUPPERA)+(([1]!NIUPPLIMA-[1]!NILOWLIMA)*[1]!NISUPNA),IF(AC27>[1]!NILOWLIMA,(AC27-[1]!NILOWLIMA)*[1]!NISUPNA,0)))+IF(AC27>[1]!NILOWLIMA,-[1]!NICREBATEA,0) -> 0 | AQ27: =IF($Q27="N",IF(AD27>[1]!NIUPPLIMA,((AD27-[1]!NIUPPLIMA)*[1]!NIUPPERA)+([1]!NIUPPLIMA-[1]!NILOWLIMA)*[1]!NILOWA,IF(AD27>[1]!NILOWLIMA,(AD27-[1]!NILOWLIMA)*[1]!NILOWA,0)))+IF($Q27="Y",IF(AD27>[1]!NIUPPLIMA,((AD27-[1]!NIUPPLIMA)*[1]!NIUPPERA)+(([1]!NIUPPLIMA-[1]!NILOWLIMA)*[1]!NISUPNA),IF(AD27>[1]!NILOWLIMA,(AD27-[1]!NILOWLIMA)*[1]!NISUPNA,0)))+IF(AD27>[1]!NILOWLIMA,-[1]!NICREBATEA,0) -> 0 | AR27: =IF($Q27="N",IF(AE27>[1]!NIUPPLIMA,((AE27-[1]!NIUPPLIMA)*[1]!NIUPPERA)+([1]!NIUPPLIMA-[1]!NILOWLIMA)*[1]!NILOWA,IF(AE27>[1]!NILOWLIMA,(AE27-[1]!NILOWLIMA)*[1]!NILOWA,0)))+IF($Q27="Y",IF(AE27>[1]!NIUPPLIMA,((AE27-[1]!NIUPPLIMA)*[1]!NIUPPERA)+(([1]!NIUPPLIMA-[1]!NILOWLIMA)*[1]!NISUPNA),IF(AE27>[1]!NILOWLIMA,(AE27-[1]!NILOWLIMA)*[1]!NISUPNA,0)))+IF(AE27>[1]!NILOWLIMA,-[1]!NICREBATEA,0) -> 0 | AS27: =IF($Q27="N",IF(AF27>[1]!NIUPPLIMA,((AF27-[1]!NIUPPLIMA)*[1]!NIUPPERA)+([1]!NIUPPLIMA-[1]!NILOWLIMA)*[1]!NILOWA,IF(AF27>[1]!NILOWLIMA,(AF27-[1]!NILOWLIMA)*[1]!NILOWA,0)))+IF($Q27="Y",IF(AF27>[1]!NIUPPLIMA,((AF27-[1]!NIUPPLIMA)*[1]!NIUPPERA)+(([1]!NIUPPLIMA-[1]!NILOWLIMA)*[1]!NISUPNA),IF(AF27>[1]!NILOWLIMA,(AF27-[1]!NILOWLIMA)*[1]!NISUPNA,0)))+IF(AF27>[1]!NILOWLIMA,-[1]!NICREBATEA,0) -> 0 | AT27: 2646.1225 | AU27: 5656.891 | AV27: 28027.18017 | AW27: U2 | AX27: 0 | AY27: =IF($E27="LEADER",VLOOKUP(AW27,[1]!LEADERSHIP,5),IF($E27="TEACHER",VLOOKUP(AW27,[1]!TEACHER,5),IF($E27="ADVANCED",VLOOKUP($AW27,[1]!ADVANCED_SKILLS_TEACHERS,5),IF($E27="UNQUAL",VLOOKUP($AW27,[1]!UNQUALIFIED_TEACHER,5),0))))*D27*(1+BA$4)*(1+BA$5)+(AX27/AZ27) -> 4266.731733 | AZ27: 12 | BA27: =NumberOfDaysWorked($F27,$G27,BD$1,BF$1)*(($S27*(1+BA$4))*5)+NumberOfDaysWorked($F27,$G27,BD$1,BF$1)*($AY27*7) -> 0 | BD27: =(IF($Q27="N",IF(AY27>[1]!NIUPPLIMB,((AY27-[1]!NIUPPLIMB)*[1]!NIUPPERB)+([1]!NIUPPLIMB-[1]!NILOWLIMB)*[1]!NILOWB,IF(AY27>[1]!NILOWLIMB,(AY27-[1]!NILOWLIMB)*[1]!NILOWB,0)))+IF($Q27="Y",IF(AY27>[1]!NIUPPLIMB,((AY27-[1]!NIUPPLIMB)*[1]!NIUPPERB)+(([1]!NIUPPLIMB-[1]!NILOWLIMB)*[1]!NISUPNB),IF(AY27>[1]!NILOWLIMB,(AY27-[1]!NILOWLIMB)*[1]!NISUPNB,0))))*((NumberOfDaysWorked($F27,$G27,BD$1,BF$1)*5)+(NumberOfDaysWorked($F27,$G27,BD$1,BF$1)*7)) -> 0 | BE27: =IF($Q27="N",0,(BA27*$BE$5)) -> 0 | BF27: 0 | BG27: U2 | BH27: 0 | BI27: =IF($E27="LEADER",VLOOKUP(BG27,[1]!LEADERSHIP,5),IF($E27="TEACHER",VLOOKUP(BG27,[1]!TEACHER,5),IF($E27="ADVANCED",VLOOKUP($AW27,[1]!ADVANCED_SKILLS_TEACHERS,5),IF($E27="UNQUAL",VLOOKUP($AW27,[1]!UNQUALIFIED_TEACHER,5),0))))*D27*(1+BA$4)*(1+BA$5)*(1+BK$4)*(1+BK$5)+(BH27/BJ27) -> 4437.401003 | BJ27: 12 | BK27: 0 | BN27: =(IF($Q27="N",IF(BI27>[1]!NIUPPLIMC,((BI27-[1]!NIUPPLIMC)*[1]!NIUPPERC)+([1]!NIUPPLIMC-[1]!NILOWLIMC)*[1]!NILOWC,IF(BI27>[1]!NILOWLIMC,(BI27-[1]!NILOWLIMC)*[1]!NILOWC,0)))+IF($Q27="Y",IF(BI27>[1]!NIUPPLIMC,((BI27-[1]!NIUPPLIMC)*[1]!NIUPPERC)+(([1]!NIUPPLIMC-[1]!NILOWLIMC)*[1]!NISUPNC),IF(BI27>[1]!NILOWLIMC,(BI27-[1]!NILOWLIMC)*[1]!NISUPNC,0))))*((NumberOfDaysWorked($F27,$G27,BN$1,BP$1)*5)+(NumberOfDaysWorked($F27,$G27,BN$1,BP$1)*7)) -> 0 | BO27: 0 | BP27: 0
A28: x | B28: JULIER ESTA | C28: A01001 | D28: 1 | E28: TEACHER | F28: 2025-09-01 | G28: 2028-03-31 | H28: U2 | I28: U2 | J28: 0 | K28: =VLOOKUP(J28,[1]!MANAGEMENT,2)*D28 -> 0 | L28: 0 | M28: =VLOOKUP(L28,[1]!SEN_ALLOWANCES,2)*D28 -> 0 | N28: 0 | O28: 0 | P28: 0 | Q28: Y | R28: =IF($E28="LEADER",VLOOKUP(H28,[1]PAYDATA!$A$4:$C$54,3),IF($E28="TEACHER",VLOOKUP(H28,[1]PAYDATA!$A$70:$C$80,3),IF($E28="ADVANCED",VLOOKUP(H28,[1]PAYDATA!$A$141:$C$159,3),IF($E28="UNQUAL",VLOOKUP(H28,[1]PAYDATA!$A$57:$C$63,3),0))))*$D28+($K28/T28)+($M28/T28)+($O28/T28)+($P28/T28) -> 3944.833333 | S28: =IF($E28="LEADER",VLOOKUP(I28,[1]!LEADERSHIP,5),IF($E28="TEACHER",VLOOKUP(I28,[1]!TEACHER,5),IF($E28="ADVANCED",VLOOKUP(I28,[1]PAYDATA!$A$141:$E$159,5),IF($E28="UNQUAL",VLOOKUP(I28,[1]!UNQUALIFIED_TEACHER,5),0))))*$D28+($K28/T28)+($M28/T28)+($O28/T28)+($P28/T28) -> 4102.626667 | T28: 12 | U28: 0 | V28: 0 | W28: 0 | X28: 0 | Y28: 0 | Z28: 4102.626667 | AA28: 4102.626667 | AB28: 4102.626667 | AC28: 4102.626667 | AD28: 4102.626667 | AE28: 4102.626667 | AF28: 4102.626667 | AG28: 28718.38667 | AH28: =IF($Q28="N",IF(U28>[1]!NIUPPLIMA,((U28-[1]!NIUPPLIMA)*[1]!NIUPPERA)+([1]!NIUPPLIMA-[1]!NILOWLIMA)*[1]!NILOWA,IF(U28>[1]!NILOWLIMA,(U28-[1]!NILOWLIMA)*[1]!NILOWA,0)))+IF($Q28="Y",IF(U28>[1]!NIUPPLIMA,((U28-[1]!NIUPPLIMA)*[1]!NIUPPERA)+(([1]!NIUPPLIMA-[1]!NILOWLIMA)*[1]!NISUPNA),IF(U28>[1]!NILOWLIMA,(U28-[1]!NILOWLIMA)*[1]!NISUPNA,0)))+IF(U28>[1]!NILOWLIMA,-[1]!NICREBATEA,0) -> 0 | AI28: =IF($Q28="N",IF(V28>[1]!NIUPPLIMA,((V28-[1]!NIUPPLIMA)*[1]!NIUPPERA)+([1]!NIUPPLIMA-[1]!NILOWLIMA)*[1]!NILOWA,IF(V28>[1]!NILOWLIMA,(V28-[1]!NILOWLIMA)*[1]!NILOWA,0)))+IF($Q28="Y",IF(V28>[1]!NIUPPLIMA,((V28-[1]!NIUPPLIMA)*[1]!NIUPPERA)+(([1]!NIUPPLIMA-[1]!NILOWLIMA)*[1]!NISUPNA),IF(V28>[1]!NILOWLIMA,(V28-[1]!NILOWLIMA)*[1]!NISUPNA,0)))+IF(V28>[1]!NILOWLIMA,-[1]!NICREBATEA,0) -> 0 | AJ28: =IF($Q28="N",IF(W28>[1]!NIUPPLIMA,((W28-[1]!NIUPPLIMA)*[1]!NIUPPERA)+([1]!NIUPPLIMA-[1]!NILOWLIMA)*[1]!NILOWA,IF(W28>[1]!NILOWLIMA,(W28-[1]!NILOWLIMA)*[1]!NILOWA,0)))+IF($Q28="Y",IF(W28>[1]!NIUPPLIMA,((W28-[1]!NIUPPLIMA)*[1]!NIUPPERA)+(([1]!NIUPPLIMA-[1]!NILOWLIMA)*[1]!NISUPNA),IF(W28>[1]!NILOWLIMA,(W28-[1]!NILOWLIMA)*[1]!NISUPNA,0)))+IF(W28>[1]!NILOWLIMA,-[1]!NICREBATEA,0) -> 0 | AK28: =IF($Q28="N",IF(X28>[1]!NIUPPLIMA,((X28-[1]!NIUPPLIMA)*[1]!NIUPPERA)+([1]!NIUPPLIMA-[1]!NILOWLIMA)*[1]!NILOWA,IF(X28>[1]!NILOWLIMA,(X28-[1]!NILOWLIMA)*[1]!NILOWA,0)))+IF($Q28="Y",IF(X28>[1]!NIUPPLIMA,((X28-[1]!NIUPPLIMA)*[1]!NIUPPERA)+(([1]!NIUPPLIMA-[1]!NILOWLIMA)*[1]!NISUPNA),IF(X28>[1]!NILOWLIMA,(X28-[1]!NILOWLIMA)*[1]!NISUPNA,0)))+IF(X28>[1]!NILOWLIMA,-[1]!NICREBATEA,0) -> 0 | AL28: =IF($Q28="N",IF(Y28>[1]!NIUPPLIMA,((Y28-[1]!NIUPPLIMA)*[1]!NIUPPERA)+([1]!NIUPPLIMA-[1]!NILOWLIMA)*[1]!NILOWA,IF(Y28>[1]!NILOWLIMA,(Y28-[1]!NILOWLIMA)*[1]!NILOWA,0)))+IF($Q28="Y",IF(Y28>[1]!NIUPPLIMA,((Y28-[1]!NIUPPLIMA)*[1]!NIUPPERA)+(([1]!NIUPPLIMA-[1]!NILOWLIMA)*[1]!NISUPNA),IF(Y28>[1]!NILOWLIMA,(Y28-[1]!NILOWLIMA)*[1]!NISUPNA,0)))+IF(Y28>[1]!NILOWLIMA,-[1]!NICREBATEA,0) -> 0 | AM28: =IF($Q28="N",IF(Z28>[1]!NIUPPLIMA,((Z28-[1]!NIUPPLIMA)*[1]!NIUPPERA)+([1]!NIUPPLIMA-[1]!NILOWLIMA)*[1]!NILOWA,IF(Z28>[1]!NILOWLIMA,(Z28-[1]!NILOWLIMA)*[1]!NILOWA,0)))+IF($Q28="Y",IF(Z28>[1]!NIUPPLIMA,((Z28-[1]!NIUPPLIMA)*[1]!NIUPPERA)+(([1]!NIUPPLIMA-[1]!NILOWLIMA)*[1]!NISUPNA),IF(Z28>[1]!NILOWLIMA,(Z28-[1]!NILOWLIMA)*[1]!NISUPNA,0)))+IF(Z28>[1]!NILOWLIMA,-[1]!NICREBATEA,0) -> 552.8935 | AN28: =IF($Q28="N",IF(AA28>[1]!NIUPPLIMA,((AA28-[1]!NIUPPLIMA)*[1]!NIUPPERA)+([1]!NIUPPLIMA-[1]!NILOWLIMA)*[1]!NILOWA,IF(AA28>[1]!NILOWLIMA,(AA28-[1]!NILOWLIMA)*[1]!NILOWA,0)))+IF($Q28="Y",IF(AA28>[1]!NIUPPLIMA,((AA28-[1]!NIUPPLIMA)*[1]!NIUPPERA)+(([1]!NIUPPLIMA-[1]!NILOWLIMA)*[1]!NISUPNA),IF(AA28>[1]!NILOWLIMA,(AA28-[1]!NILOWLIMA)*[1]!NISUPNA,0)))+IF(AA28>[1]!NILOWLIMA,-[1]!NICREBATEA,0) -> 552.8935 | AO28: =IF($Q28="N",IF(AB28>[1]!NIUPPLIMA,((AB28-[1]!NIUPPLIMA)*[1]!NIUPPERA)+([1]!NIUPPLIMA-[1]!NILOWLIMA)*[1]!NILOWA,IF(AB28>[1]!NILOWLIMA,(AB28-[1]!NILOWLIMA)*[1]!NILOWA,0)))+IF($Q28="Y",IF(AB28>[1]!NIUPPLIMA,((AB28-[1]!NIUPPLIMA)*[1]!NIUPPERA)+(([1]!NIUPPLIMA-[1]!NILOWLIMA)*[1]!NISUPNA),IF(AB28>[1]!NILOWLIMA,(AB28-[1]!NILOWLIMA)*[1]!NISUPNA,0)))+IF(AB28>[1]!NILOWLIMA,-[1]!NICREBATEA,0) -> 552.8935 | AP28: =IF($Q28="N",IF(AC28>[1]!NIUPPLIMA,((AC28-[1]!NIUPPLIMA)*[1]!NIUPPERA)+([1]!NIUPPLIMA-[1]!NILOWLIMA)*[1]!NILOWA,IF(AC28>[1]!NILOWLIMA,(AC28-[1]!NILOWLIMA)*[1]!NILOWA,0)))+IF($Q28="Y",IF(AC28>[1]!NIUPPLIMA,((AC28-[1]!NIUPPLIMA)*[1]!NIUPPERA)+(([1]!NIUPPLIMA-[1]!NILOWLIMA)*[1]!NISUPNA),IF(AC28>[1]!NILOWLIMA,(AC28-[1]!NILOWLIMA)*[1]!NISUPNA,0)))+IF(AC28>[1]!NILOWLIMA,-[1]!NICREBATEA,0) -> 552.8935 | AQ28: =IF($Q28="N",IF(AD28>[1]!NIUPPLIMA,((AD28-[1]!NIUPPLIMA)*[1]!NIUPPERA)+([1]!NIUPPLIMA-[1]!NILOWLIMA)*[1]!NILOWA,IF(AD28>[1]!NILOWLIMA,(AD28-[1]!NILOWLIMA)*[1]!NILOWA,0)))+IF($Q28="Y",IF(AD28>[1]!NIUPPLIMA,((AD28-[1]!NIUPPLIMA)*[1]!NIUPPERA)+(([1]!NIUPPLIMA-[1]!NILOWLIMA)*[1]!NISUPNA),IF(AD28>[1]!NILOWLIMA,(AD28-[1]!NILOWLIMA)*[1]!NISUPNA,0)))+IF(AD28>[1]!NILOWLIMA,-[1]!NICREBATEA,0) -> 552.8935 | AR28: =IF($Q28="N",IF(AE28>[1]!NIUPPLIMA,((AE28-[1]!NIUPPLIMA)*[1]!NIUPPERA)+([1]!NIUPPLIMA-[1]!NILOWLIMA)*[1]!NILOWA,IF(AE28>[1]!NILOWLIMA,(AE28-[1]!NILOWLIMA)*[1]!NILOWA,0)))+IF($Q28="Y",IF(AE28>[1]!NIUPPLIMA,((AE28-[1]!NIUPPLIMA)*[1]!NIUPPERA)+(([1]!NIUPPLIMA-[1]!NILOWLIMA)*[1]!NISUPNA),IF(AE28>[1]!NILOWLIMA,(AE28-[1]!NILOWLIMA)*[1]!NISUPNA,0)))+IF(AE28>[1]!NILOWLIMA,-[1]!NICREBATEA,0) -> 552.8935 | AS28: =IF($Q28="N",IF(AF28>[1]!NIUPPLIMA,((AF28-[1]!NIUPPLIMA)*[1]!NIUPPERA)+([1]!NIUPPLIMA-[1]!NILOWLIMA)*[1]!NILOWA,IF(AF28>[1]!NILOWLIMA,(AF28-[1]!NILOWLIMA)*[1]!NILOWA,0)))+IF($Q28="Y",IF(AF28>[1]!NIUPPLIMA,((AF28-[1]!NIUPPLIMA)*[1]!NIUPPERA)+(([1]!NIUPPLIMA-[1]!NILOWLIMA)*[1]!NISUPNA),IF(AF28>[1]!NILOWLIMA,(AF28-[1]!NILOWLIMA)*[1]!NISUPNA,0)))+IF(AF28>[1]!NILOWLIMA,-[1]!NICREBATEA,0) -> 552.8935 | AT28: 3870.2545 | AU28: 8236.433296 | AV28: 40825.07446 | AW28: U2 | AX28: 0 | AY28: =IF($E28="LEADER",VLOOKUP(AW28,[1]!LEADERSHIP,5),IF($E28="TEACHER",VLOOKUP(AW28,[1]!TEACHER,5),IF($E28="ADVANCED",VLOOKUP($AW28,[1]!ADVANCED_SKILLS_TEACHERS,5),IF($E28="UNQUAL",VLOOKUP($AW28,[1]!UNQUALIFIED_TEACHER,5),0))))*D28*(1+BA$4)*(1+BA$5)+(AX28/AZ28) -> 4266.731733 | AZ28: 12 | BA28: =NumberOfDaysWorked($F28,$G28,BD$1,BF$1)*(($S28*(1+BA$4))*5)+NumberOfDaysWorked($F28,$G28,BD$1,BF$1)*($AY28*7) -> 50380.25547 | BD28: =(IF($Q28="N",IF(AY28>[1]!NIUPPLIMB,((AY28-[1]!NIUPPLIMB)*[1]!NIUPPERB)+([1]!NIUPPLIMB-[1]!NILOWLIMB)*[1]!NILOWB,IF(AY28>[1]!NILOWLIMB,(AY28-[1]!NILOWLIMB)*[1]!NILOWB,0)))+IF($Q28="Y",IF(AY28>[1]!NIUPPLIMB,((AY28-[1]!NIUPPLIMB)*[1]!NIUPPERB)+(([1]!NIUPPLIMB-[1]!NILOWLIMB)*[1]!NISUPNB),IF(AY28>[1]!NILOWLIMB,(AY28-[1]!NILOWLIMB)*[1]!NISUPNB,0))))*((NumberOfDaysWorked($F28,$G28,BD$1,BF$1)*5)+(NumberOfDaysWorked($F28,$G28,BD$1,BF$1)*7)) -> 6930.11712 | BE28: 14449.05727 | BF28: 71759.42985 | BG28: U2 | BH28: 0 | BI28: =IF($E28="LEADER",VLOOKUP(BG28,[1]!LEADERSHIP,5),IF($E28="TEACHER",VLOOKUP(BG28,[1]!TEACHER,5),IF($E28="ADVANCED",VLOOKUP($AW28,[1]!ADVANCED_SKILLS_TEACHERS,5),IF($E28="UNQUAL",VLOOKUP($AW28,[1]!UNQUALIFIED_TEACHER,5),0))))*D28*(1+BA$4)*(1+BA$5)*(1+BK$4)*(1+BK$5)+(BH28/BJ28) -> 4437.401003 | BJ28: 12 | BK28: 52395.46569 | BN28: =(IF($Q28="N",IF(BI28>[1]!NIUPPLIMC,((BI28-[1]!NIUPPLIMC)*[1]!NIUPPERC)+([1]!NIUPPLIMC-[1]!NILOWLIMC)*[1]!NILOWC,IF(BI28>[1]!NILOWLIMC,(BI28-[1]!NILOWLIMC)*[1]!NILOWC,0)))+IF($Q28="Y",IF(BI28>[1]!NIUPPLIMC,((BI28-[1]!NIUPPLIMC)*[1]!NIUPPERC)+(([1]!NIUPPLIMC-[1]!NILOWLIMC)*[1]!NISUPNC),IF(BI28>[1]!NILOWLIMC,(BI28-[1]!NILOWLIMC)*[1]!NISUPNC,0))))*((NumberOfDaysWorked($F28,$G28,BN$1,BP$1)*5)+(NumberOfDaysWorked($F28,$G28,BN$1,BP$1)*7)) -> 7237.321805 | BO28: 15027.01956 | BP28: 74659.80705
A29: x | B29: MCKERRACHER ROXANNE | C29: A01001 | D29: 1 | E29: TEACHER | F29: 2025-04-01 | G29: 2025-08-31 | H29: 6 | I29: 6 | J29: 0 | K29: =VLOOKUP(J29,[1]!MANAGEMENT,2)*D29 -> 0 | L29: 0 | M29: =VLOOKUP(L29,[1]!SEN_ALLOWANCES,2)*D29 -> 0 | N29: 0 | O29: 0 | P29: 0 | Q29: Y | R29: =IF($E29="LEADER",VLOOKUP(H29,[1]PAYDATA!$A$4:$C$54,3),IF($E29="TEACHER",VLOOKUP(H29,[1]PAYDATA!$A$70:$C$80,3),IF($E29="ADVANCED",VLOOKUP(H29,[1]PAYDATA!$A$141:$C$159,3),IF($E29="UNQUAL",VLOOKUP(H29,[1]PAYDATA!$A$57:$C$63,3),0))))*$D29+($K29/T29)+($M29/T29)+($O29/T29)+($P29/T29) -> 3633.916667 | S29: =IF($E29="LEADER",VLOOKUP(I29,[1]!LEADERSHIP,5),IF($E29="TEACHER",VLOOKUP(I29,[1]!TEACHER,5),IF($E29="ADVANCED",VLOOKUP(I29,[1]PAYDATA!$A$141:$E$159,5),IF($E29="UNQUAL",VLOOKUP(I29,[1]!UNQUALIFIED_TEACHER,5),0))))*$D29+($K29/T29)+($M29/T29)+($O29/T29)+($P29/T29) -> 3779.273333 | T29: 12 | U29: 3633.916667 | V29: 3633.916667 | W29: 3633.916667 | X29: 3633.916667 | Y29: 3633.916667 | Z29: =NumberOfDaysWorked($F29,$G29,Z$3,Z$4)*$S29 -> 0 | AA29: 0 | AB29: 0 | AC29: 0 | AD29: 0 | AE29: 0 | AF29: 0 | AG29: 18169.58333 | AH29: =IF($Q29="N",IF(U29>[1]!NIUPPLIMA,((U29-[1]!NIUPPLIMA)*[1]!NIUPPERA)+([1]!NIUPPLIMA-[1]!NILOWLIMA)*[1]!NILOWA,IF(U29>[1]!NILOWLIMA,(U29-[1]!NILOWLIMA)*[1]!NILOWA,0)))+IF($Q29="Y",IF(U29>[1]!NIUPPLIMA,((U29-[1]!NIUPPLIMA)*[1]!NIUPPERA)+(([1]!NIUPPLIMA-[1]!NILOWLIMA)*[1]!NISUPNA),IF(U29>[1]!NILOWLIMA,(U29-[1]!NILOWLIMA)*[1]!NISUPNA,0)))+IF(U29>[1]!NILOWLIMA,-[1]!NICREBATEA,0) -> 482.587 | AI29: =IF($Q29="N",IF(V29>[1]!NIUPPLIMA,((V29-[1]!NIUPPLIMA)*[1]!NIUPPERA)+([1]!NIUPPLIMA-[1]!NILOWLIMA)*[1]!NILOWA,IF(V29>[1]!NILOWLIMA,(V29-[1]!NILOWLIMA)*[1]!NILOWA,0)))+IF($Q29="Y",IF(V29>[1]!NIUPPLIMA,((V29-[1]!NIUPPLIMA)*[1]!NIUPPERA)+(([1]!NIUPPLIMA-[1]!NILOWLIMA)*[1]!NISUPNA),IF(V29>[1]!NILOWLIMA,(V29-[1]!NILOWLIMA)*[1]!NISUPNA,0)))+IF(V29>[1]!NILOWLIMA,-[1]!NICREBATEA,0) -> 482.587 | AJ29: =IF($Q29="N",IF(W29>[1]!NIUPPLIMA,((W29-[1]!NIUPPLIMA)*[1]!NIUPPERA)+([1]!NIUPPLIMA-[1]!NILOWLIMA)*[1]!NILOWA,IF(W29>[1]!NILOWLIMA,(W29-[1]!NILOWLIMA)*[1]!NILOWA,0)))+IF($Q29="Y",IF(W29>[1]!NIUPPLIMA,((W29-[1]!NIUPPLIMA)*[1]!NIUPPERA)+(([1]!NIUPPLIMA-[1]!NILOWLIMA)*[1]!NISUPNA),IF(W29>[1]!NILOWLIMA,(W29-[1]!NILOWLIMA)*[1]!NISUPNA,0)))+IF(W29>[1]!NILOWLIMA,-[1]!NICREBATEA,0) -> 482.587 | AK29: =IF($Q29="N",IF(X29>[1]!NIUPPLIMA,((X29-[1]!NIUPPLIMA)*[1]!NIUPPERA)+([1]!NIUPPLIMA-[1]!NILOWLIMA)*[1]!NILOWA,IF(X29>[1]!NILOWLIMA,(X29-[1]!NILOWLIMA)*[1]!NILOWA,0)))+IF($Q29="Y",IF(X29>[1]!NIUPPLIMA,((X29-[1]!NIUPPLIMA)*[1]!NIUPPERA)+(([1]!NIUPPLIMA-[1]!NILOWLIMA)*[1]!NISUPNA),IF(X29>[1]!NILOWLIMA,(X29-[1]!NILOWLIMA)*[1]!NISUPNA,0)))+IF(X29>[1]!NILOWLIMA,-[1]!NICREBATEA,0) -> 482.587 | AL29: =IF($Q29="N",IF(Y29>[1]!NIUPPLIMA,((Y29-[1]!NIUPPLIMA)*[1]!NIUPPERA)+([1]!NIUPPLIMA-[1]!NILOWLIMA)*[1]!NILOWA,IF(Y29>[1]!NILOWLIMA,(Y29-[1]!NILOWLIMA)*[1]!NILOWA,0)))+IF($Q29="Y",IF(Y29>[1]!NIUPPLIMA,((Y29-[1]!NIUPPLIMA)*[1]!NIUPPERA)+(([1]!NIUPPLIMA-[1]!NILOWLIMA)*[1]!NISUPNA),IF(Y29>[1]!NILOWLIMA,(Y29-[1]!NILOWLIMA)*[1]!NISUPNA,0)))+IF(Y29>[1]!NILOWLIMA,-[1]!NICREBATEA,0) -> 482.587 | AM29: =IF($Q29="N",IF(Z29>[1]!NIUPPLIMA,((Z29-[1]!NIUPPLIMA)*[1]!NIUPPERA)+([1]!NIUPPLIMA-[1]!NILOWLIMA)*[1]!NILOWA,IF(Z29>[1]!NILOWLIMA,(Z29-[1]!NILOWLIMA)*[1]!NILOWA,0)))+IF($Q29="Y",IF(Z29>[1]!NIUPPLIMA,((Z29-[1]!NIUPPLIMA)*[1]!NIUPPERA)+(([1]!NIUPPLIMA-[1]!NILOWLIMA)*[1]!NISUPNA),IF(Z29>[1]!NILOWLIMA,(Z29-[1]!NILOWLIMA)*[1]!NISUPNA,0)))+IF(Z29>[1]!NILOWLIMA,-[1]!NICREBATEA,0) -> 0 | AN29: =IF($Q29="N",IF(AA29>[1]!NIUPPLIMA,((AA29-[1]!NIUPPLIMA)*[1]!NIUPPERA)+([1]!NIUPPLIMA-[1]!NILOWLIMA)*[1]!NILOWA,IF(AA29>[1]!NILOWLIMA,(AA29-[1]!NILOWLIMA)*[1]!NILOWA,0)))+IF($Q29="Y",IF(AA29>[1]!NIUPPLIMA,((AA29-[1]!NIUPPLIMA)*[1]!NIUPPERA)+(([1]!NIUPPLIMA-[1]!NILOWLIMA)*[1]!NISUPNA),IF(AA29>[1]!NILOWLIMA,(AA29-[1]!NILOWLIMA)*[1]!NISUPNA,0)))+IF(AA29>[1]!NILOWLIMA,-[1]!NICREBATEA,0) -> 0 | AO29: =IF($Q29="N",IF(AB29>[1]!NIUPPLIMA,((AB29-[1]!NIUPPLIMA)*[1]!NIUPPERA)+([1]!NIUPPLIMA-[1]!NILOWLIMA)*[1]!NILOWA,IF(AB29>[1]!NILOWLIMA,(AB29-[1]!NILOWLIMA)*[1]!NILOWA,0)))+IF($Q29="Y",IF(AB29>[1]!NIUPPLIMA,((AB29-[1]!NIUPPLIMA)*[1]!NIUPPERA)+(([1]!NIUPPLIMA-[1]!NILOWLIMA)*[1]!NISUPNA),IF(AB29>[1]!NILOWLIMA,(AB29-[1]!NILOWLIMA)*[1]!NISUPNA,0)))+IF(AB29>[1]!NILOWLIMA,-[1]!NICREBATEA,0) -> 0 | AP29: =IF($Q29="N",IF(AC29>[1]!NIUPPLIMA,((AC29-[1]!NIUPPLIMA)*[1]!NIUPPERA)+([1]!NIUPPLIMA-[1]!NILOWLIMA)*[1]!NILOWA,IF(AC29>[1]!NILOWLIMA,(AC29-[1]!NILOWLIMA)*[1]!NILOWA,0)))+IF($Q29="Y",IF(AC29>[1]!NIUPPLIMA,((AC29-[1]!NIUPPLIMA)*[1]!NIUPPERA)+(([1]!NIUPPLIMA-[1]!NILOWLIMA)*[1]!NISUPNA),IF(AC29>[1]!NILOWLIMA,(AC29-[1]!NILOWLIMA)*[1]!NISUPNA,0)))+IF(AC29>[1]!NILOWLIMA,-[1]!NICREBATEA,0) -> 0 | AQ29: =IF($Q29="N",IF(AD29>[1]!NIUPPLIMA,((AD29-[1]!NIUPPLIMA)*[1]!NIUPPERA)+([1]!NIUPPLIMA-[1]!NILOWLIMA)*[1]!NILOWA,IF(AD29>[1]!NILOWLIMA,(AD29-[1]!NILOWLIMA)*[1]!NILOWA,0)))+IF($Q29="Y",IF(AD29>[1]!NIUPPLIMA,((AD29-[1]!NIUPPLIMA)*[1]!NIUPPERA)+(([1]!NIUPPLIMA-[1]!NILOWLIMA)*[1]!NISUPNA),IF(AD29>[1]!NILOWLIMA,(AD29-[1]!NILOWLIMA)*[1]!NISUPNA,0)))+IF(AD29>[1]!NILOWLIMA,-[1]!NICREBATEA,0) -> 0 | AR29: =IF($Q29="N",IF(AE29>[1]!NIUPPLIMA,((AE29-[1]!NIUPPLIMA)*[1]!NIUPPERA)+([1]!NIUPPLIMA-[1]!NILOWLIMA)*[1]!NILOWA,IF(AE29>[1]!NILOWLIMA,(AE29-[1]!NILOWLIMA)*[1]!NILOWA,0)))+IF($Q29="Y",IF(AE29>[1]!NIUPPLIMA,((AE29-[1]!NIUPPLIMA)*[1]!NIUPPERA)+(([1]!NIUPPLIMA-[1]!NILOWLIMA)*[1]!NISUPNA),IF(AE29>[1]!NILOWLIMA,(AE29-[1]!NILOWLIMA)*[1]!NISUPNA,0)))+IF(AE29>[1]!NILOWLIMA,-[1]!NICREBATEA,0) -> 0 | AS29: =IF($Q29="N",IF(AF29>[1]!NIUPPLIMA,((AF29-[1]!NIUPPLIMA)*[1]!NIUPPERA)+([1]!NIUPPLIMA-[1]!NILOWLIMA)*[1]!NILOWA,IF(AF29>[1]!NILOWLIMA,(AF29-[1]!NILOWLIMA)*[1]!NILOWA,0)))+IF($Q29="Y",IF(AF29>[1]!NIUPPLIMA,((AF29-[1]!NIUPPLIMA)*[1]!NIUPPERA)+(([1]!NIUPPLIMA-[1]!NILOWLIMA)*[1]!NISUPNA),IF(AF29>[1]!NILOWLIMA,(AF29-[1]!NILOWLIMA)*[1]!NISUPNA,0)))+IF(AF29>[1]!NILOWLIMA,-[1]!NICREBATEA,0) -> 0 | AT29: 2412.935 | AU29: 5211.0365 | AV29: 25793.55483 | AW29: 6 | AX29: 0 | AY29: =IF($E29="LEADER",VLOOKUP(AW29,[1]!LEADERSHIP,5),IF($E29="TEACHER",VLOOKUP(AW29,[1]!TEACHER,5),IF($E29="ADVANCED",VLOOKUP($AW29,[1]!ADVANCED_SKILLS_TEACHERS,5),IF($E29="UNQUAL",VLOOKUP($AW29,[1]!UNQUALIFIED_TEACHER,5),0))))*D29*(1+BA$4)*(1+BA$5)+(AX29/AZ29) -> 3930.444267 | AZ29: 12 | BA29: 0 | BD29: =(IF($Q29="N",IF(AY29>[1]!NIUPPLIMB,((AY29-[1]!NIUPPLIMB)*[1]!NIUPPERB)+([1]!NIUPPLIMB-[1]!NILOWLIMB)*[1]!NILOWB,IF(AY29>[1]!NILOWLIMB,(AY29-[1]!NILOWLIMB)*[1]!NILOWB,0)))+IF($Q29="Y",IF(AY29>[1]!NIUPPLIMB,((AY29-[1]!NIUPPLIMB)*[1]!NIUPPERB)+(([1]!NIUPPLIMB-[1]!NILOWLIMB)*[1]!NISUPNB),IF(AY29>[1]!NILOWLIMB,(AY29-[1]!NILOWLIMB)*[1]!NISUPNB,0))))*((NumberOfDaysWorked($F29,$G29,BD$1,BF$1)*5)+(NumberOfDaysWorked($F29,$G29,BD$1,BF$1)*7)) -> 0 | BE29: 0 | BF29: 0 | BG29: 6 | BH29: 0 | BI29: =IF($E29="LEADER",VLOOKUP(BG29,[1]!LEADERSHIP,5),IF($E29="TEACHER",VLOOKUP(BG29,[1]!TEACHER,5),IF($E29="ADVANCED",VLOOKUP($AW29,[1]!ADVANCED_SKILLS_TEACHERS,5),IF($E29="UNQUAL",VLOOKUP($AW29,[1]!UNQUALIFIED_TEACHER,5),0))))*D29*(1+BA$4)*(1+BA$5)*(1+BK$4)*(1+BK$5)+(BH29/BJ29) -> 4087.662037 | BJ29: 12 | BK29: 0 | BN29: =(IF($Q29="N",IF(BI29>[1]!NIUPPLIMC,((BI29-[1]!NIUPPLIMC)*[1]!NIUPPERC)+([1]!NIUPPLIMC-[1]!NILOWLIMC)*[1]!NILOWC,IF(BI29>[1]!NILOWLIMC,(BI29-[1]!NILOWLIMC)*[1]!NILOWC,0)))+IF($Q29="Y",IF(BI29>[1]!NIUPPLIMC,((BI29-[1]!NIUPPLIMC)*[1]!NIUPPERC)+(([1]!NIUPPLIMC-[1]!NILOWLIMC)*[1]!NISUPNC),IF(BI29>[1]!NILOWLIMC,(BI29-[1]!NILOWLIMC)*[1]!NISUPNC,0))))*((NumberOfDaysWorked($F29,$G29,BN$1,BP$1)*5)+(NumberOfDaysWorked($F29,$G29,BN$1,BP$1)*7)) -> 0 | BO29: 0 | BP29: 0
A30: x | B30: MCKERRACHER ROXANNE | C30: A01001 | D30: 1 | E30: TEACHER | F30: 2025-09-01 | G30: 2028-03-31 | H30: 6 | I30: 6 | J30: 0 | K30: =VLOOKUP(J30,[1]!MANAGEMENT,2)*D30 -> 0 | L30: 0 | M30: =VLOOKUP(L30,[1]!SEN_ALLOWANCES,2)*D30 -> 0 | N30: 0 | O30: 0 | P30: 0 | Q30: Y | R30: =IF($E30="LEADER",VLOOKUP(H30,[1]PAYDATA!$A$4:$C$54,3),IF($E30="TEACHER",VLOOKUP(H30,[1]PAYDATA!$A$70:$C$80,3),IF($E30="ADVANCED",VLOOKUP(H30,[1]PAYDATA!$A$141:$C$159,3),IF($E30="UNQUAL",VLOOKUP(H30,[1]PAYDATA!$A$57:$C$63,3),0))))*$D30+($K30/T30)+($M30/T30)+($O30/T30)+($P30/T30) -> 3633.916667 | S30: =IF($E30="LEADER",VLOOKUP(I30,[1]!LEADERSHIP,5),IF($E30="TEACHER",VLOOKUP(I30,[1]!TEACHER,5),IF($E30="ADVANCED",VLOOKUP(I30,[1]PAYDATA!$A$141:$E$159,5),IF($E30="UNQUAL",VLOOKUP(I30,[1]!UNQUALIFIED_TEACHER,5),0))))*$D30+($K30/T30)+($M30/T30)+($O30/T30)+($P30/T30) -> 3779.273333 | T30: 12 | U30: 0 | V30: 0 | W30: 0 | X30: 0 | Y30: 0 | Z30: 3779.273333 | AA30: 3779.273333 | AB30: 3779.273333 | AC30: 3779.273333 | AD30: 3779.273333 | AE30: 3779.273333 | AF30: 3779.273333 | AG30: 26454.91333 | AH30: =IF($Q30="N",IF(U30>[1]!NIUPPLIMA,((U30-[1]!NIUPPLIMA)*[1]!NIUPPERA)+([1]!NIUPPLIMA-[1]!NILOWLIMA)*[1]!NILOWA,IF(U30>[1]!NILOWLIMA,(U30-[1]!NILOWLIMA)*[1]!NILOWA,0)))+IF($Q30="Y",IF(U30>[1]!NIUPPLIMA,((U30-[1]!NIUPPLIMA)*[1]!NIUPPERA)+(([1]!NIUPPLIMA-[1]!NILOWLIMA)*[1]!NISUPNA),IF(U30>[1]!NILOWLIMA,(U30-[1]!NILOWLIMA)*[1]!NISUPNA,0)))+IF(U30>[1]!NILOWLIMA,-[1]!NICREBATEA,0) -> 0 | AI30: =IF($Q30="N",IF(V30>[1]!NIUPPLIMA,((V30-[1]!NIUPPLIMA)*[1]!NIUPPERA)+([1]!NIUPPLIMA-[1]!NILOWLIMA)*[1]!NILOWA,IF(V30>[1]!NILOWLIMA,(V30-[1]!NILOWLIMA)*[1]!NILOWA,0)))+IF($Q30="Y",IF(V30>[1]!NIUPPLIMA,((V30-[1]!NIUPPLIMA)*[1]!NIUPPERA)+(([1]!NIUPPLIMA-[1]!NILOWLIMA)*[1]!NISUPNA),IF(V30>[1]!NILOWLIMA,(V30-[1]!NILOWLIMA)*[1]!NISUPNA,0)))+IF(V30>[1]!NILOWLIMA,-[1]!NICREBATEA,0) -> 0 | AJ30: =IF($Q30="N",IF(W30>[1]!NIUPPLIMA,((W30-[1]!NIUPPLIMA)*[1]!NIUPPERA)+([1]!NIUPPLIMA-[1]!NILOWLIMA)*[1]!NILOWA,IF(W30>[1]!NILOWLIMA,(W30-[1]!NILOWLIMA)*[1]!NILOWA,0)))+IF($Q30="Y",IF(W30>[1]!NIUPPLIMA,((W30-[1]!NIUPPLIMA)*[1]!NIUPPERA)+(([1]!NIUPPLIMA-[1]!NILOWLIMA)*[1]!NISUPNA),IF(W30>[1]!NILOWLIMA,(W30-[1]!NILOWLIMA)*[1]!NISUPNA,0)))+IF(W30>[1]!NILOWLIMA,-[1]!NICREBATEA,0) -> 0 | AK30: =IF($Q30="N",IF(X30>[1]!NIUPPLIMA,((X30-[1]!NIUPPLIMA)*[1]!NIUPPERA)+([1]!NIUPPLIMA-[1]!NILOWLIMA)*[1]!NILOWA,IF(X30>[1]!NILOWLIMA,(X30-[1]!NILOWLIMA)*[1]!NILOWA,0)))+IF($Q30="Y",IF(X30>[1]!NIUPPLIMA,((X30-[1]!NIUPPLIMA)*[1]!NIUPPERA)+(([1]!NIUPPLIMA-[1]!NILOWLIMA)*[1]!NISUPNA),IF(X30>[1]!NILOWLIMA,(X30-[1]!NILOWLIMA)*[1]!NISUPNA,0)))+IF(X30>[1]!NILOWLIMA,-[1]!NICREBATEA,0) -> 0 | AL30: =IF($Q30="N",IF(Y30>[1]!NIUPPLIMA,((Y30-[1]!NIUPPLIMA)*[1]!NIUPPERA)+([1]!NIUPPLIMA-[1]!NILOWLIMA)*[1]!NILOWA,IF(Y30>[1]!NILOWLIMA,(Y30-[1]!NILOWLIMA)*[1]!NILOWA,0)))+IF($Q30="Y",IF(Y30>[1]!NIUPPLIMA,((Y30-[1]!NIUPPLIMA)*[1]!NIUPPERA)+(([1]!NIUPPLIMA-[1]!NILOWLIMA)*[1]!NISUPNA),IF(Y30>[1]!NILOWLIMA,(Y30-[1]!NILOWLIMA)*[1]!NISUPNA,0)))+IF(Y30>[1]!NILOWLIMA,-[1]!NICREBATEA,0) -> 0 | AM30: =IF($Q30="N",IF(Z30>[1]!NIUPPLIMA,((Z30-[1]!NIUPPLIMA)*[1]!NIUPPERA)+([1]!NIUPPLIMA-[1]!NILOWLIMA)*[1]!NILOWA,IF(Z30>[1]!NILOWLIMA,(Z30-[1]!NILOWLIMA)*[1]!NILOWA,0)))+IF($Q30="Y",IF(Z30>[1]!NIUPPLIMA,((Z30-[1]!NIUPPLIMA)*[1]!NIUPPERA)+(([1]!NIUPPLIMA-[1]!NILOWLIMA)*[1]!NISUPNA),IF(Z30>[1]!NILOWLIMA,(Z30-[1]!NILOWLIMA)*[1]!NISUPNA,0)))+IF(Z30>[1]!NILOWLIMA,-[1]!NICREBATEA,0) -> 504.3905 | AN30: =IF($Q30="N",IF(AA30>[1]!NIUPPLIMA,((AA30-[1]!NIUPPLIMA)*[1]!NIUPPERA)+([1]!NIUPPLIMA-[1]!NILOWLIMA)*[1]!NILOWA,IF(AA30>[1]!NILOWLIMA,(AA30-[1]!NILOWLIMA)*[1]!NILOWA,0)))+IF($Q30="Y",IF(AA30>[1]!NIUPPLIMA,((AA30-[1]!NIUPPLIMA)*[1]!NIUPPERA)+(([1]!NIUPPLIMA-[1]!NILOWLIMA)*[1]!NISUPNA),IF(AA30>[1]!NILOWLIMA,(AA30-[1]!NILOWLIMA)*[1]!NISUPNA,0)))+IF(AA30>[1]!NILOWLIMA,-[1]!NICREBATEA,0) -> 504.3905 | AO30: =IF($Q30="N",IF(AB30>[1]!NIUPPLIMA,((AB30-[1]!NIUPPLIMA)*[1]!NIUPPERA)+([1]!NIUPPLIMA-[1]!NILOWLIMA)*[1]!NILOWA,IF(AB30>[1]!NILOWLIMA,(AB30-[1]!NILOWLIMA)*[1]!NILOWA,0)))+IF($Q30="Y",IF(AB30>[1]!NIUPPLIMA,((AB30-[1]!NIUPPLIMA)*[1]!NIUPPERA)+(([1]!NIUPPLIMA-[1]!NILOWLIMA)*[1]!NISUPNA),IF(AB30>[1]!NILOWLIMA,(AB30-[1]!NILOWLIMA)*[1]!NISUPNA,0)))+IF(AB30>[1]!NILOWLIMA,-[1]!NICREBATEA,0) -> 504.3905 | AP30: =IF($Q30="N",IF(AC30>[1]!NIUPPLIMA,((AC30-[1]!NIUPPLIMA)*[1]!NIUPPERA)+([1]!NIUPPLIMA-[1]!NILOWLIMA)*[1]!NILOWA,IF(AC30>[1]!NILOWLIMA,(AC30-[1]!NILOWLIMA)*[1]!NILOWA,0)))+IF($Q30="Y",IF(AC30>[1]!NIUPPLIMA,((AC30-[1]!NIUPPLIMA)*[1]!NIUPPERA)+(([1]!NIUPPLIMA-[1]!NILOWLIMA)*[1]!NISUPNA),IF(AC30>[1]!NILOWLIMA,(AC30-[1]!NILOWLIMA)*[1]!NISUPNA,0)))+IF(AC30>[1]!NILOWLIMA,-[1]!NICREBATEA,0) -> 504.3905 | AQ30: =IF($Q30="N",IF(AD30>[1]!NIUPPLIMA,((AD30-[1]!NIUPPLIMA)*[1]!NIUPPERA)+([1]!NIUPPLIMA-[1]!NILOWLIMA)*[1]!NILOWA,IF(AD30>[1]!NILOWLIMA,(AD30-[1]!NILOWLIMA)*[1]!NILOWA,0)))+IF($Q30="Y",IF(AD30>[1]!NIUPPLIMA,((AD30-[1]!NIUPPLIMA)*[1]!NIUPPERA)+(([1]!NIUPPLIMA-[1]!NILOWLIMA)*[1]!NISUPNA),IF(AD30>[1]!NILOWLIMA,(AD30-[1]!NILOWLIMA)*[1]!NISUPNA,0)))+IF(AD30>[1]!NILOWLIMA,-[1]!NICREBATEA,0) -> 504.3905 | AR30: =IF($Q30="N",IF(AE30>[1]!NIUPPLIMA,((AE30-[1]!NIUPPLIMA)*[1]!NIUPPERA)+([1]!NIUPPLIMA-[1]!NILOWLIMA)*[1]!NILOWA,IF(AE30>[1]!NILOWLIMA,(AE30-[1]!NILOWLIMA)*[1]!NILOWA,0)))+IF($Q30="Y",IF(AE30>[1]!NIUPPLIMA,((AE30-[1]!NIUPPLIMA)*[1]!NIUPPERA)+(([1]!NIUPPLIMA-[1]!NILOWLIMA)*[1]!NISUPNA),IF(AE30>[1]!NILOWLIMA,(AE30-[1]!NILOWLIMA)*[1]!NISUPNA,0)))+IF(AE30>[1]!NILOWLIMA,-[1]!NICREBATEA,0) -> 504.3905 | AS30: =IF($Q30="N",IF(AF30>[1]!NIUPPLIMA,((AF30-[1]!NIUPPLIMA)*[1]!NIUPPERA)+([1]!NIUPPLIMA-[1]!NILOWLIMA)*[1]!NILOWA,IF(AF30>[1]!NILOWLIMA,(AF30-[1]!NILOWLIMA)*[1]!NILOWA,0)))+IF($Q30="Y",IF(AF30>[1]!NIUPPLIMA,((AF30-[1]!NIUPPLIMA)*[1]!NIUPPERA)+(([1]!NIUPPLIMA-[1]!NILOWLIMA)*[1]!NISUPNA),IF(AF30>[1]!NILOWLIMA,(AF30-[1]!NILOWLIMA)*[1]!NISUPNA,0)))+IF(AF30>[1]!NILOWLIMA,-[1]!NICREBATEA,0) -> 504.3905 | AT30: 3530.7335 | AU30: 7587.269144 | AV30: 37572.91598 | AW30: 6 | AX30: 0 | AY30: =IF($E30="LEADER",VLOOKUP(AW30,[1]!LEADERSHIP,5),IF($E30="TEACHER",VLOOKUP(AW30,[1]!TEACHER,5),IF($E30="ADVANCED",VLOOKUP($AW30,[1]!ADVANCED_SKILLS_TEACHERS,5),IF($E30="UNQUAL",VLOOKUP($AW30,[1]!UNQUALIFIED_TEACHER,5),0))))*D30*(1+BA$4)*(1+BA$5)+(AX30/AZ30) -> 3930.444267 | AZ30: 12 | BA30: 46409.47653 | BD30: =(IF($Q30="N",IF(AY30>[1]!NIUPPLIMB,((AY30-[1]!NIUPPLIMB)*[1]!NIUPPERB)+([1]!NIUPPLIMB-[1]!NILOWLIMB)*[1]!NILOWB,IF(AY30>[1]!NILOWLIMB,(AY30-[1]!NILOWLIMB)*[1]!NILOWB,0)))+IF($Q30="Y",IF(AY30>[1]!NIUPPLIMB,((AY30-[1]!NIUPPLIMB)*[1]!NIUPPERB)+(([1]!NIUPPLIMB-[1]!NILOWLIMB)*[1]!NISUPNB),IF(AY30>[1]!NILOWLIMB,(AY30-[1]!NILOWLIMB)*[1]!NISUPNB,0))))*((NumberOfDaysWorked($F30,$G30,BD$1,BF$1)*5)+(NumberOfDaysWorked($F30,$G30,BD$1,BF$1)*7)) -> 6324.79968 | BE30: 13310.23787 | BF30: 66044.51408 | BG30: 6 | BH30: 0 | BI30: =IF($E30="LEADER",VLOOKUP(BG30,[1]!LEADERSHIP,5),IF($E30="TEACHER",VLOOKUP(BG30,[1]!TEACHER,5),IF($E30="ADVANCED",VLOOKUP($AW30,[1]!ADVANCED_SKILLS_TEACHERS,5),IF($E30="UNQUAL",VLOOKUP($AW30,[1]!UNQUALIFIED_TEACHER,5),0))))*D30*(1+BA$4)*(1+BA$5)*(1+BK$4)*(1+BK$5)+(BH30/BJ30) -> 4087.662037 | BJ30: 12 | BK30: 48265.85559 | BN30: =(IF($Q30="N",IF(BI30>[1]!NIUPPLIMC,((BI30-[1]!NIUPPLIMC)*[1]!NIUPPERC)+([1]!NIUPPLIMC-[1]!NILOWLIMC)*[1]!NILOWC,IF(BI30>[1]!NILOWLIMC,(BI30-[1]!NILOWLIMC)*[1]!NILOWC,0)))+IF($Q30="Y",IF(BI30>[1]!NIUPPLIMC,((BI30-[1]!NIUPPLIMC)*[1]!NIUPPERC)+(([1]!NIUPPLIMC-[1]!NILOWLIMC)*[1]!NISUPNC),IF(BI30>[1]!NILOWLIMC,(BI30-[1]!NILOWLIMC)*[1]!NISUPNC,0))))*((NumberOfDaysWorked($F30,$G30,BN$1,BP$1)*5)+(NumberOfDaysWorked($F30,$G30,BN$1,BP$1)*7)) -> 6607.791667 | BO30: 13842.64738 | BP30: 68716.29465
A31: x | B31: NEILSON DONNA | C31: A01001 | D31: 1 | E31: TEACHER | F31: 2025-04-01 | G31: 2025-08-31 | H31: U3 | I31: U3 | J31: 0 | K31: =VLOOKUP(J31,[1]!MANAGEMENT,2)*D31 -> 0 | L31: 0 | M31: =VLOOKUP(L31,[1]!SEN_ALLOWANCES,2)*D31 -> 0 | N31: 0 | O31: =N31 -> 0 | P31: 3391 | Q31: Y | R31: =IF($E31="LEADER",VLOOKUP(H31,[1]PAYDATA!$A$4:$C$54,3),IF($E31="TEACHER",VLOOKUP(H31,[1]PAYDATA!$A$70:$C$80,3),IF($E31="ADVANCED",VLOOKUP(H31,[1]PAYDATA!$A$141:$C$159,3),IF($E31="UNQUAL",VLOOKUP(H31,[1]PAYDATA!$A$57:$C$63,3),0))))*$D31+($K31/T31)+($M31/T31)+($O31/T31)+($P31/T31) -> 4372.916667 | S31: =IF($E31="LEADER",VLOOKUP(I31,[1]!LEADERSHIP,5),IF($E31="TEACHER",VLOOKUP(I31,[1]!TEACHER,5),IF($E31="ADVANCED",VLOOKUP(I31,[1]PAYDATA!$A$141:$E$159,5),IF($E31="UNQUAL",VLOOKUP(I31,[1]!UNQUALIFIED_TEACHER,5),0))))*$D31+($K31/T31)+($M31/T31)+($O31/T31)+($P31/T31) -> 4536.53 | T31: =IF(G31-F31>11.99999,12,MONTH(G31)-MONTH(F31)) -> 12 | U31: 4372.916667 | V31: 4372.916667 | W31: 4372.916667 | X31: 4372.916667 | Y31: 4372.916667 | Z31: 0 | AA31: 0 | AB31: 0 | AC31: 0 | AD31: 0 | AE31: 0 | AF31: 0 | AG31: 21864.58333 | AH31: =IF($Q31="N",IF(U31>[1]!NIUPPLIMA,((U31-[1]!NIUPPLIMA)*[1]!NIUPPERA)+([1]!NIUPPLIMA-[1]!NILOWLIMA)*[1]!NILOWA,IF(U31>[1]!NILOWLIMA,(U31-[1]!NILOWLIMA)*[1]!NILOWA,0)))+IF($Q31="Y",IF(U31>[1]!NIUPPLIMA,((U31-[1]!NIUPPLIMA)*[1]!NIUPPERA)+(([1]!NIUPPLIMA-[1]!NILOWLIMA)*[1]!NISUPNA),IF(U31>[1]!NILOWLIMA,(U31-[1]!NILOWLIMA)*[1]!NISUPNA,0)))+IF(U31>[1]!NILOWLIMA,-[1]!NICREBATEA,0) -> 593.437 | AI31: =IF($Q31="N",IF(V31>[1]!NIUPPLIMA,((V31-[1]!NIUPPLIMA)*[1]!NIUPPERA)+([1]!NIUPPLIMA-[1]!NILOWLIMA)*[1]!NILOWA,IF(V31>[1]!NILOWLIMA,(V31-[1]!NILOWLIMA)*[1]!NILOWA,0)))+IF($Q31="Y",IF(V31>[1]!NIUPPLIMA,((V31-[1]!NIUPPLIMA)*[1]!NIUPPERA)+(([1]!NIUPPLIMA-[1]!NILOWLIMA)*[1]!NISUPNA),IF(V31>[1]!NILOWLIMA,(V31-[1]!NILOWLIMA)*[1]!NISUPNA,0)))+IF(V31>[1]!NILOWLIMA,-[1]!NICREBATEA,0) -> 593.437 | AJ31: =IF($Q31="N",IF(W31>[1]!NIUPPLIMA,((W31-[1]!NIUPPLIMA)*[1]!NIUPPERA)+([1]!NIUPPLIMA-[1]!NILOWLIMA)*[1]!NILOWA,IF(W31>[1]!NILOWLIMA,(W31-[1]!NILOWLIMA)*[1]!NILOWA,0)))+IF($Q31="Y",IF(W31>[1]!NIUPPLIMA,((W31-[1]!NIUPPLIMA)*[1]!NIUPPERA)+(([1]!NIUPPLIMA-[1]!NILOWLIMA)*[1]!NISUPNA),IF(W31>[1]!NILOWLIMA,(W31-[1]!NILOWLIMA)*[1]!NISUPNA,0)))+IF(W31>[1]!NILOWLIMA,-[1]!NICREBATEA,0) -> 593.437 | AK31: =IF($Q31="N",IF(X31>[1]!NIUPPLIMA,((X31-[1]!NIUPPLIMA)*[1]!NIUPPERA)+([1]!NIUPPLIMA-[1]!NILOWLIMA)*[1]!NILOWA,IF(X31>[1]!NILOWLIMA,(X31-[1]!NILOWLIMA)*[1]!NILOWA,0)))+IF($Q31="Y",IF(X31>[1]!NIUPPLIMA,((X31-[1]!NIUPPLIMA)*[1]!NIUPPERA)+(([1]!NIUPPLIMA-[1]!NILOWLIMA)*[1]!NISUPNA),IF(X31>[1]!NILOWLIMA,(X31-[1]!NILOWLIMA)*[1]!NISUPNA,0)))+IF(X31>[1]!NILOWLIMA,-[1]!NICREBATEA,0) -> 593.437 | AL31: =IF($Q31="N",IF(Y31>[1]!NIUPPLIMA,((Y31-[1]!NIUPPLIMA)*[1]!NIUPPERA)+([1]!NIUPPLIMA-[1]!NILOWLIMA)*[1]!NILOWA,IF(Y31>[1]!NILOWLIMA,(Y31-[1]!NILOWLIMA)*[1]!NILOWA,0)))+IF($Q31="Y",IF(Y31>[1]!NIUPPLIMA,((Y31-[1]!NIUPPLIMA)*[1]!NIUPPERA)+(([1]!NIUPPLIMA-[1]!NILOWLIMA)*[1]!NISUPNA),IF(Y31>[1]!NILOWLIMA,(Y31-[1]!NILOWLIMA)*[1]!NISUPNA,0)))+IF(Y31>[1]!NILOWLIMA,-[1]!NICREBATEA,0) -> 593.437 | AM31: =IF($Q31="N",IF(Z31>[1]!NIUPPLIMA,((Z31-[1]!NIUPPLIMA)*[1]!NIUPPERA)+([1]!NIUPPLIMA-[1]!NILOWLIMA)*[1]!NILOWA,IF(Z31>[1]!NILOWLIMA,(Z31-[1]!NILOWLIMA)*[1]!NILOWA,0)))+IF($Q31="Y",IF(Z31>[1]!NIUPPLIMA,((Z31-[1]!NIUPPLIMA)*[1]!NIUPPERA)+(([1]!NIUPPLIMA-[1]!NILOWLIMA)*[1]!NISUPNA),IF(Z31>[1]!NILOWLIMA,(Z31-[1]!NILOWLIMA)*[1]!NISUPNA,0)))+IF(Z31>[1]!NILOWLIMA,-[1]!NICREBATEA,0) -> 0 | AN31: =IF($Q31="N",IF(AA31>[1]!NIUPPLIMA,((AA31-[1]!NIUPPLIMA)*[1]!NIUPPERA)+([1]!NIUPPLIMA-[1]!NILOWLIMA)*[1]!NILOWA,IF(AA31>[1]!NILOWLIMA,(AA31-[1]!NILOWLIMA)*[1]!NILOWA,0)))+IF($Q31="Y",IF(AA31>[1]!NIUPPLIMA,((AA31-[1]!NIUPPLIMA)*[1]!NIUPPERA)+(([1]!NIUPPLIMA-[1]!NILOWLIMA)*[1]!NISUPNA),IF(AA31>[1]!NILOWLIMA,(AA31-[1]!NILOWLIMA)*[1]!NISUPNA,0)))+IF(AA31>[1]!NILOWLIMA,-[1]!NICREBATEA,0) -> 0 | AO31: =IF($Q31="N",IF(AB31>[1]!NIUPPLIMA,((AB31-[1]!NIUPPLIMA)*[1]!NIUPPERA)+([1]!NIUPPLIMA-[1]!NILOWLIMA)*[1]!NILOWA,IF(AB31>[1]!NILOWLIMA,(AB31-[1]!NILOWLIMA)*[1]!NILOWA,0)))+IF($Q31="Y",IF(AB31>[1]!NIUPPLIMA,((AB31-[1]!NIUPPLIMA)*[1]!NIUPPERA)+(([1]!NIUPPLIMA-[1]!NILOWLIMA)*[1]!NISUPNA),IF(AB31>[1]!NILOWLIMA,(AB31-[1]!NILOWLIMA)*[1]!NISUPNA,0)))+IF(AB31>[1]!NILOWLIMA,-[1]!NICREBATEA,0) -> 0 | AP31: =IF($Q31="N",IF(AC31>[1]!NIUPPLIMA,((AC31-[1]!NIUPPLIMA)*[1]!NIUPPERA)+([1]!NIUPPLIMA-[1]!NILOWLIMA)*[1]!NILOWA,IF(AC31>[1]!NILOWLIMA,(AC31-[1]!NILOWLIMA)*[1]!NILOWA,0)))+IF($Q31="Y",IF(AC31>[1]!NIUPPLIMA,((AC31-[1]!NIUPPLIMA)*[1]!NIUPPERA)+(([1]!NIUPPLIMA-[1]!NILOWLIMA)*[1]!NISUPNA),IF(AC31>[1]!NILOWLIMA,(AC31-[1]!NILOWLIMA)*[1]!NISUPNA,0)))+IF(AC31>[1]!NILOWLIMA,-[1]!NICREBATEA,0) -> 0 | AQ31: =IF($Q31="N",IF(AD31>[1]!NIUPPLIMA,((AD31-[1]!NIUPPLIMA)*[1]!NIUPPERA)+([1]!NIUPPLIMA-[1]!NILOWLIMA)*[1]!NILOWA,IF(AD31>[1]!NILOWLIMA,(AD31-[1]!NILOWLIMA)*[1]!NILOWA,0)))+IF($Q31="Y",IF(AD31>[1]!NIUPPLIMA,((AD31-[1]!NIUPPLIMA)*[1]!NIUPPERA)+(([1]!NIUPPLIMA-[1]!NILOWLIMA)*[1]!NISUPNA),IF(AD31>[1]!NILOWLIMA,(AD31-[1]!NILOWLIMA)*[1]!NISUPNA,0)))+IF(AD31>[1]!NILOWLIMA,-[1]!NICREBATEA,0) -> 0 | AR31: =IF($Q31="N",IF(AE31>[1]!NIUPPLIMA,((AE31-[1]!NIUPPLIMA)*[1]!NIUPPERA)+([1]!NIUPPLIMA-[1]!NILOWLIMA)*[1]!NILOWA,IF(AE31>[1]!NILOWLIMA,(AE31-[1]!NILOWLIMA)*[1]!NILOWA,0)))+IF($Q31="Y",IF(AE31>[1]!NIUPPLIMA,((AE31-[1]!NIUPPLIMA)*[1]!NIUPPERA)+(([1]!NIUPPLIMA-[1]!NILOWLIMA)*[1]!NISUPNA),IF(AE31>[1]!NILOWLIMA,(AE31-[1]!NILOWLIMA)*[1]!NISUPNA,0)))+IF(AE31>[1]!NILOWLIMA,-[1]!NICREBATEA,0) -> 0 | AS31: =IF($Q31="N",IF(AF31>[1]!NIUPPLIMA,((AF31-[1]!NIUPPLIMA)*[1]!NIUPPERA)+([1]!NIUPPLIMA-[1]!NILOWLIMA)*[1]!NILOWA,IF(AF31>[1]!NILOWLIMA,(AF31-[1]!NILOWLIMA)*[1]!NILOWA,0)))+IF($Q31="Y",IF(AF31>[1]!NIUPPLIMA,((AF31-[1]!NIUPPLIMA)*[1]!NIUPPERA)+(([1]!NIUPPLIMA-[1]!NILOWLIMA)*[1]!NISUPNA),IF(AF31>[1]!NILOWLIMA,(AF31-[1]!NILOWLIMA)*[1]!NISUPNA,0)))+IF(AF31>[1]!NILOWLIMA,-[1]!NICREBATEA,0) -> 0 | AT31: 2967.185 | AU31: =IF($Q31="N",0,((AG31*$AU$5))) -> 6270.7625 | AV31: =AG31+AT31+AU31 -> 31102.53083 | AW31: =IF($E31="TEACHER",IF($I31<6,$I31+1,IF(LEFT($I31,1)="U",$I31,6)),IF($E31="LEADER",+I31,IF($E31="UNQUAL",IF($I31<10,$I31+1,10),IF($E31="ADVANCED",IF($I31<27,$I31+1,27))))) -> U3 | AX31: =(K31+M31+O31+P31) -> 3391 | AY31: =IF($E31="LEADER",VLOOKUP(AW31,[1]!LEADERSHIP,5),IF($E31="TEACHER",VLOOKUP(AW31,[1]!TEACHER,5),IF($E31="ADVANCED",VLOOKUP($AW31,[1]!ADVANCED_SKILLS_TEACHERS,5),IF($E31="UNQUAL",VLOOKUP($AW31,[1]!UNQUALIFIED_TEACHER,5),0))))*D31*(1+BA$4)*(1+BA$5)+(AX31/AZ31) -> 4706.687867 | AZ31: =IF(G31-F31>11.99999,12,MONTH(G31)-MONTH(F31)) -> 12 | BA31: 0 | BD31: =(IF($Q31="N",IF(AY31>[1]!NIUPPLIMB,((AY31-[1]!NIUPPLIMB)*[1]!NIUPPERB)+([1]!NIUPPLIMB-[1]!NILOWLIMB)*[1]!NILOWB,IF(AY31>[1]!NILOWLIMB,(AY31-[1]!NILOWLIMB)*[1]!NILOWB,0)))+IF($Q31="Y",IF(AY31>[1]!NIUPPLIMB,((AY31-[1]!NIUPPLIMB)*[1]!NIUPPERB)+(([1]!NIUPPLIMB-[1]!NILOWLIMB)*[1]!NISUPNB),IF(AY31>[1]!NILOWLIMB,(AY31-[1]!NILOWLIMB)*[1]!NISUPNB,0))))*((NumberOfDaysWorked($F31,$G31,BD$1,BF$1)*5)+(NumberOfDaysWorked($F31,$G31,BD$1,BF$1)*7)) -> 0 | BE31: =IF($Q31="N",0,(BA31*$BE$5)) -> 0 | BF31: =SUM(BA31:BE31) -> 0 | BG31: =IF($E31="TEACHER",IF(AW31<6,AW31+1,IF(LEFT(AW31,1)="U",AW31,6)),IF($E31="LEADER",+I31,IF($E31="UNQUAL",IF(AW31<10,AW31+1,10),IF($E31="ADVANCED",IF(AW31<27,AW31+1,27))))) -> U3 | BH31: =(K31+M31+O31+P31) -> 3391 | BI31: =IF($E31="LEADER",VLOOKUP(BG31,[1]!LEADERSHIP,5),IF($E31="TEACHER",VLOOKUP(BG31,[1]!TEACHER,5),IF($E31="ADVANCED",VLOOKUP($AW31,[1]!ADVANCED_SKILLS_TEACHERS,5),IF($E31="UNQUAL",VLOOKUP($AW31,[1]!UNQUALIFIED_TEACHER,5),0))))*D31*(1+BA$4)*(1+BA$5)*(1+BK$4)*(1+BK$5)+(BH31/BJ31) -> 4883.652048 | BJ31: =IF(G31-F31>11.99999,12,MONTH(G31)-MONTH(F31)) -> 12 | BK31: =NumberOfDaysWorked($F31,$G31,BN$1,BP$1)*(($AY31*(1+BK$4))*5)+NumberOfDaysWorked($F31,$G31,BN$1,BP$1)*($BI31*7) -> 0 | BN31: =(IF($Q31="N",IF(BI31>[1]!NIUPPLIMC,((BI31-[1]!NIUPPLIMC)*[1]!NIUPPERC)+([1]!NIUPPLIMC-[1]!NILOWLIMC)*[1]!NILOWC,IF(BI31>[1]!NILOWLIMC,(BI31-[1]!NILOWLIMC)*[1]!NILOWC,0)))+IF($Q31="Y",IF(BI31>[1]!NIUPPLIMC,((BI31-[1]!NIUPPLIMC)*[1]!NIUPPERC)+(([1]!NIUPPLIMC-[1]!NILOWLIMC)*[1]!NISUPNC),IF(BI31>[1]!NILOWLIMC,(BI31-[1]!NILOWLIMC)*[1]!NISUPNC,0))))*((NumberOfDaysWorked($F31,$G31,BN$1,BP$1)*5)+(NumberOfDaysWorked($F31,$G31,BN$1,BP$1)*7)) -> 0 | BO31: =IF($Q31="N",0,(BK31*$BO$5)) -> 0 | BP31: =SUM(BK31:BO31) -> 0
A32: x | B32: NEILSON DONNA | C32: A01001 | D32: 1 | E32: TEACHER | F32: 2025-09-01 | G32: 2028-03-31 | H32: U3 | I32: U3 | J32: 0 | K32: =VLOOKUP(J32,[1]!MANAGEMENT,2)*D32 -> 0 | L32: 0 | M32: =VLOOKUP(L32,[1]!SEN_ALLOWANCES,2)*D32 -> 0 | N32: 0 | O32: 0 | P32: 3527 | Q32: Y | R32: =IF($E32="LEADER",VLOOKUP(H32,[1]PAYDATA!$A$4:$C$54,3),IF($E32="TEACHER",VLOOKUP(H32,[1]PAYDATA!$A$70:$C$80,3),IF($E32="ADVANCED",VLOOKUP(H32,[1]PAYDATA!$A$141:$C$159,3),IF($E32="UNQUAL",VLOOKUP(H32,[1]PAYDATA!$A$57:$C$63,3),0))))*$D32+($K32/T32)+($M32/T32)+($O32/T32)+($P32/T32) -> 4384.25 | S32: =IF($E32="LEADER",VLOOKUP(I32,[1]!LEADERSHIP,5),IF($E32="TEACHER",VLOOKUP(I32,[1]!TEACHER,5),IF($E32="ADVANCED",VLOOKUP(I32,[1]PAYDATA!$A$141:$E$159,5),IF($E32="UNQUAL",VLOOKUP(I32,[1]!UNQUALIFIED_TEACHER,5),0))))*$D32+($K32/T32)+($M32/T32)+($O32/T32)+($P32/T32) -> 4547.863333 | T32: 12 | U32: 0 | V32: 0 | W32: 0 | X32: 0 | Y32: 0 | Z32: 4547.863333 | AA32: 4547.863333 | AB32: 4547.863333 | AC32: 4547.863333 | AD32: 4547.863333 | AE32: 4547.863333 | AF32: 4547.863333 | AG32: 31835.04333 | AH32: =IF($Q32="N",IF(U32>[1]!NIUPPLIMA,((U32-[1]!NIUPPLIMA)*[1]!NIUPPERA)+([1]!NIUPPLIMA-[1]!NILOWLIMA)*[1]!NILOWA,IF(U32>[1]!NILOWLIMA,(U32-[1]!NILOWLIMA)*[1]!NILOWA,0)))+IF($Q32="Y",IF(U32>[1]!NIUPPLIMA,((U32-[1]!NIUPPLIMA)*[1]!NIUPPERA)+(([1]!NIUPPLIMA-[1]!NILOWLIMA)*[1]!NISUPNA),IF(U32>[1]!NILOWLIMA,(U32-[1]!NILOWLIMA)*[1]!NISUPNA,0)))+IF(U32>[1]!NILOWLIMA,-[1]!NICREBATEA,0) -> 0 | AI32: =IF($Q32="N",IF(V32>[1]!NIUPPLIMA,((V32-[1]!NIUPPLIMA)*[1]!NIUPPERA)+([1]!NIUPPLIMA-[1]!NILOWLIMA)*[1]!NILOWA,IF(V32>[1]!NILOWLIMA,(V32-[1]!NILOWLIMA)*[1]!NILOWA,0)))+IF($Q32="Y",IF(V32>[1]!NIUPPLIMA,((V32-[1]!NIUPPLIMA)*[1]!NIUPPERA)+(([1]!NIUPPLIMA-[1]!NILOWLIMA)*[1]!NISUPNA),IF(V32>[1]!NILOWLIMA,(V32-[1]!NILOWLIMA)*[1]!NISUPNA,0)))+IF(V32>[1]!NILOWLIMA,-[1]!NICREBATEA,0) -> 0 | AJ32: =IF($Q32="N",IF(W32>[1]!NIUPPLIMA,((W32-[1]!NIUPPLIMA)*[1]!NIUPPERA)+([1]!NIUPPLIMA-[1]!NILOWLIMA)*[1]!NILOWA,IF(W32>[1]!NILOWLIMA,(W32-[1]!NILOWLIMA)*[1]!NILOWA,0)))+IF($Q32="Y",IF(W32>[1]!NIUPPLIMA,((W32-[1]!NIUPPLIMA)*[1]!NIUPPERA)+(([1]!NIUPPLIMA-[1]!NILOWLIMA)*[1]!NISUPNA),IF(W32>[1]!NILOWLIMA,(W32-[1]!NILOWLIMA)*[1]!NISUPNA,0)))+IF(W32>[1]!NILOWLIMA,-[1]!NICREBATEA,0) -> 0 | AK32: =IF($Q32="N",IF(X32>[1]!NIUPPLIMA,((X32-[1]!NIUPPLIMA)*[1]!NIUPPERA)+([1]!NIUPPLIMA-[1]!NILOWLIMA)*[1]!NILOWA,IF(X32>[1]!NILOWLIMA,(X32-[1]!NILOWLIMA)*[1]!NILOWA,0)))+IF($Q32="Y",IF(X32>[1]!NIUPPLIMA,((X32-[1]!NIUPPLIMA)*[1]!NIUPPERA)+(([1]!NIUPPLIMA-[1]!NILOWLIMA)*[1]!NISUPNA),IF(X32>[1]!NILOWLIMA,(X32-[1]!NILOWLIMA)*[1]!NISUPNA,0)))+IF(X32>[1]!NILOWLIMA,-[1]!NICREBATEA,0) -> 0 | AL32: =IF($Q32="N",IF(Y32>[1]!NIUPPLIMA,((Y32-[1]!NIUPPLIMA)*[1]!NIUPPERA)+([1]!NIUPPLIMA-[1]!NILOWLIMA)*[1]!NILOWA,IF(Y32>[1]!NILOWLIMA,(Y32-[1]!NILOWLIMA)*[1]!NILOWA,0)))+IF($Q32="Y",IF(Y32>[1]!NIUPPLIMA,((Y32-[1]!NIUPPLIMA)*[1]!NIUPPERA)+(([1]!NIUPPLIMA-[1]!NILOWLIMA)*[1]!NISUPNA),IF(Y32>[1]!NILOWLIMA,(Y32-[1]!NILOWLIMA)*[1]!NISUPNA,0)))+IF(Y32>[1]!NILOWLIMA,-[1]!NICREBATEA,0) -> 0 | AM32: =IF($Q32="N",IF(Z32>[1]!NIUPPLIMA,((Z32-[1]!NIUPPLIMA)*[1]!NIUPPERA)+([1]!NIUPPLIMA-[1]!NILOWLIMA)*[1]!NILOWA,IF(Z32>[1]!NILOWLIMA,(Z32-[1]!NILOWLIMA)*[1]!NILOWA,0)))+IF($Q32="Y",IF(Z32>[1]!NIUPPLIMA,((Z32-[1]!NIUPPLIMA)*[1]!NIUPPERA)+(([1]!NIUPPLIMA-[1]!NILOWLIMA)*[1]!NISUPNA),IF(Z32>[1]!NILOWLIMA,(Z32-[1]!NILOWLIMA)*[1]!NISUPNA,0)))+IF(Z32>[1]!NILOWLIMA,-[1]!NICREBATEA,0) -> 619.679 | AN32: =IF($Q32="N",IF(AA32>[1]!NIUPPLIMA,((AA32-[1]!NIUPPLIMA)*[1]!NIUPPERA)+([1]!NIUPPLIMA-[1]!NILOWLIMA)*[1]!NILOWA,IF(AA32>[1]!NILOWLIMA,(AA32-[1]!NILOWLIMA)*[1]!NILOWA,0)))+IF($Q32="Y",IF(AA32>[1]!NIUPPLIMA,((AA32-[1]!NIUPPLIMA)*[1]!NIUPPERA)+(([1]!NIUPPLIMA-[1]!NILOWLIMA)*[1]!NISUPNA),IF(AA32>[1]!NILOWLIMA,(AA32-[1]!NILOWLIMA)*[1]!NISUPNA,0)))+IF(AA32>[1]!NILOWLIMA,-[1]!NICREBATEA,0) -> 619.679 | AO32: =IF($Q32="N",IF(AB32>[1]!NIUPPLIMA,((AB32-[1]!NIUPPLIMA)*[1]!NIUPPERA)+([1]!NIUPPLIMA-[1]!NILOWLIMA)*[1]!NILOWA,IF(AB32>[1]!NILOWLIMA,(AB32-[1]!NILOWLIMA)*[1]!NILOWA,0)))+IF($Q32="Y",IF(AB32>[1]!NIUPPLIMA,((AB32-[1]!NIUPPLIMA)*[1]!NIUPPERA)+(([1]!NIUPPLIMA-[1]!NILOWLIMA)*[1]!NISUPNA),IF(AB32>[1]!NILOWLIMA,(AB32-[1]!NILOWLIMA)*[1]!NISUPNA,0)))+IF(AB32>[1]!NILOWLIMA,-[1]!NICREBATEA,0) -> 619.679 | AP32: =IF($Q32="N",IF(AC32>[1]!NIUPPLIMA,((AC32-[1]!NIUPPLIMA)*[1]!NIUPPERA)+([1]!NIUPPLIMA-[1]!NILOWLIMA)*[1]!NILOWA,IF(AC32>[1]!NILOWLIMA,(AC32-[1]!NILOWLIMA)*[1]!NILOWA,0)))+IF($Q32="Y",IF(AC32>[1]!NIUPPLIMA,((AC32-[1]!NIUPPLIMA)*[1]!NIUPPERA)+(([1]!NIUPPLIMA-[1]!NILOWLIMA)*[1]!NISUPNA),IF(AC32>[1]!NILOWLIMA,(AC32-[1]!NILOWLIMA)*[1]!NISUPNA,0)))+IF(AC32>[1]!NILOWLIMA,-[1]!NICREBATEA,0) -> 619.679 | AQ32: =IF($Q32="N",IF(AD32>[1]!NIUPPLIMA,((AD32-[1]!NIUPPLIMA)*[1]!NIUPPERA)+([1]!NIUPPLIMA-[1]!NILOWLIMA)*[1]!NILOWA,IF(AD32>[1]!NILOWLIMA,(AD32-[1]!NILOWLIMA)*[1]!NILOWA,0)))+IF($Q32="Y",IF(AD32>[1]!NIUPPLIMA,((AD32-[1]!NIUPPLIMA)*[1]!NIUPPERA)+(([1]!NIUPPLIMA-[1]!NILOWLIMA)*[1]!NISUPNA),IF(AD32>[1]!NILOWLIMA,(AD32-[1]!NILOWLIMA)*[1]!NISUPNA,0)))+IF(AD32>[1]!NILOWLIMA,-[1]!NICREBATEA,0) -> 619.679 | AR32: =IF($Q32="N",IF(AE32>[1]!NIUPPLIMA,((AE32-[1]!NIUPPLIMA)*[1]!NIUPPERA)+([1]!NIUPPLIMA-[1]!NILOWLIMA)*[1]!NILOWA,IF(AE32>[1]!NILOWLIMA,(AE32-[1]!NILOWLIMA)*[1]!NILOWA,0)))+IF($Q32="Y",IF(AE32>[1]!NIUPPLIMA,((AE32-[1]!NIUPPLIMA)*[1]!NIUPPERA)+(([1]!NIUPPLIMA-[1]!NILOWLIMA)*[1]!NISUPNA),IF(AE32>[1]!NILOWLIMA,(AE32-[1]!NILOWLIMA)*[1]!NISUPNA,0)))+IF(AE32>[1]!NILOWLIMA,-[1]!NICREBATEA,0) -> 619.679 | AS32: =IF($Q32="N",IF(AF32>[1]!NIUPPLIMA,((AF32-[1]!NIUPPLIMA)*[1]!NIUPPERA)+([1]!NIUPPLIMA-[1]!NILOWLIMA)*[1]!NILOWA,IF(AF32>[1]!NILOWLIMA,(AF32-[1]!NILOWLIMA)*[1]!NILOWA,0)))+IF($Q32="Y",IF(AF32>[1]!NIUPPLIMA,((AF32-[1]!NIUPPLIMA)*[1]!NIUPPERA)+(([1]!NIUPPLIMA-[1]!NILOWLIMA)*[1]!NISUPNA),IF(AF32>[1]!NILOWLIMA,(AF32-[1]!NILOWLIMA)*[1]!NISUPNA,0)))+IF(AF32>[1]!NILOWLIMA,-[1]!NICREBATEA,0) -> 619.679 | AT32: 4337.753 | AU32: 9130.290428 | AV32: 45303.08676 | AW32: U3 | AX32: 3527 | AY32: =IF($E32="LEADER",VLOOKUP(AW32,[1]!LEADERSHIP,5),IF($E32="TEACHER",VLOOKUP(AW32,[1]!TEACHER,5),IF($E32="ADVANCED",VLOOKUP($AW32,[1]!ADVANCED_SKILLS_TEACHERS,5),IF($E32="UNQUAL",VLOOKUP($AW32,[1]!UNQUALIFIED_TEACHER,5),0))))*D32*(1+BA$4)*(1+BA$5)+(AX32/AZ32) -> 4718.0212 | AZ32: 12 | BA32: 55765.46507 | BD32: =(IF($Q32="N",IF(AY32>[1]!NIUPPLIMB,((AY32-[1]!NIUPPLIMB)*[1]!NIUPPERB)+([1]!NIUPPLIMB-[1]!NILOWLIMB)*[1]!NILOWB,IF(AY32>[1]!NILOWLIMB,(AY32-[1]!NILOWLIMB)*[1]!NILOWB,0)))+IF($Q32="Y",IF(AY32>[1]!NIUPPLIMB,((AY32-[1]!NIUPPLIMB)*[1]!NIUPPERB)+(([1]!NIUPPLIMB-[1]!NILOWLIMB)*[1]!NISUPNB),IF(AY32>[1]!NILOWLIMB,(AY32-[1]!NILOWLIMB)*[1]!NISUPNB,0))))*((NumberOfDaysWorked($F32,$G32,BD$1,BF$1)*5)+(NumberOfDaysWorked($F32,$G32,BD$1,BF$1)*7)) -> 7742.43816 | BE32: 15993.53538 | BF32: 79501.43861 | BG32: U3 | BH32: 3527 | BI32: =IF($E32="LEADER",VLOOKUP(BG32,[1]!LEADERSHIP,5),IF($E32="TEACHER",VLOOKUP(BG32,[1]!TEACHER,5),IF($E32="ADVANCED",VLOOKUP($AW32,[1]!ADVANCED_SKILLS_TEACHERS,5),IF($E32="UNQUAL",VLOOKUP($AW32,[1]!UNQUALIFIED_TEACHER,5),0))))*D32*(1+BA$4)*(1+BA$5)*(1+BK$4)*(1+BK$5)+(BH32/BJ32) -> 4894.985381 | BJ32: 12 | BK32: 57855.00367 | BN32: =(IF($Q32="N",IF(BI32>[1]!NIUPPLIMC,((BI32-[1]!NIUPPLIMC)*[1]!NIUPPERC)+([1]!NIUPPLIMC-[1]!NILOWLIMC)*[1]!NILOWC,IF(BI32>[1]!NILOWLIMC,(BI32-[1]!NILOWLIMC)*[1]!NILOWC,0)))+IF($Q32="Y",IF(BI32>[1]!NIUPPLIMC,((BI32-[1]!NIUPPLIMC)*[1]!NIUPPERC)+(([1]!NIUPPLIMC-[1]!NILOWLIMC)*[1]!NISUPNC),IF(BI32>[1]!NILOWLIMC,(BI32-[1]!NILOWLIMC)*[1]!NISUPNC,0))))*((NumberOfDaysWorked($F32,$G32,BN$1,BP$1)*5)+(NumberOfDaysWorked($F32,$G32,BN$1,BP$1)*7)) -> 8060.973686 | BO32: 16592.81505 | BP32: 82508.79241
A33: x | B33: RYAN AIMEE | C33: A01001 | D33: =759/1265 -> 0.6 | E33: TEACHER | F33: 2025-04-01 | G33: 2025-08-31 | H33: U1 | I33: U1 | J33: 0 | K33: =VLOOKUP(J33,[1]!MANAGEMENT,2)*D33 -> 0 | L33: 0 | M33: =VLOOKUP(L33,[1]!SEN_ALLOWANCES,2)*D33 -> 0 | N33: 0 | O33: 0 | P33: 0 | Q33: Y | R33: =IF($E33="LEADER",VLOOKUP(H33,[1]PAYDATA!$A$4:$C$54,3),IF($E33="TEACHER",VLOOKUP(H33,[1]PAYDATA!$A$70:$C$80,3),IF($E33="ADVANCED",VLOOKUP(H33,[1]PAYDATA!$A$141:$C$159,3),IF($E33="UNQUAL",VLOOKUP(H33,[1]PAYDATA!$A$57:$C$63,3),0))))*$D33+($K33/T33)+($M33/T33)+($O33/T33)+($P33/T33) -> 2282.3 | S33: =IF($E33="LEADER",VLOOKUP(I33,[1]!LEADERSHIP,5),IF($E33="TEACHER",VLOOKUP(I33,[1]!TEACHER,5),IF($E33="ADVANCED",VLOOKUP(I33,[1]PAYDATA!$A$141:$E$159,5),IF($E33="UNQUAL",VLOOKUP(I33,[1]!UNQUALIFIED_TEACHER,5),0))))*$D33+($K33/T33)+($M33/T33)+($O33/T33)+($P33/T33) -> 2373.592 | T33: 12 | U33: 2282.3 | V33: 2282.3 | W33: 2282.3 | X33: 2282.3 | Y33: 2282.3 | Z33: 0 | AA33: 0 | AB33: 0 | AC33: 0 | AD33: 0 | AE33: 0 | AF33: 0 | AG33: =SUM(U33:AF33) -> 11411.5 | AH33: =IF($Q33="N",IF(U33>[1]!NIUPPLIMA,((U33-[1]!NIUPPLIMA)*[1]!NIUPPERA)+([1]!NIUPPLIMA-[1]!NILOWLIMA)*[1]!NILOWA,IF(U33>[1]!NILOWLIMA,(U33-[1]!NILOWLIMA)*[1]!NILOWA,0)))+IF($Q33="Y",IF(U33>[1]!NIUPPLIMA,((U33-[1]!NIUPPLIMA)*[1]!NIUPPERA)+(([1]!NIUPPLIMA-[1]!NILOWLIMA)*[1]!NISUPNA),IF(U33>[1]!NILOWLIMA,(U33-[1]!NILOWLIMA)*[1]!NISUPNA,0)))+IF(U33>[1]!NILOWLIMA,-[1]!NICREBATEA,0) -> 279.8445 | AI33: =IF($Q33="N",IF(V33>[1]!NIUPPLIMA,((V33-[1]!NIUPPLIMA)*[1]!NIUPPERA)+([1]!NIUPPLIMA-[1]!NILOWLIMA)*[1]!NILOWA,IF(V33>[1]!NILOWLIMA,(V33-[1]!NILOWLIMA)*[1]!NILOWA,0)))+IF($Q33="Y",IF(V33>[1]!NIUPPLIMA,((V33-[1]!NIUPPLIMA)*[1]!NIUPPERA)+(([1]!NIUPPLIMA-[1]!NILOWLIMA)*[1]!NISUPNA),IF(V33>[1]!NILOWLIMA,(V33-[1]!NILOWLIMA)*[1]!NISUPNA,0)))+IF(V33>[1]!NILOWLIMA,-[1]!NICREBATEA,0) -> 279.8445 | AJ33: =IF($Q33="N",IF(W33>[1]!NIUPPLIMA,((W33-[1]!NIUPPLIMA)*[1]!NIUPPERA)+([1]!NIUPPLIMA-[1]!NILOWLIMA)*[1]!NILOWA,IF(W33>[1]!NILOWLIMA,(W33-[1]!NILOWLIMA)*[1]!NILOWA,0)))+IF($Q33="Y",IF(W33>[1]!NIUPPLIMA,((W33-[1]!NIUPPLIMA)*[1]!NIUPPERA)+(([1]!NIUPPLIMA-[1]!NILOWLIMA)*[1]!NISUPNA),IF(W33>[1]!NILOWLIMA,(W33-[1]!NILOWLIMA)*[1]!NISUPNA,0)))+IF(W33>[1]!NILOWLIMA,-[1]!NICREBATEA,0) -> 279.8445 | AK33: =IF($Q33="N",IF(X33>[1]!NIUPPLIMA,((X33-[1]!NIUPPLIMA)*[1]!NIUPPERA)+([1]!NIUPPLIMA-[1]!NILOWLIMA)*[1]!NILOWA,IF(X33>[1]!NILOWLIMA,(X33-[1]!NILOWLIMA)*[1]!NILOWA,0)))+IF($Q33="Y",IF(X33>[1]!NIUPPLIMA,((X33-[1]!NIUPPLIMA)*[1]!NIUPPERA)+(([1]!NIUPPLIMA-[1]!NILOWLIMA)*[1]!NISUPNA),IF(X33>[1]!NILOWLIMA,(X33-[1]!NILOWLIMA)*[1]!NISUPNA,0)))+IF(X33>[1]!NILOWLIMA,-[1]!NICREBATEA,0) -> 279.8445 | AL33: =IF($Q33="N",IF(Y33>[1]!NIUPPLIMA,((Y33-[1]!NIUPPLIMA)*[1]!NIUPPERA)+([1]!NIUPPLIMA-[1]!NILOWLIMA)*[1]!NILOWA,IF(Y33>[1]!NILOWLIMA,(Y33-[1]!NILOWLIMA)*[1]!NILOWA,0)))+IF($Q33="Y",IF(Y33>[1]!NIUPPLIMA,((Y33-[1]!NIUPPLIMA)*[1]!NIUPPERA)+(([1]!NIUPPLIMA-[1]!NILOWLIMA)*[1]!NISUPNA),IF(Y33>[1]!NILOWLIMA,(Y33-[1]!NILOWLIMA)*[1]!NISUPNA,0)))+IF(Y33>[1]!NILOWLIMA,-[1]!NICREBATEA,0) -> 279.8445 | AM33: =IF($Q33="N",IF(Z33>[1]!NIUPPLIMA,((Z33-[1]!NIUPPLIMA)*[1]!NIUPPERA)+([1]!NIUPPLIMA-[1]!NILOWLIMA)*[1]!NILOWA,IF(Z33>[1]!NILOWLIMA,(Z33-[1]!NILOWLIMA)*[1]!NILOWA,0)))+IF($Q33="Y",IF(Z33>[1]!NIUPPLIMA,((Z33-[1]!NIUPPLIMA)*[1]!NIUPPERA)+(([1]!NIUPPLIMA-[1]!NILOWLIMA)*[1]!NISUPNA),IF(Z33>[1]!NILOWLIMA,(Z33-[1]!NILOWLIMA)*[1]!NISUPNA,0)))+IF(Z33>[1]!NILOWLIMA,-[1]!NICREBATEA,0) -> 0 | AN33: =IF($Q33="N",IF(AA33>[1]!NIUPPLIMA,((AA33-[1]!NIUPPLIMA)*[1]!NIUPPERA)+([1]!NIUPPLIMA-[1]!NILOWLIMA)*[1]!NILOWA,IF(AA33>[1]!NILOWLIMA,(AA33-[1]!NILOWLIMA)*[1]!NILOWA,0)))+IF($Q33="Y",IF(AA33>[1]!NIUPPLIMA,((AA33-[1]!NIUPPLIMA)*[1]!NIUPPERA)+(([1]!NIUPPLIMA-[1]!NILOWLIMA)*[1]!NISUPNA),IF(AA33>[1]!NILOWLIMA,(AA33-[1]!NILOWLIMA)*[1]!NISUPNA,0)))+IF(AA33>[1]!NILOWLIMA,-[1]!NICREBATEA,0) -> 0 | AO33: =IF($Q33="N",IF(AB33>[1]!NIUPPLIMA,((AB33-[1]!NIUPPLIMA)*[1]!NIUPPERA)+([1]!NIUPPLIMA-[1]!NILOWLIMA)*[1]!NILOWA,IF(AB33>[1]!NILOWLIMA,(AB33-[1]!NILOWLIMA)*[1]!NILOWA,0)))+IF($Q33="Y",IF(AB33>[1]!NIUPPLIMA,((AB33-[1]!NIUPPLIMA)*[1]!NIUPPERA)+(([1]!NIUPPLIMA-[1]!NILOWLIMA)*[1]!NISUPNA),IF(AB33>[1]!NILOWLIMA,(AB33-[1]!NILOWLIMA)*[1]!NISUPNA,0)))+IF(AB33>[1]!NILOWLIMA,-[1]!NICREBATEA,0) -> 0 | AP33: =IF($Q33="N",IF(AC33>[1]!NIUPPLIMA,((AC33-[1]!NIUPPLIMA)*[1]!NIUPPERA)+([1]!NIUPPLIMA-[1]!NILOWLIMA)*[1]!NILOWA,IF(AC33>[1]!NILOWLIMA,(AC33-[1]!NILOWLIMA)*[1]!NILOWA,0)))+IF($Q33="Y",IF(AC33>[1]!NIUPPLIMA,((AC33-[1]!NIUPPLIMA)*[1]!NIUPPERA)+(([1]!NIUPPLIMA-[1]!NILOWLIMA)*[1]!NISUPNA),IF(AC33>[1]!NILOWLIMA,(AC33-[1]!NILOWLIMA)*[1]!NISUPNA,0)))+IF(AC33>[1]!NILOWLIMA,-[1]!NICREBATEA,0) -> 0 | AQ33: =IF($Q33="N",IF(AD33>[1]!NIUPPLIMA,((AD33-[1]!NIUPPLIMA)*[1]!NIUPPERA)+([1]!NIUPPLIMA-[1]!NILOWLIMA)*[1]!NILOWA,IF(AD33>[1]!NILOWLIMA,(AD33-[1]!NILOWLIMA)*[1]!NILOWA,0)))+IF($Q33="Y",IF(AD33>[1]!NIUPPLIMA,((AD33-[1]!NIUPPLIMA)*[1]!NIUPPERA)+(([1]!NIUPPLIMA-[1]!NILOWLIMA)*[1]!NISUPNA),IF(AD33>[1]!NILOWLIMA,(AD33-[1]!NILOWLIMA)*[1]!NISUPNA,0)))+IF(AD33>[1]!NILOWLIMA,-[1]!NICREBATEA,0) -> 0 | AR33: =IF($Q33="N",IF(AE33>[1]!NIUPPLIMA,((AE33-[1]!NIUPPLIMA)*[1]!NIUPPERA)+([1]!NIUPPLIMA-[1]!NILOWLIMA)*[1]!NILOWA,IF(AE33>[1]!NILOWLIMA,(AE33-[1]!NILOWLIMA)*[1]!NILOWA,0)))+IF($Q33="Y",IF(AE33>[1]!NIUPPLIMA,((AE33-[1]!NIUPPLIMA)*[1]!NIUPPERA)+(([1]!NIUPPLIMA-[1]!NILOWLIMA)*[1]!NISUPNA),IF(AE33>[1]!NILOWLIMA,(AE33-[1]!NILOWLIMA)*[1]!NISUPNA,0)))+IF(AE33>[1]!NILOWLIMA,-[1]!NICREBATEA,0) -> 0 | AS33: =IF($Q33="N",IF(AF33>[1]!NIUPPLIMA,((AF33-[1]!NIUPPLIMA)*[1]!NIUPPERA)+([1]!NIUPPLIMA-[1]!NILOWLIMA)*[1]!NILOWA,IF(AF33>[1]!NILOWLIMA,(AF33-[1]!NILOWLIMA)*[1]!NILOWA,0)))+IF($Q33="Y",IF(AF33>[1]!NIUPPLIMA,((AF33-[1]!NIUPPLIMA)*[1]!NIUPPERA)+(([1]!NIUPPLIMA-[1]!NILOWLIMA)*[1]!NISUPNA),IF(AF33>[1]!NILOWLIMA,(AF33-[1]!NILOWLIMA)*[1]!NISUPNA,0)))+IF(AF33>[1]!NILOWLIMA,-[1]!NICREBATEA,0) -> 0 | AT33: =SUM(AH33:AS33) -> 1399.2225 | AU33: 3272.8182 | AV33: 16083.5407 | AW33: U1 | AX33: 0 | AY33: =IF($E33="LEADER",VLOOKUP(AW33,[1]!LEADERSHIP,5),IF($E33="TEACHER",VLOOKUP(AW33,[1]!TEACHER,5),IF($E33="ADVANCED",VLOOKUP($AW33,[1]!ADVANCED_SKILLS_TEACHERS,5),IF($E33="UNQUAL",VLOOKUP($AW33,[1]!UNQUALIFIED_TEACHER,5),0))))*D33*(1+BA$4)*(1+BA$5)+(AX33/AZ33) -> 2468.53568 | AZ33: 12 | BA33: 0 | BD33: =(IF($Q33="N",IF(AY33>[1]!NIUPPLIMB,((AY33-[1]!NIUPPLIMB)*[1]!NIUPPERB)+([1]!NIUPPLIMB-[1]!NILOWLIMB)*[1]!NILOWB,IF(AY33>[1]!NILOWLIMB,(AY33-[1]!NILOWLIMB)*[1]!NILOWB,0)))+IF($Q33="Y",IF(AY33>[1]!NIUPPLIMB,((AY33-[1]!NIUPPLIMB)*[1]!NIUPPERB)+(([1]!NIUPPLIMB-[1]!NILOWLIMB)*[1]!NISUPNB),IF(AY33>[1]!NILOWLIMB,(AY33-[1]!NILOWLIMB)*[1]!NISUPNB,0))))*((NumberOfDaysWorked($F33,$G33,BD$1,BF$1)*5)+(NumberOfDaysWorked($F33,$G33,BD$1,BF$1)*7)) -> 0 | BE33: 0 | BF33: 0 | BG33: U1 | BH33: 0 | BI33: =IF($E33="LEADER",VLOOKUP(BG33,[1]!LEADERSHIP,5),IF($E33="TEACHER",VLOOKUP(BG33,[1]!TEACHER,5),IF($E33="ADVANCED",VLOOKUP($AW33,[1]!ADVANCED_SKILLS_TEACHERS,5),IF($E33="UNQUAL",VLOOKUP($AW33,[1]!UNQUALIFIED_TEACHER,5),0))))*D33*(1+BA$4)*(1+BA$5)*(1+BK$4)*(1+BK$5)+(BH33/BJ33) -> 2567.277107 | BJ33: 12 | BK33: 0 | BN33: =(IF($Q33="N",IF(BI33>[1]!NIUPPLIMC,((BI33-[1]!NIUPPLIMC)*[1]!NIUPPERC)+([1]!NIUPPLIMC-[1]!NILOWLIMC)*[1]!NILOWC,IF(BI33>[1]!NILOWLIMC,(BI33-[1]!NILOWLIMC)*[1]!NILOWC,0)))+IF($Q33="Y",IF(BI33>[1]!NIUPPLIMC,((BI33-[1]!NIUPPLIMC)*[1]!NIUPPERC)+(([1]!NIUPPLIMC-[1]!NILOWLIMC)*[1]!NISUPNC),IF(BI33>[1]!NILOWLIMC,(BI33-[1]!NILOWLIMC)*[1]!NISUPNC,0))))*((NumberOfDaysWorked($F33,$G33,BN$1,BP$1)*5)+(NumberOfDaysWorked($F33,$G33,BN$1,BP$1)*7)) -> 0 | BO33: 0 | BP33: 0
A34: x | B34: RYAN AIMEE | C34: A01001 | D34: =759/1265 -> 0.6 | E34: TEACHER | F34: 2025-09-01 | G34: 2025-11-02 | H34: U1 | I34: U1 | J34: 0 | K34: =VLOOKUP(J34,[1]!MANAGEMENT,2)*D34 -> 0 | L34: 0 | M34: =VLOOKUP(L34,[1]!SEN_ALLOWANCES,2)*D34 -> 0 | N34: 0 | O34: =N34 -> 0 | P34: 0 | Q34: Y | R34: =IF($E34="LEADER",VLOOKUP(H34,[1]PAYDATA!$A$4:$C$54,3),IF($E34="TEACHER",VLOOKUP(H34,[1]PAYDATA!$A$70:$C$80,3),IF($E34="ADVANCED",VLOOKUP(H34,[1]PAYDATA!$A$141:$C$159,3),IF($E34="UNQUAL",VLOOKUP(H34,[1]PAYDATA!$A$57:$C$63,3),0))))*$D34+($K34/T34)+($M34/T34)+($O34/T34)+($P34/T34) -> 2282.3 | S34: =IF($E34="LEADER",VLOOKUP(I34,[1]!LEADERSHIP,5),IF($E34="TEACHER",VLOOKUP(I34,[1]!TEACHER,5),IF($E34="ADVANCED",VLOOKUP(I34,[1]PAYDATA!$A$141:$E$159,5),IF($E34="UNQUAL",VLOOKUP(I34,[1]!UNQUALIFIED_TEACHER,5),0))))*$D34+($K34/T34)+($M34/T34)+($O34/T34)+($P34/T34) -> 2373.592 | T34: =IF(G34-F34>11.99999,12,MONTH(G34)-MONTH(F34)) -> 12 | U34: 0 | V34: 0 | W34: 0 | X34: 0 | Y34: 0 | Z34: 2373.592 | AA34: 2373.592 | AB34: 158.2394667 | AC34: 0 | AD34: 0 | AE34: 0 | AF34: 0 | AG34: =SUM(U34:AF34) -> 4905.423467 | AH34: =IF($Q34="N",IF(U34>[1]!NIUPPLIMA,((U34-[1]!NIUPPLIMA)*[1]!NIUPPERA)+([1]!NIUPPLIMA-[1]!NILOWLIMA)*[1]!NILOWA,IF(U34>[1]!NILOWLIMA,(U34-[1]!NILOWLIMA)*[1]!NILOWA,0)))+IF($Q34="Y",IF(U34>[1]!NIUPPLIMA,((U34-[1]!NIUPPLIMA)*[1]!NIUPPERA)+(([1]!NIUPPLIMA-[1]!NILOWLIMA)*[1]!NISUPNA),IF(U34>[1]!NILOWLIMA,(U34-[1]!NILOWLIMA)*[1]!NISUPNA,0)))+IF(U34>[1]!NILOWLIMA,-[1]!NICREBATEA,0) -> 0 | AI34: =IF($Q34="N",IF(V34>[1]!NIUPPLIMA,((V34-[1]!NIUPPLIMA)*[1]!NIUPPERA)+([1]!NIUPPLIMA-[1]!NILOWLIMA)*[1]!NILOWA,IF(V34>[1]!NILOWLIMA,(V34-[1]!NILOWLIMA)*[1]!NILOWA,0)))+IF($Q34="Y",IF(V34>[1]!NIUPPLIMA,((V34-[1]!NIUPPLIMA)*[1]!NIUPPERA)+(([1]!NIUPPLIMA-[1]!NILOWLIMA)*[1]!NISUPNA),IF(V34>[1]!NILOWLIMA,(V34-[1]!NILOWLIMA)*[1]!NISUPNA,0)))+IF(V34>[1]!NILOWLIMA,-[1]!NICREBATEA,0) -> 0 | AJ34: =IF($Q34="N",IF(W34>[1]!NIUPPLIMA,((W34-[1]!NIUPPLIMA)*[1]!NIUPPERA)+([1]!NIUPPLIMA-[1]!NILOWLIMA)*[1]!NILOWA,IF(W34>[1]!NILOWLIMA,(W34-[1]!NILOWLIMA)*[1]!NILOWA,0)))+IF($Q34="Y",IF(W34>[1]!NIUPPLIMA,((W34-[1]!NIUPPLIMA)*[1]!NIUPPERA)+(([1]!NIUPPLIMA-[1]!NILOWLIMA)*[1]!NISUPNA),IF(W34>[1]!NILOWLIMA,(W34-[1]!NILOWLIMA)*[1]!NISUPNA,0)))+IF(W34>[1]!NILOWLIMA,-[1]!NICREBATEA,0) -> 0 | AK34: =IF($Q34="N",IF(X34>[1]!NIUPPLIMA,((X34-[1]!NIUPPLIMA)*[1]!NIUPPERA)+([1]!NIUPPLIMA-[1]!NILOWLIMA)*[1]!NILOWA,IF(X34>[1]!NILOWLIMA,(X34-[1]!NILOWLIMA)*[1]!NILOWA,0)))+IF($Q34="Y",IF(X34>[1]!NIUPPLIMA,((X34-[1]!NIUPPLIMA)*[1]!NIUPPERA)+(([1]!NIUPPLIMA-[1]!NILOWLIMA)*[1]!NISUPNA),IF(X34>[1]!NILOWLIMA,(X34-[1]!NILOWLIMA)*[1]!NISUPNA,0)))+IF(X34>[1]!NILOWLIMA,-[1]!NICREBATEA,0) -> 0 | AL34: =IF($Q34="N",IF(Y34>[1]!NIUPPLIMA,((Y34-[1]!NIUPPLIMA)*[1]!NIUPPERA)+([1]!NIUPPLIMA-[1]!NILOWLIMA)*[1]!NILOWA,IF(Y34>[1]!NILOWLIMA,(Y34-[1]!NILOWLIMA)*[1]!NILOWA,0)))+IF($Q34="Y",IF(Y34>[1]!NIUPPLIMA,((Y34-[1]!NIUPPLIMA)*[1]!NIUPPERA)+(([1]!NIUPPLIMA-[1]!NILOWLIMA)*[1]!NISUPNA),IF(Y34>[1]!NILOWLIMA,(Y34-[1]!NILOWLIMA)*[1]!NISUPNA,0)))+IF(Y34>[1]!NILOWLIMA,-[1]!NICREBATEA,0) -> 0 | AM34: =IF($Q34="N",IF(Z34>[1]!NIUPPLIMA,((Z34-[1]!NIUPPLIMA)*[1]!NIUPPERA)+([1]!NIUPPLIMA-[1]!NILOWLIMA)*[1]!NILOWA,IF(Z34>[1]!NILOWLIMA,(Z34-[1]!NILOWLIMA)*[1]!NILOWA,0)))+IF($Q34="Y",IF(Z34>[1]!NIUPPLIMA,((Z34-[1]!NIUPPLIMA)*[1]!NIUPPERA)+(([1]!NIUPPLIMA-[1]!NILOWLIMA)*[1]!NISUPNA),IF(Z34>[1]!NILOWLIMA,(Z34-[1]!NILOWLIMA)*[1]!NISUPNA,0)))+IF(Z34>[1]!NILOWLIMA,-[1]!NICREBATEA,0) -> 293.5383 | AN34: =IF($Q34="N",IF(AA34>[1]!NIUPPLIMA,((AA34-[1]!NIUPPLIMA)*[1]!NIUPPERA)+([1]!NIUPPLIMA-[1]!NILOWLIMA)*[1]!NILOWA,IF(AA34>[1]!NILOWLIMA,(AA34-[1]!NILOWLIMA)*[1]!NILOWA,0)))+IF($Q34="Y",IF(AA34>[1]!NIUPPLIMA,((AA34-[1]!NIUPPLIMA)*[1]!NIUPPERA)+(([1]!NIUPPLIMA-[1]!NILOWLIMA)*[1]!NISUPNA),IF(AA34>[1]!NILOWLIMA,(AA34-[1]!NILOWLIMA)*[1]!NISUPNA,0)))+IF(AA34>[1]!NILOWLIMA,-[1]!NICREBATEA,0) -> 293.5383 | AO34: =IF($Q34="N",IF(AB34>[1]!NIUPPLIMA,((AB34-[1]!NIUPPLIMA)*[1]!NIUPPERA)+([1]!NIUPPLIMA-[1]!NILOWLIMA)*[1]!NILOWA,IF(AB34>[1]!NILOWLIMA,(AB34-[1]!NILOWLIMA)*[1]!NILOWA,0)))+IF($Q34="Y",IF(AB34>[1]!NIUPPLIMA,((AB34-[1]!NIUPPLIMA)*[1]!NIUPPERA)+(([1]!NIUPPLIMA-[1]!NILOWLIMA)*[1]!NISUPNA),IF(AB34>[1]!NILOWLIMA,(AB34-[1]!NILOWLIMA)*[1]!NISUPNA,0)))+IF(AB34>[1]!NILOWLIMA,-[1]!NICREBATEA,0) -> 0 | AP34: =IF($Q34="N",IF(AC34>[1]!NIUPPLIMA,((AC34-[1]!NIUPPLIMA)*[1]!NIUPPERA)+([1]!NIUPPLIMA-[1]!NILOWLIMA)*[1]!NILOWA,IF(AC34>[1]!NILOWLIMA,(AC34-[1]!NILOWLIMA)*[1]!NILOWA,0)))+IF($Q34="Y",IF(AC34>[1]!NIUPPLIMA,((AC34-[1]!NIUPPLIMA)*[1]!NIUPPERA)+(([1]!NIUPPLIMA-[1]!NILOWLIMA)*[1]!NISUPNA),IF(AC34>[1]!NILOWLIMA,(AC34-[1]!NILOWLIMA)*[1]!NISUPNA,0)))+IF(AC34>[1]!NILOWLIMA,-[1]!NICREBATEA,0) -> 0 | AQ34: =IF($Q34="N",IF(AD34>[1]!NIUPPLIMA,((AD34-[1]!NIUPPLIMA)*[1]!NIUPPERA)+([1]!NIUPPLIMA-[1]!NILOWLIMA)*[1]!NILOWA,IF(AD34>[1]!NILOWLIMA,(AD34-[1]!NILOWLIMA)*[1]!NILOWA,0)))+IF($Q34="Y",IF(AD34>[1]!NIUPPLIMA,((AD34-[1]!NIUPPLIMA)*[1]!NIUPPERA)+(([1]!NIUPPLIMA-[1]!NILOWLIMA)*[1]!NISUPNA),IF(AD34>[1]!NILOWLIMA,(AD34-[1]!NILOWLIMA)*[1]!NISUPNA,0)))+IF(AD34>[1]!NILOWLIMA,-[1]!NICREBATEA,0) -> 0 | AR34: =IF($Q34="N",IF(AE34>[1]!NIUPPLIMA,((AE34-[1]!NIUPPLIMA)*[1]!NIUPPERA)+([1]!NIUPPLIMA-[1]!NILOWLIMA)*[1]!NILOWA,IF(AE34>[1]!NILOWLIMA,(AE34-[1]!NILOWLIMA)*[1]!NILOWA,0)))+IF($Q34="Y",IF(AE34>[1]!NIUPPLIMA,((AE34-[1]!NIUPPLIMA)*[1]!NIUPPERA)+(([1]!NIUPPLIMA-[1]!NILOWLIMA)*[1]!NISUPNA),IF(AE34>[1]!NILOWLIMA,(AE34-[1]!NILOWLIMA)*[1]!NISUPNA,0)))+IF(AE34>[1]!NILOWLIMA,-[1]!NICREBATEA,0) -> 0 | AS34: =IF($Q34="N",IF(AF34>[1]!NIUPPLIMA,((AF34-[1]!NIUPPLIMA)*[1]!NIUPPERA)+([1]!NIUPPLIMA-[1]!NILOWLIMA)*[1]!NILOWA,IF(AF34>[1]!NILOWLIMA,(AF34-[1]!NILOWLIMA)*[1]!NILOWA,0)))+IF($Q34="Y",IF(AF34>[1]!NIUPPLIMA,((AF34-[1]!NIUPPLIMA)*[1]!NIUPPERA)+(([1]!NIUPPLIMA-[1]!NILOWLIMA)*[1]!NISUPNA),IF(AF34>[1]!NILOWLIMA,(AF34-[1]!NILOWLIMA)*[1]!NISUPNA,0)))+IF(AF34>[1]!NILOWLIMA,-[1]!NICREBATEA,0) -> 0 | AT34: =SUM(AH34:AS34) -> 587.0766 | AU34: =IF($Q34="N",0,((AG34*$AU$5))) -> 1406.87545 | AV34: =AG34+AT34+AU34 -> 6899.375517 | AW34: =IF($E34="TEACHER",IF($I34<6,$I34+1,IF(LEFT($I34,1)="U",$I34,6)),IF($E34="LEADER",+I34,IF($E34="UNQUAL",IF($I34<10,$I34+1,10),IF($E34="ADVANCED",IF($I34<27,$I34+1,27))))) -> U1 | AX34: =(K34+M34+O34+P34) -> 0 | AY34: =IF($E34="LEADER",VLOOKUP(AW34,[1]!LEADERSHIP,5),IF($E34="TEACHER",VLOOKUP(AW34,[1]!TEACHER,5),IF($E34="ADVANCED",VLOOKUP($AW34,[1]!ADVANCED_SKILLS_TEACHERS,5),IF($E34="UNQUAL",VLOOKUP($AW34,[1]!UNQUALIFIED_TEACHER,5),0))))*D34*(1+BA$4)*(1+BA$5)+(AX34/AZ34) -> 2468.53568 | AZ34: =IF(G34-F34>11.99999,12,MONTH(G34)-MONTH(F34)) -> 12 | BA34: =NumberOfDaysWorked($F34,$G34,BD$1,BF$1)*(($S34*(1+BA$4))*5)+NumberOfDaysWorked($F34,$G34,BD$1,BF$1)*($AY34*7) -> 0 | BD34: =(IF($Q34="N",IF(AY34>[1]!NIUPPLIMB,((AY34-[1]!NIUPPLIMB)*[1]!NIUPPERB)+([1]!NIUPPLIMB-[1]!NILOWLIMB)*[1]!NILOWB,IF(AY34>[1]!NILOWLIMB,(AY34-[1]!NILOWLIMB)*[1]!NILOWB,0)))+IF($Q34="Y",IF(AY34>[1]!NIUPPLIMB,((AY34-[1]!NIUPPLIMB)*[1]!NIUPPERB)+(([1]!NIUPPLIMB-[1]!NILOWLIMB)*[1]!NISUPNB),IF(AY34>[1]!NILOWLIMB,(AY34-[1]!NILOWLIMB)*[1]!NISUPNB,0))))*((NumberOfDaysWorked($F34,$G34,BD$1,BF$1)*5)+(NumberOfDaysWorked($F34,$G34,BD$1,BF$1)*7)) -> 0 | BE34: =IF($Q34="N",0,(BA34*$BE$5)) -> 0 | BF34: =SUM(BA34:BE34) -> 0 | BG34: =IF($E34="TEACHER",IF(AW34<6,AW34+1,IF(LEFT(AW34,1)="U",AW34,6)),IF($E34="LEADER",+I34,IF($E34="UNQUAL",IF(AW34<10,AW34+1,10),IF($E34="ADVANCED",IF(AW34<27,AW34+1,27))))) -> U1 | BH34: =(K34+M34+O34+P34) -> 0 | BI34: =IF($E34="LEADER",VLOOKUP(BG34,[1]!LEADERSHIP,5),IF($E34="TEACHER",VLOOKUP(BG34,[1]!TEACHER,5),IF($E34="ADVANCED",VLOOKUP($AW34,[1]!ADVANCED_SKILLS_TEACHERS,5),IF($E34="UNQUAL",VLOOKUP($AW34,[1]!UNQUALIFIED_TEACHER,5),0))))*D34*(1+BA$4)*(1+BA$5)*(1+BK$4)*(1+BK$5)+(BH34/BJ34) -> 2567.277107 | BJ34: =IF(G34-F34>11.99999,12,MONTH(G34)-MONTH(F34)) -> 12 | BK34: =NumberOfDaysWorked($F34,$G34,BN$1,BP$1)*(($AY34*(1+BK$4))*5)+NumberOfDaysWorked($F34,$G34,BN$1,BP$1)*($BI34*7) -> 0 | BN34: =(IF($Q34="N",IF(BI34>[1]!NIUPPLIMC,((BI34-[1]!NIUPPLIMC)*[1]!NIUPPERC)+([1]!NIUPPLIMC-[1]!NILOWLIMC)*[1]!NILOWC,IF(BI34>[1]!NILOWLIMC,(BI34-[1]!NILOWLIMC)*[1]!NILOWC,0)))+IF($Q34="Y",IF(BI34>[1]!NIUPPLIMC,((BI34-[1]!NIUPPLIMC)*[1]!NIUPPERC)+(([1]!NIUPPLIMC-[1]!NILOWLIMC)*[1]!NISUPNC),IF(BI34>[1]!NILOWLIMC,(BI34-[1]!NILOWLIMC)*[1]!NISUPNC,0))))*((NumberOfDaysWorked($F34,$G34,BN$1,BP$1)*5)+(NumberOfDaysWorked($F34,$G34,BN$1,BP$1)*7)) -> 0 | BO34: =IF($Q34="N",0,(BK34*$BO$5)) -> 0 | BP34: =SUM(BK34:BO34) -> 0
A35: x | B35: RYAN AIMEE (MATERNITY) | C35: A01001 | D35: 0 | E35: TEACHER | F35: 2025-11-03 | G35: 2026-07-19 | H35: U1 | I35: U1 | J35: 0 | K35: =VLOOKUP(J35,[1]!MANAGEMENT,2)*D35 -> 0 | L35: 0 | M35: =VLOOKUP(L35,[1]!SEN_ALLOWANCES,2)*D35 -> 0 | N35: 0 | O35: =N35 -> 0 | P35: 0 | Q35: Y | R35: =IF($E35="LEADER",VLOOKUP(H35,[1]PAYDATA!$A$4:$C$54,3),IF($E35="TEACHER",VLOOKUP(H35,[1]PAYDATA!$A$70:$C$80,3),IF($E35="ADVANCED",VLOOKUP(H35,[1]PAYDATA!$A$141:$C$159,3),IF($E35="UNQUAL",VLOOKUP(H35,[1]PAYDATA!$A$57:$C$63,3),0))))*$D35+($K35/T35)+($M35/T35)+($O35/T35)+($P35/T35) -> 0 | S35: =IF($E35="LEADER",VLOOKUP(I35,[1]!LEADERSHIP,5),IF($E35="TEACHER",VLOOKUP(I35,[1]!TEACHER,5),IF($E35="ADVANCED",VLOOKUP(I35,[1]PAYDATA!$A$141:$E$159,5),IF($E35="UNQUAL",VLOOKUP(I35,[1]!UNQUALIFIED_TEACHER,5),0))))*$D35+($K35/T35)+($M35/T35)+($O35/T35)+($P35/T35) -> 0 | T35: =IF(G35-F35>11.99999,12,MONTH(G35)-MONTH(F35)) -> 12 | U35: 0 | V35: 0 | W35: 0 | X35: 0 | Y35: 0 | Z35: 0 | AA35: 0 | AB35: 0 | AC35: 0 | AD35: 0 | AE35: 0 | AF35: 4000 | AG35: 4000 | AH35: =IF($Q35="N",IF(U35>[1]!NIUPPLIMA,((U35-[1]!NIUPPLIMA)*[1]!NIUPPERA)+([1]!NIUPPLIMA-[1]!NILOWLIMA)*[1]!NILOWA,IF(U35>[1]!NILOWLIMA,(U35-[1]!NILOWLIMA)*[1]!NILOWA,0)))+IF($Q35="Y",IF(U35>[1]!NIUPPLIMA,((U35-[1]!NIUPPLIMA)*[1]!NIUPPERA)+(([1]!NIUPPLIMA-[1]!NILOWLIMA)*[1]!NISUPNA),IF(U35>[1]!NILOWLIMA,(U35-[1]!NILOWLIMA)*[1]!NISUPNA,0)))+IF(U35>[1]!NILOWLIMA,-[1]!NICREBATEA,0) -> 0 | AI35: =IF($Q35="N",IF(V35>[1]!NIUPPLIMA,((V35-[1]!NIUPPLIMA)*[1]!NIUPPERA)+([1]!NIUPPLIMA-[1]!NILOWLIMA)*[1]!NILOWA,IF(V35>[1]!NILOWLIMA,(V35-[1]!NILOWLIMA)*[1]!NILOWA,0)))+IF($Q35="Y",IF(V35>[1]!NIUPPLIMA,((V35-[1]!NIUPPLIMA)*[1]!NIUPPERA)+(([1]!NIUPPLIMA-[1]!NILOWLIMA)*[1]!NISUPNA),IF(V35>[1]!NILOWLIMA,(V35-[1]!NILOWLIMA)*[1]!NISUPNA,0)))+IF(V35>[1]!NILOWLIMA,-[1]!NICREBATEA,0) -> 0 | AJ35: =IF($Q35="N",IF(W35>[1]!NIUPPLIMA,((W35-[1]!NIUPPLIMA)*[1]!NIUPPERA)+([1]!NIUPPLIMA-[1]!NILOWLIMA)*[1]!NILOWA,IF(W35>[1]!NILOWLIMA,(W35-[1]!NILOWLIMA)*[1]!NILOWA,0)))+IF($Q35="Y",IF(W35>[1]!NIUPPLIMA,((W35-[1]!NIUPPLIMA)*[1]!NIUPPERA)+(([1]!NIUPPLIMA-[1]!NILOWLIMA)*[1]!NISUPNA),IF(W35>[1]!NILOWLIMA,(W35-[1]!NILOWLIMA)*[1]!NISUPNA,0)))+IF(W35>[1]!NILOWLIMA,-[1]!NICREBATEA,0) -> 0 | AK35: =IF($Q35="N",IF(X35>[1]!NIUPPLIMA,((X35-[1]!NIUPPLIMA)*[1]!NIUPPERA)+([1]!NIUPPLIMA-[1]!NILOWLIMA)*[1]!NILOWA,IF(X35>[1]!NILOWLIMA,(X35-[1]!NILOWLIMA)*[1]!NILOWA,0)))+IF($Q35="Y",IF(X35>[1]!NIUPPLIMA,((X35-[1]!NIUPPLIMA)*[1]!NIUPPERA)+(([1]!NIUPPLIMA-[1]!NILOWLIMA)*[1]!NISUPNA),IF(X35>[1]!NILOWLIMA,(X35-[1]!NILOWLIMA)*[1]!NISUPNA,0)))+IF(X35>[1]!NILOWLIMA,-[1]!NICREBATEA,0) -> 0 | AL35: =IF($Q35="N",IF(Y35>[1]!NIUPPLIMA,((Y35-[1]!NIUPPLIMA)*[1]!NIUPPERA)+([1]!NIUPPLIMA-[1]!NILOWLIMA)*[1]!NILOWA,IF(Y35>[1]!NILOWLIMA,(Y35-[1]!NILOWLIMA)*[1]!NILOWA,0)))+IF($Q35="Y",IF(Y35>[1]!NIUPPLIMA,((Y35-[1]!NIUPPLIMA)*[1]!NIUPPERA)+(([1]!NIUPPLIMA-[1]!NILOWLIMA)*[1]!NISUPNA),IF(Y35>[1]!NILOWLIMA,(Y35-[1]!NILOWLIMA)*[1]!NISUPNA,0)))+IF(Y35>[1]!NILOWLIMA,-[1]!NICREBATEA,0) -> 0 | AM35: =IF($Q35="N",IF(Z35>[1]!NIUPPLIMA,((Z35-[1]!NIUPPLIMA)*[1]!NIUPPERA)+([1]!NIUPPLIMA-[1]!NILOWLIMA)*[1]!NILOWA,IF(Z35>[1]!NILOWLIMA,(Z35-[1]!NILOWLIMA)*[1]!NILOWA,0)))+IF($Q35="Y",IF(Z35>[1]!NIUPPLIMA,((Z35-[1]!NIUPPLIMA)*[1]!NIUPPERA)+(([1]!NIUPPLIMA-[1]!NILOWLIMA)*[1]!NISUPNA),IF(Z35>[1]!NILOWLIMA,(Z35-[1]!NILOWLIMA)*[1]!NISUPNA,0)))+IF(Z35>[1]!NILOWLIMA,-[1]!NICREBATEA,0) -> 0 | AN35: =IF($Q35="N",IF(AA35>[1]!NIUPPLIMA,((AA35-[1]!NIUPPLIMA)*[1]!NIUPPERA)+([1]!NIUPPLIMA-[1]!NILOWLIMA)*[1]!NILOWA,IF(AA35>[1]!NILOWLIMA,(AA35-[1]!NILOWLIMA)*[1]!NILOWA,0)))+IF($Q35="Y",IF(AA35>[1]!NIUPPLIMA,((AA35-[1]!NIUPPLIMA)*[1]!NIUPPERA)+(([1]!NIUPPLIMA-[1]!NILOWLIMA)*[1]!NISUPNA),IF(AA35>[1]!NILOWLIMA,(AA35-[1]!NILOWLIMA)*[1]!NISUPNA,0)))+IF(AA35>[1]!NILOWLIMA,-[1]!NICREBATEA,0) -> 0 | AO35: =IF($Q35="N",IF(AB35>[1]!NIUPPLIMA,((AB35-[1]!NIUPPLIMA)*[1]!NIUPPERA)+([1]!NIUPPLIMA-[1]!NILOWLIMA)*[1]!NILOWA,IF(AB35>[1]!NILOWLIMA,(AB35-[1]!NILOWLIMA)*[1]!NILOWA,0)))+IF($Q35="Y",IF(AB35>[1]!NIUPPLIMA,((AB35-[1]!NIUPPLIMA)*[1]!NIUPPERA)+(([1]!NIUPPLIMA-[1]!NILOWLIMA)*[1]!NISUPNA),IF(AB35>[1]!NILOWLIMA,(AB35-[1]!NILOWLIMA)*[1]!NISUPNA,0)))+IF(AB35>[1]!NILOWLIMA,-[1]!NICREBATEA,0) -> 0 | AP35: =IF($Q35="N",IF(AC35>[1]!NIUPPLIMA,((AC35-[1]!NIUPPLIMA)*[1]!NIUPPERA)+([1]!NIUPPLIMA-[1]!NILOWLIMA)*[1]!NILOWA,IF(AC35>[1]!NILOWLIMA,(AC35-[1]!NILOWLIMA)*[1]!NILOWA,0)))+IF($Q35="Y",IF(AC35>[1]!NIUPPLIMA,((AC35-[1]!NIUPPLIMA)*[1]!NIUPPERA)+(([1]!NIUPPLIMA-[1]!NILOWLIMA)*[1]!NISUPNA),IF(AC35>[1]!NILOWLIMA,(AC35-[1]!NILOWLIMA)*[1]!NISUPNA,0)))+IF(AC35>[1]!NILOWLIMA,-[1]!NICREBATEA,0) -> 0 | AQ35: =IF($Q35="N",IF(AD35>[1]!NIUPPLIMA,((AD35-[1]!NIUPPLIMA)*[1]!NIUPPERA)+([1]!NIUPPLIMA-[1]!NILOWLIMA)*[1]!NILOWA,IF(AD35>[1]!NILOWLIMA,(AD35-[1]!NILOWLIMA)*[1]!NILOWA,0)))+IF($Q35="Y",IF(AD35>[1]!NIUPPLIMA,((AD35-[1]!NIUPPLIMA)*[1]!NIUPPERA)+(([1]!NIUPPLIMA-[1]!NILOWLIMA)*[1]!NISUPNA),IF(AD35>[1]!NILOWLIMA,(AD35-[1]!NILOWLIMA)*[1]!NISUPNA,0)))+IF(AD35>[1]!NILOWLIMA,-[1]!NICREBATEA,0) -> 0 | AR35: =IF($Q35="N",IF(AE35>[1]!NIUPPLIMA,((AE35-[1]!NIUPPLIMA)*[1]!NIUPPERA)+([1]!NIUPPLIMA-[1]!NILOWLIMA)*[1]!NILOWA,IF(AE35>[1]!NILOWLIMA,(AE35-[1]!NILOWLIMA)*[1]!NILOWA,0)))+IF($Q35="Y",IF(AE35>[1]!NIUPPLIMA,((AE35-[1]!NIUPPLIMA)*[1]!NIUPPERA)+(([1]!NIUPPLIMA-[1]!NILOWLIMA)*[1]!NISUPNA),IF(AE35>[1]!NILOWLIMA,(AE35-[1]!NILOWLIMA)*[1]!NISUPNA,0)))+IF(AE35>[1]!NILOWLIMA,-[1]!NICREBATEA,0) -> 0 | AS35: =IF($Q35="N",IF(AF35>[1]!NIUPPLIMA,((AF35-[1]!NIUPPLIMA)*[1]!NIUPPERA)+([1]!NIUPPLIMA-[1]!NILOWLIMA)*[1]!NILOWA,IF(AF35>[1]!NILOWLIMA,(AF35-[1]!NILOWLIMA)*[1]!NILOWA,0)))+IF($Q35="Y",IF(AF35>[1]!NIUPPLIMA,((AF35-[1]!NIUPPLIMA)*[1]!NIUPPERA)+(([1]!NIUPPLIMA-[1]!NILOWLIMA)*[1]!NISUPNA),IF(AF35>[1]!NILOWLIMA,(AF35-[1]!NILOWLIMA)*[1]!NISUPNA,0)))+IF(AF35>[1]!NILOWLIMA,-[1]!NICREBATEA,0) -> 537.4995 | AT35: 537.4995 | AU35: 1147.2 | AV35: =AG35+AT35+AU35 -> 5684.6995 | AW35: =IF($E35="TEACHER",IF($I35<6,$I35+1,IF(LEFT($I35,1)="U",$I35,6)),IF($E35="LEADER",+I35,IF($E35="UNQUAL",IF($I35<10,$I35+1,10),IF($E35="ADVANCED",IF($I35<27,$I35+1,27))))) -> U1 | AX35: =(K35+M35+O35+P35) -> 0 | AY35: =IF($E35="LEADER",VLOOKUP(AW35,[1]!LEADERSHIP,5),IF($E35="TEACHER",VLOOKUP(AW35,[1]!TEACHER,5),IF($E35="ADVANCED",VLOOKUP($AW35,[1]!ADVANCED_SKILLS_TEACHERS,5),IF($E35="UNQUAL",VLOOKUP($AW35,[1]!UNQUALIFIED_TEACHER,5),0))))*D35*(1+BA$4)*(1+BA$5)+(AX35/AZ35) -> 0 | AZ35: =IF(G35-F35>11.99999,12,MONTH(G35)-MONTH(F35)) -> 12 | BA35: 1000 | BD35: =(IF($Q35="N",IF(AY35>[1]!NIUPPLIMB,((AY35-[1]!NIUPPLIMB)*[1]!NIUPPERB)+([1]!NIUPPLIMB-[1]!NILOWLIMB)*[1]!NILOWB,IF(AY35>[1]!NILOWLIMB,(AY35-[1]!NILOWLIMB)*[1]!NILOWB,0)))+IF($Q35="Y",IF(AY35>[1]!NIUPPLIMB,((AY35-[1]!NIUPPLIMB)*[1]!NIUPPERB)+(([1]!NIUPPLIMB-[1]!NILOWLIMB)*[1]!NISUPNB),IF(AY35>[1]!NILOWLIMB,(AY35-[1]!NILOWLIMB)*[1]!NISUPNB,0))))*((NumberOfDaysWorked($F35,$G35,BD$1,BF$1)*5)+(NumberOfDaysWorked($F35,$G35,BD$1,BF$1)*7)) -> 0 | BE35: 286.8 | BF35: =SUM(BA35:BE35) -> 1286.8 | BG35: =IF($E35="TEACHER",IF(AW35<6,AW35+1,IF(LEFT(AW35,1)="U",AW35,6)),IF($E35="LEADER",+I35,IF($E35="UNQUAL",IF(AW35<10,AW35+1,10),IF($E35="ADVANCED",IF(AW35<27,AW35+1,27))))) -> U1 | BH35: =(K35+M35+O35+P35) -> 0 | BI35: =IF($E35="LEADER",VLOOKUP(BG35,[1]!LEADERSHIP,5),IF($E35="TEACHER",VLOOKUP(BG35,[1]!TEACHER,5),IF($E35="ADVANCED",VLOOKUP($AW35,[1]!ADVANCED_SKILLS_TEACHERS,5),IF($E35="UNQUAL",VLOOKUP($AW35,[1]!UNQUALIFIED_TEACHER,5),0))))*D35*(1+BA$4)*(1+BA$5)*(1+BK$4)*(1+BK$5)+(BH35/BJ35) -> 0 | BJ35: =IF(G35-F35>11.99999,12,MONTH(G35)-MONTH(F35)) -> 12 | BK35: =NumberOfDaysWorked($F35,$G35,BN$1,BP$1)*(($AY35*(1+BK$4))*5)+NumberOfDaysWorked($F35,$G35,BN$1,BP$1)*($BI35*7) -> 0 | BN35: =(IF($Q35="N",IF(BI35>[1]!NIUPPLIMC,((BI35-[1]!NIUPPLIMC)*[1]!NIUPPERC)+([1]!NIUPPLIMC-[1]!NILOWLIMC)*[1]!NILOWC,IF(BI35>[1]!NILOWLIMC,(BI35-[1]!NILOWLIMC)*[1]!NILOWC,0)))+IF($Q35="Y",IF(BI35>[1]!NIUPPLIMC,((BI35-[1]!NIUPPLIMC)*[1]!NIUPPERC)+(([1]!NIUPPLIMC-[1]!NILOWLIMC)*[1]!NISUPNC),IF(BI35>[1]!NILOWLIMC,(BI35-[1]!NILOWLIMC)*[1]!NISUPNC,0))))*((NumberOfDaysWorked($F35,$G35,BN$1,BP$1)*5)+(NumberOfDaysWorked($F35,$G35,BN$1,BP$1)*7)) -> 0 | BO35: =IF($Q35="N",0,(BK35*$BO$5)) -> 0 | BP35: =SUM(BK35:BO35) -> 0
A36: x | B36: RYAN AIMEE | C36: A01001 | D36: =759/1265 -> 0.6 | E36: TEACHER | F36: 2026-07-20 | G36: 2028-03-31 | H36: U1 | I36: U1 | J36: 0 | K36: =VLOOKUP(J36,[1]!MANAGEMENT,2)*D36 -> 0 | L36: 0 | M36: =VLOOKUP(L36,[1]!SEN_ALLOWANCES,2)*D36 -> 0 | N36: 0 | O36: 0 | P36: 0 | Q36: Y | R36: =IF($E36="LEADER",VLOOKUP(H36,[1]PAYDATA!$A$4:$C$54,3),IF($E36="TEACHER",VLOOKUP(H36,[1]PAYDATA!$A$70:$C$80,3),IF($E36="ADVANCED",VLOOKUP(H36,[1]PAYDATA!$A$141:$C$159,3),IF($E36="UNQUAL",VLOOKUP(H36,[1]PAYDATA!$A$57:$C$63,3),0))))*$D36+($K36/T36)+($M36/T36)+($O36/T36)+($P36/T36) -> 2282.3 | S36: =IF($E36="LEADER",VLOOKUP(I36,[1]!LEADERSHIP,5),IF($E36="TEACHER",VLOOKUP(I36,[1]!TEACHER,5),IF($E36="ADVANCED",VLOOKUP(I36,[1]PAYDATA!$A$141:$E$159,5),IF($E36="UNQUAL",VLOOKUP(I36,[1]!UNQUALIFIED_TEACHER,5),0))))*$D36+($K36/T36)+($M36/T36)+($O36/T36)+($P36/T36) -> 2373.592 | T36: 12 | U36: 0 | V36: 0 | W36: 0 | X36: 0 | Y36: 0 | Z36: 0 | AA36: 0 | AB36: 0 | AC36: 0 | AD36: 0 | AE36: 0 | AF36: 0 | AG36: 0 | AH36: =IF($Q36="N",IF(U36>[1]!NIUPPLIMA,((U36-[1]!NIUPPLIMA)*[1]!NIUPPERA)+([1]!NIUPPLIMA-[1]!NILOWLIMA)*[1]!NILOWA,IF(U36>[1]!NILOWLIMA,(U36-[1]!NILOWLIMA)*[1]!NILOWA,0)))+IF($Q36="Y",IF(U36>[1]!NIUPPLIMA,((U36-[1]!NIUPPLIMA)*[1]!NIUPPERA)+(([1]!NIUPPLIMA-[1]!NILOWLIMA)*[1]!NISUPNA),IF(U36>[1]!NILOWLIMA,(U36-[1]!NILOWLIMA)*[1]!NISUPNA,0)))+IF(U36>[1]!NILOWLIMA,-[1]!NICREBATEA,0) -> 0 | AI36: =IF($Q36="N",IF(V36>[1]!NIUPPLIMA,((V36-[1]!NIUPPLIMA)*[1]!NIUPPERA)+([1]!NIUPPLIMA-[1]!NILOWLIMA)*[1]!NILOWA,IF(V36>[1]!NILOWLIMA,(V36-[1]!NILOWLIMA)*[1]!NILOWA,0)))+IF($Q36="Y",IF(V36>[1]!NIUPPLIMA,((V36-[1]!NIUPPLIMA)*[1]!NIUPPERA)+(([1]!NIUPPLIMA-[1]!NILOWLIMA)*[1]!NISUPNA),IF(V36>[1]!NILOWLIMA,(V36-[1]!NILOWLIMA)*[1]!NISUPNA,0)))+IF(V36>[1]!NILOWLIMA,-[1]!NICREBATEA,0) -> 0 | AJ36: =IF($Q36="N",IF(W36>[1]!NIUPPLIMA,((W36-[1]!NIUPPLIMA)*[1]!NIUPPERA)+([1]!NIUPPLIMA-[1]!NILOWLIMA)*[1]!NILOWA,IF(W36>[1]!NILOWLIMA,(W36-[1]!NILOWLIMA)*[1]!NILOWA,0)))+IF($Q36="Y",IF(W36>[1]!NIUPPLIMA,((W36-[1]!NIUPPLIMA)*[1]!NIUPPERA)+(([1]!NIUPPLIMA-[1]!NILOWLIMA)*[1]!NISUPNA),IF(W36>[1]!NILOWLIMA,(W36-[1]!NILOWLIMA)*[1]!NISUPNA,0)))+IF(W36>[1]!NILOWLIMA,-[1]!NICREBATEA,0) -> 0 | AK36: =IF($Q36="N",IF(X36>[1]!NIUPPLIMA,((X36-[1]!NIUPPLIMA)*[1]!NIUPPERA)+([1]!NIUPPLIMA-[1]!NILOWLIMA)*[1]!NILOWA,IF(X36>[1]!NILOWLIMA,(X36-[1]!NILOWLIMA)*[1]!NILOWA,0)))+IF($Q36="Y",IF(X36>[1]!NIUPPLIMA,((X36-[1]!NIUPPLIMA)*[1]!NIUPPERA)+(([1]!NIUPPLIMA-[1]!NILOWLIMA)*[1]!NISUPNA),IF(X36>[1]!NILOWLIMA,(X36-[1]!NILOWLIMA)*[1]!NISUPNA,0)))+IF(X36>[1]!NILOWLIMA,-[1]!NICREBATEA,0) -> 0 | AL36: =IF($Q36="N",IF(Y36>[1]!NIUPPLIMA,((Y36-[1]!NIUPPLIMA)*[1]!NIUPPERA)+([1]!NIUPPLIMA-[1]!NILOWLIMA)*[1]!NILOWA,IF(Y36>[1]!NILOWLIMA,(Y36-[1]!NILOWLIMA)*[1]!NILOWA,0)))+IF($Q36="Y",IF(Y36>[1]!NIUPPLIMA,((Y36-[1]!NIUPPLIMA)*[1]!NIUPPERA)+(([1]!NIUPPLIMA-[1]!NILOWLIMA)*[1]!NISUPNA),IF(Y36>[1]!NILOWLIMA,(Y36-[1]!NILOWLIMA)*[1]!NISUPNA,0)))+IF(Y36>[1]!NILOWLIMA,-[1]!NICREBATEA,0) -> 0 | AM36: =IF($Q36="N",IF(Z36>[1]!NIUPPLIMA,((Z36-[1]!NIUPPLIMA)*[1]!NIUPPERA)+([1]!NIUPPLIMA-[1]!NILOWLIMA)*[1]!NILOWA,IF(Z36>[1]!NILOWLIMA,(Z36-[1]!NILOWLIMA)*[1]!NILOWA,0)))+IF($Q36="Y",IF(Z36>[1]!NIUPPLIMA,((Z36-[1]!NIUPPLIMA)*[1]!NIUPPERA)+(([1]!NIUPPLIMA-[1]!NILOWLIMA)*[1]!NISUPNA),IF(Z36>[1]!NILOWLIMA,(Z36-[1]!NILOWLIMA)*[1]!NISUPNA,0)))+IF(Z36>[1]!NILOWLIMA,-[1]!NICREBATEA,0) -> 0 | AN36: =IF($Q36="N",IF(AA36>[1]!NIUPPLIMA,((AA36-[1]!NIUPPLIMA)*[1]!NIUPPERA)+([1]!NIUPPLIMA-[1]!NILOWLIMA)*[1]!NILOWA,IF(AA36>[1]!NILOWLIMA,(AA36-[1]!NILOWLIMA)*[1]!NILOWA,0)))+IF($Q36="Y",IF(AA36>[1]!NIUPPLIMA,((AA36-[1]!NIUPPLIMA)*[1]!NIUPPERA)+(([1]!NIUPPLIMA-[1]!NILOWLIMA)*[1]!NISUPNA),IF(AA36>[1]!NILOWLIMA,(AA36-[1]!NILOWLIMA)*[1]!NISUPNA,0)))+IF(AA36>[1]!NILOWLIMA,-[1]!NICREBATEA,0) -> 0 | AO36: =IF($Q36="N",IF(AB36>[1]!NIUPPLIMA,((AB36-[1]!NIUPPLIMA)*[1]!NIUPPERA)+([1]!NIUPPLIMA-[1]!NILOWLIMA)*[1]!NILOWA,IF(AB36>[1]!NILOWLIMA,(AB36-[1]!NILOWLIMA)*[1]!NILOWA,0)))+IF($Q36="Y",IF(AB36>[1]!NIUPPLIMA,((AB36-[1]!NIUPPLIMA)*[1]!NIUPPERA)+(([1]!NIUPPLIMA-[1]!NILOWLIMA)*[1]!NISUPNA),IF(AB36>[1]!NILOWLIMA,(AB36-[1]!NILOWLIMA)*[1]!NISUPNA,0)))+IF(AB36>[1]!NILOWLIMA,-[1]!NICREBATEA,0) -> 0 | AP36: =IF($Q36="N",IF(AC36>[1]!NIUPPLIMA,((AC36-[1]!NIUPPLIMA)*[1]!NIUPPERA)+([1]!NIUPPLIMA-[1]!NILOWLIMA)*[1]!NILOWA,IF(AC36>[1]!NILOWLIMA,(AC36-[1]!NILOWLIMA)*[1]!NILOWA,0)))+IF($Q36="Y",IF(AC36>[1]!NIUPPLIMA,((AC36-[1]!NIUPPLIMA)*[1]!NIUPPERA)+(([1]!NIUPPLIMA-[1]!NILOWLIMA)*[1]!NISUPNA),IF(AC36>[1]!NILOWLIMA,(AC36-[1]!NILOWLIMA)*[1]!NISUPNA,0)))+IF(AC36>[1]!NILOWLIMA,-[1]!NICREBATEA,0) -> 0 | AQ36: =IF($Q36="N",IF(AD36>[1]!NIUPPLIMA,((AD36-[1]!NIUPPLIMA)*[1]!NIUPPERA)+([1]!NIUPPLIMA-[1]!NILOWLIMA)*[1]!NILOWA,IF(AD36>[1]!NILOWLIMA,(AD36-[1]!NILOWLIMA)*[1]!NILOWA,0)))+IF($Q36="Y",IF(AD36>[1]!NIUPPLIMA,((AD36-[1]!NIUPPLIMA)*[1]!NIUPPERA)+(([1]!NIUPPLIMA-[1]!NILOWLIMA)*[1]!NISUPNA),IF(AD36>[1]!NILOWLIMA,(AD36-[1]!NILOWLIMA)*[1]!NISUPNA,0)))+IF(AD36>[1]!NILOWLIMA,-[1]!NICREBATEA,0) -> 0 | AR36: =IF($Q36="N",IF(AE36>[1]!NIUPPLIMA,((AE36-[1]!NIUPPLIMA)*[1]!NIUPPERA)+([1]!NIUPPLIMA-[1]!NILOWLIMA)*[1]!NILOWA,IF(AE36>[1]!NILOWLIMA,(AE36-[1]!NILOWLIMA)*[1]!NILOWA,0)))+IF($Q36="Y",IF(AE36>[1]!NIUPPLIMA,((AE36-[1]!NIUPPLIMA)*[1]!NIUPPERA)+(([1]!NIUPPLIMA-[1]!NILOWLIMA)*[1]!NISUPNA),IF(AE36>[1]!NILOWLIMA,(AE36-[1]!NILOWLIMA)*[1]!NISUPNA,0)))+IF(AE36>[1]!NILOWLIMA,-[1]!NICREBATEA,0) -> 0 | AS36: =IF($Q36="N",IF(AF36>[1]!NIUPPLIMA,((AF36-[1]!NIUPPLIMA)*[1]!NIUPPERA)+([1]!NIUPPLIMA-[1]!NILOWLIMA)*[1]!NILOWA,IF(AF36>[1]!NILOWLIMA,(AF36-[1]!NILOWLIMA)*[1]!NILOWA,0)))+IF($Q36="Y",IF(AF36>[1]!NIUPPLIMA,((AF36-[1]!NIUPPLIMA)*[1]!NIUPPERA)+(([1]!NIUPPLIMA-[1]!NILOWLIMA)*[1]!NISUPNA),IF(AF36>[1]!NILOWLIMA,(AF36-[1]!NILOWLIMA)*[1]!NISUPNA,0)))+IF(AF36>[1]!NILOWLIMA,-[1]!NICREBATEA,0) -> 0 | AT36: 0 | AU36: 0 | AV36: 0 | AW36: U1 | AX36: 0 | AY36: =IF($E36="LEADER",VLOOKUP(AW36,[1]!LEADERSHIP,5),IF($E36="TEACHER",VLOOKUP(AW36,[1]!TEACHER,5),IF($E36="ADVANCED",VLOOKUP($AW36,[1]!ADVANCED_SKILLS_TEACHERS,5),IF($E36="UNQUAL",VLOOKUP($AW36,[1]!UNQUALIFIED_TEACHER,5),0))))*D36*(1+BA$4)*(1+BA$5)+(AX36/AZ36) -> 2468.53568 | AZ36: 12 | BA36: 20363.46846 | BD36: =(IF($Q36="N",IF(AY36>[1]!NIUPPLIMB,((AY36-[1]!NIUPPLIMB)*[1]!NIUPPERB)+([1]!NIUPPLIMB-[1]!NILOWLIMB)*[1]!NILOWB,IF(AY36>[1]!NILOWLIMB,(AY36-[1]!NILOWLIMB)*[1]!NILOWB,0)))+IF($Q36="Y",IF(AY36>[1]!NIUPPLIMB,((AY36-[1]!NIUPPLIMB)*[1]!NIUPPERB)+(([1]!NIUPPLIMB-[1]!NILOWLIMB)*[1]!NISUPNB),IF(AY36>[1]!NILOWLIMB,(AY36-[1]!NILOWLIMB)*[1]!NISUPNB,0))))*((NumberOfDaysWorked($F36,$G36,BD$1,BF$1)*5)+(NumberOfDaysWorked($F36,$G36,BD$1,BF$1)*7)) -> 2580.295554 | BE36: 5840.242755 | BF36: 28784.00677 | BG36: U1 | BH36: 0 | BI36: =IF($E36="LEADER",VLOOKUP(BG36,[1]!LEADERSHIP,5),IF($E36="TEACHER",VLOOKUP(BG36,[1]!TEACHER,5),IF($E36="ADVANCED",VLOOKUP($AW36,[1]!ADVANCED_SKILLS_TEACHERS,5),IF($E36="UNQUAL",VLOOKUP($AW36,[1]!UNQUALIFIED_TEACHER,5),0))))*D36*(1+BA$4)*(1+BA$5)*(1+BK$4)*(1+BK$5)+(BH36/BJ36) -> 2567.277107 | BJ36: 12 | BK36: 30313.61815 | BN36: =(IF($Q36="N",IF(BI36>[1]!NIUPPLIMC,((BI36-[1]!NIUPPLIMC)*[1]!NIUPPERC)+([1]!NIUPPLIMC-[1]!NILOWLIMC)*[1]!NILOWC,IF(BI36>[1]!NILOWLIMC,(BI36-[1]!NILOWLIMC)*[1]!NILOWC,0)))+IF($Q36="Y",IF(BI36>[1]!NIUPPLIMC,((BI36-[1]!NIUPPLIMC)*[1]!NIUPPERC)+(([1]!NIUPPLIMC-[1]!NILOWLIMC)*[1]!NISUPNC),IF(BI36>[1]!NILOWLIMC,(BI36-[1]!NILOWLIMC)*[1]!NISUPNC,0))))*((NumberOfDaysWorked($F36,$G36,BN$1,BP$1)*5)+(NumberOfDaysWorked($F36,$G36,BN$1,BP$1)*7)) -> 3871.098793 | BO36: 8693.945686 | BP36: 42878.66263
A37: x | B37: SLATER BETH | C37: A01001 | D37: 1 | E37: TEACHER | F37: 2025-04-01 | G37: 2025-08-31 | H37: 3 | I37: 3 | J37: 0 | K37: =VLOOKUP(J37,[1]!MANAGEMENT,2)*D37 -> 0 | L37: 0 | M37: =VLOOKUP(L37,[1]!SEN_ALLOWANCES,2)*D37 -> 0 | N37: 0 | O37: 0 | P37: 0 | Q37: Y | R37: =IF($E37="LEADER",VLOOKUP(H37,[1]PAYDATA!$A$4:$C$54,3),IF($E37="TEACHER",VLOOKUP(H37,[1]PAYDATA!$A$70:$C$80,3),IF($E37="ADVANCED",VLOOKUP(H37,[1]PAYDATA!$A$141:$C$159,3),IF($E37="UNQUAL",VLOOKUP(H37,[1]PAYDATA!$A$57:$C$63,3),0))))*$D37+($K37/T37)+($M37/T37)+($O37/T37)+($P37/T37) -> 2972.833333 | S37: =IF($E37="LEADER",VLOOKUP(I37,[1]!LEADERSHIP,5),IF($E37="TEACHER",VLOOKUP(I37,[1]!TEACHER,5),IF($E37="ADVANCED",VLOOKUP(I37,[1]PAYDATA!$A$141:$E$159,5),IF($E37="UNQUAL",VLOOKUP(I37,[1]!UNQUALIFIED_TEACHER,5),0))))*$D37+($K37/T37)+($M37/T37)+($O37/T37)+($P37/T37) -> 3091.746667 | T37: 12 | U37: =NumberOfDaysWorked($F37,$G37,U$3,U$4)*$R37 -> 2972.833333 | V37: 2972.833333 | W37: 2972.833333 | X37: 2972.833333 | Y37: 2972.833333 | Z37: 0 | AA37: 0 | AB37: 0 | AC37: 0 | AD37: 0 | AE37: 0 | AF37: 0 | AG37: 14864.16667 | AH37: =IF($Q37="N",IF(U37>[1]!NIUPPLIMA,((U37-[1]!NIUPPLIMA)*[1]!NIUPPERA)+([1]!NIUPPLIMA-[1]!NILOWLIMA)*[1]!NILOWA,IF(U37>[1]!NILOWLIMA,(U37-[1]!NILOWLIMA)*[1]!NILOWA,0)))+IF($Q37="Y",IF(U37>[1]!NIUPPLIMA,((U37-[1]!NIUPPLIMA)*[1]!NIUPPERA)+(([1]!NIUPPLIMA-[1]!NILOWLIMA)*[1]!NISUPNA),IF(U37>[1]!NILOWLIMA,(U37-[1]!NILOWLIMA)*[1]!NISUPNA,0)))+IF(U37>[1]!NILOWLIMA,-[1]!NICREBATEA,0) -> 383.4245 | AI37: =IF($Q37="N",IF(V37>[1]!NIUPPLIMA,((V37-[1]!NIUPPLIMA)*[1]!NIUPPERA)+([1]!NIUPPLIMA-[1]!NILOWLIMA)*[1]!NILOWA,IF(V37>[1]!NILOWLIMA,(V37-[1]!NILOWLIMA)*[1]!NILOWA,0)))+IF($Q37="Y",IF(V37>[1]!NIUPPLIMA,((V37-[1]!NIUPPLIMA)*[1]!NIUPPERA)+(([1]!NIUPPLIMA-[1]!NILOWLIMA)*[1]!NISUPNA),IF(V37>[1]!NILOWLIMA,(V37-[1]!NILOWLIMA)*[1]!NISUPNA,0)))+IF(V37>[1]!NILOWLIMA,-[1]!NICREBATEA,0) -> 383.4245 | AJ37: =IF($Q37="N",IF(W37>[1]!NIUPPLIMA,((W37-[1]!NIUPPLIMA)*[1]!NIUPPERA)+([1]!NIUPPLIMA-[1]!NILOWLIMA)*[1]!NILOWA,IF(W37>[1]!NILOWLIMA,(W37-[1]!NILOWLIMA)*[1]!NILOWA,0)))+IF($Q37="Y",IF(W37>[1]!NIUPPLIMA,((W37-[1]!NIUPPLIMA)*[1]!NIUPPERA)+(([1]!NIUPPLIMA-[1]!NILOWLIMA)*[1]!NISUPNA),IF(W37>[1]!NILOWLIMA,(W37-[1]!NILOWLIMA)*[1]!NISUPNA,0)))+IF(W37>[1]!NILOWLIMA,-[1]!NICREBATEA,0) -> 383.4245 | AK37: =IF($Q37="N",IF(X37>[1]!NIUPPLIMA,((X37-[1]!NIUPPLIMA)*[1]!NIUPPERA)+([1]!NIUPPLIMA-[1]!NILOWLIMA)*[1]!NILOWA,IF(X37>[1]!NILOWLIMA,(X37-[1]!NILOWLIMA)*[1]!NILOWA,0)))+IF($Q37="Y",IF(X37>[1]!NIUPPLIMA,((X37-[1]!NIUPPLIMA)*[1]!NIUPPERA)+(([1]!NIUPPLIMA-[1]!NILOWLIMA)*[1]!NISUPNA),IF(X37>[1]!NILOWLIMA,(X37-[1]!NILOWLIMA)*[1]!NISUPNA,0)))+IF(X37>[1]!NILOWLIMA,-[1]!NICREBATEA,0) -> 383.4245 | AL37: =IF($Q37="N",IF(Y37>[1]!NIUPPLIMA,((Y37-[1]!NIUPPLIMA)*[1]!NIUPPERA)+([1]!NIUPPLIMA-[1]!NILOWLIMA)*[1]!NILOWA,IF(Y37>[1]!NILOWLIMA,(Y37-[1]!NILOWLIMA)*[1]!NILOWA,0)))+IF($Q37="Y",IF(Y37>[1]!NIUPPLIMA,((Y37-[1]!NIUPPLIMA)*[1]!NIUPPERA)+(([1]!NIUPPLIMA-[1]!NILOWLIMA)*[1]!NISUPNA),IF(Y37>[1]!NILOWLIMA,(Y37-[1]!NILOWLIMA)*[1]!NISUPNA,0)))+IF(Y37>[1]!NILOWLIMA,-[1]!NICREBATEA,0) -> 383.4245 | AM37: =IF($Q37="N",IF(Z37>[1]!NIUPPLIMA,((Z37-[1]!NIUPPLIMA)*[1]!NIUPPERA)+([1]!NIUPPLIMA-[1]!NILOWLIMA)*[1]!NILOWA,IF(Z37>[1]!NILOWLIMA,(Z37-[1]!NILOWLIMA)*[1]!NILOWA,0)))+IF($Q37="Y",IF(Z37>[1]!NIUPPLIMA,((Z37-[1]!NIUPPLIMA)*[1]!NIUPPERA)+(([1]!NIUPPLIMA-[1]!NILOWLIMA)*[1]!NISUPNA),IF(Z37>[1]!NILOWLIMA,(Z37-[1]!NILOWLIMA)*[1]!NISUPNA,0)))+IF(Z37>[1]!NILOWLIMA,-[1]!NICREBATEA,0) -> 0 | AN37: =IF($Q37="N",IF(AA37>[1]!NIUPPLIMA,((AA37-[1]!NIUPPLIMA)*[1]!NIUPPERA)+([1]!NIUPPLIMA-[1]!NILOWLIMA)*[1]!NILOWA,IF(AA37>[1]!NILOWLIMA,(AA37-[1]!NILOWLIMA)*[1]!NILOWA,0)))+IF($Q37="Y",IF(AA37>[1]!NIUPPLIMA,((AA37-[1]!NIUPPLIMA)*[1]!NIUPPERA)+(([1]!NIUPPLIMA-[1]!NILOWLIMA)*[1]!NISUPNA),IF(AA37>[1]!NILOWLIMA,(AA37-[1]!NILOWLIMA)*[1]!NISUPNA,0)))+IF(AA37>[1]!NILOWLIMA,-[1]!NICREBATEA,0) -> 0 | AO37: =IF($Q37="N",IF(AB37>[1]!NIUPPLIMA,((AB37-[1]!NIUPPLIMA)*[1]!NIUPPERA)+([1]!NIUPPLIMA-[1]!NILOWLIMA)*[1]!NILOWA,IF(AB37>[1]!NILOWLIMA,(AB37-[1]!NILOWLIMA)*[1]!NILOWA,0)))+IF($Q37="Y",IF(AB37>[1]!NIUPPLIMA,((AB37-[1]!NIUPPLIMA)*[1]!NIUPPERA)+(([1]!NIUPPLIMA-[1]!NILOWLIMA)*[1]!NISUPNA),IF(AB37>[1]!NILOWLIMA,(AB37-[1]!NILOWLIMA)*[1]!NISUPNA,0)))+IF(AB37>[1]!NILOWLIMA,-[1]!NICREBATEA,0) -> 0 | AP37: =IF($Q37="N",IF(AC37>[1]!NIUPPLIMA,((AC37-[1]!NIUPPLIMA)*[1]!NIUPPERA)+([1]!NIUPPLIMA-[1]!NILOWLIMA)*[1]!NILOWA,IF(AC37>[1]!NILOWLIMA,(AC37-[1]!NILOWLIMA)*[1]!NILOWA,0)))+IF($Q37="Y",IF(AC37>[1]!NIUPPLIMA,((AC37-[1]!NIUPPLIMA)*[1]!NIUPPERA)+(([1]!NIUPPLIMA-[1]!NILOWLIMA)*[1]!NISUPNA),IF(AC37>[1]!NILOWLIMA,(AC37-[1]!NILOWLIMA)*[1]!NISUPNA,0)))+IF(AC37>[1]!NILOWLIMA,-[1]!NICREBATEA,0) -> 0 | AQ37: =IF($Q37="N",IF(AD37>[1]!NIUPPLIMA,((AD37-[1]!NIUPPLIMA)*[1]!NIUPPERA)+([1]!NIUPPLIMA-[1]!NILOWLIMA)*[1]!NILOWA,IF(AD37>[1]!NILOWLIMA,(AD37-[1]!NILOWLIMA)*[1]!NILOWA,0)))+IF($Q37="Y",IF(AD37>[1]!NIUPPLIMA,((AD37-[1]!NIUPPLIMA)*[1]!NIUPPERA)+(([1]!NIUPPLIMA-[1]!NILOWLIMA)*[1]!NISUPNA),IF(AD37>[1]!NILOWLIMA,(AD37-[1]!NILOWLIMA)*[1]!NISUPNA,0)))+IF(AD37>[1]!NILOWLIMA,-[1]!NICREBATEA,0) -> 0 | AR37: =IF($Q37="N",IF(AE37>[1]!NIUPPLIMA,((AE37-[1]!NIUPPLIMA)*[1]!NIUPPERA)+([1]!NIUPPLIMA-[1]!NILOWLIMA)*[1]!NILOWA,IF(AE37>[1]!NILOWLIMA,(AE37-[1]!NILOWLIMA)*[1]!NILOWA,0)))+IF($Q37="Y",IF(AE37>[1]!NIUPPLIMA,((AE37-[1]!NIUPPLIMA)*[1]!NIUPPERA)+(([1]!NIUPPLIMA-[1]!NILOWLIMA)*[1]!NISUPNA),IF(AE37>[1]!NILOWLIMA,(AE37-[1]!NILOWLIMA)*[1]!NISUPNA,0)))+IF(AE37>[1]!NILOWLIMA,-[1]!NICREBATEA,0) -> 0 | AS37: =IF($Q37="N",IF(AF37>[1]!NIUPPLIMA,((AF37-[1]!NIUPPLIMA)*[1]!NIUPPERA)+([1]!NIUPPLIMA-[1]!NILOWLIMA)*[1]!NILOWA,IF(AF37>[1]!NILOWLIMA,(AF37-[1]!NILOWLIMA)*[1]!NILOWA,0)))+IF($Q37="Y",IF(AF37>[1]!NIUPPLIMA,((AF37-[1]!NIUPPLIMA)*[1]!NIUPPERA)+(([1]!NIUPPLIMA-[1]!NILOWLIMA)*[1]!NISUPNA),IF(AF37>[1]!NILOWLIMA,(AF37-[1]!NILOWLIMA)*[1]!NISUPNA,0)))+IF(AF37>[1]!NILOWLIMA,-[1]!NICREBATEA,0) -> 0 | AT37: 1917.1225 | AU37: 4263.043 | AV37: 21044.33217 | AW37: 4 | AX37: 0 | AY37: =IF($E37="LEADER",VLOOKUP(AW37,[1]!LEADERSHIP,5),IF($E37="TEACHER",VLOOKUP(AW37,[1]!TEACHER,5),IF($E37="ADVANCED",VLOOKUP($AW37,[1]!ADVANCED_SKILLS_TEACHERS,5),IF($E37="UNQUAL",VLOOKUP($AW37,[1]!UNQUALIFIED_TEACHER,5),0))))*D37*(1+BA$4)*(1+BA$5)+(AX37/AZ37) -> 3428.1312 | AZ37: 12 | BA37: 0 | BD37: =(IF($Q37="N",IF(AY37>[1]!NIUPPLIMB,((AY37-[1]!NIUPPLIMB)*[1]!NIUPPERB)+([1]!NIUPPLIMB-[1]!NILOWLIMB)*[1]!NILOWB,IF(AY37>[1]!NILOWLIMB,(AY37-[1]!NILOWLIMB)*[1]!NILOWB,0)))+IF($Q37="Y",IF(AY37>[1]!NIUPPLIMB,((AY37-[1]!NIUPPLIMB)*[1]!NIUPPERB)+(([1]!NIUPPLIMB-[1]!NILOWLIMB)*[1]!NISUPNB),IF(AY37>[1]!NILOWLIMB,(AY37-[1]!NILOWLIMB)*[1]!NISUPNB,0))))*((NumberOfDaysWorked($F37,$G37,BD$1,BF$1)*5)+(NumberOfDaysWorked($F37,$G37,BD$1,BF$1)*7)) -> 0 | BE37: 0 | BF37: 0 | BG37: 5 | BH37: 0 | BI37: =IF($E37="LEADER",VLOOKUP(BG37,[1]!LEADERSHIP,5),IF($E37="TEACHER",VLOOKUP(BG37,[1]!TEACHER,5),IF($E37="ADVANCED",VLOOKUP($AW37,[1]!ADVANCED_SKILLS_TEACHERS,5),IF($E37="UNQUAL",VLOOKUP($AW37,[1]!UNQUALIFIED_TEACHER,5),0))))*D37*(1+BA$4)*(1+BA$5)*(1+BK$4)*(1+BK$5)+(BH37/BJ37) -> 3790.697941 | BJ37: 12 | BK37: 0 | BN37: =(IF($Q37="N",IF(BI37>[1]!NIUPPLIMC,((BI37-[1]!NIUPPLIMC)*[1]!NIUPPERC)+([1]!NIUPPLIMC-[1]!NILOWLIMC)*[1]!NILOWC,IF(BI37>[1]!NILOWLIMC,(BI37-[1]!NILOWLIMC)*[1]!NILOWC,0)))+IF($Q37="Y",IF(BI37>[1]!NIUPPLIMC,((BI37-[1]!NIUPPLIMC)*[1]!NIUPPERC)+(([1]!NIUPPLIMC-[1]!NILOWLIMC)*[1]!NISUPNC),IF(BI37>[1]!NILOWLIMC,(BI37-[1]!NILOWLIMC)*[1]!NISUPNC,0))))*((NumberOfDaysWorked($F37,$G37,BN$1,BP$1)*5)+(NumberOfDaysWorked($F37,$G37,BN$1,BP$1)*7)) -> 0 | BO37: 0 | BP37: 0
A38: x | B38: SLATER BETH | C38: A01001 | D38: 1 | E38: TEACHER | F38: 2025-09-01 | G38: 2028-03-31 | H38: 4 | I38: 4 | J38: 0 | K38: =VLOOKUP(J38,[1]!MANAGEMENT,2)*D38 -> 0 | L38: 0 | M38: =VLOOKUP(L38,[1]!SEN_ALLOWANCES,2)*D38 -> 0 | N38: 0 | O38: 0 | P38: 0 | Q38: Y | R38: =IF($E38="LEADER",VLOOKUP(H38,[1]PAYDATA!$A$4:$C$54,3),IF($E38="TEACHER",VLOOKUP(H38,[1]PAYDATA!$A$70:$C$80,3),IF($E38="ADVANCED",VLOOKUP(H38,[1]PAYDATA!$A$141:$C$159,3),IF($E38="UNQUAL",VLOOKUP(H38,[1]PAYDATA!$A$57:$C$63,3),0))))*$D38+($K38/T38)+($M38/T38)+($O38/T38)+($P38/T38) -> 3169.5 | S38: =IF($E38="LEADER",VLOOKUP(I38,[1]!LEADERSHIP,5),IF($E38="TEACHER",VLOOKUP(I38,[1]!TEACHER,5),IF($E38="ADVANCED",VLOOKUP(I38,[1]PAYDATA!$A$141:$E$159,5),IF($E38="UNQUAL",VLOOKUP(I38,[1]!UNQUALIFIED_TEACHER,5),0))))*$D38+($K38/T38)+($M38/T38)+($O38/T38)+($P38/T38) -> 3296.28 | T38: 12 | U38: 0 | V38: 0 | W38: 0 | X38: 0 | Y38: 0 | Z38: 3296.28 | AA38: 3296.28 | AB38: 3296.28 | AC38: 3296.28 | AD38: 3296.28 | AE38: 3296.28 | AF38: 3296.28 | AG38: 23073.96 | AH38: =IF($Q38="N",IF(U38>[1]!NIUPPLIMA,((U38-[1]!NIUPPLIMA)*[1]!NIUPPERA)+([1]!NIUPPLIMA-[1]!NILOWLIMA)*[1]!NILOWA,IF(U38>[1]!NILOWLIMA,(U38-[1]!NILOWLIMA)*[1]!NILOWA,0)))+IF($Q38="Y",IF(U38>[1]!NIUPPLIMA,((U38-[1]!NIUPPLIMA)*[1]!NIUPPERA)+(([1]!NIUPPLIMA-[1]!NILOWLIMA)*[1]!NISUPNA),IF(U38>[1]!NILOWLIMA,(U38-[1]!NILOWLIMA)*[1]!NISUPNA,0)))+IF(U38>[1]!NILOWLIMA,-[1]!NICREBATEA,0) -> 0 | AI38: =IF($Q38="N",IF(V38>[1]!NIUPPLIMA,((V38-[1]!NIUPPLIMA)*[1]!NIUPPERA)+([1]!NIUPPLIMA-[1]!NILOWLIMA)*[1]!NILOWA,IF(V38>[1]!NILOWLIMA,(V38-[1]!NILOWLIMA)*[1]!NILOWA,0)))+IF($Q38="Y",IF(V38>[1]!NIUPPLIMA,((V38-[1]!NIUPPLIMA)*[1]!NIUPPERA)+(([1]!NIUPPLIMA-[1]!NILOWLIMA)*[1]!NISUPNA),IF(V38>[1]!NILOWLIMA,(V38-[1]!NILOWLIMA)*[1]!NISUPNA,0)))+IF(V38>[1]!NILOWLIMA,-[1]!NICREBATEA,0) -> 0 | AJ38: =IF($Q38="N",IF(W38>[1]!NIUPPLIMA,((W38-[1]!NIUPPLIMA)*[1]!NIUPPERA)+([1]!NIUPPLIMA-[1]!NILOWLIMA)*[1]!NILOWA,IF(W38>[1]!NILOWLIMA,(W38-[1]!NILOWLIMA)*[1]!NILOWA,0)))+IF($Q38="Y",IF(W38>[1]!NIUPPLIMA,((W38-[1]!NIUPPLIMA)*[1]!NIUPPERA)+(([1]!NIUPPLIMA-[1]!NILOWLIMA)*[1]!NISUPNA),IF(W38>[1]!NILOWLIMA,(W38-[1]!NILOWLIMA)*[1]!NISUPNA,0)))+IF(W38>[1]!NILOWLIMA,-[1]!NICREBATEA,0) -> 0 | AK38: =IF($Q38="N",IF(X38>[1]!NIUPPLIMA,((X38-[1]!NIUPPLIMA)*[1]!NIUPPERA)+([1]!NIUPPLIMA-[1]!NILOWLIMA)*[1]!NILOWA,IF(X38>[1]!NILOWLIMA,(X38-[1]!NILOWLIMA)*[1]!NILOWA,0)))+IF($Q38="Y",IF(X38>[1]!NIUPPLIMA,((X38-[1]!NIUPPLIMA)*[1]!NIUPPERA)+(([1]!NIUPPLIMA-[1]!NILOWLIMA)*[1]!NISUPNA),IF(X38>[1]!NILOWLIMA,(X38-[1]!NILOWLIMA)*[1]!NISUPNA,0)))+IF(X38>[1]!NILOWLIMA,-[1]!NICREBATEA,0) -> 0 | AL38: =IF($Q38="N",IF(Y38>[1]!NIUPPLIMA,((Y38-[1]!NIUPPLIMA)*[1]!NIUPPERA)+([1]!NIUPPLIMA-[1]!NILOWLIMA)*[1]!NILOWA,IF(Y38>[1]!NILOWLIMA,(Y38-[1]!NILOWLIMA)*[1]!NILOWA,0)))+IF($Q38="Y",IF(Y38>[1]!NIUPPLIMA,((Y38-[1]!NIUPPLIMA)*[1]!NIUPPERA)+(([1]!NIUPPLIMA-[1]!NILOWLIMA)*[1]!NISUPNA),IF(Y38>[1]!NILOWLIMA,(Y38-[1]!NILOWLIMA)*[1]!NISUPNA,0)))+IF(Y38>[1]!NILOWLIMA,-[1]!NICREBATEA,0) -> 0 | AM38: =IF($Q38="N",IF(Z38>[1]!NIUPPLIMA,((Z38-[1]!NIUPPLIMA)*[1]!NIUPPERA)+([1]!NIUPPLIMA-[1]!NILOWLIMA)*[1]!NILOWA,IF(Z38>[1]!NILOWLIMA,(Z38-[1]!NILOWLIMA)*[1]!NILOWA,0)))+IF($Q38="Y",IF(Z38>[1]!NIUPPLIMA,((Z38-[1]!NIUPPLIMA)*[1]!NIUPPERA)+(([1]!NIUPPLIMA-[1]!NILOWLIMA)*[1]!NISUPNA),IF(Z38>[1]!NILOWLIMA,(Z38-[1]!NILOWLIMA)*[1]!NISUPNA,0)))+IF(Z38>[1]!NILOWLIMA,-[1]!NICREBATEA,0) -> 431.9415 | AN38: =IF($Q38="N",IF(AA38>[1]!NIUPPLIMA,((AA38-[1]!NIUPPLIMA)*[1]!NIUPPERA)+([1]!NIUPPLIMA-[1]!NILOWLIMA)*[1]!NILOWA,IF(AA38>[1]!NILOWLIMA,(AA38-[1]!NILOWLIMA)*[1]!NILOWA,0)))+IF($Q38="Y",IF(AA38>[1]!NIUPPLIMA,((AA38-[1]!NIUPPLIMA)*[1]!NIUPPERA)+(([1]!NIUPPLIMA-[1]!NILOWLIMA)*[1]!NISUPNA),IF(AA38>[1]!NILOWLIMA,(AA38-[1]!NILOWLIMA)*[1]!NISUPNA,0)))+IF(AA38>[1]!NILOWLIMA,-[1]!NICREBATEA,0) -> 431.9415 | AO38: =IF($Q38="N",IF(AB38>[1]!NIUPPLIMA,((AB38-[1]!NIUPPLIMA)*[1]!NIUPPERA)+([1]!NIUPPLIMA-[1]!NILOWLIMA)*[1]!NILOWA,IF(AB38>[1]!NILOWLIMA,(AB38-[1]!NILOWLIMA)*[1]!NILOWA,0)))+IF($Q38="Y",IF(AB38>[1]!NIUPPLIMA,((AB38-[1]!NIUPPLIMA)*[1]!NIUPPERA)+(([1]!NIUPPLIMA-[1]!NILOWLIMA)*[1]!NISUPNA),IF(AB38>[1]!NILOWLIMA,(AB38-[1]!NILOWLIMA)*[1]!NISUPNA,0)))+IF(AB38>[1]!NILOWLIMA,-[1]!NICREBATEA,0) -> 431.9415 | AP38: =IF($Q38="N",IF(AC38>[1]!NIUPPLIMA,((AC38-[1]!NIUPPLIMA)*[1]!NIUPPERA)+([1]!NIUPPLIMA-[1]!NILOWLIMA)*[1]!NILOWA,IF(AC38>[1]!NILOWLIMA,(AC38-[1]!NILOWLIMA)*[1]!NILOWA,0)))+IF($Q38="Y",IF(AC38>[1]!NIUPPLIMA,((AC38-[1]!NIUPPLIMA)*[1]!NIUPPERA)+(([1]!NIUPPLIMA-[1]!NILOWLIMA)*[1]!NISUPNA),IF(AC38>[1]!NILOWLIMA,(AC38-[1]!NILOWLIMA)*[1]!NISUPNA,0)))+IF(AC38>[1]!NILOWLIMA,-[1]!NICREBATEA,0) -> 431.9415 | AQ38: =IF($Q38="N",IF(AD38>[1]!NIUPPLIMA,((AD38-[1]!NIUPPLIMA)*[1]!NIUPPERA)+([1]!NIUPPLIMA-[1]!NILOWLIMA)*[1]!NILOWA,IF(AD38>[1]!NILOWLIMA,(AD38-[1]!NILOWLIMA)*[1]!NILOWA,0)))+IF($Q38="Y",IF(AD38>[1]!NIUPPLIMA,((AD38-[1]!NIUPPLIMA)*[1]!NIUPPERA)+(([1]!NIUPPLIMA-[1]!NILOWLIMA)*[1]!NISUPNA),IF(AD38>[1]!NILOWLIMA,(AD38-[1]!NILOWLIMA)*[1]!NISUPNA,0)))+IF(AD38>[1]!NILOWLIMA,-[1]!NICREBATEA,0) -> 431.9415 | AR38: =IF($Q38="N",IF(AE38>[1]!NIUPPLIMA,((AE38-[1]!NIUPPLIMA)*[1]!NIUPPERA)+([1]!NIUPPLIMA-[1]!NILOWLIMA)*[1]!NILOWA,IF(AE38>[1]!NILOWLIMA,(AE38-[1]!NILOWLIMA)*[1]!NILOWA,0)))+IF($Q38="Y",IF(AE38>[1]!NIUPPLIMA,((AE38-[1]!NIUPPLIMA)*[1]!NIUPPERA)+(([1]!NIUPPLIMA-[1]!NILOWLIMA)*[1]!NISUPNA),IF(AE38>[1]!NILOWLIMA,(AE38-[1]!NILOWLIMA)*[1]!NISUPNA,0)))+IF(AE38>[1]!NILOWLIMA,-[1]!NICREBATEA,0) -> 431.9415 | AS38: =IF($Q38="N",IF(AF38>[1]!NIUPPLIMA,((AF38-[1]!NIUPPLIMA)*[1]!NIUPPERA)+([1]!NIUPPLIMA-[1]!NILOWLIMA)*[1]!NILOWA,IF(AF38>[1]!NILOWLIMA,(AF38-[1]!NILOWLIMA)*[1]!NILOWA,0)))+IF($Q38="Y",IF(AF38>[1]!NIUPPLIMA,((AF38-[1]!NIUPPLIMA)*[1]!NIUPPERA)+(([1]!NIUPPLIMA-[1]!NILOWLIMA)*[1]!NISUPNA),IF(AF38>[1]!NILOWLIMA,(AF38-[1]!NILOWLIMA)*[1]!NISUPNA,0)))+IF(AF38>[1]!NILOWLIMA,-[1]!NICREBATEA,0) -> 431.9415 | AT38: 3023.5905 | AU38: 6617.611728 | AV38: 32715.16223 | AW38: 5 | AX38: 0 | AY38: =IF($E38="LEADER",VLOOKUP(AW38,[1]!LEADERSHIP,5),IF($E38="TEACHER",VLOOKUP(AW38,[1]!TEACHER,5),IF($E38="ADVANCED",VLOOKUP($AW38,[1]!ADVANCED_SKILLS_TEACHERS,5),IF($E38="UNQUAL",VLOOKUP($AW38,[1]!UNQUALIFIED_TEACHER,5),0))))*D38*(1+BA$4)*(1+BA$5)+(AX38/AZ38) -> 3644.901867 | AZ38: 12 | BA38: =NumberOfDaysWorked($F38,$G38,BD$1,BF$1)*(($S38*(1+BA$4))*5)+NumberOfDaysWorked($F38,$G38,BD$1,BF$1)*($AY38*7) -> 41995.71307 | BD38: =(IF($Q38="N",IF(AY38>[1]!NIUPPLIMB,((AY38-[1]!NIUPPLIMB)*[1]!NIUPPERB)+([1]!NIUPPLIMB-[1]!NILOWLIMB)*[1]!NILOWB,IF(AY38>[1]!NILOWLIMB,(AY38-[1]!NILOWLIMB)*[1]!NILOWB,0)))+IF($Q38="Y",IF(AY38>[1]!NIUPPLIMB,((AY38-[1]!NIUPPLIMB)*[1]!NIUPPERB)+(([1]!NIUPPLIMB-[1]!NILOWLIMB)*[1]!NISUPNB),IF(AY38>[1]!NILOWLIMB,(AY38-[1]!NILOWLIMB)*[1]!NISUPNB,0))))*((NumberOfDaysWorked($F38,$G38,BD$1,BF$1)*5)+(NumberOfDaysWorked($F38,$G38,BD$1,BF$1)*7)) -> 5810.82336 | BE38: 12044.37051 | BF38: 59850.90693 | BG38: 6 | BH38: 0 | BI38: =IF($E38="LEADER",VLOOKUP(BG38,[1]!LEADERSHIP,5),IF($E38="TEACHER",VLOOKUP(BG38,[1]!TEACHER,5),IF($E38="ADVANCED",VLOOKUP($AW38,[1]!ADVANCED_SKILLS_TEACHERS,5),IF($E38="UNQUAL",VLOOKUP($AW38,[1]!UNQUALIFIED_TEACHER,5),0))))*D38*(1+BA$4)*(1+BA$5)*(1+BK$4)*(1+BK$5)+(BH38/BJ38) -> 4087.662037 | BJ38: 12 | BK38: 46838.14359 | BN38: =(IF($Q38="N",IF(BI38>[1]!NIUPPLIMC,((BI38-[1]!NIUPPLIMC)*[1]!NIUPPERC)+([1]!NIUPPLIMC-[1]!NILOWLIMC)*[1]!NILOWC,IF(BI38>[1]!NILOWLIMC,(BI38-[1]!NILOWLIMC)*[1]!NILOWC,0)))+IF($Q38="Y",IF(BI38>[1]!NIUPPLIMC,((BI38-[1]!NIUPPLIMC)*[1]!NIUPPERC)+(([1]!NIUPPLIMC-[1]!NILOWLIMC)*[1]!NISUPNC),IF(BI38>[1]!NILOWLIMC,(BI38-[1]!NILOWLIMC)*[1]!NISUPNC,0))))*((NumberOfDaysWorked($F38,$G38,BN$1,BP$1)*5)+(NumberOfDaysWorked($F38,$G38,BN$1,BP$1)*7)) -> 6607.791667 | BO38: 13433.17958 | BP38: 66879.11484
A39: x | B39: SNELL ELIZABETH (SENCO LEAD) | C39: A01001 | D39: =1012/1265 -> 0.8 | E39: TEACHER | F39: 2025-04-01 | G39: 2025-08-31 | H39: U3 | I39: U3 | J39: 0 | K39: =VLOOKUP(J39,[1]!MANAGEMENT,2)*D39 -> 0 | L39: 0 | M39: =VLOOKUP(L39,[1]!SEN_ALLOWANCES,2)*D39 -> 0 | N39: 0 | O39: =N39 -> 0 | P39: =3391*80% -> 2712.8 | Q39: Y | R39: =IF($E39="LEADER",VLOOKUP(H39,[1]PAYDATA!$A$4:$C$54,3),IF($E39="TEACHER",VLOOKUP(H39,[1]PAYDATA!$A$70:$C$80,3),IF($E39="ADVANCED",VLOOKUP(H39,[1]PAYDATA!$A$141:$C$159,3),IF($E39="UNQUAL",VLOOKUP(H39,[1]PAYDATA!$A$57:$C$63,3),0))))*$D39+($K39/T39)+($M39/T39)+($O39/T39)+($P39/T39) -> 3498.333333 | S39: =IF($E39="LEADER",VLOOKUP(I39,[1]!LEADERSHIP,5),IF($E39="TEACHER",VLOOKUP(I39,[1]!TEACHER,5),IF($E39="ADVANCED",VLOOKUP(I39,[1]PAYDATA!$A$141:$E$159,5),IF($E39="UNQUAL",VLOOKUP(I39,[1]!UNQUALIFIED_TEACHER,5),0))))*$D39+($K39/T39)+($M39/T39)+($O39/T39)+($P39/T39) -> 3629.224 | T39: =IF(G39-F39>11.99999,12,MONTH(G39)-MONTH(F39)) -> 12 | U39: =NumberOfDaysWorked($F39,$G39,U$3,U$4)*$R39 -> 3498.333333 | V39: 3498.333333 | W39: 3498.333333 | X39: 3498.333333 | Y39: 3498.333333 | Z39: =NumberOfDaysWorked($F39,$G39,Z$3,Z$4)*$S39 -> 0 | AA39: 0 | AB39: 0 | AC39: 0 | AD39: 0 | AE39: 0 | AF39: 0 | AG39: =SUM(U39:AF39) -> 17491.66667 | AH39: =IF($Q39="N",IF(U39>[1]!NIUPPLIMA,((U39-[1]!NIUPPLIMA)*[1]!NIUPPERA)+([1]!NIUPPLIMA-[1]!NILOWLIMA)*[1]!NILOWA,IF(U39>[1]!NILOWLIMA,(U39-[1]!NILOWLIMA)*[1]!NILOWA,0)))+IF($Q39="Y",IF(U39>[1]!NIUPPLIMA,((U39-[1]!NIUPPLIMA)*[1]!NIUPPERA)+(([1]!NIUPPLIMA-[1]!NILOWLIMA)*[1]!NISUPNA),IF(U39>[1]!NILOWLIMA,(U39-[1]!NILOWLIMA)*[1]!NISUPNA,0)))+IF(U39>[1]!NILOWLIMA,-[1]!NICREBATEA,0) -> 462.2495 | AI39: =IF($Q39="N",IF(V39>[1]!NIUPPLIMA,((V39-[1]!NIUPPLIMA)*[1]!NIUPPERA)+([1]!NIUPPLIMA-[1]!NILOWLIMA)*[1]!NILOWA,IF(V39>[1]!NILOWLIMA,(V39-[1]!NILOWLIMA)*[1]!NILOWA,0)))+IF($Q39="Y",IF(V39>[1]!NIUPPLIMA,((V39-[1]!NIUPPLIMA)*[1]!NIUPPERA)+(([1]!NIUPPLIMA-[1]!NILOWLIMA)*[1]!NISUPNA),IF(V39>[1]!NILOWLIMA,(V39-[1]!NILOWLIMA)*[1]!NISUPNA,0)))+IF(V39>[1]!NILOWLIMA,-[1]!NICREBATEA,0) -> 462.2495 | AJ39: =IF($Q39="N",IF(W39>[1]!NIUPPLIMA,((W39-[1]!NIUPPLIMA)*[1]!NIUPPERA)+([1]!NIUPPLIMA-[1]!NILOWLIMA)*[1]!NILOWA,IF(W39>[1]!NILOWLIMA,(W39-[1]!NILOWLIMA)*[1]!NILOWA,0)))+IF($Q39="Y",IF(W39>[1]!NIUPPLIMA,((W39-[1]!NIUPPLIMA)*[1]!NIUPPERA)+(([1]!NIUPPLIMA-[1]!NILOWLIMA)*[1]!NISUPNA),IF(W39>[1]!NILOWLIMA,(W39-[1]!NILOWLIMA)*[1]!NISUPNA,0)))+IF(W39>[1]!NILOWLIMA,-[1]!NICREBATEA,0) -> 462.2495 | AK39: =IF($Q39="N",IF(X39>[1]!NIUPPLIMA,((X39-[1]!NIUPPLIMA)*[1]!NIUPPERA)+([1]!NIUPPLIMA-[1]!NILOWLIMA)*[1]!NILOWA,IF(X39>[1]!NILOWLIMA,(X39-[1]!NILOWLIMA)*[1]!NILOWA,0)))+IF($Q39="Y",IF(X39>[1]!NIUPPLIMA,((X39-[1]!NIUPPLIMA)*[1]!NIUPPERA)+(([1]!NIUPPLIMA-[1]!NILOWLIMA)*[1]!NISUPNA),IF(X39>[1]!NILOWLIMA,(X39-[1]!NILOWLIMA)*[1]!NISUPNA,0)))+IF(X39>[1]!NILOWLIMA,-[1]!NICREBATEA,0) -> 462.2495 | AL39: =IF($Q39="N",IF(Y39>[1]!NIUPPLIMA,((Y39-[1]!NIUPPLIMA)*[1]!NIUPPERA)+([1]!NIUPPLIMA-[1]!NILOWLIMA)*[1]!NILOWA,IF(Y39>[1]!NILOWLIMA,(Y39-[1]!NILOWLIMA)*[1]!NILOWA,0)))+IF($Q39="Y",IF(Y39>[1]!NIUPPLIMA,((Y39-[1]!NIUPPLIMA)*[1]!NIUPPERA)+(([1]!NIUPPLIMA-[1]!NILOWLIMA)*[1]!NISUPNA),IF(Y39>[1]!NILOWLIMA,(Y39-[1]!NILOWLIMA)*[1]!NISUPNA,0)))+IF(Y39>[1]!NILOWLIMA,-[1]!NICREBATEA,0) -> 462.2495 | AM39: =IF($Q39="N",IF(Z39>[1]!NIUPPLIMA,((Z39-[1]!NIUPPLIMA)*[1]!NIUPPERA)+([1]!NIUPPLIMA-[1]!NILOWLIMA)*[1]!NILOWA,IF(Z39>[1]!NILOWLIMA,(Z39-[1]!NILOWLIMA)*[1]!NILOWA,0)))+IF($Q39="Y",IF(Z39>[1]!NIUPPLIMA,((Z39-[1]!NIUPPLIMA)*[1]!NIUPPERA)+(([1]!NIUPPLIMA-[1]!NILOWLIMA)*[1]!NISUPNA),IF(Z39>[1]!NILOWLIMA,(Z39-[1]!NILOWLIMA)*[1]!NISUPNA,0)))+IF(Z39>[1]!NILOWLIMA,-[1]!NICREBATEA,0) -> 0 | AN39: =IF($Q39="N",IF(AA39>[1]!NIUPPLIMA,((AA39-[1]!NIUPPLIMA)*[1]!NIUPPERA)+([1]!NIUPPLIMA-[1]!NILOWLIMA)*[1]!NILOWA,IF(AA39>[1]!NILOWLIMA,(AA39-[1]!NILOWLIMA)*[1]!NILOWA,0)))+IF($Q39="Y",IF(AA39>[1]!NIUPPLIMA,((AA39-[1]!NIUPPLIMA)*[1]!NIUPPERA)+(([1]!NIUPPLIMA-[1]!NILOWLIMA)*[1]!NISUPNA),IF(AA39>[1]!NILOWLIMA,(AA39-[1]!NILOWLIMA)*[1]!NISUPNA,0)))+IF(AA39>[1]!NILOWLIMA,-[1]!NICREBATEA,0) -> 0 | AO39: =IF($Q39="N",IF(AB39>[1]!NIUPPLIMA,((AB39-[1]!NIUPPLIMA)*[1]!NIUPPERA)+([1]!NIUPPLIMA-[1]!NILOWLIMA)*[1]!NILOWA,IF(AB39>[1]!NILOWLIMA,(AB39-[1]!NILOWLIMA)*[1]!NILOWA,0)))+IF($Q39="Y",IF(AB39>[1]!NIUPPLIMA,((AB39-[1]!NIUPPLIMA)*[1]!NIUPPERA)+(([1]!NIUPPLIMA-[1]!NILOWLIMA)*[1]!NISUPNA),IF(AB39>[1]!NILOWLIMA,(AB39-[1]!NILOWLIMA)*[1]!NISUPNA,0)))+IF(AB39>[1]!NILOWLIMA,-[1]!NICREBATEA,0) -> 0 | AP39: =IF($Q39="N",IF(AC39>[1]!NIUPPLIMA,((AC39-[1]!NIUPPLIMA)*[1]!NIUPPERA)+([1]!NIUPPLIMA-[1]!NILOWLIMA)*[1]!NILOWA,IF(AC39>[1]!NILOWLIMA,(AC39-[1]!NILOWLIMA)*[1]!NILOWA,0)))+IF($Q39="Y",IF(AC39>[1]!NIUPPLIMA,((AC39-[1]!NIUPPLIMA)*[1]!NIUPPERA)+(([1]!NIUPPLIMA-[1]!NILOWLIMA)*[1]!NISUPNA),IF(AC39>[1]!NILOWLIMA,(AC39-[1]!NILOWLIMA)*[1]!NISUPNA,0)))+IF(AC39>[1]!NILOWLIMA,-[1]!NICREBATEA,0) -> 0 | AQ39: =IF($Q39="N",IF(AD39>[1]!NIUPPLIMA,((AD39-[1]!NIUPPLIMA)*[1]!NIUPPERA)+([1]!NIUPPLIMA-[1]!NILOWLIMA)*[1]!NILOWA,IF(AD39>[1]!NILOWLIMA,(AD39-[1]!NILOWLIMA)*[1]!NILOWA,0)))+IF($Q39="Y",IF(AD39>[1]!NIUPPLIMA,((AD39-[1]!NIUPPLIMA)*[1]!NIUPPERA)+(([1]!NIUPPLIMA-[1]!NILOWLIMA)*[1]!NISUPNA),IF(AD39>[1]!NILOWLIMA,(AD39-[1]!NILOWLIMA)*[1]!NISUPNA,0)))+IF(AD39>[1]!NILOWLIMA,-[1]!NICREBATEA,0) -> 0 | AR39: =IF($Q39="N",IF(AE39>[1]!NIUPPLIMA,((AE39-[1]!NIUPPLIMA)*[1]!NIUPPERA)+([1]!NIUPPLIMA-[1]!NILOWLIMA)*[1]!NILOWA,IF(AE39>[1]!NILOWLIMA,(AE39-[1]!NILOWLIMA)*[1]!NILOWA,0)))+IF($Q39="Y",IF(AE39>[1]!NIUPPLIMA,((AE39-[1]!NIUPPLIMA)*[1]!NIUPPERA)+(([1]!NIUPPLIMA-[1]!NILOWLIMA)*[1]!NISUPNA),IF(AE39>[1]!NILOWLIMA,(AE39-[1]!NILOWLIMA)*[1]!NISUPNA,0)))+IF(AE39>[1]!NILOWLIMA,-[1]!NICREBATEA,0) -> 0 | AS39: =IF($Q39="N",IF(AF39>[1]!NIUPPLIMA,((AF39-[1]!NIUPPLIMA)*[1]!NIUPPERA)+([1]!NIUPPLIMA-[1]!NILOWLIMA)*[1]!NILOWA,IF(AF39>[1]!NILOWLIMA,(AF39-[1]!NILOWLIMA)*[1]!NILOWA,0)))+IF($Q39="Y",IF(AF39>[1]!NIUPPLIMA,((AF39-[1]!NIUPPLIMA)*[1]!NIUPPERA)+(([1]!NIUPPLIMA-[1]!NILOWLIMA)*[1]!NISUPNA),IF(AF39>[1]!NILOWLIMA,(AF39-[1]!NILOWLIMA)*[1]!NISUPNA,0)))+IF(AF39>[1]!NILOWLIMA,-[1]!NICREBATEA,0) -> 0 | AT39: =SUM(AH39:AS39) -> 2311.2475 | AU39: =IF($Q39="N",0,((AG39*$AU$5))) -> 5016.61 | AV39: =AG39+AT39+AU39 -> 24819.52417 | AW39: =IF($E39="TEACHER",IF($I39<6,$I39+1,IF(LEFT($I39,1)="U",$I39,6)),IF($E39="LEADER",+I39,IF($E39="UNQUAL",IF($I39<10,$I39+1,10),IF($E39="ADVANCED",IF($I39<27,$I39+1,27))))) -> U3 | AX39: =(K39+M39+O39+P39) -> 2712.8 | AY39: =IF($E39="LEADER",VLOOKUP(AW39,[1]!LEADERSHIP,5),IF($E39="TEACHER",VLOOKUP(AW39,[1]!TEACHER,5),IF($E39="ADVANCED",VLOOKUP($AW39,[1]!ADVANCED_SKILLS_TEACHERS,5),IF($E39="UNQUAL",VLOOKUP($AW39,[1]!UNQUALIFIED_TEACHER,5),0))))*D39*(1+BA$4)*(1+BA$5)+(AX39/AZ39) -> 3765.350293 | AZ39: =IF(G39-F39>11.99999,12,MONTH(G39)-MONTH(F39)) -> 12 | BA39: 0 | BD39: =(IF($Q39="N",IF(AY39>[1]!NIUPPLIMB,((AY39-[1]!NIUPPLIMB)*[1]!NIUPPERB)+([1]!NIUPPLIMB-[1]!NILOWLIMB)*[1]!NILOWB,IF(AY39>[1]!NILOWLIMB,(AY39-[1]!NILOWLIMB)*[1]!NILOWB,0)))+IF($Q39="Y",IF(AY39>[1]!NIUPPLIMB,((AY39-[1]!NIUPPLIMB)*[1]!NIUPPERB)+(([1]!NIUPPLIMB-[1]!NILOWLIMB)*[1]!NISUPNB),IF(AY39>[1]!NILOWLIMB,(AY39-[1]!NILOWLIMB)*[1]!NISUPNB,0))))*((NumberOfDaysWorked($F39,$G39,BD$1,BF$1)*5)+(NumberOfDaysWorked($F39,$G39,BD$1,BF$1)*7)) -> 0 | BE39: =IF($Q39="N",0,(BA39*$BE$5)) -> 0 | BF39: =SUM(BA39:BE39) -> 0 | BG39: =IF($E39="TEACHER",IF(AW39<6,AW39+1,IF(LEFT(AW39,1)="U",AW39,6)),IF($E39="LEADER",+I39,IF($E39="UNQUAL",IF(AW39<10,AW39+1,10),IF($E39="ADVANCED",IF(AW39<27,AW39+1,27))))) -> U3 | BH39: =(K39+M39+O39+P39) -> 2712.8 | BI39: =IF($E39="LEADER",VLOOKUP(BG39,[1]!LEADERSHIP,5),IF($E39="TEACHER",VLOOKUP(BG39,[1]!TEACHER,5),IF($E39="ADVANCED",VLOOKUP($AW39,[1]!ADVANCED_SKILLS_TEACHERS,5),IF($E39="UNQUAL",VLOOKUP($AW39,[1]!UNQUALIFIED_TEACHER,5),0))))*D39*(1+BA$4)*(1+BA$5)*(1+BK$4)*(1+BK$5)+(BH39/BJ39) -> 3906.921638 | BJ39: =IF(G39-F39>11.99999,12,MONTH(G39)-MONTH(F39)) -> 12 | BK39: =NumberOfDaysWorked($F39,$G39,BN$1,BP$1)*(($AY39*(1+BK$4))*5)+NumberOfDaysWorked($F39,$G39,BN$1,BP$1)*($BI39*7) -> 0 | BN39: =(IF($Q39="N",IF(BI39>[1]!NIUPPLIMC,((BI39-[1]!NIUPPLIMC)*[1]!NIUPPERC)+([1]!NIUPPLIMC-[1]!NILOWLIMC)*[1]!NILOWC,IF(BI39>[1]!NILOWLIMC,(BI39-[1]!NILOWLIMC)*[1]!NILOWC,0)))+IF($Q39="Y",IF(BI39>[1]!NIUPPLIMC,((BI39-[1]!NIUPPLIMC)*[1]!NIUPPERC)+(([1]!NIUPPLIMC-[1]!NILOWLIMC)*[1]!NISUPNC),IF(BI39>[1]!NILOWLIMC,(BI39-[1]!NILOWLIMC)*[1]!NISUPNC,0))))*((NumberOfDaysWorked($F39,$G39,BN$1,BP$1)*5)+(NumberOfDaysWorked($F39,$G39,BN$1,BP$1)*7)) -> 0 | BO39: =IF($Q39="N",0,(BK39*$BO$5)) -> 0 | BP39: =SUM(BK39:BO39) -> 0
A40: x | B40: SNELL ELIZABETH (SENCO LEAD) | C40: A01001 | D40: =1012/1265 -> 0.8 | E40: TEACHER | F40: 2025-09-01 | G40: 2028-03-31 | H40: U3 | I40: U3 | J40: 0 | K40: =VLOOKUP(J40,[1]!MANAGEMENT,2)*D40 -> 0 | L40: 0 | M40: =VLOOKUP(L40,[1]!SEN_ALLOWANCES,2)*D40 -> 0 | N40: 0 | O40: =N40 -> 0 | P40: 2821 | Q40: Y | R40: =IF($E40="LEADER",VLOOKUP(H40,[1]PAYDATA!$A$4:$C$54,3),IF($E40="TEACHER",VLOOKUP(H40,[1]PAYDATA!$A$70:$C$80,3),IF($E40="ADVANCED",VLOOKUP(H40,[1]PAYDATA!$A$141:$C$159,3),IF($E40="UNQUAL",VLOOKUP(H40,[1]PAYDATA!$A$57:$C$63,3),0))))*$D40+($K40/T40)+($M40/T40)+($O40/T40)+($P40/T40) -> 3507.35 | S40: =IF($E40="LEADER",VLOOKUP(I40,[1]!LEADERSHIP,5),IF($E40="TEACHER",VLOOKUP(I40,[1]!TEACHER,5),IF($E40="ADVANCED",VLOOKUP(I40,[1]PAYDATA!$A$141:$E$159,5),IF($E40="UNQUAL",VLOOKUP(I40,[1]!UNQUALIFIED_TEACHER,5),0))))*$D40+($K40/T40)+($M40/T40)+($O40/T40)+($P40/T40) -> 3638.240667 | T40: =IF(G40-F40>11.99999,12,MONTH(G40)-MONTH(F40)) -> 12 | U40: 0 | V40: 0 | W40: 0 | X40: 0 | Y40: 0 | Z40: 3638.240667 | AA40: 3638.240667 | AB40: 3638.240667 | AC40: 3638.240667 | AD40: 3638.240667 | AE40: 3638.240667 | AF40: 3638.240667 | AG40: =SUM(U40:AF40) -> 25467.68467 | AH40: =IF($Q40="N",IF(U40>[1]!NIUPPLIMA,((U40-[1]!NIUPPLIMA)*[1]!NIUPPERA)+([1]!NIUPPLIMA-[1]!NILOWLIMA)*[1]!NILOWA,IF(U40>[1]!NILOWLIMA,(U40-[1]!NILOWLIMA)*[1]!NILOWA,0)))+IF($Q40="Y",IF(U40>[1]!NIUPPLIMA,((U40-[1]!NIUPPLIMA)*[1]!NIUPPERA)+(([1]!NIUPPLIMA-[1]!NILOWLIMA)*[1]!NISUPNA),IF(U40>[1]!NILOWLIMA,(U40-[1]!NILOWLIMA)*[1]!NISUPNA,0)))+IF(U40>[1]!NILOWLIMA,-[1]!NICREBATEA,0) -> 0 | AI40: =IF($Q40="N",IF(V40>[1]!NIUPPLIMA,((V40-[1]!NIUPPLIMA)*[1]!NIUPPERA)+([1]!NIUPPLIMA-[1]!NILOWLIMA)*[1]!NILOWA,IF(V40>[1]!NILOWLIMA,(V40-[1]!NILOWLIMA)*[1]!NILOWA,0)))+IF($Q40="Y",IF(V40>[1]!NIUPPLIMA,((V40-[1]!NIUPPLIMA)*[1]!NIUPPERA)+(([1]!NIUPPLIMA-[1]!NILOWLIMA)*[1]!NISUPNA),IF(V40>[1]!NILOWLIMA,(V40-[1]!NILOWLIMA)*[1]!NISUPNA,0)))+IF(V40>[1]!NILOWLIMA,-[1]!NICREBATEA,0) -> 0 | AJ40: =IF($Q40="N",IF(W40>[1]!NIUPPLIMA,((W40-[1]!NIUPPLIMA)*[1]!NIUPPERA)+([1]!NIUPPLIMA-[1]!NILOWLIMA)*[1]!NILOWA,IF(W40>[1]!NILOWLIMA,(W40-[1]!NILOWLIMA)*[1]!NILOWA,0)))+IF($Q40="Y",IF(W40>[1]!NIUPPLIMA,((W40-[1]!NIUPPLIMA)*[1]!NIUPPERA)+(([1]!NIUPPLIMA-[1]!NILOWLIMA)*[1]!NISUPNA),IF(W40>[1]!NILOWLIMA,(W40-[1]!NILOWLIMA)*[1]!NISUPNA,0)))+IF(W40>[1]!NILOWLIMA,-[1]!NICREBATEA,0) -> 0 | AK40: =IF($Q40="N",IF(X40>[1]!NIUPPLIMA,((X40-[1]!NIUPPLIMA)*[1]!NIUPPERA)+([1]!NIUPPLIMA-[1]!NILOWLIMA)*[1]!NILOWA,IF(X40>[1]!NILOWLIMA,(X40-[1]!NILOWLIMA)*[1]!NILOWA,0)))+IF($Q40="Y",IF(X40>[1]!NIUPPLIMA,((X40-[1]!NIUPPLIMA)*[1]!NIUPPERA)+(([1]!NIUPPLIMA-[1]!NILOWLIMA)*[1]!NISUPNA),IF(X40>[1]!NILOWLIMA,(X40-[1]!NILOWLIMA)*[1]!NISUPNA,0)))+IF(X40>[1]!NILOWLIMA,-[1]!NICREBATEA,0) -> 0 | AL40: =IF($Q40="N",IF(Y40>[1]!NIUPPLIMA,((Y40-[1]!NIUPPLIMA)*[1]!NIUPPERA)+([1]!NIUPPLIMA-[1]!NILOWLIMA)*[1]!NILOWA,IF(Y40>[1]!NILOWLIMA,(Y40-[1]!NILOWLIMA)*[1]!NILOWA,0)))+IF($Q40="Y",IF(Y40>[1]!NIUPPLIMA,((Y40-[1]!NIUPPLIMA)*[1]!NIUPPERA)+(([1]!NIUPPLIMA-[1]!NILOWLIMA)*[1]!NISUPNA),IF(Y40>[1]!NILOWLIMA,(Y40-[1]!NILOWLIMA)*[1]!NISUPNA,0)))+IF(Y40>[1]!NILOWLIMA,-[1]!NICREBATEA,0) -> 0 | AM40: =IF($Q40="N",IF(Z40>[1]!NIUPPLIMA,((Z40-[1]!NIUPPLIMA)*[1]!NIUPPERA)+([1]!NIUPPLIMA-[1]!NILOWLIMA)*[1]!NILOWA,IF(Z40>[1]!NILOWLIMA,(Z40-[1]!NILOWLIMA)*[1]!NILOWA,0)))+IF($Q40="Y",IF(Z40>[1]!NIUPPLIMA,((Z40-[1]!NIUPPLIMA)*[1]!NIUPPERA)+(([1]!NIUPPLIMA-[1]!NILOWLIMA)*[1]!NISUPNA),IF(Z40>[1]!NILOWLIMA,(Z40-[1]!NILOWLIMA)*[1]!NISUPNA,0)))+IF(Z40>[1]!NILOWLIMA,-[1]!NICREBATEA,0) -> 483.2356 | AN40: =IF($Q40="N",IF(AA40>[1]!NIUPPLIMA,((AA40-[1]!NIUPPLIMA)*[1]!NIUPPERA)+([1]!NIUPPLIMA-[1]!NILOWLIMA)*[1]!NILOWA,IF(AA40>[1]!NILOWLIMA,(AA40-[1]!NILOWLIMA)*[1]!NILOWA,0)))+IF($Q40="Y",IF(AA40>[1]!NIUPPLIMA,((AA40-[1]!NIUPPLIMA)*[1]!NIUPPERA)+(([1]!NIUPPLIMA-[1]!NILOWLIMA)*[1]!NISUPNA),IF(AA40>[1]!NILOWLIMA,(AA40-[1]!NILOWLIMA)*[1]!NISUPNA,0)))+IF(AA40>[1]!NILOWLIMA,-[1]!NICREBATEA,0) -> 483.2356 | AO40: =IF($Q40="N",IF(AB40>[1]!NIUPPLIMA,((AB40-[1]!NIUPPLIMA)*[1]!NIUPPERA)+([1]!NIUPPLIMA-[1]!NILOWLIMA)*[1]!NILOWA,IF(AB40>[1]!NILOWLIMA,(AB40-[1]!NILOWLIMA)*[1]!NILOWA,0)))+IF($Q40="Y",IF(AB40>[1]!NIUPPLIMA,((AB40-[1]!NIUPPLIMA)*[1]!NIUPPERA)+(([1]!NIUPPLIMA-[1]!NILOWLIMA)*[1]!NISUPNA),IF(AB40>[1]!NILOWLIMA,(AB40-[1]!NILOWLIMA)*[1]!NISUPNA,0)))+IF(AB40>[1]!NILOWLIMA,-[1]!NICREBATEA,0) -> 483.2356 | AP40: =IF($Q40="N",IF(AC40>[1]!NIUPPLIMA,((AC40-[1]!NIUPPLIMA)*[1]!NIUPPERA)+([1]!NIUPPLIMA-[1]!NILOWLIMA)*[1]!NILOWA,IF(AC40>[1]!NILOWLIMA,(AC40-[1]!NILOWLIMA)*[1]!NILOWA,0)))+IF($Q40="Y",IF(AC40>[1]!NIUPPLIMA,((AC40-[1]!NIUPPLIMA)*[1]!NIUPPERA)+(([1]!NIUPPLIMA-[1]!NILOWLIMA)*[1]!NISUPNA),IF(AC40>[1]!NILOWLIMA,(AC40-[1]!NILOWLIMA)*[1]!NISUPNA,0)))+IF(AC40>[1]!NILOWLIMA,-[1]!NICREBATEA,0) -> 483.2356 | AQ40: =IF($Q40="N",IF(AD40>[1]!NIUPPLIMA,((AD40-[1]!NIUPPLIMA)*[1]!NIUPPERA)+([1]!NIUPPLIMA-[1]!NILOWLIMA)*[1]!NILOWA,IF(AD40>[1]!NILOWLIMA,(AD40-[1]!NILOWLIMA)*[1]!NILOWA,0)))+IF($Q40="Y",IF(AD40>[1]!NIUPPLIMA,((AD40-[1]!NIUPPLIMA)*[1]!NIUPPERA)+(([1]!NIUPPLIMA-[1]!NILOWLIMA)*[1]!NISUPNA),IF(AD40>[1]!NILOWLIMA,(AD40-[1]!NILOWLIMA)*[1]!NISUPNA,0)))+IF(AD40>[1]!NILOWLIMA,-[1]!NICREBATEA,0) -> 483.2356 | AR40: =IF($Q40="N",IF(AE40>[1]!NIUPPLIMA,((AE40-[1]!NIUPPLIMA)*[1]!NIUPPERA)+([1]!NIUPPLIMA-[1]!NILOWLIMA)*[1]!NILOWA,IF(AE40>[1]!NILOWLIMA,(AE40-[1]!NILOWLIMA)*[1]!NILOWA,0)))+IF($Q40="Y",IF(AE40>[1]!NIUPPLIMA,((AE40-[1]!NIUPPLIMA)*[1]!NIUPPERA)+(([1]!NIUPPLIMA-[1]!NILOWLIMA)*[1]!NISUPNA),IF(AE40>[1]!NILOWLIMA,(AE40-[1]!NILOWLIMA)*[1]!NISUPNA,0)))+IF(AE40>[1]!NILOWLIMA,-[1]!NICREBATEA,0) -> 483.2356 | AS40: =IF($Q40="N",IF(AF40>[1]!NIUPPLIMA,((AF40-[1]!NIUPPLIMA)*[1]!NIUPPERA)+([1]!NIUPPLIMA-[1]!NILOWLIMA)*[1]!NILOWA,IF(AF40>[1]!NILOWLIMA,(AF40-[1]!NILOWLIMA)*[1]!NILOWA,0)))+IF($Q40="Y",IF(AF40>[1]!NIUPPLIMA,((AF40-[1]!NIUPPLIMA)*[1]!NIUPPERA)+(([1]!NIUPPLIMA-[1]!NILOWLIMA)*[1]!NISUPNA),IF(AF40>[1]!NILOWLIMA,(AF40-[1]!NILOWLIMA)*[1]!NISUPNA,0)))+IF(AF40>[1]!NILOWLIMA,-[1]!NICREBATEA,0) -> 483.2356 | AT40: =SUM(AH40:AS40) -> 3382.6492 | AU40: =IF($Q40="N",0,((AG40*$AU$5))) -> 7304.131962 | AV40: =AG40+AT40+AU40 -> 36154.46583 | AW40: =IF($E40="TEACHER",IF($I40<6,$I40+1,IF(LEFT($I40,1)="U",$I40,6)),IF($E40="LEADER",+I40,IF($E40="UNQUAL",IF($I40<10,$I40+1,10),IF($E40="ADVANCED",IF($I40<27,$I40+1,27))))) -> U3 | AX40: =(K40+M40+O40+P40) -> 2821 | AY40: =IF($E40="LEADER",VLOOKUP(AW40,[1]!LEADERSHIP,5),IF($E40="TEACHER",VLOOKUP(AW40,[1]!TEACHER,5),IF($E40="ADVANCED",VLOOKUP($AW40,[1]!ADVANCED_SKILLS_TEACHERS,5),IF($E40="UNQUAL",VLOOKUP($AW40,[1]!UNQUALIFIED_TEACHER,5),0))))*D40*(1+BA$4)*(1+BA$5)+(AX40/AZ40) -> 3774.36696 | AZ40: =IF(G40-F40>11.99999,12,MONTH(G40)-MONTH(F40)) -> 12 | BA40: =NumberOfDaysWorked($F40,$G40,BD$1,BF$1)*(($S40*(1+BA$4))*5)+NumberOfDaysWorked($F40,$G40,BD$1,BF$1)*($AY40*7) -> 44611.77205 | BD40: =(IF($Q40="N",IF(AY40>[1]!NIUPPLIMB,((AY40-[1]!NIUPPLIMB)*[1]!NIUPPERB)+([1]!NIUPPLIMB-[1]!NILOWLIMB)*[1]!NILOWB,IF(AY40>[1]!NILOWLIMB,(AY40-[1]!NILOWLIMB)*[1]!NILOWB,0)))+IF($Q40="Y",IF(AY40>[1]!NIUPPLIMB,((AY40-[1]!NIUPPLIMB)*[1]!NIUPPERB)+(([1]!NIUPPLIMB-[1]!NILOWLIMB)*[1]!NISUPNB),IF(AY40>[1]!NILOWLIMB,(AY40-[1]!NILOWLIMB)*[1]!NISUPNB,0))))*((NumberOfDaysWorked($F40,$G40,BD$1,BF$1)*5)+(NumberOfDaysWorked($F40,$G40,BD$1,BF$1)*7)) -> 6043.860528 | BE40: =IF($Q40="N",0,(BA40*$BE$5)) -> 12794.65622 | BF40: =SUM(BA40:BE40) -> 63450.28881 | BG40: =IF($E40="TEACHER",IF(AW40<6,AW40+1,IF(LEFT(AW40,1)="U",AW40,6)),IF($E40="LEADER",+I40,IF($E40="UNQUAL",IF(AW40<10,AW40+1,10),IF($E40="ADVANCED",IF(AW40<27,AW40+1,27))))) -> U3 | BH40: =(K40+M40+O40+P40) -> 2821 | BI40: =IF($E40="LEADER",VLOOKUP(BG40,[1]!LEADERSHIP,5),IF($E40="TEACHER",VLOOKUP(BG40,[1]!TEACHER,5),IF($E40="ADVANCED",VLOOKUP($AW40,[1]!ADVANCED_SKILLS_TEACHERS,5),IF($E40="UNQUAL",VLOOKUP($AW40,[1]!UNQUALIFIED_TEACHER,5),0))))*D40*(1+BA$4)*(1+BA$5)*(1+BK$4)*(1+BK$5)+(BH40/BJ40) -> 3915.938305 | BJ40: =IF(G40-F40>11.99999,12,MONTH(G40)-MONTH(F40)) -> 12 | BK40: =NumberOfDaysWorked($F40,$G40,BN$1,BP$1)*(($AY40*(1+BK$4))*5)+NumberOfDaysWorked($F40,$G40,BN$1,BP$1)*($BI40*7) -> 46283.40294 | BN40: =(IF($Q40="N",IF(BI40>[1]!NIUPPLIMC,((BI40-[1]!NIUPPLIMC)*[1]!NIUPPERC)+([1]!NIUPPLIMC-[1]!NILOWLIMC)*[1]!NILOWC,IF(BI40>[1]!NILOWLIMC,(BI40-[1]!NILOWLIMC)*[1]!NILOWC,0)))+IF($Q40="Y",IF(BI40>[1]!NIUPPLIMC,((BI40-[1]!NIUPPLIMC)*[1]!NIUPPERC)+(([1]!NIUPPLIMC-[1]!NILOWLIMC)*[1]!NISUPNC),IF(BI40>[1]!NILOWLIMC,(BI40-[1]!NILOWLIMC)*[1]!NISUPNC,0))))*((NumberOfDaysWorked($F40,$G40,BN$1,BP$1)*5)+(NumberOfDaysWorked($F40,$G40,BN$1,BP$1)*7)) -> 6298.688949 | BO40: =IF($Q40="N",0,(BK40*$BO$5)) -> 13274.07996 | BP40: =SUM(BK40:BO40) -> 65856.17185
